Workbook

Sheet confW3_Bias
A1: 1 | B1: -1 | C1: 1 | D1: 1 | E1: -1 | F1: -1 | G1: -1 | H1: 1 | I1: -1 | J1: 1 | K1: 1 | L1: -1 | M1: 1 | N1: 1 | O1: 1 | P1: 1 | Q1: 1 | R1: 1 | S1: 1 | T1: -1 | U1: 1 | V1: -1 | W1: 1 | X1: 1 | Y1: -1 | Z1: 1 | AA1: 1 | AB1: 1 | AC1: -1 | AD1: 1 | AE1: -1 | AF1: -1 | AG1: 1 | AH1: 1 | AI1: 1 | AJ1: 1 | AK1: 1 | AL1: -1 | AM1: -1 | AN1: 1 | AO1: -1 | AP1: 1 | AQ1: -1 | AR1: 1 | AS1: 1 | AT1: -1 | AU1: 1 | AV1: 1 | AW1: 1 | AX1: -1 | AY1: -1 | AZ1: -1 | BA1: -1 | BB1: 1 | BC1: -1 | BD1: 1 | BE1: -1 | BF1: -1 | BG1: 1 | BH1: -1 | BI1: -1 | BJ1: -1 | BK1: 1 | BL1: -1 | BM1: -1 | BN1: 1 | BO1: 1 | BP1: -1 | BQ1: -1 | BR1: -1 | BS1: 1 | BT1: -1 | BU1: 1 | BV1: 1 | BW1: 1 | BX1: -1 | BY1: -1 | BZ1: 1 | CA1: -1 | CB1: 1 | CC1: 1 | CD1: 1 | CE1: 1 | CF1: -1 | CG1: -1 | CH1: 1 | CI1: 1 | CJ1: -1 | CK1: -1 | CL1: -1 | CM1: 1 | CN1: -1 | CO1: 1 | CP1: -1 | CQ1: 1 | CR1: -1 | CS1: -1 | CT1: -1 | CU1: -1 | CV1: -1 | CW1: -1 | CX1: -1 | CY1: -1 | CZ1: -1 | DA1: -1 | DB1: -1 | DC1: 1 | DD1: -1 | DE1: -1 | DF1: -1 | DG1: -1 | DH1: 1 | DI1: -1 | DJ1: -1 | DK1: 1 | DL1: 1 | DM1: -1 | DN1: -1 | DO1: 1 | DP1: 1 | DQ1: -1 | DR1: 1 | DS1: 1 | DT1: 1 | DU1: 1 | DV1: 1
A2: -1 | B2: 1 | C2: 1 | D2: 1 | E2: -1 | F2: -1 | G2: 1 | H2: 1 | I2: -1 | J2: -1 | K2: -1 | L2: -1 | M2: 1 | N2: 1 | O2: 1 | P2: -1 | Q2: -1 | R2: -1 | S2: -1 | T2: 1 | U2: -1 | V2: -1 | W2: 1 | X2: -1 | Y2: -1 | Z2: -1 | AA2: -1 | AB2: -1 | AC2: -1 | AD2: -1 | AE2: -1 | AF2: 1 | AG2: 1 | AH2: 1 | AI2: -1 | AJ2: 1 | AK2: 1 | AL2: 1 | AM2: 1 | AN2: 1 | AO2: 1 | AP2: 1 | AQ2: -1 | AR2: 1 | AS2: 1 | AT2: 1 | AU2: -1 | AV2: 1 | AW2: -1 | AX2: 1 | AY2: 1 | AZ2: -1 | BA2: -1 | BB2: -1 | BC2: 1 | BD2: -1 | BE2: -1 | BF2: -1 | BG2: -1 | BH2: 1 | BI2: -1 | BJ2: -1 | BK2: -1 | BL2: -1 | BM2: 1 | BN2: 1 | BO2: 1 | BP2: 1 | BQ2: 1 | BR2: -1 | BS2: -1 | BT2: -1 | BU2: -1 | BV2: 1 | BW2: 1 | BX2: -1 | BY2: 1 | BZ2: 1 | CA2: 1 | CB2: -1 | CC2: 1 | CD2: -1 | CE2: 1 | CF2: 1 | CG2: 1 | CH2: 1 | CI2: -1 | CJ2: -1 | CK2: -1 | CL2: 1 | CM2: -1 | CN2: -1 | CO2: -1 | CP2: 1 | CQ2: 1 | CR2: 1 | CS2: -1 | CT2: -1 | CU2: -1 | CV2: 1 | CW2: -1 | CX2: 1 | CY2: -1 | CZ2: -1 | DA2: 1 | DB2: -1 | DC2: 1 | DD2: -1 | DE2: 1 | DF2: 1 | DG2: 1 | DH2: 1 | DI2: -1 | DJ2: -1 | DK2: 1 | DL2: 1 | DM2: -1 | DN2: -1 | DO2: -1 | DP2: 1 | DQ2: 1 | DR2: 1 | DS2: 1 | DT2: -1 | DU2: -1 | DV2: 1
A3: 1 | B3: 1 | C3: 1 | D3: -1 | E3: 1 | F3: -1 | G3: -1 | H3: 1 | I3: 1 | J3: 1 | K3: 1 | L3: 1 | M3: -1 | N3: 1 | O3: -1 | P3: 1 | Q3: -1 | R3: 1 | S3: 1 | T3: -1 | U3: -1 | V3: -1 | W3: 1 | X3: 1 | Y3: -1 | Z3: -1 | AA3: -1 | AB3: 1 | AC3: -1 | AD3: -1 | AE3: 1 | AF3: -1 | AG3: 1 | AH3: 1 | AI3: 1 | AJ3: -1 | AK3: -1 | AL3: 1 | AM3: -1 | AN3: -1 | AO3: -1 | AP3: -1 | AQ3: 1 | AR3: 1 | AS3: 1 | AT3: 1 | AU3: -1 | AV3: -1 | AW3: -1 | AX3: -1 | AY3: 1 | AZ3: 1 | BA3: -1 | BB3: -1 | BC3: 1 | BD3: -1 | BE3: 1 | BF3: 1 | BG3: -1 | BH3: 1 | BI3: 1 | BJ3: 1 | BK3: 1 | BL3: 1 | BM3: -1 | BN3: 1 | BO3: -1 | BP3: -1 | BQ3: -1 | BR3: 1 | BS3: -1 | BT3: 1 | BU3: -1 | BV3: 1 | BW3: 1 | BX3: 1 | BY3: 1 | BZ3: -1 | CA3: 1 | CB3: 1 | CC3: -1 | CD3: -1 | CE3: 1 | CF3: -1 | CG3: -1 | CH3: 1 | CI3: 1 | CJ3: -1 | CK3: 1 | CL3: -1 | CM3: -1 | CN3: -1 | CO3: -1 | CP3: 1 | CQ3: -1 | CR3: 1 | CS3: -1 | CT3: -1 | CU3: -1 | CV3: 1 | CW3: 1 | CX3: 1 | CY3: 1 | CZ3: 1 | DA3: -1 | DB3: -1 | DC3: 1 | DD3: 1 | DE3: -1 | DF3: 1 | DG3: 1 | DH3: 1 | DI3: -1 | DJ3: -1 | DK3: 1 | DL3: -1 | DM3: -1 | DN3: 1 | DO3: -1 | DP3: -1 | DQ3: 1 | DR3: -1 | DS3: -1 | DT3: -1 | DU3: 1 | DV3: 1
A4: 1 | B4: 1 | C4: 1 | D4: 1 | E4: -1 | F4: -1 | G4: -1 | H4: 1 | I4: 1 | J4: -1 | K4: 1 | L4: -1 | M4: -1 | N4: -1 | O4: 1 | P4: 1 | Q4: -1 | R4: -1 | S4: -1 | T4: -1 | U4: -1 | V4: 1 | W4: -1 | X4: -1 | Y4: 1 | Z4: 1 | AA4: -1 | AB4: -1 | AC4: -1 | AD4: -1 | AE4: -1 | AF4: 1 | AG4: -1 | AH4: 1 | AI4: -1 | AJ4: -1 | AK4: 1 | AL4: -1 | AM4: 1 | AN4: 1 | AO4: 1 | AP4: 1 | AQ4: 1 | AR4: 1 | AS4: 1 | AT4: -1 | AU4: 1 | AV4: -1 | AW4: -1 | AX4: -1 | AY4: -1 | AZ4: 1 | BA4: -1 | BB4: 1 | BC4: -1 | BD4: 1 | BE4: -1 | BF4: 1 | BG4: -1 | BH4: 1 | BI4: 1 | BJ4: 1 | BK4: 1 | BL4: 1 | BM4: -1 | BN4: -1 | BO4: -1 | BP4: 1 | BQ4: -1 | BR4: -1 | BS4: -1 | BT4: -1 | BU4: -1 | BV4: 1 | BW4: 1 | BX4: 1 | BY4: 1 | BZ4: 1 | CA4: -1 | CB4: 1 | CC4: 1 | CD4: -1 | CE4: -1 | CF4: 1 | CG4: 1 | CH4: 1 | CI4: -1 | CJ4: 1 | CK4: 1 | CL4: 1 | CM4: -1 | CN4: 1 | CO4: -1 | CP4: -1 | CQ4: -1 | CR4: -1 | CS4: 1 | CT4: 1 | CU4: 1 | CV4: -1 | CW4: -1 | CX4: 1 | CY4: 1 | CZ4: 1 | DA4: -1 | DB4: 1 | DC4: -1 | DD4: -1 | DE4: 1 | DF4: -1 | DG4: 1 | DH4: 1 | DI4: 1 | DJ4: 1 | DK4: -1 | DL4: -1 | DM4: 1 | DN4: -1 | DO4: -1 | DP4: 1 | DQ4: 1 | DR4: -1 | DS4: 1 | DT4: 1 | DU4: 1 | DV4: -1
A5: -1 | B5: -1 | C5: 1 | D5: 1 | E5: -1 | F5: -1 | G5: 1 | H5: -1 | I5: 1 | J5: -1 | K5: -1 | L5: -1 | M5: -1 | N5: -1 | O5: -1 | P5: -1 | Q5: 1 | R5: 1 | S5: 1 | T5: 1 | U5: -1 | V5: -1 | W5: -1 | X5: -1 | Y5: 1 | Z5: -1 | AA5: -1 | AB5: -1 | AC5: -1 | AD5: 1 | AE5: 1 | AF5: 1 | AG5: 1 | AH5: -1 | AI5: 1 | AJ5: -1 | AK5: -1 | AL5: -1 | AM5: 1 | AN5: 1 | AO5: 1 | AP5: 1 | AQ5: 1 | AR5: -1 | AS5: -1 | AT5: 1 | AU5: -1 | AV5: 1 | AW5: 1 | AX5: 1 | AY5: -1 | AZ5: 1 | BA5: 1 | BB5: 1 | BC5: -1 | BD5: 1 | BE5: 1 | BF5: 1 | BG5: -1 | BH5: -1 | BI5: 1 | BJ5: -1 | BK5: -1 | BL5: 1 | BM5: -1 | BN5: 1 | BO5: 1 | BP5: 1 | BQ5: -1 | BR5: -1 | BS5: -1 | BT5: -1 | BU5: 1 | BV5: -1 | BW5: -1 | BX5: -1 | BY5: -1 | BZ5: 1 | CA5: -1 | CB5: 1 | CC5: 1 | CD5: -1 | CE5: 1 | CF5: -1 | CG5: 1 | CH5: 1 | CI5: -1 | CJ5: -1 | CK5: 1 | CL5: 1 | CM5: 1 | CN5: 1 | CO5: -1 | CP5: 1 | CQ5: -1 | CR5: 1 | CS5: 1 | CT5: -1 | CU5: -1 | CV5: -1 | CW5: -1 | CX5: -1 | CY5: 1 | CZ5: 1 | DA5: -1 | DB5: -1 | DC5: -1 | DD5: -1 | DE5: 1 | DF5: 1 | DG5: 1 | DH5: 1 | DI5: 1 | DJ5: -1 | DK5: 1 | DL5: -1 | DM5: -1 | DN5: -1 | DO5: -1 | DP5: -1 | DQ5: -1 | DR5: 1 | DS5: -1 | DT5: 1 | DU5: 1 | DV5: 1
A6: -1 | B6: 1 | C6: -1 | D6: 1 | E6: -1 | F6: 1 | G6: 1 | H6: 1 | I6: 1 | J6: 1 | K6: 1 | L6: -1 | M6: -1 | N6: -1 | O6: 1 | P6: -1 | Q6: -1 | R6: -1 | S6: 1 | T6: -1 | U6: 1 | V6: -1 | W6: 1 | X6: 1 | Y6: 1 | Z6: 1 | AA6: -1 | AB6: -1 | AC6: 1 | AD6: -1 | AE6: 1 | AF6: 1 | AG6: 1 | AH6: -1 | AI6: -1 | AJ6: -1 | AK6: -1 | AL6: 1 | AM6: 1 | AN6: -1 | AO6: -1 | AP6: 1 | AQ6: 1 | AR6: -1 | AS6: 1 | AT6: -1 | AU6: 1 | AV6: 1 | AW6: -1 | AX6: 1 | AY6: 1 | AZ6: -1 | BA6: 1 | BB6: 1 | BC6: -1 | BD6: 1 | BE6: -1 | BF6: -1 | BG6: 1 | BH6: 1 | BI6: 1 | BJ6: 1 | BK6: -1 | BL6: 1 | BM6: 1 | BN6: 1 | BO6: 1 | BP6: 1 | BQ6: -1 | BR6: 1 | BS6: -1 | BT6: -1 | BU6: -1 | BV6: 1 | BW6: -1 | BX6: -1 | BY6: -1 | BZ6: -1 | CA6: -1 | CB6: 1 | CC6: 1 | CD6: -1 | CE6: 1 | CF6: -1 | CG6: -1 | CH6: -1 | CI6: -1 | CJ6: 1 | CK6: 1 | CL6: 1 | CM6: -1 | CN6: -1 | CO6: 1 | CP6: -1 | CQ6: -1 | CR6: 1 | CS6: 1 | CT6: 1 | CU6: -1 | CV6: 1 | CW6: -1 | CX6: 1 | CY6: -1 | CZ6: -1 | DA6: 1 | DB6: -1 | DC6: -1 | DD6: 1 | DE6: 1 | DF6: -1 | DG6: 1 | DH6: -1 | DI6: 1 | DJ6: 1 | DK6: -1 | DL6: -1 | DM6: -1 | DN6: 1 | DO6: -1 | DP6: 1 | DQ6: -1 | DR6: 1 | DS6: -1 | DT6: -1 | DU6: -1 | DV6: -1
A7: -1 | B7: 1 | C7: -1 | D7: -1 | E7: -1 | F7: -1 | G7: 1 | H7: 1 | I7: 1 | J7: 1 | K7: 1 | L7: -1 | M7: -1 | N7: -1 | O7: -1 | P7: 1 | Q7: -1 | R7: -1 | S7: -1 | T7: 1 | U7: -1 | V7: -1 | W7: -1 | X7: -1 | Y7: 1 | Z7: 1 | AA7: 1 | AB7: 1 | AC7: -1 | AD7: 1 | AE7: 1 | AF7: 1 | AG7: -1 | AH7: 1 | AI7: -1 | AJ7: -1 | AK7: -1 | AL7: -1 | AM7: 1 | AN7: -1 | AO7: -1 | AP7: -1 | AQ7: 1 | AR7: -1 | AS7: 1 | AT7: 1 | AU7: -1 | AV7: -1 | AW7: -1 | AX7: -1 | AY7: -1 | AZ7: -1 | BA7: 1 | BB7: 1 | BC7: 1 | BD7: -1 | BE7: -1 | BF7: -1 | BG7: 1 | BH7: 1 | BI7: -1 | BJ7: 1 | BK7: -1 | BL7: -1 | BM7: -1 | BN7: 1 | BO7: -1 | BP7: -1 | BQ7: 1 | BR7: -1 | BS7: -1 | BT7: 1 | BU7: 1 | BV7: 1 | BW7: -1 | BX7: 1 | BY7: 1 | BZ7: -1 | CA7: 1 | CB7: -1 | CC7: 1 | CD7: -1 | CE7: -1 | CF7: -1 | CG7: 1 | CH7: 1 | CI7: 1 | CJ7: 1 | CK7: 1 | CL7: -1 | CM7: 1 | CN7: 1 | CO7: -1 | CP7: -1 | CQ7: -1 | CR7: 1 | CS7: 1 | CT7: -1 | CU7: 1 | CV7: 1 | CW7: -1 | CX7: -1 | CY7: -1 | CZ7: 1 | DA7: -1 | DB7: 1 | DC7: -1 | DD7: 1 | DE7: 1 | DF7: 1 | DG7: -1 | DH7: -1 | DI7: 1 | DJ7: -1 | DK7: -1 | DL7: -1 | DM7: 1 | DN7: 1 | DO7: -1 | DP7: 1 | DQ7: -1 | DR7: -1 | DS7: 1 | DT7: 1 | DU7: -1 | DV7: 1
A8: 1 | B8: 1 | C8: 1 | D8: 1 | E8: -1 | F8: 1 | G8: 1 | H8: -1 | I8: 1 | J8: 1 | K8: 1 | L8: 1 | M8: -1 | N8: 1 | O8: -1 | P8: -1 | Q8: 1 | R8: -1 | S8: -1 | T8: 1 | U8: -1 | V8: -1 | W8: -1 | X8: 1 | Y8: -1 | Z8: 1 | AA8: 1 | AB8: 1 | AC8: 1 | AD8: 1 | AE8: -1 | AF8: 1 | AG8: 1 | AH8: 1 | AI8: 1 | AJ8: 1 | AK8: 1 | AL8: 1 | AM8: 1 | AN8: -1 | AO8: -1 | AP8: -1 | AQ8: -1 | AR8: 1 | AS8: -1 | AT8: -1 | AU8: 1 | AV8: -1 | AW8: -1 | AX8: -1 | AY8: -1 | AZ8: -1 | BA8: 1 | BB8: 1 | BC8: 1 | BD8: 1 | BE8: 1 | BF8: -1 | BG8: -1 | BH8: 1 | BI8: -1 | BJ8: -1 | BK8: 1 | BL8: -1 | BM8: 1 | BN8: -1 | BO8: 1 | BP8: 1 | BQ8: -1 | BR8: 1 | BS8: -1 | BT8: 1 | BU8: -1 | BV8: -1 | BW8: 1 | BX8: -1 | BY8: 1 | BZ8: -1 | CA8: -1 | CB8: -1 | CC8: 1 | CD8: -1 | CE8: -1 | CF8: -1 | CG8: -1 | CH8: -1 | CI8: -1 | CJ8: -1 | CK8: -1 | CL8: 1 | CM8: -1 | CN8: -1 | CO8: -1 | CP8: 1 | CQ8: 1 | CR8: -1 | CS8: 1 | CT8: 1 | CU8: -1 | CV8: -1 | CW8: -1 | CX8: -1 | CY8: -1 | CZ8: 1 | DA8: 1 | DB8: -1 | DC8: -1 | DD8: 1 | DE8: -1 | DF8: 1 | DG8: 1 | DH8: -1 | DI8: 1 | DJ8: 1 | DK8: 1 | DL8: 1 | DM8: -1 | DN8: -1 | DO8: -1 | DP8: -1 | DQ8: 1 | DR8: 1 | DS8: -1 | DT8: 1 | DU8: -1 | DV8: 1
A9: -1 | B9: -1 | C9: 1 | D9: -1 | E9: 1 | F9: -1 | G9: 1 | H9: 1 | I9: -1 | J9: 1 | K9: 1 | L9: 1 | M9: 1 | N9: 1 | O9: 1 | P9: 1 | Q9: 1 | R9: 1 | S9: -1 | T9: -1 | U9: 1 | V9: 1 | W9: -1 | X9: 1 | Y9: 1 | Z9: 1 | AA9: 1 | AB9: -1 | AC9: 1 | AD9: -1 | AE9: -1 | AF9: -1 | AG9: -1 | AH9: 1 | AI9: -1 | AJ9: -1 | AK9: 1 | AL9: 1 | AM9: -1 | AN9: -1 | AO9: -1 | AP9: -1 | AQ9: 1 | AR9: 1 | AS9: 1 | AT9: 1 | AU9: 1 | AV9: -1 | AW9: -1 | AX9: -1 | AY9: 1 | AZ9: -1 | BA9: 1 | BB9: -1 | BC9: -1 | BD9: 1 | BE9: -1 | BF9: -1 | BG9: -1 | BH9: -1 | BI9: 1 | BJ9: -1 | BK9: 1 | BL9: -1 | BM9: -1 | BN9: 1 | BO9: -1 | BP9: 1 | BQ9: -1 | BR9: 1 | BS9: -1 | BT9: 1 | BU9: -1 | BV9: 1 | BW9: 1 | BX9: -1 | BY9: -1 | BZ9: -1 | CA9: 1 | CB9: 1 | CC9: 1 | CD9: -1 | CE9: -1 | CF9: -1 | CG9: -1 | CH9: 1 | CI9: -1 | CJ9: 1 | CK9: -1 | CL9: -1 | CM9: -1 | CN9: -1 | CO9: 1 | CP9: 1 | CQ9: -1 | CR9: 1 | CS9: -1 | CT9: -1 | CU9: 1 | CV9: 1 | CW9: -1 | CX9: 1 | CY9: -1 | CZ9: 1 | DA9: -1 | DB9: -1 | DC9: 1 | DD9: 1 | DE9: 1 | DF9: 1 | DG9: 1 | DH9: -1 | DI9: -1 | DJ9: -1 | DK9: -1 | DL9: 1 | DM9: -1 | DN9: -1 | DO9: -1 | DP9: 1 | DQ9: -1 | DR9: -1 | DS9: -1 | DT9: 1 | DU9: -1 | DV9: 1
A10: -1 | B10: -1 | C10: -1 | D10: -1 | E10: 1 | F10: -1 | G10: -1 | H10: 1 | I10: -1 | J10: 1 | K10: 1 | L10: -1 | M10: 1 | N10: 1 | O10: -1 | P10: 1 | Q10: -1 | R10: -1 | S10: -1 | T10: 1 | U10: -1 | V10: -1 | W10: 1 | X10: 1 | Y10: 1 | Z10: -1 | AA10: 1 | AB10: 1 | AC10: 1 | AD10: 1 | AE10: -1 | AF10: -1 | AG10: -1 | AH10: 1 | AI10: 1 | AJ10: 1 | AK10: -1 | AL10: -1 | AM10: -1 | AN10: -1 | AO10: 1 | AP10: 1 | AQ10: 1 | AR10: 1 | AS10: 1 | AT10: 1 | AU10: 1 | AV10: 1 | AW10: 1 | AX10: -1 | AY10: 1 | AZ10: -1 | BA10: -1 | BB10: -1 | BC10: -1 | BD10: -1 | BE10: -1 | BF10: 1 | BG10: 1 | BH10: 1 | BI10: 1 | BJ10: -1 | BK10: -1 | BL10: 1 | BM10: -1 | BN10: -1 | BO10: 1 | BP10: 1 | BQ10: -1 | BR10: -1 | BS10: 1 | BT10: -1 | BU10: 1 | BV10: -1 | BW10: -1 | BX10: -1 | BY10: -1 | BZ10: -1 | CA10: -1 | CB10: -1 | CC10: 1 | CD10: 1 | CE10: 1 | CF10: -1 | CG10: -1 | CH10: -1 | CI10: -1 | CJ10: 1 | CK10: -1 | CL10: 1 | CM10: -1 | CN10: -1 | CO10: -1 | CP10: 1 | CQ10: -1 | CR10: -1 | CS10: 1 | CT10: 1 | CU10: -1 | CV10: 1 | CW10: -1 | CX10: -1 | CY10: 1 | CZ10: 1 | DA10: 1 | DB10: 1 | DC10: 1 | DD10: 1 | DE10: 1 | DF10: -1 | DG10: 1 | DH10: 1 | DI10: 1 | DJ10: 1 | DK10: 1 | DL10: 1 | DM10: -1 | DN10: -1 | DO10: 1 | DP10: -1 | DQ10: -1 | DR10: 1 | DS10: 1 | DT10: 1 | DU10: 1 | DV10: -1
A11: 1 | B11: -1 | C11: -1 | D11: -1 | E11: -1 | F11: 1 | G11: -1 | H11: -1 | I11: -1 | J11: -1 | K11: 1 | L11: -1 | M11: 1 | N11: -1 | O11: -1 | P11: -1 | Q11: -1 | R11: -1 | S11: -1 | T11: 1 | U11: 1 | V11: 1 | W11: -1 | X11: -1 | Y11: -1 | Z11: 1 | AA11: -1 | AB11: 1 | AC11: 1 | AD11: -1 | AE11: 1 | AF11: 1 | AG11: -1 | AH11: -1 | AI11: -1 | AJ11: -1 | AK11: -1 | AL11: 1 | AM11: -1 | AN11: -1 | AO11: 1 | AP11: 1 | AQ11: -1 | AR11: -1 | AS11: -1 | AT11: 1 | AU11: 1 | AV11: -1 | AW11: -1 | AX11: -1 | AY11: -1 | AZ11: 1 | BA11: -1 | BB11: -1 | BC11: -1 | BD11: 1 | BE11: 1 | BF11: 1 | BG11: -1 | BH11: 1 | BI11: -1 | BJ11: 1 | BK11: -1 | BL11: -1 | BM11: -1 | BN11: 1 | BO11: 1 | BP11: -1 | BQ11: 1 | BR11: 1 | BS11: -1 | BT11: -1 | BU11: 1 | BV11: -1 | BW11: 1 | BX11: 1 | BY11: -1 | BZ11: -1 | CA11: 1 | CB11: -1 | CC11: 1 | CD11: -1 | CE11: -1 | CF11: 1 | CG11: 1 | CH11: 1 | CI11: 1 | CJ11: 1 | CK11: -1 | CL11: -1 | CM11: 1 | CN11: 1 | CO11: -1 | CP11: 1 | CQ11: 1 | CR11: -1 | CS11: 1 | CT11: 1 | CU11: -1 | CV11: -1 | CW11: -1 | CX11: 1 | CY11: -1 | CZ11: 1 | DA11: -1 | DB11: 1 | DC11: 1 | DD11: -1 | DE11: -1 | DF11: -1 | DG11: 1 | DH11: -1 | DI11: -1 | DJ11: -1 | DK11: 1 | DL11: -1 | DM11: -1 | DN11: 1 | DO11: 1 | DP11: -1 | DQ11: -1 | DR11: -1 | DS11: 1 | DT11: -1 | DU11: -1 | DV11: -1
A12: 1 | B12: 1 | C12: -1 | D12: -1 | E12: 1 | F12: -1 | G12: -1 | H12: 1 | I12: 1 | J12: 1 | K12: 1 | L12: -1 | M12: 1 | N12: -1 | O12: 1 | P12: 1 | Q12: -1 | R12: -1 | S12: -1 | T12: 1 | U12: 1 | V12: -1 | W12: 1 | X12: -1 | Y12: 1 | Z12: -1 | AA12: 1 | AB12: -1 | AC12: 1 | AD12: -1 | AE12: 1 | AF12: 1 | AG12: 1 | AH12: 1 | AI12: -1 | AJ12: 1 | AK12: 1 | AL12: -1 | AM12: 1 | AN12: -1 | AO12: -1 | AP12: -1 | AQ12: 1 | AR12: 1 | AS12: 1 | AT12: -1 | AU12: -1 | AV12: 1 | AW12: -1 | AX12: -1 | AY12: -1 | AZ12: -1 | BA12: -1 | BB12: -1 | BC12: 1 | BD12: 1 | BE12: 1 | BF12: -1 | BG12: 1 | BH12: 1 | BI12: -1 | BJ12: -1 | BK12: 1 | BL12: 1 | BM12: -1 | BN12: -1 | BO12: 1 | BP12: -1 | BQ12: -1 | BR12: 1 | BS12: -1 | BT12: 1 | BU12: -1 | BV12: 1 | BW12: -1 | BX12: 1 | BY12: 1 | BZ12: -1 | CA12: 1 | CB12: 1 | CC12: -1 | CD12: 1 | CE12: 1 | CF12: -1 | CG12: 1 | CH12: -1 | CI12: 1 | CJ12: 1 | CK12: 1 | CL12: 1 | CM12: -1 | CN12: -1 | CO12: 1 | CP12: 1 | CQ12: 1 | CR12: -1 | CS12: 1 | CT12: -1 | CU12: 1 | CV12: 1 | CW12: 1 | CX12: -1 | CY12: -1 | CZ12: -1 | DA12: 1 | DB12: 1 | DC12: 1 | DD12: 1 | DE12: -1 | DF12: -1 | DG12: -1 | DH12: 1 | DI12: -1 | DJ12: -1 | DK12: 1 | DL12: 1 | DM12: 1 | DN12: -1 | DO12: 1 | DP12: -1 | DQ12: -1 | DR12: 1 | DS12: -1 | DT12: -1 | DU12: -1 | DV12: 1
A13: -1 | B13: -1 | C13: 1 | D13: -1 | E13: -1 | F13: 1 | G13: 1 | H13: -1 | I13: -1 | J13: 1 | K13: -1 | L13: 1 | M13: 1 | N13: 1 | O13: 1 | P13: 1 | Q13: 1 | R13: 1 | S13: 1 | T13: 1 | U13: 1 | V13: -1 | W13: -1 | X13: -1 | Y13: -1 | Z13: 1 | AA13: 1 | AB13: 1 | AC13: -1 | AD13: 1 | AE13: 1 | AF13: 1 | AG13: -1 | AH13: 1 | AI13: 1 | AJ13: 1 | AK13: -1 | AL13: 1 | AM13: 1 | AN13: 1 | AO13: 1 | AP13: 1 | AQ13: 1 | AR13: -1 | AS13: -1 | AT13: -1 | AU13: 1 | AV13: 1 | AW13: 1 | AX13: 1 | AY13: 1 | AZ13: 1 | BA13: -1 | BB13: 1 | BC13: -1 | BD13: 1 | BE13: 1 | BF13: -1 | BG13: -1 | BH13: -1 | BI13: 1 | BJ13: -1 | BK13: -1 | BL13: -1 | BM13: 1 | BN13: 1 | BO13: 1 | BP13: 1 | BQ13: 1 | BR13: -1 | BS13: -1 | BT13: -1 | BU13: 1 | BV13: 1 | BW13: 1 | BX13: -1 | BY13: -1 | BZ13: -1 | CA13: -1 | CB13: -1 | CC13: 1 | CD13: 1 | CE13: -1 | CF13: -1 | CG13: -1 | CH13: 1 | CI13: 1 | CJ13: 1 | CK13: -1 | CL13: -1 | CM13: 1 | CN13: -1 | CO13: 1 | CP13: 1 | CQ13: -1 | CR13: -1 | CS13: -1 | CT13: -1 | CU13: 1 | CV13: -1 | CW13: 1 | CX13: -1 | CY13: -1 | CZ13: 1 | DA13: -1 | DB13: 1 | DC13: 1 | DD13: -1 | DE13: -1 | DF13: 1 | DG13: 1 | DH13: 1 | DI13: -1 | DJ13: -1 | DK13: 1 | DL13: 1 | DM13: -1 | DN13: 1 | DO13: 1 | DP13: -1 | DQ13: 1 | DR13: -1 | DS13: 1 | DT13: 1 | DU13: 1 | DV13: -1
A14: -1 | B14: 1 | C14: -1 | D14: -1 | E14: -1 | F14: 1 | G14: -1 | H14: -1 | I14: -1 | J14: 1 | K14: -1 | L14: -1 | M14: -1 | N14: 1 | O14: -1 | P14: -1 | Q14: -1 | R14: -1 | S14: 1 | T14: 1 | U14: 1 | V14: -1 | W14: -1 | X14: 1 | Y14: 1 | Z14: 1 | AA14: -1 | AB14: -1 | AC14: -1 | AD14: -1 | AE14: 1 | AF14: -1 | AG14: 1 | AH14: -1 | AI14: 1 | AJ14: 1 | AK14: -1 | AL14: 1 | AM14: 1 | AN14: 1 | AO14: 1 | AP14: 1 | AQ14: 1 | AR14: 1 | AS14: -1 | AT14: 1 | AU14: 1 | AV14: 1 | AW14: 1 | AX14: -1 | AY14: -1 | AZ14: 1 | BA14: 1 | BB14: 1 | BC14: -1 | BD14: 1 | BE14: -1 | BF14: 1 | BG14: 1 | BH14: -1 | BI14: -1 | BJ14: -1 | BK14: 1 | BL14: 1 | BM14: -1 | BN14: -1 | BO14: 1 | BP14: 1 | BQ14: 1 | BR14: -1 | BS14: -1 | BT14: 1 | BU14: -1 | BV14: 1 | BW14: 1 | BX14: 1 | BY14: 1 | BZ14: -1 | CA14: -1 | CB14: 1 | CC14: 1 | CD14: 1 | CE14: -1 | CF14: 1 | CG14: 1 | CH14: -1 | CI14: -1 | CJ14: -1 | CK14: -1 | CL14: -1 | CM14: -1 | CN14: -1 | CO14: 1 | CP14: 1 | CQ14: 1 | CR14: -1 | CS14: -1 | CT14: 1 | CU14: 1 | CV14: -1 | CW14: 1 | CX14: -1 | CY14: 1 | CZ14: 1 | DA14: -1 | DB14: -1 | DC14: -1 | DD14: 1 | DE14: -1 | DF14: 1 | DG14: 1 | DH14: 1 | DI14: -1 | DJ14: -1 | DK14: -1 | DL14: 1 | DM14: 1 | DN14: 1 | DO14: -1 | DP14: -1 | DQ14: -1 | DR14: -1 | DS14: -1 | DT14: -1 | DU14: -1 | DV14: -1
A15: -1 | B15: -1 | C15: 1 | D15: -1 | E15: -1 | F15: -1 | G15: -1 | H15: 1 | I15: -1 | J15: -1 | K15: 1 | L15: 1 | M15: 1 | N15: 1 | O15: -1 | P15: 1 | Q15: -1 | R15: 1 | S15: 1 | T15: -1 | U15: -1 | V15: 1 | W15: 1 | X15: 1 | Y15: 1 | Z15: 1 | AA15: -1 | AB15: -1 | AC15: -1 | AD15: -1 | AE15: 1 | AF15: -1 | AG15: -1 | AH15: 1 | AI15: 1 | AJ15: -1 | AK15: 1 | AL15: 1 | AM15: 1 | AN15: -1 | AO15: -1 | AP15: 1 | AQ15: -1 | AR15: -1 | AS15: 1 | AT15: -1 | AU15: -1 | AV15: -1 | AW15: 1 | AX15: -1 | AY15: 1 | AZ15: -1 | BA15: 1 | BB15: -1 | BC15: -1 | BD15: 1 | BE15: -1 | BF15: -1 | BG15: 1 | BH15: -1 | BI15: -1 | BJ15: 1 | BK15: 1 | BL15: 1 | BM15: -1 | BN15: 1 | BO15: -1 | BP15: 1 | BQ15: 1 | BR15: -1 | BS15: -1 | BT15: -1 | BU15: -1 | BV15: 1 | BW15: -1 | BX15: -1 | BY15: 1 | BZ15: 1 | CA15: 1 | CB15: 1 | CC15: -1 | CD15: -1 | CE15: -1 | CF15: -1 | CG15: -1 | CH15: -1 | CI15: 1 | CJ15: -1 | CK15: -1 | CL15: 1 | CM15: -1 | CN15: -1 | CO15: 1 | CP15: -1 | CQ15: -1 | CR15: 1 | CS15: 1 | CT15: -1 | CU15: -1 | CV15: -1 | CW15: 1 | CX15: 1 | CY15: -1 | CZ15: -1 | DA15: -1 | DB15: 1 | DC15: 1 | DD15: -1 | DE15: 1 | DF15: 1 | DG15: 1 | DH15: -1 | DI15: 1 | DJ15: -1 | DK15: 1 | DL15: 1 | DM15: 1 | DN15: 1 | DO15: -1 | DP15: 1 | DQ15: 1 | DR15: -1 | DS15: 1 | DT15: 1 | DU15: -1 | DV15: -1
A16: -1 | B16: 1 | C16: 1 | D16: 1 | E16: -1 | F16: 1 | G16: 1 | H16: 1 | I16: -1 | J16: -1 | K16: -1 | L16: -1 | M16: 1 | N16: -1 | O16: -1 | P16: 1 | Q16: -1 | R16: -1 | S16: -1 | T16: -1 | U16: 1 | V16: -1 | W16: -1 | X16: -1 | Y16: -1 | Z16: 1 | AA16: 1 | AB16: -1 | AC16: -1 | AD16: -1 | AE16: 1 | AF16: -1 | AG16: -1 | AH16: -1 | AI16: -1 | AJ16: -1 | AK16: 1 | AL16: -1 | AM16: -1 | AN16: 1 | AO16: -1 | AP16: 1 | AQ16: -1 | AR16: 1 | AS16: 1 | AT16: 1 | AU16: -1 | AV16: 1 | AW16: 1 | AX16: 1 | AY16: -1 | AZ16: -1 | BA16: 1 | BB16: 1 | BC16: 1 | BD16: -1 | BE16: -1 | BF16: 1 | BG16: -1 | BH16: 1 | BI16: 1 | BJ16: -1 | BK16: 1 | BL16: 1 | BM16: -1 | BN16: -1 | BO16: -1 | BP16: -1 | BQ16: 1 | BR16: 1 | BS16: 1 | BT16: -1 | BU16: -1 | BV16: 1 | BW16: -1 | BX16: 1 | BY16: -1 | BZ16: 1 | CA16: 1 | CB16: -1 | CC16: 1 | CD16: 1 | CE16: -1 | CF16: 1 | CG16: 1 | CH16: -1 | CI16: 1 | CJ16: -1 | CK16: -1 | CL16: 1 | CM16: 1 | CN16: 1 | CO16: 1 | CP16: 1 | CQ16: 1 | CR16: 1 | CS16: 1 | CT16: 1 | CU16: -1 | CV16: -1 | CW16: 1 | CX16: -1 | CY16: -1 | CZ16: -1 | DA16: -1 | DB16: 1 | DC16: 1 | DD16: 1 | DE16: 1 | DF16: -1 | DG16: -1 | DH16: -1 | DI16: 1 | DJ16: 1 | DK16: 1 | DL16: 1 | DM16: 1 | DN16: -1 | DO16: 1 | DP16: -1 | DQ16: 1 | DR16: -1 | DS16: 1 | DT16: -1 | DU16: 1 | DV16: -1
A17: 1 | B17: -1 | C17: 1 | D17: -1 | E17: -1 | F17: -1 | G17: 1 | H17: -1 | I17: 1 | J17: 1 | K17: -1 | L17: 1 | M17: -1 | N17: -1 | O17: 1 | P17: -1 | Q17: 1 | R17: -1 | S17: 1 | T17: -1 | U17: 1 | V17: 1 | W17: 1 | X17: -1 | Y17: -1 | Z17: -1 | AA17: -1 | AB17: 1 | AC17: -1 | AD17: -1 | AE17: 1 | AF17: -1 | AG17: -1 | AH17: 1 | AI17: -1 | AJ17: 1 | AK17: 1 | AL17: -1 | AM17: 1 | AN17: -1 | AO17: -1 | AP17: -1 | AQ17: 1 | AR17: 1 | AS17: -1 | AT17: -1 | AU17: -1 | AV17: -1 | AW17: 1 | AX17: -1 | AY17: 1 | AZ17: 1 | BA17: -1 | BB17: -1 | BC17: 1 | BD17: 1 | BE17: -1 | BF17: -1 | BG17: 1 | BH17: -1 | BI17: -1 | BJ17: 1 | BK17: 1 | BL17: 1 | BM17: -1 | BN17: -1 | BO17: 1 | BP17: -1 | BQ17: -1 | BR17: -1 | BS17: -1 | BT17: -1 | BU17: -1 | BV17: -1 | BW17: 1 | BX17: 1 | BY17: -1 | BZ17: -1 | CA17: 1 | CB17: -1 | CC17: -1 | CD17: 1 | CE17: -1 | CF17: 1 | CG17: -1 | CH17: 1 | CI17: -1 | CJ17: 1 | CK17: 1 | CL17: -1 | CM17: -1 | CN17: 1 | CO17: 1 | CP17: 1 | CQ17: 1 | CR17: -1 | CS17: 1 | CT17: -1 | CU17: 1 | CV17: -1 | CW17: 1 | CX17: 1 | CY17: -1 | CZ17: 1 | DA17: 1 | DB17: 1 | DC17: -1 | DD17: 1 | DE17: 1 | DF17: -1 | DG17: 1 | DH17: 1 | DI17: -1 | DJ17: -1 | DK17: 1 | DL17: -1 | DM17: -1 | DN17: -1 | DO17: -1 | DP17: 1 | DQ17: -1 | DR17: 1 | DS17: 1 | DT17: 1 | DU17: -1 | DV17: -1
A18: 1 | B18: 1 | C18: -1 | D18: 1 | E18: 1 | F18: -1 | G18: 1 | H18: -1 | I18: -1 | J18: -1 | K18: -1 | L18: 1 | M18: -1 | N18: -1 | O18: 1 | P18: -1 | Q18: -1 | R18: -1 | S18: 1 | T18: 1 | U18: 1 | V18: -1 | W18: 1 | X18: -1 | Y18: -1 | Z18: -1 | AA18: 1 | AB18: -1 | AC18: -1 | AD18: -1 | AE18: 1 | AF18: -1 | AG18: -1 | AH18: -1 | AI18: -1 | AJ18: -1 | AK18: -1 | AL18: 1 | AM18: -1 | AN18: -1 | AO18: -1 | AP18: 1 | AQ18: 1 | AR18: -1 | AS18: -1 | AT18: -1 | AU18: 1 | AV18: -1 | AW18: 1 | AX18: -1 | AY18: -1 | AZ18: -1 | BA18: -1 | BB18: 1 | BC18: -1 | BD18: 1 | BE18: 1 | BF18: -1 | BG18: 1 | BH18: -1 | BI18: 1 | BJ18: -1 | BK18: 1 | BL18: 1 | BM18: 1 | BN18: -1 | BO18: 1 | BP18: -1 | BQ18: -1 | BR18: 1 | BS18: -1 | BT18: -1 | BU18: 1 | BV18: 1 | BW18: -1 | BX18: 1 | BY18: -1 | BZ18: 1 | CA18: 1 | CB18: -1 | CC18: 1 | CD18: -1 | CE18: 1 | CF18: 1 | CG18: -1 | CH18: 1 | CI18: 1 | CJ18: 1 | CK18: -1 | CL18: -1 | CM18: -1 | CN18: 1 | CO18: 1 | CP18: 1 | CQ18: 1 | CR18: -1 | CS18: 1 | CT18: -1 | CU18: -1 | CV18: -1 | CW18: 1 | CX18: 1 | CY18: -1 | CZ18: -1 | DA18: 1 | DB18: -1 | DC18: 1 | DD18: -1 | DE18: -1 | DF18: -1 | DG18: -1 | DH18: 1 | DI18: 1 | DJ18: 1 | DK18: -1 | DL18: -1 | DM18: -1 | DN18: -1 | DO18: -1 | DP18: 1 | DQ18: -1 | DR18: 1 | DS18: -1 | DT18: 1 | DU18: -1 | DV18: 1
A19: 2 | B19: 1 | C19: -1 | D19: -2 | E19: 1 | F19: 1 | G19: 1 | H19: -1 | I19: -1 | J19: 1 | K19: -1 | L19: -1 | M19: -1 | N19: 1 | O19: 1 | P19: 1 | Q19: 1 | R19: -1 | S19: -2 | T19: 1 | U19: 1 | V19: 1 | W19: 1 | X19: 1 | Y19: -1 | Z19: 2 | AA19: 1 | AB19: -1 | AC19: 1 | AD19: -1 | AE19: 1 | AF19: -1 | AG19: 1 | AH19: -1 | AI19: -1 | AJ19: 1 | AK19: 1 | AL19: -1 | AM19: -1 | AN19: -1 | AO19: -1 | AP19: -1 | AQ19: 2 | AR19: 1 | AS19: -1 | AT19: -2 | AU19: 2 | AV19: -1 | AW19: 1 | AX19: -1 | AY19: -1 | AZ19: 1 | BA19: -1 | BB19: -1 | BC19: -1 | BD19: 1 | BE19: 2 | BF19: -1 | BG19: 1 | BH19: -1 | BI19: 1 | BJ19: 1 | BK19: -1 | BL19: 1 | BM19: 1 | BN19: 1 | BO19: -2 | BP19: 2 | BQ19: -1 | BR19: 1 | BS19: 1 | BT19: -1 | BU19: 1 | BV19: 1 | BW19: -1 | BX19: -1 | BY19: -1 | BZ19: -1 | CA19: 1 | CB19: -1 | CC19: -1 | CD19: -1 | CE19: -1 | CF19: -2 | CG19: -1 | CH19: 1 | CI19: -1 | CJ19: -1 | CK19: 2 | CL19: 1 | CM19: -1 | CN19: -1 | CO19: -1 | CP19: 1 | CQ19: -2 | CR19: 1 | CS19: 1 | CT19: -1 | CU19: 2 | CV19: -1 | CW19: -1 | CX19: 1 | CY19: 1 | CZ19: 1 | DA19: -1 | DB19: 1 | DC19: -1 | DD19: -1 | DE19: -2 | DF19: 1 | DG19: -1 | DH19: -1 | DI19: 2 | DJ19: -1 | DK19: 1 | DL19: 1 | DM19: -1 | DN19: -1 | DO19: -1 | DP19: 1 | DQ19: 1 | DR19: -1 | DS19: -1 | DT19: 1 | DU19: -1 | DV19: -2
A20: -1 | B20: 1 | C20: 2 | D20: -2 | E20: 2 | F20: 1 | G20: 1 | H20: 1 | I20: 1 | J20: -1 | K20: -2 | L20: -1 | M20: -1 | N20: -1 | O20: 2 | P20: 2 | Q20: -1 | R20: 1 | S20: -1 | T20: -1 | U20: -1 | V20: 2 | W20: 2 | X20: 1 | Y20: -1 | Z20: -1 | AA20: 1 | AB20: -2 | AC20: 1 | AD20: 1 | AE20: 1 | AF20: -2 | AG20: 1 | AH20: 1 | AI20: -1 | AJ20: 2 | AK20: 1 | AL20: 1 | AM20: -1 | AN20: -1 | AO20: 1 | AP20: 1 | AQ20: 1 | AR20: -1 | AS20: 1 | AT20: -1 | AU20: 2 | AV20: -1 | AW20: 1 | AX20: -1 | AY20: -1 | AZ20: 1 | BA20: -1 | BB20: -1 | BC20: -1 | BD20: -1 | BE20: 1 | BF20: 1 | BG20: -1 | BH20: -2 | BI20: -2 | BJ20: -1 | BK20: -1 | BL20: -2 | BM20: -1 | BN20: 1 | BO20: -1 | BP20: 1 | BQ20: 1 | BR20: -1 | BS20: 1 | BT20: -2 | BU20: -1 | BV20: -2 | BW20: -1 | BX20: -2 | BY20: 1 | BZ20: 2 | CA20: 1 | CB20: 1 | CC20: 1 | CD20: -1 | CE20: 1 | CF20: -1 | CG20: 1 | CH20: -1 | CI20: -1 | CJ20: -2 | CK20: 1 | CL20: 1 | CM20: -1 | CN20: 1 | CO20: 1 | CP20: -1 | CQ20: 1 | CR20: -1 | CS20: 1 | CT20: -1 | CU20: 2 | CV20: 1 | CW20: 1 | CX20: -2 | CY20: -1 | CZ20: -1 | DA20: 1 | DB20: -1 | DC20: 1 | DD20: 1 | DE20: -1 | DF20: 1 | DG20: -1 | DH20: -1 | DI20: 2 | DJ20: 1 | DK20: -1 | DL20: 1 | DM20: 1 | DN20: 1 | DO20: 1 | DP20: 2 | DQ20: -1 | DR20: -1 | DS20: -1 | DT20: -1 | DU20: -1 | DV20: -2
A21: 1 | B21: -1 | C21: 2 | D21: -1 | E21: 2 | F21: 1 | G21: 1 | H21: 2 | I21: -1 | J21: 2 | K21: -2 | L21: -1 | M21: 1 | N21: -1 | O21: 1 | P21: 1 | Q21: 1 | R21: -1 | S21: -1 | T21: 1 | U21: 1 | V21: 1 | W21: 1 | X21: 1 | Y21: -1 | Z21: 2 | AA21: -1 | AB21: -1 | AC21: 2 | AD21: -1 | AE21: 1 | AF21: -1 | AG21: 1 | AH21: -1 | AI21: -1 | AJ21: 2 | AK21: 1 | AL21: -1 | AM21: -1 | AN21: -1 | AO21: -1 | AP21: -2 | AQ21: 1 | AR21: 2 | AS21: -1 | AT21: -1 | AU21: 1 | AV21: -1 | AW21: -1 | AX21: 1 | AY21: 1 | AZ21: 1 | BA21: 1 | BB21: 1 | BC21: 1 | BD21: -1 | BE21: 1 | BF21: -1 | BG21: 1 | BH21: -2 | BI21: -1 | BJ21: -1 | BK21: -2 | BL21: 1 | BM21: -1 | BN21: 1 | BO21: -2 | BP21: 1 | BQ21: -1 | BR21: 1 | BS21: 1 | BT21: -1 | BU21: -1 | BV21: -2 | BW21: -1 | BX21: 1 | BY21: 1 | BZ21: 1 | CA21: -1 | CB21: -1 | CC21: 1 | CD21: -1 | CE21: 1 | CF21: -1 | CG21: 1 | CH21: -1 | CI21: 1 | CJ21: -1 | CK21: 2 | CL21: 1 | CM21: 1 | CN21: 1 | CO21: -2 | CP21: 1 | CQ21: -1 | CR21: 1 | CS21: 1 | CT21: -1 | CU21: -1 | CV21: 1 | CW21: -1 | CX21: -1 | CY21: -1 | CZ21: 1 | DA21: -2 | DB21: -1 | DC21: 1 | DD21: 1 | DE21: -1 | DF21: 1 | DG21: -1 | DH21: 1 | DI21: 1 | DJ21: 1 | DK21: -1 | DL21: -2 | DM21: 1 | DN21: -1 | DO21: -1 | DP21: 2 | DQ21: 1 | DR21: -1 | DS21: 1 | DT21: -1 | DU21: 1 | DV21: -1
A22: -1 | B22: 1 | C22: 1 | D22: -2 | E22: 1 | F22: -1 | G22: -1 | H22: 2 | I22: -1 | J22: -1 | K22: -2 | L22: 1 | M22: -1 | N22: -1 | O22: 2 | P22: 1 | Q22: -1 | R22: 1 | S22: -1 | T22: -1 | U22: 1 | V22: -1 | W22: 1 | X22: -1 | Y22: -1 | Z22: 1 | AA22: 1 | AB22: -1 | AC22: 1 | AD22: 1 | AE22: -1 | AF22: -2 | AG22: 1 | AH22: -2 | AI22: -2 | AJ22: 1 | AK22: 1 | AL22: -1 | AM22: 1 | AN22: -2 | AO22: 1 | AP22: -1 | AQ22: -1 | AR22: 1 | AS22: 2 | AT22: -1 | AU22: 2 | AV22: 1 | AW22: -1 | AX22: 2 | AY22: -1 | AZ22: 1 | BA22: -1 | BB22: 1 | BC22: -1 | BD22: -1 | BE22: 4 | BF22: 1 | BG22: -1 | BH22: 1 | BI22: 1 | BJ22: -1 | BK22: -2 | BL22: 2 | BM22: 1 | BN22: -1 | BO22: -1 | BP22: 1 | BQ22: -1 | BR22: -1 | BS22: -1 | BT22: -1 | BU22: 1 | BV22: -1 | BW22: -1 | BX22: -1 | BY22: -1 | BZ22: 1 | CA22: 2 | CB22: 1 | CC22: 1 | CD22: 1 | CE22: -1 | CF22: -1 | CG22: -1 | CH22: 1 | CI22: 1 | CJ22: -1 | CK22: -1 | CL22: -1 | CM22: -1 | CN22: 1 | CO22: -1 | CP22: -1 | CQ22: -2 | CR22: 1 | CS22: -1 | CT22: -1 | CU22: 1 | CV22: -1 | CW22: -1 | CX22: 1 | CY22: -1 | CZ22: -2 | DA22: -1 | DB22: 1 | DC22: -1 | DD22: 1 | DE22: 1 | DF22: 1 | DG22: 1 | DH22: 1 | DI22: 1 | DJ22: 1 | DK22: -1 | DL22: 1 | DM22: 1 | DN22: -1 | DO22: 1 | DP22: -1 | DQ22: 1 | DR22: 1 | DS22: -1 | DT22: 1 | DU22: -2 | DV22: -1
A23: 1 | B23: -1 | C23: 2 | D23: -1 | E23: 2 | F23: -1 | G23: -1 | H23: 1 | I23: 1 | J23: 1 | K23: -1 | L23: 2 | M23: -1 | N23: -1 | O23: 4 | P23: -1 | Q23: -1 | R23: 1 | S23: -2 | T23: -1 | U23: -2 | V23: 1 | W23: 1 | X23: 2 | Y23: -2 | Z23: 1 | AA23: 1 | AB23: -1 | AC23: 2 | AD23: -1 | AE23: -1 | AF23: -2 | AG23: -1 | AH23: -1 | AI23: 1 | AJ23: 2 | AK23: -1 | AL23: 1 | AM23: -1 | AN23: -1 | AO23: -1 | AP23: -1 | AQ23: 2 | AR23: 1 | AS23: 1 | AT23: -1 | AU23: 1 | AV23: -1 | AW23: -1 | AX23: 2 | AY23: -2 | AZ23: -1 | BA23: -1 | BB23: 1 | BC23: -1 | BD23: 1 | BE23: 2 | BF23: 1 | BG23: -1 | BH23: -1 | BI23: -1 | BJ23: -2 | BK23: -2 | BL23: -1 | BM23: 1 | BN23: 2 | BO23: -1 | BP23: 1 | BQ23: -1 | BR23: -1 | BS23: 1 | BT23: -1 | BU23: -2 | BV23: -1 | BW23: -1 | BX23: 1 | BY23: -1 | BZ23: 4 | CA23: -1 | CB23: -1 | CC23: 1 | CD23: 1 | CE23: -1 | CF23: -1 | CG23: 2 | CH23: 1 | CI23: 2 | CJ23: -1 | CK23: -1 | CL23: 1 | CM23: -1 | CN23: 1 | CO23: -1 | CP23: -1 | CQ23: -2 | CR23: -1 | CS23: 1 | CT23: -1 | CU23: 2 | CV23: 1 | CW23: -1 | CX23: -1 | CY23: -2 | CZ23: -1 | DA23: -2 | DB23: 1 | DC23: -1 | DD23: 2 | DE23: 1 | DF23: -1 | DG23: 1 | DH23: -1 | DI23: 1 | DJ23: -1 | DK23: -2 | DL23: -2 | DM23: 1 | DN23: 1 | DO23: -2 | DP23: 2 | DQ23: -1 | DR23: 1 | DS23: -1 | DT23: 1 | DU23: -2 | DV23: -2
A24: -2 | B24: 1 | C24: 1 | D24: -1 | E24: 2 | F24: 1 | G24: -1 | H24: 2 | I24: -2 | J24: -1 | K24: -1 | L24: 1 | M24: -1 | N24: -1 | O24: 4 | P24: 2 | Q24: -1 | R24: -1 | S24: 1 | T24: 1 | U24: -2 | V24: -1 | W24: 1 | X24: 1 | Y24: -2 | Z24: 1 | AA24: 1 | AB24: 1 | AC24: 1 | AD24: -1 | AE24: -1 | AF24: -2 | AG24: 1 | AH24: 1 | AI24: -1 | AJ24: 2 | AK24: 2 | AL24: -1 | AM24: -1 | AN24: -2 | AO24: 1 | AP24: -1 | AQ24: -1 | AR24: 1 | AS24: 2 | AT24: -1 | AU24: 1 | AV24: 2 | AW24: -1 | AX24: 2 | AY24: 1 | AZ24: -1 | BA24: -2 | BB24: 1 | BC24: -1 | BD24: 1 | BE24: 1 | BF24: 1 | BG24: -1 | BH24: 1 | BI24: -2 | BJ24: -1 | BK24: -2 | BL24: -1 | BM24: 1 | BN24: 1 | BO24: -1 | BP24: 2 | BQ24: 1 | BR24: 1 | BS24: 1 | BT24: -1 | BU24: -1 | BV24: -1 | BW24: -1 | BX24: 1 | BY24: -1 | BZ24: 2 | CA24: 1 | CB24: -1 | CC24: -1 | CD24: -1 | CE24: -1 | CF24: -1 | CG24: 1 | CH24: 1 | CI24: 1 | CJ24: -2 | CK24: 1 | CL24: -1 | CM24: -1 | CN24: 2 | CO24: 1 | CP24: 1 | CQ24: -1 | CR24: -1 | CS24: -2 | CT24: -1 | CU24: 2 | CV24: -1 | CW24: -1 | CX24: -1 | CY24: -1 | CZ24: -1 | DA24: -1 | DB24: 2 | DC24: -1 | DD24: 1 | DE24: -1 | DF24: 1 | DG24: 1 | DH24: 1 | DI24: 1 | DJ24: -1 | DK24: -1 | DL24: -1 | DM24: -1 | DN24: -2 | DO24: -1 | DP24: 2 | DQ24: -1 | DR24: -1 | DS24: 1 | DT24: 1 | DU24: -1 | DV24: -1
A25: 1 | B25: 1 | C25: 1 | D25: -1 | E25: 2 | F25: 1 | G25: -1 | H25: 1 | I25: 1 | J25: -2 | K25: -1 | L25: -1 | M25: -1 | N25: -2 | O25: 2 | P25: 2 | Q25: 1 | R25: -1 | S25: -1 | T25: -2 | U25: -1 | V25: 1 | W25: 1 | X25: 1 | Y25: -1 | Z25: 2 | AA25: -1 | AB25: 2 | AC25: 1 | AD25: -2 | AE25: -1 | AF25: -1 | AG25: -1 | AH25: -1 | AI25: -1 | AJ25: 2 | AK25: 2 | AL25: 1 | AM25: -1 | AN25: -1 | AO25: -1 | AP25: -1 | AQ25: 1 | AR25: 1 | AS25: 1 | AT25: -1 | AU25: 1 | AV25: 1 | AW25: -1 | AX25: 2 | AY25: 1 | AZ25: -2 | BA25: -2 | BB25: -1 | BC25: -1 | BD25: 1 | BE25: 4 | BF25: 1 | BG25: -1 | BH25: -1 | BI25: -1 | BJ25: -1 | BK25: -2 | BL25: 1 | BM25: -1 | BN25: -1 | BO25: -1 | BP25: -1 | BQ25: -1 | BR25: -1 | BS25: 1 | BT25: -1 | BU25: -1 | BV25: -1 | BW25: 1 | BX25: -1 | BY25: 1 | BZ25: 2 | CA25: 1 | CB25: 1 | CC25: 1 | CD25: -1 | CE25: -1 | CF25: -2 | CG25: 1 | CH25: 1 | CI25: 2 | CJ25: -1 | CK25: 1 | CL25: -1 | CM25: -1 | CN25: 1 | CO25: 1 | CP25: -2 | CQ25: -1 | CR25: 1 | CS25: -1 | CT25: 1 | CU25: 2 | CV25: -1 | CW25: -1 | CX25: -1 | CY25: 1 | CZ25: -1 | DA25: -1 | DB25: 1 | DC25: 1 | DD25: 1 | DE25: -1 | DF25: -1 | DG25: -1 | DH25: 1 | DI25: -1 | DJ25: -1 | DK25: 1 | DL25: -1 | DM25: -1 | DN25: -1 | DO25: -1 | DP25: 1 | DQ25: 2 | DR25: -1 | DS25: 1 | DT25: 1 | DU25: 1 | DV25: -1
A26: 2 | B26: 1 | C26: 1 | D26: -1 | E26: 1 | F26: 1 | G26: 1 | H26: 1 | I26: -1 | J26: -1 | K26: -1 | L26: -1 | M26: -1 | N26: -2 | O26: 4 | P26: 1 | Q26: 1 | R26: 1 | S26: -1 | T26: -2 | U26: -1 | V26: 2 | W26: 1 | X26: 1 | Y26: -2 | Z26: 1 | AA26: 1 | AB26: 1 | AC26: 1 | AD26: -2 | AE26: -1 | AF26: 1 | AG26: -1 | AH26: 1 | AI26: -2 | AJ26: 4 | AK26: 1 | AL26: -1 | AM26: 1 | AN26: 1 | AO26: -1 | AP26: -2 | AQ26: 1 | AR26: 1 | AS26: 2 | AT26: -1 | AU26: -1 | AV26: 1 | AW26: 1 | AX26: 1 | AY26: -1 | AZ26: -2 | BA26: -2 | BB26: 1 | BC26: -1 | BD26: -1 | BE26: 2 | BF26: 2 | BG26: 1 | BH26: -1 | BI26: -1 | BJ26: -1 | BK26: -2 | BL26: 1 | BM26: 1 | BN26: 2 | BO26: -2 | BP26: 2 | BQ26: 1 | BR26: 1 | BS26: 2 | BT26: -1 | BU26: -2 | BV26: -2 | BW26: -1 | BX26: -1 | BY26: -2 | BZ26: 4 | CA26: 1 | CB26: 1 | CC26: -1 | CD26: -1 | CE26: -1 | CF26: -1 | CG26: 2 | CH26: -1 | CI26: 1 | CJ26: -1 | CK26: 1 | CL26: 1 | CM26: 1 | CN26: 1 | CO26: -1 | CP26: -2 | CQ26: -2 | CR26: -1 | CS26: 1 | CT26: -2 | CU26: 2 | CV26: 1 | CW26: 1 | CX26: -1 | CY26: -1 | CZ26: -1 | DA26: -1 | DB26: -2 | DC26: 1 | DD26: 2 | DE26: 1 | DF26: 2 | DG26: -1 | DH26: -1 | DI26: 1 | DJ26: -2 | DK26: -1 | DL26: -2 | DM26: 1 | DN26: -1 | DO26: -1 | DP26: 4 | DQ26: 1 | DR26: -2 | DS26: -1 | DT26: -1 | DU26: -2 | DV26: -1
A27: 1 | B27: 1 | C27: 1 | D27: -1 | E27: 1 | F27: -1 | G27: 1 | H27: 1 | I27: -1 | J27: -1 | K27: -1 | L27: 1 | M27: -1 | N27: -1 | O27: 2 | P27: 1 | Q27: -1 | R27: -1 | S27: -1 | T27: -1 | U27: -1 | V27: 2 | W27: 1 | X27: 2 | Y27: -1 | Z27: 1 | AA27: 1 | AB27: -1 | AC27: 2 | AD27: 1 | AE27: -2 | AF27: 1 | AG27: 1 | AH27: -1 | AI27: -2 | AJ27: 2 | AK27: 1 | AL27: 1 | AM27: -1 | AN27: -1 | AO27: -1 | AP27: -1 | AQ27: -1 | AR27: 1 | AS27: 2 | AT27: 1 | AU27: 1 | AV27: -1 | AW27: 2 | AX27: 1 | AY27: -1 | AZ27: -2 | BA27: 1 | BB27: -1 | BC27: -2 | BD27: 1 | BE27: 2 | BF27: -1 | BG27: 1 | BH27: -1 | BI27: -1 | BJ27: -1 | BK27: -1 | BL27: -1 | BM27: 1 | BN27: 1 | BO27: -1 | BP27: 1 | BQ27: -1 | BR27: 1 | BS27: 2 | BT27: 1 | BU27: -1 | BV27: -1 | BW27: 1 | BX27: -1 | BY27: -1 | BZ27: 4 | CA27: 1 | CB27: 1 | CC27: 1 | CD27: 1 | CE27: -2 | CF27: -1 | CG27: -1 | CH27: 2 | CI27: 1 | CJ27: -2 | CK27: 1 | CL27: -1 | CM27: 1 | CN27: 1 | CO27: -2 | CP27: -2 | CQ27: 1 | CR27: 1 | CS27: -1 | CT27: 1 | CU27: 4 | CV27: 1 | CW27: -1 | CX27: 1 | CY27: -2 | CZ27: -2 | DA27: 1 | DB27: -1 | DC27: 1 | DD27: 1 | DE27: -1 | DF27: 2 | DG27: -1 | DH27: 1 | DI27: 2 | DJ27: -2 | DK27: -1 | DL27: -1 | DM27: -1 | DN27: -1 | DO27: 1 | DP27: 2 | DQ27: 1 | DR27: -1 | DS27: -1 | DT27: -1 | DU27: -1 | DV27: -1
A28: 2 | B28: -1 | C28: -1 | D28: 1 | E28: -1 | F28: -1 | G28: 1 | H28: 1 | I28: 1 | J28: -1 | K28: 1 | L28: -1 | M28: -1 | N28: 2 | O28: -1 | P28: 1 | Q28: 1 | R28: 1 | S28: 1 | T28: -1 | U28: -1 | V28: 2 | W28: -1 | X28: 1 | Y28: -1 | Z28: 1 | AA28: 1 | AB28: -1 | AC28: -1 | AD28: 1 | AE28: -1 | AF28: -1 | AG28: 1 | AH28: 1 | AI28: 1 | AJ28: -1 | AK28: -1 | AL28: 1 | AM28: -1 | AN28: 1 | AO28: -1 | AP28: -1 | AQ28: 1 | AR28: 1 | AS28: -1 | AT28: -1 | AU28: 1 | AV28: 1 | AW28: -1 | AX28: 1 | AY28: 1 | AZ28: -1 | BA28: -1 | BB28: 1 | BC28: 1 | BD28: 2 | BE28: 1 | BF28: 1 | BG28: -1 | BH28: 1 | BI28: 1 | BJ28: -1 | BK28: -1 | BL28: -1 | BM28: -1 | BN28: -1 | BO28: 1 | BP28: 1 | BQ28: 1 | BR28: 1 | BS28: 1 | BT28: -1 | BU28: -1 | BV28: -1 | BW28: -1 | BX28: -1 | BY28: -1 | BZ28: 1 | CA28: 1 | CB28: -1 | CC28: 1 | CD28: -1 | CE28: -1 | CF28: 1 | CG28: -1 | CH28: -1 | CI28: 1 | CJ28: 1 | CK28: 1 | CL28: -1 | CM28: -1 | CN28: -1 | CO28: -1 | CP28: -1 | CQ28: 1 | CR28: -1 | CS28: 1 | CT28: -1 | CU28: 1 | CV28: -1 | CW28: 1 | CX28: -1 | CY28: -1 | CZ28: 1 | DA28: -1 | DB28: -1 | DC28: 1 | DD28: 1 | DE28: -1 | DF28: -1 | DG28: 1 | DH28: -1 | DI28: -1 | DJ28: 1 | DK28: 1 | DL28: -1 | DM28: 1 | DN28: -1 | DO28: 1 | DP28: -1 | DQ28: 1 | DR28: 1 | DS28: 1 | DT28: 1 | DU28: -1 | DV28: 1
A29: -4 | B29: 1 | C29: -1 | D29: 2 | E29: 1 | F29: -1 | G29: -1 | H29: -1 | I29: 1 | J29: 1 | K29: 1 | L29: 1 | M29: 1 | N29: 2 | O29: 1 | P29: -1 | Q29: 1 | R29: -1 | S29: 1 | T29: 1 | U29: -1 | V29: -1 | W29: 1 | X29: 1 | Y29: 1 | Z29: 1 | AA29: 1 | AB29: -1 | AC29: 1 | AD29: 1 | AE29: 1 | AF29: 1 | AG29: -1 | AH29: -1 | AI29: 1 | AJ29: 1 | AK29: -1 | AL29: 1 | AM29: -1 | AN29: -1 | AO29: -1 | AP29: -1 | AQ29: -1 | AR29: -1 | AS29: -1 | AT29: 1 | AU29: -1 | AV29: -1 | AW29: 1 | AX29: 1 | AY29: -1 | AZ29: -1 | BA29: 1 | BB29: -1 | BC29: 1 | BD29: -1 | BE29: -1 | BF29: 1 | BG29: -1 | BH29: 1 | BI29: -1 | BJ29: -1 | BK29: 1 | BL29: 1 | BM29: -1 | BN29: -1 | BO29: 1 | BP29: 1 | BQ29: -1 | BR29: -1 | BS29: -1 | BT29: 1 | BU29: 1 | BV29: -1 | BW29: 1 | BX29: 1 | BY29: -1 | BZ29: 1 | CA29: -1 | CB29: 1 | CC29: -1 | CD29: -1 | CE29: 1 | CF29: 1 | CG29: -1 | CH29: -1 | CI29: -1 | CJ29: 1 | CK29: -1 | CL29: 1 | CM29: 1 | CN29: 1 | CO29: -1 | CP29: 1 | CQ29: 1 | CR29: -1 | CS29: 1 | CT29: -1 | CU29: -1 | CV29: 1 | CW29: -1 | CX29: -1 | CY29: -1 | CZ29: -1 | DA29: 1 | DB29: 4 | DC29: 1 | DD29: -1 | DE29: -1 | DF29: -1 | DG29: 2 | DH29: -1 | DI29: -1 | DJ29: -1 | DK29: -1 | DL29: -1 | DM29: -1 | DN29: 1 | DO29: -1 | DP29: 1 | DQ29: -1 | DR29: -1 | DS29: -1 | DT29: 1 | DU29: -1 | DV29: 1
A30: 1 | B30: 1 | C30: -1 | D30: -1 | E30: -1 | F30: 1 | G30: -1 | H30: 1 | I30: -1 | J30: 1 | K30: -1 | L30: 1 | M30: -1 | N30: 2 | O30: -1 | P30: -1 | Q30: 1 | R30: -1 | S30: -1 | T30: 1 | U30: 1 | V30: 1 | W30: -1 | X30: 1 | Y30: 1 | Z30: -2 | AA30: 1 | AB30: 1 | AC30: 1 | AD30: -1 | AE30: 1 | AF30: 1 | AG30: -2 | AH30: 1 | AI30: 2 | AJ30: -1 | AK30: -1 | AL30: -1 | AM30: -1 | AN30: -1 | AO30: -1 | AP30: 1 | AQ30: -1 | AR30: 1 | AS30: 1 | AT30: 1 | AU30: -1 | AV30: 1 | AW30: 1 | AX30: -1 | AY30: 1 | AZ30: 1 | BA30: 1 | BB30: -1 | BC30: -1 | BD30: 1 | BE30: -1 | BF30: 1 | BG30: -1 | BH30: -1 | BI30: -1 | BJ30: -1 | BK30: -1 | BL30: 1 | BM30: -1 | BN30: 1 | BO30: 1 | BP30: 1 | BQ30: -1 | BR30: 1 | BS30: -1 | BT30: 1 | BU30: -1 | BV30: 1 | BW30: 1 | BX30: 1 | BY30: -1 | BZ30: 1 | CA30: 1 | CB30: -1 | CC30: -2 | CD30: -1 | CE30: 1 | CF30: 1 | CG30: -1 | CH30: -1 | CI30: 1 | CJ30: 1 | CK30: -1 | CL30: -1 | CM30: 1 | CN30: 1 | CO30: 1 | CP30: -1 | CQ30: 1 | CR30: 1 | CS30: -1 | CT30: 1 | CU30: -1 | CV30: 1 | CW30: 1 | CX30: -1 | CY30: -1 | CZ30: 1 | DA30: -1 | DB30: 2 | DC30: -1 | DD30: 1 | DE30: 1 | DF30: 1 | DG30: -1 | DH30: 1 | DI30: -1 | DJ30: 1 | DK30: -1 | DL30: 1 | DM30: -1 | DN30: -1 | DO30: -1 | DP30: -1 | DQ30: 1 | DR30: 1 | DS30: -1 | DT30: -1 | DU30: -1 | DV30: 1
A31: 1 | B31: -1 | C31: 1 | D31: -1 | E31: 1 | F31: -1 | G31: -1 | H31: -1 | I31: -1 | J31: 1 | K31: -1 | L31: -1 | M31: 1 | N31: 1 | O31: 1 | P31: -1 | Q31: 1 | R31: -1 | S31: -1 | T31: -1 | U31: -1 | V31: -2 | W31: 1 | X31: 1 | Y31: -1 | Z31: -1 | AA31: -1 | AB31: -1 | AC31: 1 | AD31: -1 | AE31: -1 | AF31: -1 | AG31: 1 | AH31: 1 | AI31: -1 | AJ31: -1 | AK31: 2 | AL31: 1 | AM31: -1 | AN31: -1 | AO31: 1 | AP31: 1 | AQ31: 1 | AR31: -1 | AS31: 1 | AT31: 1 | AU31: 1 | AV31: 1 | AW31: -1 | AX31: 1 | AY31: 1 | AZ31: 1 | BA31: -2 | BB31: -1 | BC31: 1 | BD31: -1 | BE31: -1 | BF31: 1 | BG31: 1 | BH31: 1 | BI31: 1 | BJ31: 1 | BK31: -1 | BL31: -1 | BM31: 1 | BN31: -1 | BO31: 1 | BP31: 1 | BQ31: 1 | BR31: -1 | BS31: 1 | BT31: 1 | BU31: -1 | BV31: -1 | BW31: -2 | BX31: 1 | BY31: 1 | BZ31: -1 | CA31: -1 | CB31: -1 | CC31: 1 | CD31: 1 | CE31: -1 | CF31: 1 | CG31: -1 | CH31: 1 | CI31: 1 | CJ31: 1 | CK31: -1 | CL31: 1 | CM31: -1 | CN31: 1 | CO31: -1 | CP31: -1 | CQ31: -1 | CR31: -1 | CS31: -1 | CT31: 1 | CU31: -1 | CV31: -1 | CW31: 1 | CX31: 1 | CY31: -1 | CZ31: -1 | DA31: 1 | DB31: -1 | DC31: 1 | DD31: 1 | DE31: -1 | DF31: 1 | DG31: 1 | DH31: 1 | DI31: -1 | DJ31: 1 | DK31: -1 | DL31: 1 | DM31: -1 | DN31: 1 | DO31: 1 | DP31: -1 | DQ31: -1 | DR31: -1 | DS31: -1 | DT31: -1 | DU31: 1 | DV31: 1
A32: -4 | B32: 1 | C32: 2 | D32: -1 | E32: 1 | F32: -1 | G32: -1 | H32: 1 | I32: 1 | J32: 1 | K32: -1 | L32: -1 | M32: 1 | N32: 1 | O32: -1 | P32: 1 | Q32: -1 | R32: -1 | S32: -1 | T32: -1 | U32: 1 | V32: -8 | W32: 1 | X32: 2 | Y32: 1 | Z32: -1 | AA32: 1 | AB32: 1 | AC32: 2 | AD32: 1 | AE32: 1 | AF32: 1 | AG32: -1 | AH32: 1 | AI32: 1 | AJ32: 1 | AK32: 1 | AL32: -1 | AM32: -1 | AN32: -1 | AO32: -1 | AP32: -1 | AQ32: -2 | AR32: 2 | AS32: 1 | AT32: 1 | AU32: 1 | AV32: -1 | AW32: 1 | AX32: -1 | AY32: 1 | AZ32: 1 | BA32: -1 | BB32: -1 | BC32: -1 | BD32: -1 | BE32: -1 | BF32: 2 | BG32: -1 | BH32: -1 | BI32: 1 | BJ32: 1 | BK32: 1 | BL32: 1 | BM32: -1 | BN32: 1 | BO32: 2 | BP32: 1 | BQ32: 1 | BR32: 1 | BS32: -1 | BT32: -1 | BU32: 1 | BV32: 1 | BW32: 1 | BX32: -1 | BY32: 1 | BZ32: 1 | CA32: -1 | CB32: -1 | CC32: -1 | CD32: -1 | CE32: -1 | CF32: 1 | CG32: -1 | CH32: 1 | CI32: 1 | CJ32: -1 | CK32: -1 | CL32: -1 | CM32: 1 | CN32: 1 | CO32: -1 | CP32: -1 | CQ32: -1 | CR32: 1 | CS32: -1 | CT32: -1 | CU32: -1 | CV32: -1 | CW32: -1 | CX32: -1 | CY32: 1 | CZ32: -1 | DA32: -1 | DB32: 2 | DC32: -1 | DD32: -1 | DE32: -1 | DF32: -1 | DG32: 1 | DH32: -1 | DI32: -1 | DJ32: -1 | DK32: -1 | DL32: 1 | DM32: -1 | DN32: -1 | DO32: 1 | DP32: -2 | DQ32: -1 | DR32: -1 | DS32: -1 | DT32: 1 | DU32: -1 | DV32: 1
A33: -1 | B33: 1 | C33: 1 | D33: -1 | E33: 1 | F33: 1 | G33: 1 | H33: -1 | I33: 1 | J33: 1 | K33: 1 | L33: -1 | M33: 1 | N33: 1 | O33: -1 | P33: -1 | Q33: 1 | R33: -1 | S33: -1 | T33: -1 | U33: 1 | V33: -4 | W33: 1 | X33: -1 | Y33: 1 | Z33: 1 | AA33: 1 | AB33: -1 | AC33: 1 | AD33: 1 | AE33: -1 | AF33: 1 | AG33: -1 | AH33: -1 | AI33: 1 | AJ33: -1 | AK33: -1 | AL33: 1 | AM33: 1 | AN33: -1 | AO33: 1 | AP33: 1 | AQ33: -1 | AR33: 1 | AS33: 1 | AT33: 1 | AU33: 1 | AV33: 1 | AW33: -1 | AX33: 1 | AY33: 1 | AZ33: 1 | BA33: 1 | BB33: 1 | BC33: -1 | BD33: 1 | BE33: -1 | BF33: 1 | BG33: -1 | BH33: 1 | BI33: -1 | BJ33: 1 | BK33: -1 | BL33: 1 | BM33: -1 | BN33: -1 | BO33: -1 | BP33: -1 | BQ33: 1 | BR33: 1 | BS33: 1 | BT33: 1 | BU33: 1 | BV33: 1 | BW33: 1 | BX33: -1 | BY33: 1 | BZ33: -1 | CA33: 1 | CB33: 1 | CC33: -1 | CD33: -1 | CE33: -1 | CF33: 1 | CG33: -2 | CH33: 1 | CI33: -1 | CJ33: -1 | CK33: 1 | CL33: 1 | CM33: 1 | CN33: -1 | CO33: 1 | CP33: 1 | CQ33: 1 | CR33: -1 | CS33: -1 | CT33: -1 | CU33: 1 | CV33: -1 | CW33: 1 | CX33: 1 | CY33: 1 | CZ33: 1 | DA33: -1 | DB33: 1 | DC33: -1 | DD33: -1 | DE33: 1 | DF33: -1 | DG33: -1 | DH33: 1 | DI33: 1 | DJ33: -1 | DK33: -1 | DL33: 1 | DM33: -1 | DN33: -2 | DO33: 1 | DP33: -1 | DQ33: -1 | DR33: -1 | DS33: -1 | DT33: -1 | DU33: -1 | DV33: 1
A34: 2 | B34: 1 | C34: -1 | D34: 1 | E34: -1 | F34: -1 | G34: -1 | H34: -1 | I34: 1 | J34: 1 | K34: -1 | L34: 1 | M34: -1 | N34: -1 | O34: -1 | P34: -1 | Q34: -1 | R34: -1 | S34: -1 | T34: 1 | U34: -1 | V34: 2 | W34: -1 | X34: 1 | Y34: -1 | Z34: 1 | AA34: -1 | AB34: 1 | AC34: 1 | AD34: -1 | AE34: -1 | AF34: -1 | AG34: -1 | AH34: -1 | AI34: 1 | AJ34: -2 | AK34: 1 | AL34: 1 | AM34: -1 | AN34: -1 | AO34: -1 | AP34: 1 | AQ34: 1 | AR34: -1 | AS34: -1 | AT34: 1 | AU34: 1 | AV34: -1 | AW34: 1 | AX34: -1 | AY34: 1 | AZ34: 1 | BA34: -1 | BB34: 1 | BC34: 1 | BD34: -1 | BE34: -1 | BF34: -1 | BG34: -1 | BH34: -1 | BI34: -1 | BJ34: 1 | BK34: 1 | BL34: 1 | BM34: 1 | BN34: 1 | BO34: -1 | BP34: -1 | BQ34: -1 | BR34: 1 | BS34: 1 | BT34: 1 | BU34: -1 | BV34: 1 | BW34: 1 | BX34: 1 | BY34: -1 | BZ34: -1 | CA34: -1 | CB34: -1 | CC34: -1 | CD34: -1 | CE34: -1 | CF34: -1 | CG34: 1 | CH34: 1 | CI34: -2 | CJ34: -1 | CK34: 1 | CL34: -1 | CM34: -1 | CN34: 2 | CO34: 1 | CP34: 1 | CQ34: -1 | CR34: -1 | CS34: -1 | CT34: -1 | CU34: -1 | CV34: -1 | CW34: 1 | CX34: 1 | CY34: -1 | CZ34: -1 | DA34: 1 | DB34: -2 | DC34: -1 | DD34: -1 | DE34: -1 | DF34: -1 | DG34: -1 | DH34: 1 | DI34: -1 | DJ34: 1 | DK34: 1 | DL34: -1 | DM34: -1 | DN34: 2 | DO34: 2 | DP34: -1 | DQ34: 1 | DR34: 1 | DS34: 1 | DT34: -1 | DU34: 1 | DV34: 1
A35: 1 | B35: 1 | C35: 1 | D35: -1 | E35: 1 | F35: 1 | G35: -1 | H35: 1 | I35: -1 | J35: 1 | K35: 1 | L35: -1 | M35: -1 | N35: -1 | O35: -2 | P35: 2 | Q35: 1 | R35: 1 | S35: 1 | T35: 1 | U35: 1 | V35: 1 | W35: 1 | X35: -1 | Y35: -1 | Z35: 1 | AA35: -1 | AB35: 1 | AC35: 1 | AD35: 1 | AE35: -1 | AF35: 1 | AG35: 1 | AH35: 1 | AI35: -1 | AJ35: -1 | AK35: 1 | AL35: 1 | AM35: -1 | AN35: 1 | AO35: -1 | AP35: 1 | AQ35: 2 | AR35: 1 | AS35: -1 | AT35: 1 | AU35: 1 | AV35: -1 | AW35: -1 | AX35: 1 | AY35: 1 | AZ35: 1 | BA35: -1 | BB35: 1 | BC35: 1 | BD35: -1 | BE35: -1 | BF35: 1 | BG35: 1 | BH35: -1 | BI35: -1 | BJ35: -1 | BK35: -1 | BL35: 1 | BM35: 1 | BN35: -1 | BO35: -1 | BP35: -1 | BQ35: 1 | BR35: 1 | BS35: 1 | BT35: -1 | BU35: -1 | BV35: -1 | BW35: 1 | BX35: -1 | BY35: -1 | BZ35: -1 | CA35: -1 | CB35: 1 | CC35: 1 | CD35: 1 | CE35: -1 | CF35: 1 | CG35: 1 | CH35: 1 | CI35: 1 | CJ35: -1 | CK35: 1 | CL35: 1 | CM35: 1 | CN35: -1 | CO35: 1 | CP35: 1 | CQ35: -1 | CR35: 1 | CS35: -1 | CT35: -1 | CU35: 1 | CV35: -1 | CW35: 1 | CX35: -1 | CY35: 1 | CZ35: -1 | DA35: -1 | DB35: 1 | DC35: 1 | DD35: -1 | DE35: 1 | DF35: -1 | DG35: -1 | DH35: -1 | DI35: 1 | DJ35: -1 | DK35: -1 | DL35: 1 | DM35: 1 | DN35: -1 | DO35: 1 | DP35: -2 | DQ35: -1 | DR35: 1 | DS35: -1 | DT35: 1 | DU35: -1 | DV35: 1
A36: 2 | B36: -1 | C36: -1 | D36: 1 | E36: -1 | F36: -1 | G36: 1 | H36: 1 | I36: 1 | J36: 1 | K36: -1 | L36: -1 | M36: -1 | N36: -1 | O36: 1 | P36: 1 | Q36: -1 | R36: -1 | S36: -1 | T36: -1 | U36: -1 | V36: 4 | W36: -1 | X36: 1 | Y36: 1 | Z36: -1 | AA36: -1 | AB36: -1 | AC36: 1 | AD36: -1 | AE36: 1 | AF36: 1 | AG36: -2 | AH36: -1 | AI36: 1 | AJ36: -1 | AK36: -1 | AL36: -1 | AM36: -1 | AN36: -1 | AO36: 1 | AP36: 1 | AQ36: 1 | AR36: -1 | AS36: 1 | AT36: 1 | AU36: 1 | AV36: -1 | AW36: -1 | AX36: 1 | AY36: -1 | AZ36: -1 | BA36: -1 | BB36: -1 | BC36: -1 | BD36: 1 | BE36: 1 | BF36: -1 | BG36: 1 | BH36: -1 | BI36: -1 | BJ36: 1 | BK36: 1 | BL36: 2 | BM36: -1 | BN36: -1 | BO36: 1 | BP36: 1 | BQ36: 1 | BR36: 1 | BS36: -1 | BT36: -1 | BU36: 1 | BV36: 1 | BW36: 1 | BX36: -1 | BY36: 1 | BZ36: 1 | CA36: -1 | CB36: 1 | CC36: 1 | CD36: -1 | CE36: 1 | CF36: 1 | CG36: 1 | CH36: 1 | CI36: -1 | CJ36: 1 | CK36: 1 | CL36: 1 | CM36: -1 | CN36: -1 | CO36: -2 | CP36: 1 | CQ36: -1 | CR36: -1 | CS36: 1 | CT36: -1 | CU36: -2 | CV36: -1 | CW36: 1 | CX36: 1 | CY36: -1 | CZ36: 1 | DA36: -1 | DB36: 1 | DC36: 1 | DD36: -1 | DE36: -1 | DF36: 1 | DG36: 1 | DH36: -1 | DI36: -1 | DJ36: -1 | DK36: -1 | DL36: 1 | DM36: 1 | DN36: -1 | DO36: -1 | DP36: 1 | DQ36: 1 | DR36: 1 | DS36: 1 | DT36: 1 | DU36: -1 | DV36: 1
A37: 1 | B37: 1 | C37: -1 | D37: 1 | E37: -1 | F37: 1 | G37: 1 | H37: -1 | I37: 1 | J37: 1 | K37: 1 | L37: 1 | M37: -1 | N37: -1 | O37: -1 | P37: 1 | Q37: 1 | R37: 1 | S37: 1 | T37: 1 | U37: -1 | V37: -1 | W37: -1 | X37: -1 | Y37: -1 | Z37: 1 | AA37: -1 | AB37: 1 | AC37: -1 | AD37: -1 | AE37: -1 | AF37: 1 | AG37: 1 | AH37: 1 | AI37: -1 | AJ37: -1 | AK37: -1 | AL37: -1 | AM37: 1 | AN37: -1 | AO37: -1 | AP37: -1 | AQ37: -1 | AR37: 1 | AS37: 1 | AT37: 1 | AU37: -1 | AV37: -1 | AW37: 1 | AX37: -1 | AY37: -1 | AZ37: -1 | BA37: -1 | BB37: 1 | BC37: -1 | BD37: -1 | BE37: -1 | BF37: -1 | BG37: 1 | BH37: -1 | BI37: -1 | BJ37: 1 | BK37: 1 | BL37: 1 | BM37: -1 | BN37: -1 | BO37: 1 | BP37: 1 | BQ37: 1 | BR37: 1 | BS37: 1 | BT37: -1 | BU37: 1 | BV37: -1 | BW37: -1 | BX37: -1 | BY37: 1 | BZ37: -1 | CA37: 1 | CB37: -1 | CC37: 1 | CD37: 1 | CE37: 1 | CF37: -1 | CG37: -1 | CH37: -1 | CI37: -1 | CJ37: 1 | CK37: 1 | CL37: 1 | CM37: -1 | CN37: -1 | CO37: 1 | CP37: 1 | CQ37: 1 | CR37: -1 | CS37: -1 | CT37: -1 | CU37: 1 | CV37: -1 | CW37: -1 | CX37: -1 | CY37: 1 | CZ37: -1 | DA37: -1 | DB37: -1 | DC37: -1 | DD37: 1 | DE37: -1 | DF37: 1 | DG37: -1 | DH37: -1 | DI37: 1 | DJ37: -1 | DK37: -1 | DL37: 1 | DM37: 1 | DN37: -1 | DO37: 1 | DP37: -1 | DQ37: -1 | DR37: 1 | DS37: -1 | DT37: 1 | DU37: 1 | DV37: 1
A38: -1 | B38: 1 | C38: -1 | D38: -1 | E38: 1 | F38: 1 | G38: -1 | H38: 1 | I38: -1 | J38: -1 | K38: -1 | L38: 1 | M38: 1 | N38: -1 | O38: -1 | P38: -1 | Q38: 1 | R38: 1 | S38: 1 | T38: 1 | U38: 1 | V38: -1 | W38: -1 | X38: 1 | Y38: -1 | Z38: 1 | AA38: -1 | AB38: 1 | AC38: 1 | AD38: 1 | AE38: 1 | AF38: 1 | AG38: 1 | AH38: 1 | AI38: 1 | AJ38: 1 | AK38: -1 | AL38: 1 | AM38: -1 | AN38: -1 | AO38: 1 | AP38: 1 | AQ38: -1 | AR38: 1 | AS38: -1 | AT38: 1 | AU38: 1 | AV38: 1 | AW38: 1 | AX38: 1 | AY38: 1 | AZ38: 1 | BA38: -1 | BB38: -1 | BC38: -1 | BD38: 1 | BE38: -1 | BF38: -1 | BG38: -1 | BH38: -1 | BI38: -1 | BJ38: 1 | BK38: -1 | BL38: -1 | BM38: -1 | BN38: -1 | BO38: -1 | BP38: -1 | BQ38: -1 | BR38: -1 | BS38: 1 | BT38: -1 | BU38: -1 | BV38: -1 | BW38: -1 | BX38: -1 | BY38: -1 | BZ38: 1 | CA38: -1 | CB38: -1 | CC38: -1 | CD38: 1 | CE38: -1 | CF38: -1 | CG38: -1 | CH38: -1 | CI38: -1 | CJ38: 1 | CK38: 1 | CL38: 1 | CM38: -1 | CN38: 1 | CO38: -1 | CP38: -1 | CQ38: -1 | CR38: 1 | CS38: -1 | CT38: 1 | CU38: -1 | CV38: 1 | CW38: 1 | CX38: -1 | CY38: -1 | CZ38: -1 | DA38: -1 | DB38: 1 | DC38: -1 | DD38: -1 | DE38: -1 | DF38: 1 | DG38: -1 | DH38: 1 | DI38: -1 | DJ38: -1 | DK38: 1 | DL38: 1 | DM38: 1 | DN38: -1 | DO38: 1 | DP38: -1 | DQ38: -1 | DR38: 1 | DS38: -1 | DT38: 1 | DU38: 1 | DV38: 1
A39: -1 | B39: -1 | C39: 1 | D39: -1 | E39: -1 | F39: 1 | G39: -1 | H39: -1 | I39: 1 | J39: 1 | K39: -1 | L39: -1 | M39: 1 | N39: -1 | O39: 1 | P39: 1 | Q39: -1 | R39: 1 | S39: 1 | T39: -1 | U39: 1 | V39: 1 | W39: -1 | X39: -1 | Y39: -1 | Z39: 1 | AA39: 1 | AB39: 1 | AC39: -1 | AD39: -1 | AE39: 1 | AF39: -1 | AG39: -1 | AH39: -1 | AI39: 1 | AJ39: -1 | AK39: 1 | AL39: -1 | AM39: 1 | AN39: -1 | AO39: -1 | AP39: 1 | AQ39: 1 | AR39: -1 | AS39: 1 | AT39: -1 | AU39: -1 | AV39: 1 | AW39: -1 | AX39: 1 | AY39: 1 | AZ39: 1 | BA39: 1 | BB39: -1 | BC39: 1 | BD39: 1 | BE39: 1 | BF39: 1 | BG39: 1 | BH39: 1 | BI39: 1 | BJ39: 1 | BK39: 1 | BL39: -1 | BM39: -1 | BN39: -1 | BO39: 1 | BP39: 1 | BQ39: 1 | BR39: -1 | BS39: -1 | BT39: 1 | BU39: -1 | BV39: -1 | BW39: 1 | BX39: 1 | BY39: -1 | BZ39: -1 | CA39: 1 | CB39: 1 | CC39: -1 | CD39: -1 | CE39: -1 | CF39: -1 | CG39: 1 | CH39: 1 | CI39: 1 | CJ39: 1 | CK39: -1 | CL39: -1 | CM39: 1 | CN39: -1 | CO39: -1 | CP39: 1 | CQ39: -1 | CR39: -1 | CS39: -1 | CT39: -1 | CU39: -1 | CV39: -1 | CW39: 1 | CX39: -1 | CY39: -1 | CZ39: 1 | DA39: -1 | DB39: -1 | DC39: 1 | DD39: -1 | DE39: 1 | DF39: -1 | DG39: 1 | DH39: -1 | DI39: -1 | DJ39: -1 | DK39: -1 | DL39: 1 | DM39: -1 | DN39: 1 | DO39: 1 | DP39: 1 | DQ39: -1 | DR39: -1 | DS39: 1 | DT39: 1 | DU39: 1 | DV39: -1
A40: 1 | B40: -1 | C40: -1 | D40: 1 | E40: 1 | F40: -1 | G40: -1 | H40: -1 | I40: 1 | J40: 1 | K40: -1 | L40: 1 | M40: -1 | N40: -1 | O40: 1 | P40: 1 | Q40: -1 | R40: 1 | S40: 1 | T40: 1 | U40: 1 | V40: 1 | W40: -1 | X40: -1 | Y40: -1 | Z40: -1 | AA40: 1 | AB40: 1 | AC40: 1 | AD40: -1 | AE40: 1 | AF40: -1 | AG40: -1 | AH40: -1 | AI40: 1 | AJ40: -1 | AK40: 1 | AL40: 1 | AM40: -1 | AN40: -1 | AO40: 1 | AP40: 1 | AQ40: 1 | AR40: 1 | AS40: 1 | AT40: -1 | AU40: 1 | AV40: -1 | AW40: -1 | AX40: -1 | AY40: -1 | AZ40: 1 | BA40: 1 | BB40: -1 | BC40: -1 | BD40: -1 | BE40: -1 | BF40: 1 | BG40: -1 | BH40: -1 | BI40: -1 | BJ40: 1 | BK40: 1 | BL40: -1 | BM40: 1 | BN40: -1 | BO40: -1 | BP40: -1 | BQ40: -1 | BR40: -1 | BS40: 1 | BT40: -1 | BU40: 1 | BV40: -1 | BW40: 1 | BX40: -1 | BY40: 1 | BZ40: -1 | CA40: -1 | CB40: -1 | CC40: 1 | CD40: 1 | CE40: -1 | CF40: -1 | CG40: 1 | CH40: -1 | CI40: 1 | CJ40: 1 | CK40: -1 | CL40: 1 | CM40: 1 | CN40: 1 | CO40: -1 | CP40: 1 | CQ40: -1 | CR40: -1 | CS40: -1 | CT40: 1 | CU40: 1 | CV40: -1 | CW40: -1 | CX40: 1 | CY40: -1 | CZ40: -1 | DA40: -1 | DB40: 1 | DC40: -1 | DD40: -1 | DE40: -1 | DF40: -1 | DG40: 1 | DH40: 1 | DI40: 1 | DJ40: -1 | DK40: 1 | DL40: 1 | DM40: 1 | DN40: 1 | DO40: -1 | DP40: 1 | DQ40: -1 | DR40: -1 | DS40: 1 | DT40: 1 | DU40: -1 | DV40: 1
A41: -1 | B41: 1 | C41: -1 | D41: 1 | E41: -1 | F41: -1 | G41: -1 | H41: -1 | I41: -1 | J41: 1 | K41: -1 | L41: 1 | M41: 1 | N41: -1 | O41: -1 | P41: -1 | Q41: 1 | R41: 1 | S41: -1 | T41: 1 | U41: -1 | V41: 1 | W41: -1 | X41: -1 | Y41: 1 | Z41: -1 | AA41: -1 | AB41: -1 | AC41: 1 | AD41: 1 | AE41: 1 | AF41: 1 | AG41: -1 | AH41: -1 | AI41: -1 | AJ41: -1 | AK41: -1 | AL41: -1 | AM41: 1 | AN41: 1 | AO41: -1 | AP41: -1 | AQ41: -1 | AR41: -1 | AS41: -1 | AT41: -1 | AU41: -1 | AV41: -1 | AW41: 1 | AX41: -1 | AY41: 1 | AZ41: 1 | BA41: 1 | BB41: -1 | BC41: 1 | BD41: -1 | BE41: 1 | BF41: 1 | BG41: 1 | BH41: 1 | BI41: -1 | BJ41: -1 | BK41: 1 | BL41: 1 | BM41: -1 | BN41: -1 | BO41: 1 | BP41: -1 | BQ41: -1 | BR41: 1 | BS41: -1 | BT41: 1 | BU41: -1 | BV41: -1 | BW41: 1 | BX41: -1 | BY41: 1 | BZ41: 1 | CA41: 1 | CB41: 1 | CC41: -1 | CD41: -1 | CE41: 1 | CF41: -1 | CG41: -1 | CH41: 1 | CI41: -1 | CJ41: 1 | CK41: 1 | CL41: 1 | CM41: -1 | CN41: -1 | CO41: -1 | CP41: 1 | CQ41: -1 | CR41: -1 | CS41: -1 | CT41: -1 | CU41: -1 | CV41: -1 | CW41: 1 | CX41: -1 | CY41: -1 | CZ41: -1 | DA41: 1 | DB41: -1 | DC41: 1 | DD41: 1 | DE41: 1 | DF41: 1 | DG41: -1 | DH41: 1 | DI41: 1 | DJ41: -1 | DK41: -1 | DL41: 1 | DM41: 1 | DN41: 1 | DO41: 1 | DP41: -1 | DQ41: 1 | DR41: 1 | DS41: -1 | DT41: 1 | DU41: -1 | DV41: -1
A42: -1 | B42: -1 | C42: -1 | D42: -1 | E42: -1 | F42: 1 | G42: -1 | H42: -1 | I42: 1 | J42: 1 | K42: 1 | L42: 1 | M42: -1 | N42: -1 | O42: -1 | P42: -1 | Q42: 1 | R42: -1 | S42: 1 | T42: -1 | U42: 1 | V42: 1 | W42: -1 | X42: -1 | Y42: -1 | Z42: -1 | AA42: -1 | AB42: -1 | AC42: 1 | AD42: -1 | AE42: 1 | AF42: -1 | AG42: -1 | AH42: -1 | AI42: -1 | AJ42: -1 | AK42: -1 | AL42: -1 | AM42: -1 | AN42: -1 | AO42: 1 | AP42: -1 | AQ42: -1 | AR42: 1 | AS42: -1 | AT42: -1 | AU42: -1 | AV42: -1 | AW42: -1 | AX42: -1 | AY42: -1 | AZ42: -1 | BA42: -1 | BB42: 1 | BC42: 1 | BD42: 1 | BE42: 1 | BF42: -1 | BG42: 1 | BH42: -1 | BI42: 1 | BJ42: -1 | BK42: -1 | BL42: 1 | BM42: -1 | BN42: 1 | BO42: 1 | BP42: -1 | BQ42: 1 | BR42: 1 | BS42: -1 | BT42: 1 | BU42: 1 | BV42: 1 | BW42: -1 | BX42: -1 | BY42: -1 | BZ42: -1 | CA42: -1 | CB42: 1 | CC42: 1 | CD42: -1 | CE42: -1 | CF42: 1 | CG42: -1 | CH42: -1 | CI42: 1 | CJ42: 1 | CK42: -1 | CL42: 1 | CM42: -1 | CN42: 1 | CO42: 1 | CP42: -1 | CQ42: 1 | CR42: 1 | CS42: 1 | CT42: -1 | CU42: -1 | CV42: -1 | CW42: 1 | CX42: 1 | CY42: 1 | CZ42: 1 | DA42: -1 | DB42: -1 | DC42: -1 | DD42: 1 | DE42: 1 | DF42: -1 | DG42: 1 | DH42: 1 | DI42: -1 | DJ42: -1 | DK42: 1 | DL42: 1 | DM42: -1 | DN42: -1 | DO42: 1 | DP42: 1 | DQ42: 1 | DR42: -1 | DS42: -1 | DT42: 1 | DU42: -1 | DV42: -1
A43: -1 | B43: -1 | C43: -1 | D43: -1 | E43: -1 | F43: 1 | G43: 1 | H43: 1 | I43: -1 | J43: 1 | K43: 1 | L43: -1 | M43: 1 | N43: 1 | O43: 1 | P43: 1 | Q43: 1 | R43: 1 | S43: -1 | T43: 1 | U43: -1 | V43: 1 | W43: 1 | X43: 1 | Y43: -1 | Z43: 1 | AA43: -1 | AB43: 1 | AC43: 1 | AD43: -1 | AE43: 1 | AF43: -1 | AG43: -1 | AH43: -1 | AI43: -1 | AJ43: -1 | AK43: 1 | AL43: -1 | AM43: -1 | AN43: 1 | AO43: -1 | AP43: 1 | AQ43: 1 | AR43: 1 | AS43: -1 | AT43: 1 | AU43: -1 | AV43: 1 | AW43: -1 | AX43: -1 | AY43: 1 | AZ43: 1 | BA43: -1 | BB43: -1 | BC43: -1 | BD43: -1 | BE43: -1 | BF43: -1 | BG43: 1 | BH43: 1 | BI43: -1 | BJ43: 1 | BK43: -1 | BL43: -1 | BM43: 1 | BN43: 1 | BO43: -1 | BP43: -1 | BQ43: -1 | BR43: -1 | BS43: -1 | BT43: 1 | BU43: -1 | BV43: 1 | BW43: -1 | BX43: -1 | BY43: 1 | BZ43: 1 | CA43: 1 | CB43: -1 | CC43: -1 | CD43: -1 | CE43: 1 | CF43: 1 | CG43: -1 | CH43: 1 | CI43: 1 | CJ43: -1 | CK43: -1 | CL43: 1 | CM43: -1 | CN43: 1 | CO43: 1 | CP43: -1 | CQ43: -1 | CR43: 1 | CS43: 1 | CT43: -1 | CU43: -1 | CV43: -1 | CW43: -1 | CX43: 1 | CY43: -1 | CZ43: 1 | DA43: -1 | DB43: -1 | DC43: 1 | DD43: 1 | DE43: -1 | DF43: -1 | DG43: 1 | DH43: -1 | DI43: 1 | DJ43: 1 | DK43: 1 | DL43: 1 | DM43: -1 | DN43: -1 | DO43: -1 | DP43: -1 | DQ43: 1 | DR43: 1 | DS43: -1 | DT43: 1 | DU43: -1 | DV43: -1
A44: -1 | B44: -1 | C44: -1 | D44: 1 | E44: 1 | F44: -1 | G44: 1 | H44: 1 | I44: 1 | J44: -1 | K44: -1 | L44: -1 | M44: -1 | N44: 1 | O44: 1 | P44: 1 | Q44: -1 | R44: 1 | S44: 1 | T44: -1 | U44: 1 | V44: 1 | W44: -1 | X44: -1 | Y44: 1 | Z44: 1 | AA44: -1 | AB44: -1 | AC44: -1 | AD44: -1 | AE44: 1 | AF44: 1 | AG44: 1 | AH44: 1 | AI44: 1 | AJ44: -1 | AK44: 1 | AL44: 1 | AM44: -1 | AN44: 1 | AO44: -1 | AP44: -1 | AQ44: -1 | AR44: -1 | AS44: -1 | AT44: 1 | AU44: 1 | AV44: -1 | AW44: -1 | AX44: 1 | AY44: -1 | AZ44: 1 | BA44: 1 | BB44: 1 | BC44: 1 | BD44: 1 | BE44: 1 | BF44: 1 | BG44: 1 | BH44: -1 | BI44: 1 | BJ44: -1 | BK44: 1 | BL44: -1 | BM44: 1 | BN44: 1 | BO44: -1 | BP44: 1 | BQ44: 1 | BR44: -1 | BS44: -1 | BT44: 1 | BU44: -1 | BV44: 1 | BW44: -1 | BX44: -1 | BY44: -1 | BZ44: 1 | CA44: 1 | CB44: 1 | CC44: -1 | CD44: -1 | CE44: -1 | CF44: -1 | CG44: 1 | CH44: 1 | CI44: -1 | CJ44: -1 | CK44: -1 | CL44: 1 | CM44: -1 | CN44: 1 | CO44: -1 | CP44: -1 | CQ44: 1 | CR44: -1 | CS44: -1 | CT44: 1 | CU44: 1 | CV44: -1 | CW44: -1 | CX44: 1 | CY44: 1 | CZ44: -1 | DA44: 1 | DB44: 1 | DC44: 1 | DD44: 1 | DE44: -1 | DF44: 1 | DG44: -1 | DH44: 1 | DI44: -1 | DJ44: -1 | DK44: -1 | DL44: -1 | DM44: 1 | DN44: -1 | DO44: 1 | DP44: -1 | DQ44: -1 | DR44: -1 | DS44: 1 | DT44: -1 | DU44: 1 | DV44: 1
A45: -1 | B45: 1 | C45: -1 | D45: 1 | E45: -1 | F45: 1 | G45: 1 | H45: 1 | I45: -1 | J45: -1 | K45: -1 | L45: 1 | M45: 1 | N45: 1 | O45: -1 | P45: -1 | Q45: 1 | R45: 1 | S45: -1 | T45: 1 | U45: -1 | V45: -1 | W45: 1 | X45: 1 | Y45: 1 | Z45: -1 | AA45: 1 | AB45: -1 | AC45: 1 | AD45: 1 | AE45: -1 | AF45: -1 | AG45: -1 | AH45: 1 | AI45: 1 | AJ45: -1 | AK45: -1 | AL45: 1 | AM45: -1 | AN45: -1 | AO45: 1 | AP45: -1 | AQ45: 1 | AR45: 1 | AS45: 1 | AT45: 1 | AU45: 1 | AV45: -1 | AW45: 1 | AX45: -1 | AY45: -1 | AZ45: 1 | BA45: 1 | BB45: 1 | BC45: -1 | BD45: -1 | BE45: 1 | BF45: 1 | BG45: -1 | BH45: 1 | BI45: 1 | BJ45: -1 | BK45: -1 | BL45: -1 | BM45: 1 | BN45: 1 | BO45: -1 | BP45: -1 | BQ45: 1 | BR45: -1 | BS45: 1 | BT45: -1 | BU45: 1 | BV45: -1 | BW45: 1 | BX45: -1 | BY45: -1 | BZ45: 1 | CA45: -1 | CB45: -1 | CC45: 1 | CD45: -1 | CE45: -1 | CF45: 1 | CG45: 1 | CH45: -1 | CI45: -1 | CJ45: 1 | CK45: 1 | CL45: 1 | CM45: -1 | CN45: -1 | CO45: 1 | CP45: 1 | CQ45: -1 | CR45: 1 | CS45: 1 | CT45: -1 | CU45: -1 | CV45: -1 | CW45: -1 | CX45: 1 | CY45: 1 | CZ45: 1 | DA45: 1 | DB45: -1 | DC45: 1 | DD45: 1 | DE45: 1 | DF45: 1 | DG45: 1 | DH45: 1 | DI45: 1 | DJ45: -1 | DK45: -1 | DL45: -1 | DM45: 1 | DN45: -1 | DO45: 1 | DP45: -1 | DQ45: -1 | DR45: 1 | DS45: 1 | DT45: 1 | DU45: 1 | DV45: -1
A46: -1 | B46: 1 | C46: -1 | D46: 2 | E46: 1 | F46: 1 | G46: -1 | H46: 1 | I46: 1 | J46: 1 | K46: -1 | L46: 1 | M46: -1 | N46: 1 | O46: -1 | P46: -1 | Q46: 1 | R46: 1 | S46: -1 | T46: 1 | U46: 1 | V46: 1 | W46: 1 | X46: 1 | Y46: 1 | Z46: 1 | AA46: -1 | AB46: -1 | AC46: 1 | AD46: 2 | AE46: -1 | AF46: -1 | AG46: 1 | AH46: -1 | AI46: -1 | AJ46: -2 | AK46: -1 | AL46: -1 | AM46: -1 | AN46: -1 | AO46: 1 | AP46: 1 | AQ46: -1 | AR46: 2 | AS46: 1 | AT46: -1 | AU46: -1 | AV46: 1 | AW46: -1 | AX46: -2 | AY46: 2 | AZ46: 1 | BA46: -1 | BB46: 1 | BC46: 1 | BD46: 1 | BE46: -1 | BF46: -2 | BG46: -1 | BH46: -1 | BI46: -1 | BJ46: 1 | BK46: 1 | BL46: -1 | BM46: 1 | BN46: 1 | BO46: -1 | BP46: 1 | BQ46: -1 | BR46: -1 | BS46: -1 | BT46: 1 | BU46: 1 | BV46: 1 | BW46: -1 | BX46: -1 | BY46: 1 | BZ46: -1 | CA46: -1 | CB46: 1 | CC46: 1 | CD46: 1 | CE46: -1 | CF46: 1 | CG46: -1 | CH46: -1 | CI46: -1 | CJ46: 2 | CK46: -1 | CL46: 1 | CM46: -1 | CN46: 1 | CO46: 2 | CP46: 2 | CQ46: -1 | CR46: -1 | CS46: 1 | CT46: -1 | CU46: -1 | CV46: -1 | CW46: 1 | CX46: -1 | CY46: -1 | CZ46: 1 | DA46: -1 | DB46: -1 | DC46: -1 | DD46: 1 | DE46: -1 | DF46: 1 | DG46: 1 | DH46: 1 | DI46: -1 | DJ46: 2 | DK46: 1 | DL46: -1 | DM46: -1 | DN46: -1 | DO46: -1 | DP46: -1 | DQ46: -1 | DR46: -1 | DS46: 1 | DT46: -1 | DU46: 1 | DV46: -1
A47: -1 | B47: -1 | C47: 1 | D47: 2 | E47: -1 | F47: -1 | G47: -1 | H47: 1 | I47: 2 | J47: 1 | K47: -1 | L47: 1 | M47: -1 | N47: -1 | O47: -2 | P47: -4 | Q47: 1 | R47: -1 | S47: -1 | T47: -1 | U47: 1 | V47: -1 | W47: 2 | X47: -1 | Y47: 1 | Z47: -1 | AA47: -1 | AB47: -1 | AC47: 1 | AD47: 1 | AE47: 1 | AF47: -2 | AG47: 1 | AH47: 1 | AI47: 1 | AJ47: -1 | AK47: -2 | AL47: -1 | AM47: -1 | AN47: 1 | AO47: 1 | AP47: 1 | AQ47: -2 | AR47: 1 | AS47: -1 | AT47: -1 | AU47: -1 | AV47: -1 | AW47: -1 | AX47: 1 | AY47: 2 | AZ47: 1 | BA47: -1 | BB47: 1 | BC47: 1 | BD47: -1 | BE47: -1 | BF47: -2 | BG47: -1 | BH47: -1 | BI47: -1 | BJ47: 1 | BK47: -1 | BL47: 4 | BM47: 1 | BN47: -1 | BO47: 1 | BP47: 1 | BQ47: 1 | BR47: 1 | BS47: -1 | BT47: 2 | BU47: -1 | BV47: -1 | BW47: -1 | BX47: 1 | BY47: -1 | BZ47: -1 | CA47: -4 | CB47: 1 | CC47: -1 | CD47: 1 | CE47: 1 | CF47: -1 | CG47: -1 | CH47: 2 | CI47: 1 | CJ47: 1 | CK47: 1 | CL47: -1 | CM47: -1 | CN47: 1 | CO47: 1 | CP47: 1 | CQ47: -1 | CR47: -1 | CS47: 1 | CT47: -1 | CU47: -1 | CV47: -1 | CW47: 1 | CX47: 1 | CY47: 1 | CZ47: 1 | DA47: 1 | DB47: 4 | DC47: 2 | DD47: -1 | DE47: 1 | DF47: -1 | DG47: -1 | DH47: -2 | DI47: 1 | DJ47: 2 | DK47: 2 | DL47: -1 | DM47: -1 | DN47: -1 | DO47: -1 | DP47: 1 | DQ47: -4 | DR47: -1 | DS47: -1 | DT47: -1 | DU47: -1 | DV47: 1
A48: -1 | B48: 1 | C48: 1 | D48: 2 | E48: -1 | F48: -1 | G48: -1 | H48: -1 | I48: 2 | J48: 1 | K48: -1 | L48: 2 | M48: 1 | N48: 1 | O48: 1 | P48: -2 | Q48: -1 | R48: 1 | S48: 1 | T48: 1 | U48: 1 | V48: 1 | W48: 1 | X48: -2 | Y48: 1 | Z48: -1 | AA48: 1 | AB48: -2 | AC48: -1 | AD48: 1 | AE48: -1 | AF48: -2 | AG48: 1 | AH48: -1 | AI48: -1 | AJ48: -1 | AK48: -4 | AL48: 1 | AM48: 1 | AN48: -1 | AO48: -1 | AP48: -1 | AQ48: -1 | AR48: 1 | AS48: -1 | AT48: 1 | AU48: -1 | AV48: -1 | AW48: -2 | AX48: -2 | AY48: 1 | AZ48: 1 | BA48: -1 | BB48: 1 | BC48: -1 | BD48: -1 | BE48: 1 | BF48: -2 | BG48: -1 | BH48: 1 | BI48: -1 | BJ48: 1 | BK48: 1 | BL48: -1 | BM48: 1 | BN48: 1 | BO48: -1 | BP48: -1 | BQ48: -1 | BR48: -1 | BS48: -1 | BT48: 1 | BU48: -1 | BV48: -1 | BW48: 1 | BX48: -1 | BY48: 1 | BZ48: -1 | CA48: -2 | CB48: -1 | CC48: -1 | CD48: -1 | CE48: 1 | CF48: 1 | CG48: -1 | CH48: 1 | CI48: 1 | CJ48: 1 | CK48: -1 | CL48: 1 | CM48: -1 | CN48: -1 | CO48: 1 | CP48: 1 | CQ48: 1 | CR48: 1 | CS48: -1 | CT48: -1 | CU48: -1 | CV48: -1 | CW48: -1 | CX48: -1 | CY48: -1 | CZ48: 2 | DA48: -1 | DB48: 2 | DC48: -1 | DD48: -1 | DE48: -1 | DF48: 1 | DG48: -1 | DH48: 1 | DI48: 1 | DJ48: 1 | DK48: 1 | DL48: -1 | DM48: 1 | DN48: 1 | DO48: -1 | DP48: -1 | DQ48: -1 | DR48: -1 | DS48: 1 | DT48: 1 | DU48: 1 | DV48: -1
A49: 1 | B49: 2 | C49: -1 | D49: 1 | E49: 1 | F49: -1 | G49: -1 | H49: 1 | I49: 2 | J49: 1 | K49: -1 | L49: -1 | M49: -1 | N49: 1 | O49: -1 | P49: -2 | Q49: 1 | R49: -1 | S49: 1 | T49: 1 | U49: -1 | V49: 1 | W49: 1 | X49: -1 | Y49: -1 | Z49: -1 | AA49: -1 | AB49: 1 | AC49: -1 | AD49: 2 | AE49: -1 | AF49: -1 | AG49: 1 | AH49: 1 | AI49: -1 | AJ49: -1 | AK49: -2 | AL49: 1 | AM49: -1 | AN49: -1 | AO49: 1 | AP49: 1 | AQ49: -1 | AR49: 1 | AS49: 1 | AT49: 1 | AU49: 1 | AV49: 1 | AW49: -2 | AX49: -1 | AY49: 1 | AZ49: -1 | BA49: -2 | BB49: -1 | BC49: -1 | BD49: -1 | BE49: 1 | BF49: -2 | BG49: -1 | BH49: -1 | BI49: -1 | BJ49: 1 | BK49: 1 | BL49: 2 | BM49: 1 | BN49: -1 | BO49: 2 | BP49: -1 | BQ49: 1 | BR49: 1 | BS49: -1 | BT49: 1 | BU49: 1 | BV49: 1 | BW49: -1 | BX49: 1 | BY49: -1 | BZ49: 1 | CA49: -2 | CB49: 1 | CC49: 1 | CD49: -1 | CE49: -1 | CF49: -1 | CG49: 1 | CH49: 2 | CI49: -1 | CJ49: 1 | CK49: -1 | CL49: -1 | CM49: 1 | CN49: 1 | CO49: 2 | CP49: -1 | CQ49: -1 | CR49: -1 | CS49: -1 | CT49: -1 | CU49: -1 | CV49: -1 | CW49: 1 | CX49: 1 | CY49: -1 | CZ49: 1 | DA49: -1 | DB49: 2 | DC49: 1 | DD49: 1 | DE49: -1 | DF49: -1 | DG49: -1 | DH49: 1 | DI49: 1 | DJ49: 2 | DK49: -1 | DL49: -2 | DM49: 1 | DN49: 1 | DO49: -1 | DP49: 1 | DQ49: -1 | DR49: 1 | DS49: -1 | DT49: -2 | DU49: 1 | DV49: -1
A50: 4 | B50: -1 | C50: -1 | D50: 2 | E50: 1 | F50: 1 | G50: -1 | H50: -1 | I50: 2 | J50: 1 | K50: -2 | L50: 1 | M50: -2 | N50: 1 | O50: 1 | P50: -4 | Q50: -1 | R50: 1 | S50: -1 | T50: 1 | U50: -1 | V50: 2 | W50: 1 | X50: -1 | Y50: 1 | Z50: -1 | AA50: -1 | AB50: -2 | AC50: 1 | AD50: 2 | AE50: 2 | AF50: -1 | AG50: 1 | AH50: 1 | AI50: 1 | AJ50: -1 | AK50: -2 | AL50: -1 | AM50: 1 | AN50: -1 | AO50: -1 | AP50: 1 | AQ50: 1 | AR50: 1 | AS50: -1 | AT50: -1 | AU50: 1 | AV50: 1 | AW50: -2 | AX50: 1 | AY50: 1 | AZ50: 1 | BA50: -1 | BB50: 1 | BC50: -1 | BD50: -1 | BE50: -1 | BF50: -2 | BG50: 1 | BH50: -1 | BI50: -1 | BJ50: 1 | BK50: 1 | BL50: 4 | BM50: 1 | BN50: 1 | BO50: 1 | BP50: 1 | BQ50: 1 | BR50: -1 | BS50: -1 | BT50: 2 | BU50: 1 | BV50: -1 | BW50: 1 | BX50: -1 | BY50: -1 | BZ50: -2 | CA50: -4 | CB50: -1 | CC50: 1 | CD50: 1 | CE50: -1 | CF50: 1 | CG50: 2 | CH50: 1 | CI50: 1 | CJ50: 1 | CK50: -1 | CL50: -1 | CM50: -2 | CN50: -1 | CO50: 4 | CP50: -1 | CQ50: -1 | CR50: -1 | CS50: -1 | CT50: 1 | CU50: 1 | CV50: -2 | CW50: -1 | CX50: 2 | CY50: 1 | CZ50: -1 | DA50: -1 | DB50: 8 | DC50: -1 | DD50: 1 | DE50: 1 | DF50: -1 | DG50: -1 | DH50: -2 | DI50: 1 | DJ50: 1 | DK50: -1 | DL50: 1 | DM50: 1 | DN50: -1 | DO50: 1 | DP50: -1 | DQ50: -4 | DR50: -1 | DS50: 1 | DT50: -1 | DU50: 1 | DV50: -1
A51: 2 | B51: 2 | C51: 1 | D51: -1 | E51: 1 | F51: 1 | G51: -2 | H51: -1 | I51: 2 | J51: 1 | K51: -1 | L51: 1 | M51: -1 | N51: -1 | O51: -1 | P51: -4 | Q51: -1 | R51: 1 | S51: -1 | T51: -1 | U51: 1 | V51: 4 | W51: 2 | X51: -1 | Y51: 2 | Z51: 1 | AA51: 1 | AB51: -1 | AC51: -1 | AD51: 2 | AE51: 1 | AF51: -1 | AG51: 1 | AH51: 1 | AI51: 1 | AJ51: 1 | AK51: -2 | AL51: 1 | AM51: -1 | AN51: -1 | AO51: 1 | AP51: 1 | AQ51: 2 | AR51: 1 | AS51: 1 | AT51: 1 | AU51: -1 | AV51: -1 | AW51: 1 | AX51: -1 | AY51: 1 | AZ51: 1 | BA51: -1 | BB51: 1 | BC51: -1 | BD51: -2 | BE51: 1 | BF51: -2 | BG51: 1 | BH51: 1 | BI51: -1 | BJ51: 1 | BK51: -1 | BL51: 2 | BM51: 1 | BN51: -1 | BO51: -1 | BP51: -2 | BQ51: -1 | BR51: -1 | BS51: -1 | BT51: 1 | BU51: -1 | BV51: -2 | BW51: 1 | BX51: -1 | BY51: -1 | BZ51: -1 | CA51: -4 | CB51: 1 | CC51: -1 | CD51: -1 | CE51: -1 | CF51: -1 | CG51: 1 | CH51: 2 | CI51: -1 | CJ51: 2 | CK51: 1 | CL51: -1 | CM51: -2 | CN51: 1 | CO51: 4 | CP51: -1 | CQ51: -2 | CR51: 1 | CS51: 1 | CT51: 1 | CU51: -1 | CV51: -2 | CW51: 1 | CX51: 1 | CY51: -2 | CZ51: -1 | DA51: -1 | DB51: 4 | DC51: 1 | DD51: 1 | DE51: 2 | DF51: 1 | DG51: 1 | DH51: -1 | DI51: 1 | DJ51: 2 | DK51: -1 | DL51: -1 | DM51: -1 | DN51: -1 | DO51: -2 | DP51: -1 | DQ51: -2 | DR51: 1 | DS51: 1 | DT51: -1 | DU51: -1 | DV51: -1
A52: -1 | B52: 2 | C52: 1 | D52: 1 | E52: 1 | F52: 1 | G52: 1 | H52: -1 | I52: 1 | J52: 1 | K52: -1 | L52: 1 | M52: 1 | N52: -1 | O52: -1 | P52: -1 | Q52: -1 | R52: 1 | S52: -1 | T52: -1 | U52: -1 | V52: 1 | W52: -1 | X52: -1 | Y52: -1 | Z52: -1 | AA52: 1 | AB52: -1 | AC52: -1 | AD52: 2 | AE52: 1 | AF52: 1 | AG52: 1 | AH52: -1 | AI52: 1 | AJ52: -1 | AK52: -1 | AL52: 2 | AM52: 1 | AN52: -1 | AO52: -1 | AP52: -1 | AQ52: 1 | AR52: 1 | AS52: -1 | AT52: -1 | AU52: -1 | AV52: -1 | AW52: 1 | AX52: 1 | AY52: 1 | AZ52: 1 | BA52: -2 | BB52: -1 | BC52: -1 | BD52: -1 | BE52: -1 | BF52: -1 | BG52: 1 | BH52: 1 | BI52: -1 | BJ52: 1 | BK52: -1 | BL52: 1 | BM52: 1 | BN52: -1 | BO52: 1 | BP52: -1 | BQ52: -1 | BR52: -2 | BS52: -1 | BT52: 1 | BU52: 1 | BV52: -1 | BW52: 1 | BX52: 1 | BY52: -1 | BZ52: -1 | CA52: -2 | CB52: 1 | CC52: 1 | CD52: 1 | CE52: 1 | CF52: -1 | CG52: 2 | CH52: 1 | CI52: -1 | CJ52: -1 | CK52: 1 | CL52: -1 | CM52: -1 | CN52: -1 | CO52: 1 | CP52: 1 | CQ52: -1 | CR52: -1 | CS52: -1 | CT52: 1 | CU52: -2 | CV52: -1 | CW52: 1 | CX52: 1 | CY52: 1 | CZ52: 1 | DA52: -1 | DB52: 1 | DC52: 1 | DD52: -1 | DE52: 1 | DF52: -1 | DG52: -1 | DH52: 1 | DI52: -1 | DJ52: 1 | DK52: 1 | DL52: -1 | DM52: 1 | DN52: 1 | DO52: -1 | DP52: 1 | DQ52: 1 | DR52: -1 | DS52: 1 | DT52: 1 | DU52: -1 | DV52: 1
A53: 2 | B53: 1 | C53: 1 | D53: 1 | E53: -1 | F53: -1 | G53: -1 | H53: -1 | I53: 1 | J53: 1 | K53: -1 | L53: -1 | M53: 1 | N53: -1 | O53: -2 | P53: -2 | Q53: 1 | R53: 1 | S53: -1 | T53: -1 | U53: 1 | V53: -1 | W53: 1 | X53: 1 | Y53: -1 | Z53: -1 | AA53: -1 | AB53: 1 | AC53: -1 | AD53: 2 | AE53: 2 | AF53: -2 | AG53: 1 | AH53: -1 | AI53: 1 | AJ53: -1 | AK53: -2 | AL53: -1 | AM53: 1 | AN53: 1 | AO53: 1 | AP53: -1 | AQ53: 1 | AR53: -1 | AS53: -1 | AT53: 2 | AU53: 1 | AV53: 1 | AW53: -1 | AX53: 1 | AY53: 1 | AZ53: 2 | BA53: -1 | BB53: 1 | BC53: 1 | BD53: 1 | BE53: -2 | BF53: -1 | BG53: -1 | BH53: 2 | BI53: 1 | BJ53: 1 | BK53: -1 | BL53: 2 | BM53: 1 | BN53: 1 | BO53: 2 | BP53: -1 | BQ53: 1 | BR53: -2 | BS53: -1 | BT53: 2 | BU53: 2 | BV53: -1 | BW53: 2 | BX53: 1 | BY53: -1 | BZ53: -1 | CA53: -4 | CB53: 1 | CC53: 1 | CD53: -1 | CE53: 1 | CF53: -2 | CG53: 1 | CH53: 2 | CI53: -1 | CJ53: -1 | CK53: -1 | CL53: 1 | CM53: -1 | CN53: 1 | CO53: -1 | CP53: 1 | CQ53: -2 | CR53: 1 | CS53: 1 | CT53: -1 | CU53: -1 | CV53: -1 | CW53: -1 | CX53: 2 | CY53: -1 | CZ53: 1 | DA53: -1 | DB53: 4 | DC53: 1 | DD53: -1 | DE53: 1 | DF53: -1 | DG53: 1 | DH53: -1 | DI53: -1 | DJ53: 2 | DK53: 1 | DL53: -1 | DM53: 1 | DN53: -2 | DO53: 1 | DP53: 1 | DQ53: -2 | DR53: -1 | DS53: -1 | DT53: -1 | DU53: 1 | DV53: 1
A54: 1 | B54: 1 | C54: 1 | D54: 1 | E54: -1 | F54: 1 | G54: 1 | H54: 1 | I54: 2 | J54: 2 | K54: -1 | L54: 2 | M54: -1 | N54: -1 | O54: -2 | P54: -2 | Q54: -1 | R54: -1 | S54: -1 | T54: 1 | U54: -2 | V54: 2 | W54: 1 | X54: 1 | Y54: 1 | Z54: 1 | AA54: -1 | AB54: -1 | AC54: -1 | AD54: 1 | AE54: 1 | AF54: -1 | AG54: 2 | AH54: 1 | AI54: 1 | AJ54: 1 | AK54: -1 | AL54: -1 | AM54: 1 | AN54: 1 | AO54: -1 | AP54: -1 | AQ54: 1 | AR54: 2 | AS54: -1 | AT54: 1 | AU54: -1 | AV54: -1 | AW54: -1 | AX54: -1 | AY54: 1 | AZ54: 1 | BA54: -1 | BB54: 1 | BC54: -2 | BD54: -1 | BE54: 1 | BF54: -1 | BG54: -1 | BH54: -1 | BI54: 1 | BJ54: -1 | BK54: 1 | BL54: 1 | BM54: 2 | BN54: -1 | BO54: 1 | BP54: -1 | BQ54: -1 | BR54: -1 | BS54: 1 | BT54: 4 | BU54: 1 | BV54: -1 | BW54: 2 | BX54: -1 | BY54: 1 | BZ54: -1 | CA54: -4 | CB54: -1 | CC54: 1 | CD54: -1 | CE54: -1 | CF54: -2 | CG54: 2 | CH54: 1 | CI54: 1 | CJ54: -1 | CK54: 1 | CL54: -1 | CM54: -1 | CN54: 1 | CO54: 1 | CP54: -1 | CQ54: -1 | CR54: 2 | CS54: -1 | CT54: 1 | CU54: 1 | CV54: -1 | CW54: -1 | CX54: 1 | CY54: 1 | CZ54: 1 | DA54: 1 | DB54: 1 | DC54: -1 | DD54: -1 | DE54: 1 | DF54: 1 | DG54: 1 | DH54: 1 | DI54: 1 | DJ54: 1 | DK54: 1 | DL54: -2 | DM54: 1 | DN54: 1 | DO54: 1 | DP54: -1 | DQ54: -2 | DR54: -1 | DS54: -1 | DT54: -1 | DU54: -1 | DV54: 1
A55: 1 | B55: -1 | C55: 1 | D55: 1 | E55: -1 | F55: -1 | G55: -1 | H55: -1 | I55: 1 | J55: -1 | K55: -1 | L55: -1 | M55: 1 | N55: 1 | O55: 1 | P55: 1 | Q55: 1 | R55: -1 | S55: -1 | T55: 1 | U55: 1 | V55: 1 | W55: 1 | X55: -1 | Y55: -1 | Z55: -1 | AA55: 1 | AB55: 1 | AC55: -1 | AD55: -1 | AE55: 1 | AF55: 1 | AG55: -2 | AH55: 1 | AI55: 1 | AJ55: 1 | AK55: -1 | AL55: 1 | AM55: 1 | AN55: -1 | AO55: 1 | AP55: -1 | AQ55: 1 | AR55: -1 | AS55: -1 | AT55: -1 | AU55: -1 | AV55: 1 | AW55: 1 | AX55: 1 | AY55: -1 | AZ55: -1 | BA55: -1 | BB55: -1 | BC55: 1 | BD55: 1 | BE55: 1 | BF55: -1 | BG55: 1 | BH55: 1 | BI55: 1 | BJ55: -1 | BK55: 1 | BL55: 1 | BM55: 1 | BN55: 1 | BO55: 1 | BP55: -1 | BQ55: 1 | BR55: 1 | BS55: 1 | BT55: -1 | BU55: 1 | BV55: -1 | BW55: -1 | BX55: 1 | BY55: 1 | BZ55: -1 | CA55: 1 | CB55: 1 | CC55: 1 | CD55: 1 | CE55: 1 | CF55: 1 | CG55: -1 | CH55: -1 | CI55: -1 | CJ55: 1 | CK55: -1 | CL55: -1 | CM55: 1 | CN55: -1 | CO55: 1 | CP55: 1 | CQ55: -1 | CR55: -1 | CS55: 1 | CT55: 1 | CU55: -1 | CV55: -1 | CW55: -1 | CX55: 1 | CY55: 1 | CZ55: 1 | DA55: 1 | DB55: 1 | DC55: 1 | DD55: 1 | DE55: 1 | DF55: -1 | DG55: 1 | DH55: -1 | DI55: -1 | DJ55: -1 | DK55: 1 | DL55: 1 | DM55: -1 | DN55: 1 | DO55: -1 | DP55: -1 | DQ55: 1 | DR55: -1 | DS55: 1 | DT55: -1 | DU55: -1 | DV55: -1
A56: 1 | B56: -1 | C56: 1 | D56: 1 | E56: -1 | F56: 1 | G56: -1 | H56: 1 | I56: 1 | J56: -1 | K56: 1 | L56: 1 | M56: -1 | N56: -1 | O56: -1 | P56: -1 | Q56: 1 | R56: 1 | S56: -1 | T56: -1 | U56: -1 | V56: 1 | W56: 1 | X56: -1 | Y56: -1 | Z56: 1 | AA56: 1 | AB56: 1 | AC56: 1 | AD56: 1 | AE56: -1 | AF56: 1 | AG56: -1 | AH56: 1 | AI56: -1 | AJ56: -1 | AK56: -1 | AL56: 1 | AM56: -1 | AN56: 1 | AO56: 1 | AP56: 1 | AQ56: 1 | AR56: -1 | AS56: -1 | AT56: -1 | AU56: 1 | AV56: -1 | AW56: 1 | AX56: -1 | AY56: -1 | AZ56: 1 | BA56: -1 | BB56: 1 | BC56: 1 | BD56: 1 | BE56: 1 | BF56: -1 | BG56: 1 | BH56: 1 | BI56: 1 | BJ56: 1 | BK56: -1 | BL56: -1 | BM56: 1 | BN56: -1 | BO56: 1 | BP56: -1 | BQ56: -1 | BR56: -1 | BS56: 1 | BT56: -1 | BU56: -1 | BV56: -1 | BW56: -1 | BX56: 1 | BY56: -1 | BZ56: -1 | CA56: -1 | CB56: 1 | CC56: -1 | CD56: 1 | CE56: -1 | CF56: -1 | CG56: 1 | CH56: 1 | CI56: 1 | CJ56: -1 | CK56: -1 | CL56: -1 | CM56: 1 | CN56: -1 | CO56: 1 | CP56: 1 | CQ56: -1 | CR56: 1 | CS56: 1 | CT56: -1 | CU56: 1 | CV56: 1 | CW56: -1 | CX56: 1 | CY56: 1 | CZ56: -1 | DA56: 1 | DB56: -1 | DC56: 1 | DD56: 1 | DE56: -1 | DF56: -1 | DG56: -1 | DH56: 1 | DI56: 1 | DJ56: -1 | DK56: 1 | DL56: -1 | DM56: -1 | DN56: 1 | DO56: -1 | DP56: -1 | DQ56: -1 | DR56: -1 | DS56: 1 | DT56: 1 | DU56: -1 | DV56: -1
A57: 1 | B57: -1 | C57: 1 | D57: -1 | E57: 1 | F57: -1 | G57: 1 | H57: -1 | I57: 1 | J57: -1 | K57: -1 | L57: 1 | M57: 1 | N57: -1 | O57: -1 | P57: 1 | Q57: -1 | R57: 1 | S57: -1 | T57: 1 | U57: 1 | V57: 1 | W57: -1 | X57: -1 | Y57: -1 | Z57: -1 | AA57: -1 | AB57: 1 | AC57: -1 | AD57: 1 | AE57: -1 | AF57: 1 | AG57: -1 | AH57: 1 | AI57: -1 | AJ57: -1 | AK57: -1 | AL57: -1 | AM57: -1 | AN57: -1 | AO57: 1 | AP57: -1 | AQ57: 1 | AR57: 1 | AS57: -1 | AT57: -1 | AU57: -1 | AV57: -1 | AW57: -1 | AX57: 1 | AY57: -1 | AZ57: 1 | BA57: 1 | BB57: -1 | BC57: -1 | BD57: 1 | BE57: -1 | BF57: -1 | BG57: 1 | BH57: 1 | BI57: -1 | BJ57: -1 | BK57: 1 | BL57: 1 | BM57: 1 | BN57: 1 | BO57: 1 | BP57: 1 | BQ57: 1 | BR57: -1 | BS57: 1 | BT57: 1 | BU57: -1 | BV57: 1 | BW57: 1 | BX57: 1 | BY57: -1 | BZ57: -1 | CA57: 1 | CB57: -1 | CC57: -1 | CD57: 1 | CE57: -1 | CF57: -1 | CG57: 1 | CH57: 1 | CI57: 1 | CJ57: 1 | CK57: -1 | CL57: 1 | CM57: -1 | CN57: 1 | CO57: -1 | CP57: -1 | CQ57: -1 | CR57: 1 | CS57: 1 | CT57: -1 | CU57: 1 | CV57: 1 | CW57: -1 | CX57: -1 | CY57: 1 | CZ57: -1 | DA57: 1 | DB57: -1 | DC57: 1 | DD57: -1 | DE57: 1 | DF57: 1 | DG57: 1 | DH57: -1 | DI57: -1 | DJ57: 1 | DK57: 1 | DL57: -1 | DM57: 1 | DN57: -1 | DO57: 1 | DP57: 1 | DQ57: -1 | DR57: -1 | DS57: 1 | DT57: -1 | DU57: -1 | DV57: 1
A58: 1 | B58: -1 | C58: -1 | D58: -1 | E58: 1 | F58: 1 | G58: 1 | H58: -1 | I58: 1 | J58: -1 | K58: -1 | L58: -1 | M58: 1 | N58: -1 | O58: 1 | P58: -1 | Q58: 1 | R58: 1 | S58: -1 | T58: -1 | U58: -1 | V58: -1 | W58: 1 | X58: 1 | Y58: -1 | Z58: -1 | AA58: 1 | AB58: 1 | AC58: -1 | AD58: 1 | AE58: -1 | AF58: -1 | AG58: 1 | AH58: -1 | AI58: -1 | AJ58: 1 | AK58: -1 | AL58: -1 | AM58: 1 | AN58: -1 | AO58: 1 | AP58: 1 | AQ58: -1 | AR58: 1 | AS58: 1 | AT58: 1 | AU58: -1 | AV58: 1 | AW58: 1 | AX58: -1 | AY58: -1 | AZ58: -1 | BA58: 1 | BB58: 1 | BC58: 1 | BD58: -1 | BE58: -1 | BF58: -1 | BG58: 1 | BH58: 1 | BI58: -1 | BJ58: -1 | BK58: -1 | BL58: 1 | BM58: -1 | BN58: 1 | BO58: -1 | BP58: 1 | BQ58: 1 | BR58: -1 | BS58: 1 | BT58: 1 | BU58: 1 | BV58: -1 | BW58: -1 | BX58: -1 | BY58: 1 | BZ58: -1 | CA58: -1 | CB58: -1 | CC58: 1 | CD58: -1 | CE58: 1 | CF58: 1 | CG58: 1 | CH58: -1 | CI58: -1 | CJ58: 1 | CK58: -1 | CL58: 1 | CM58: 1 | CN58: -1 | CO58: 1 | CP58: 1 | CQ58: 1 | CR58: 1 | CS58: -1 | CT58: 1 | CU58: -1 | CV58: 1 | CW58: 1 | CX58: -1 | CY58: 1 | CZ58: -1 | DA58: -1 | DB58: -1 | DC58: 1 | DD58: -1 | DE58: -1 | DF58: -1 | DG58: 1 | DH58: 1 | DI58: 1 | DJ58: 1 | DK58: 1 | DL58: 1 | DM58: -1 | DN58: -1 | DO58: 1 | DP58: -1 | DQ58: -1 | DR58: -1 | DS58: 1 | DT58: 1 | DU58: -1 | DV58: -1
A59: -1 | B59: -1 | C59: -1 | D59: 1 | E59: 1 | F59: -1 | G59: -1 | H59: -1 | I59: -1 | J59: -1 | K59: 1 | L59: 1 | M59: 1 | N59: 1 | O59: -1 | P59: 1 | Q59: 1 | R59: -1 | S59: 1 | T59: -1 | U59: -1 | V59: -1 | W59: -1 | X59: -1 | Y59: 1 | Z59: 1 | AA59: -1 | AB59: -1 | AC59: 1 | AD59: -1 | AE59: -1 | AF59: -1 | AG59: 1 | AH59: -1 | AI59: -1 | AJ59: 1 | AK59: -1 | AL59: -1 | AM59: -1 | AN59: -1 | AO59: -1 | AP59: 1 | AQ59: -1 | AR59: 1 | AS59: -1 | AT59: -1 | AU59: 1 | AV59: 1 | AW59: -1 | AX59: 1 | AY59: 1 | AZ59: -1 | BA59: -1 | BB59: 1 | BC59: -1 | BD59: 1 | BE59: 1 | BF59: -1 | BG59: 1 | BH59: 1 | BI59: 1 | BJ59: -1 | BK59: -1 | BL59: 1 | BM59: -1 | BN59: -1 | BO59: 1 | BP59: 1 | BQ59: -1 | BR59: 1 | BS59: 1 | BT59: 1 | BU59: 1 | BV59: 1 | BW59: -1 | BX59: 1 | BY59: 1 | BZ59: -1 | CA59: -1 | CB59: 1 | CC59: -1 | CD59: -1 | CE59: -1 | CF59: -1 | CG59: 1 | CH59: 1 | CI59: 1 | CJ59: 1 | CK59: -1 | CL59: -1 | CM59: -1 | CN59: -1 | CO59: 1 | CP59: 1 | CQ59: -1 | CR59: 1 | CS59: -1 | CT59: 1 | CU59: 1 | CV59: 1 | CW59: -1 | CX59: 1 | CY59: -1 | CZ59: 1 | DA59: -1 | DB59: 1 | DC59: 1 | DD59: -1 | DE59: -1 | DF59: 1 | DG59: 1 | DH59: -1 | DI59: -1 | DJ59: -1 | DK59: 1 | DL59: 1 | DM59: 1 | DN59: 1 | DO59: -1 | DP59: -1 | DQ59: 1 | DR59: 1 | DS59: -1 | DT59: -1 | DU59: 1 | DV59: 1
A60: 1 | B60: -1 | C60: -1 | D60: 1 | E60: 1 | F60: 1 | G60: -1 | H60: 1 | I60: 1 | J60: 1 | K60: -1 | L60: 1 | M60: 1 | N60: -1 | O60: 1 | P60: 1 | Q60: -1 | R60: -1 | S60: 1 | T60: -1 | U60: 1 | V60: -1 | W60: 1 | X60: 1 | Y60: 1 | Z60: 1 | AA60: -1 | AB60: -1 | AC60: -1 | AD60: 1 | AE60: 1 | AF60: -1 | AG60: -1 | AH60: -1 | AI60: -1 | AJ60: 1 | AK60: 1 | AL60: -1 | AM60: -1 | AN60: -1 | AO60: -1 | AP60: 1 | AQ60: 1 | AR60: -1 | AS60: 1 | AT60: 1 | AU60: -1 | AV60: -1 | AW60: -1 | AX60: -1 | AY60: 1 | AZ60: 1 | BA60: -1 | BB60: 1 | BC60: -1 | BD60: 1 | BE60: 1 | BF60: 1 | BG60: 1 | BH60: -1 | BI60: 1 | BJ60: 1 | BK60: -1 | BL60: 1 | BM60: 1 | BN60: -1 | BO60: -1 | BP60: 1 | BQ60: -1 | BR60: -1 | BS60: 1 | BT60: -1 | BU60: 1 | BV60: 1 | BW60: 1 | BX60: 1 | BY60: -1 | BZ60: 1 | CA60: -1 | CB60: -1 | CC60: -1 | CD60: 1 | CE60: -1 | CF60: -1 | CG60: 2 | CH60: 1 | CI60: -1 | CJ60: -1 | CK60: 1 | CL60: -1 | CM60: 1 | CN60: 1 | CO60: 1 | CP60: -1 | CQ60: 1 | CR60: -1 | CS60: -1 | CT60: 1 | CU60: -1 | CV60: 1 | CW60: -1 | CX60: 1 | CY60: 1 | CZ60: 1 | DA60: 1 | DB60: 1 | DC60: -1 | DD60: 1 | DE60: -1 | DF60: 1 | DG60: -1 | DH60: -1 | DI60: 1 | DJ60: -1 | DK60: -1 | DL60: 1 | DM60: -1 | DN60: 1 | DO60: -1 | DP60: 1 | DQ60: -1 | DR60: 1 | DS60: 1 | DT60: 1 | DU60: 1 | DV60: 1
A61: 1 | B61: 1 | C61: 1 | D61: 1 | E61: 1 | F61: -1 | G61: 1 | H61: -1 | I61: 1 | J61: -1 | K61: 1 | L61: -1 | M61: 1 | N61: 1 | O61: -1 | P61: 1 | Q61: -1 | R61: -1 | S61: -1 | T61: 1 | U61: -1 | V61: 1 | W61: 1 | X61: 1 | Y61: -1 | Z61: 1 | AA61: -1 | AB61: 1 | AC61: 1 | AD61: -1 | AE61: 1 | AF61: 1 | AG61: -1 | AH61: 1 | AI61: -1 | AJ61: 1 | AK61: 1 | AL61: 1 | AM61: 1 | AN61: 1 | AO61: -1 | AP61: 1 | AQ61: -1 | AR61: -1 | AS61: 1 | AT61: 1 | AU61: 1 | AV61: 1 | AW61: -1 | AX61: 1 | AY61: -1 | AZ61: -1 | BA61: -1 | BB61: -1 | BC61: -1 | BD61: -1 | BE61: 1 | BF61: -1 | BG61: 1 | BH61: -1 | BI61: -1 | BJ61: -1 | BK61: 1 | BL61: -1 | BM61: 1 | BN61: 1 | BO61: -1 | BP61: 1 | BQ61: 1 | BR61: 1 | BS61: 1 | BT61: -1 | BU61: 1 | BV61: 1 | BW61: 1 | BX61: -1 | BY61: 1 | BZ61: -1 | CA61: 1 | CB61: 1 | CC61: -1 | CD61: 1 | CE61: -1 | CF61: 1 | CG61: 1 | CH61: -1 | CI61: -1 | CJ61: -1 | CK61: -1 | CL61: 1 | CM61: -1 | CN61: -1 | CO61: -1 | CP61: -1 | CQ61: -1 | CR61: 1 | CS61: -1 | CT61: -1 | CU61: 1 | CV61: 1 | CW61: 1 | CX61: 1 | CY61: 1 | CZ61: 1 | DA61: 1 | DB61: -1 | DC61: 1 | DD61: -1 | DE61: 1 | DF61: -1 | DG61: -1 | DH61: 1 | DI61: -1 | DJ61: 1 | DK61: -1 | DL61: -1 | DM61: 1 | DN61: 1 | DO61: 1 | DP61: 1 | DQ61: 1 | DR61: -1 | DS61: 1 | DT61: 1 | DU61: -1 | DV61: -1
A62: -1 | B62: -1 | C62: -1 | D62: -1 | E62: -1 | F62: 1 | G62: 1 | H62: -1 | I62: 1 | J62: -1 | K62: -1 | L62: 1 | M62: -1 | N62: 1 | O62: -1 | P62: 1 | Q62: -1 | R62: 1 | S62: 1 | T62: 1 | U62: 1 | V62: -1 | W62: -1 | X62: -1 | Y62: -1 | Z62: -1 | AA62: -1 | AB62: 1 | AC62: 1 | AD62: -1 | AE62: 1 | AF62: -1 | AG62: -1 | AH62: -1 | AI62: -1 | AJ62: -1 | AK62: 1 | AL62: -1 | AM62: 1 | AN62: 1 | AO62: 1 | AP62: 1 | AQ62: 1 | AR62: -1 | AS62: -1 | AT62: 1 | AU62: 1 | AV62: -1 | AW62: -1 | AX62: 1 | AY62: 1 | AZ62: -1 | BA62: -1 | BB62: 1 | BC62: -1 | BD62: -1 | BE62: -1 | BF62: -1 | BG62: 1 | BH62: 1 | BI62: -1 | BJ62: 1 | BK62: -1 | BL62: -1 | BM62: -1 | BN62: -1 | BO62: -1 | BP62: -1 | BQ62: 1 | BR62: 1 | BS62: -1 | BT62: -1 | BU62: 1 | BV62: 1 | BW62: 1 | BX62: 1 | BY62: -1 | BZ62: -1 | CA62: -1 | CB62: 1 | CC62: 1 | CD62: -1 | CE62: 1 | CF62: 1 | CG62: 1 | CH62: 1 | CI62: -1 | CJ62: 1 | CK62: -1 | CL62: 1 | CM62: -1 | CN62: 1 | CO62: -1 | CP62: 1 | CQ62: -1 | CR62: 1 | CS62: -1 | CT62: 1 | CU62: -1 | CV62: 1 | CW62: 1 | CX62: -1 | CY62: -1 | CZ62: -1 | DA62: -1 | DB62: 1 | DC62: 1 | DD62: 1 | DE62: -1 | DF62: -1 | DG62: -1 | DH62: 1 | DI62: 1 | DJ62: 1 | DK62: 1 | DL62: -1 | DM62: -1 | DN62: -1 | DO62: -1 | DP62: 1 | DQ62: 1 | DR62: 1 | DS62: -1 | DT62: -1 | DU62: 1 | DV62: -1
A63: -1 | B63: 1 | C63: 1 | D63: -1 | E63: -1 | F63: 1 | G63: -1 | H63: -1 | I63: -1 | J63: 1 | K63: 1 | L63: -1 | M63: 1 | N63: 1 | O63: -1 | P63: 1 | Q63: 1 | R63: 1 | S63: -1 | T63: -1 | U63: 1 | V63: -1 | W63: -1 | X63: 1 | Y63: -1 | Z63: 1 | AA63: -1 | AB63: 1 | AC63: -1 | AD63: 1 | AE63: -1 | AF63: -1 | AG63: 1 | AH63: 1 | AI63: 1 | AJ63: 1 | AK63: -1 | AL63: 1 | AM63: 1 | AN63: -1 | AO63: 1 | AP63: -1 | AQ63: 1 | AR63: -1 | AS63: -1 | AT63: -1 | AU63: -1 | AV63: -1 | AW63: -1 | AX63: -1 | AY63: -1 | AZ63: 1 | BA63: -1 | BB63: 1 | BC63: -1 | BD63: -1 | BE63: -1 | BF63: 1 | BG63: 1 | BH63: 1 | BI63: 1 | BJ63: 1 | BK63: 1 | BL63: -1 | BM63: -1 | BN63: -1 | BO63: 1 | BP63: 1 | BQ63: 1 | BR63: -1 | BS63: 1 | BT63: -1 | BU63: 1 | BV63: -1 | BW63: -1 | BX63: -1 | BY63: -1 | BZ63: 1 | CA63: -1 | CB63: -1 | CC63: -1 | CD63: -1 | CE63: -1 | CF63: 1 | CG63: 1 | CH63: -1 | CI63: -1 | CJ63: -1 | CK63: 1 | CL63: -1 | CM63: 1 | CN63: 1 | CO63: 1 | CP63: -1 | CQ63: 1 | CR63: 1 | CS63: -1 | CT63: 1 | CU63: -1 | CV63: 1 | CW63: -1 | CX63: 1 | CY63: -1 | CZ63: -1 | DA63: -1 | DB63: -2 | DC63: -1 | DD63: -1 | DE63: -1 | DF63: -1 | DG63: -1 | DH63: 1 | DI63: -1 | DJ63: 1 | DK63: 1 | DL63: 1 | DM63: -1 | DN63: 1 | DO63: -1 | DP63: 1 | DQ63: 1 | DR63: -1 | DS63: -1 | DT63: -1 | DU63: 1 | DV63: 1
A64: 1 | B64: -1 | C64: -1 | D64: -1 | E64: -1 | F64: 1 | G64: 1 | H64: -1 | I64: -1 | J64: 1 | K64: -1 | L64: -1 | M64: -1 | N64: 1 | O64: -1 | P64: 1 | Q64: -1 | R64: 1 | S64: 1 | T64: -1 | U64: -1 | V64: 2 | W64: -1 | X64: 1 | Y64: 1 | Z64: -2 | AA64: -1 | AB64: -1 | AC64: 1 | AD64: 1 | AE64: 2 | AF64: -1 | AG64: 1 | AH64: 1 | AI64: -1 | AJ64: -1 | AK64: -1 | AL64: 1 | AM64: 1 | AN64: 1 | AO64: -1 | AP64: -1 | AQ64: -1 | AR64: -1 | AS64: -1 | AT64: -1 | AU64: -1 | AV64: -1 | AW64: 1 | AX64: 1 | AY64: -1 | AZ64: -1 | BA64: -1 | BB64: 1 | BC64: 1 | BD64: -1 | BE64: -1 | BF64: 1 | BG64: 1 | BH64: -1 | BI64: 1 | BJ64: -1 | BK64: 1 | BL64: 1 | BM64: -1 | BN64: -1 | BO64: 1 | BP64: 1 | BQ64: 1 | BR64: -1 | BS64: 1 | BT64: 1 | BU64: 1 | BV64: 1 | BW64: 1 | BX64: -1 | BY64: -1 | BZ64: -1 | CA64: 2 | CB64: -1 | CC64: 1 | CD64: 1 | CE64: 1 | CF64: -1 | CG64: 1 | CH64: -1 | CI64: -1 | CJ64: -1 | CK64: -1 | CL64: -1 | CM64: -1 | CN64: -1 | CO64: -1 | CP64: 1 | CQ64: -1 | CR64: 1 | CS64: -1 | CT64: -1 | CU64: -1 | CV64: 1 | CW64: -1 | CX64: -1 | CY64: 1 | CZ64: -1 | DA64: -1 | DB64: 1 | DC64: 1 | DD64: 1 | DE64: -1 | DF64: 1 | DG64: 1 | DH64: -1 | DI64: 1 | DJ64: -1 | DK64: -1 | DL64: 1 | DM64: 1 | DN64: 1 | DO64: -1 | DP64: 1 | DQ64: -1 | DR64: -1 | DS64: -1 | DT64: 1 | DU64: 1 | DV64: -1
A65: 1 | B65: -1 | C65: -1 | D65: -1 | E65: 1 | F65: -1 | G65: 1 | H65: 1 | I65: 1 | J65: -1 | K65: 1 | L65: -1 | M65: 1 | N65: 1 | O65: 1 | P65: 1 | Q65: -1 | R65: 1 | S65: -1 | T65: 1 | U65: -1 | V65: 1 | W65: 1 | X65: 1 | Y65: 1 | Z65: 1 | AA65: -1 | AB65: -1 | AC65: 1 | AD65: 1 | AE65: 1 | AF65: 1 | AG65: 1 | AH65: 1 | AI65: -1 | AJ65: -1 | AK65: -1 | AL65: -1 | AM65: -1 | AN65: 1 | AO65: 1 | AP65: 1 | AQ65: 2 | AR65: 1 | AS65: 1 | AT65: -1 | AU65: 1 | AV65: -1 | AW65: -1 | AX65: 1 | AY65: -1 | AZ65: -1 | BA65: 1 | BB65: 1 | BC65: -1 | BD65: 1 | BE65: 1 | BF65: 1 | BG65: 1 | BH65: -1 | BI65: -1 | BJ65: 1 | BK65: -1 | BL65: 1 | BM65: 1 | BN65: 1 | BO65: -2 | BP65: -1 | BQ65: 1 | BR65: -1 | BS65: -1 | BT65: -1 | BU65: -1 | BV65: -1 | BW65: -1 | BX65: 1 | BY65: -1 | BZ65: -1 | CA65: -1 | CB65: 1 | CC65: 1 | CD65: -1 | CE65: 1 | CF65: 1 | CG65: 1 | CH65: -1 | CI65: -1 | CJ65: -1 | CK65: -1 | CL65: 1 | CM65: 1 | CN65: 1 | CO65: 1 | CP65: -1 | CQ65: -1 | CR65: -1 | CS65: 1 | CT65: 1 | CU65: -1 | CV65: -1 | CW65: 1 | CX65: 1 | CY65: -1 | CZ65: -1 | DA65: -1 | DB65: 2 | DC65: 1 | DD65: 1 | DE65: -1 | DF65: 1 | DG65: -1 | DH65: -1 | DI65: 1 | DJ65: 1 | DK65: 1 | DL65: 1 | DM65: -1 | DN65: 1 | DO65: 1 | DP65: -1 | DQ65: 1 | DR65: 1 | DS65: 1 | DT65: 1 | DU65: 1 | DV65: -1
A66: 1 | B66: 1 | C66: 1 | D66: -1 | E66: 1 | F66: -1 | G66: -1 | H66: 1 | I66: 1 | J66: 1 | K66: -1 | L66: 1 | M66: 1 | N66: 1 | O66: -1 | P66: 1 | Q66: 1 | R66: -1 | S66: 1 | T66: -1 | U66: -1 | V66: 4 | W66: -1 | X66: -1 | Y66: -1 | Z66: -1 | AA66: -1 | AB66: 1 | AC66: -1 | AD66: 1 | AE66: 1 | AF66: -1 | AG66: 1 | AH66: -1 | AI66: 1 | AJ66: -1 | AK66: 1 | AL66: -1 | AM66: 1 | AN66: -1 | AO66: 1 | AP66: -1 | AQ66: 1 | AR66: -1 | AS66: -1 | AT66: -1 | AU66: -1 | AV66: 1 | AW66: -1 | AX66: 1 | AY66: 1 | AZ66: 1 | BA66: -1 | BB66: 1 | BC66: -1 | BD66: 1 | BE66: -1 | BF66: 1 | BG66: -1 | BH66: 1 | BI66: -1 | BJ66: -1 | BK66: -1 | BL66: 2 | BM66: -1 | BN66: -1 | BO66: -1 | BP66: -1 | BQ66: -1 | BR66: 1 | BS66: 1 | BT66: -1 | BU66: -1 | BV66: 1 | BW66: -1 | BX66: -1 | BY66: 1 | BZ66: -1 | CA66: 2 | CB66: 1 | CC66: 1 | CD66: -1 | CE66: -1 | CF66: 1 | CG66: -1 | CH66: -1 | CI66: 1 | CJ66: 1 | CK66: -1 | CL66: 1 | CM66: 1 | CN66: 1 | CO66: 1 | CP66: 1 | CQ66: -1 | CR66: -1 | CS66: -1 | CT66: -1 | CU66: -1 | CV66: -1 | CW66: -1 | CX66: 1 | CY66: -1 | CZ66: -1 | DA66: -1 | DB66: 1 | DC66: 1 | DD66: -1 | DE66: -1 | DF66: -1 | DG66: -1 | DH66: 1 | DI66: -1 | DJ66: -1 | DK66: -1 | DL66: -1 | DM66: 1 | DN66: -1 | DO66: 1 | DP66: -1 | DQ66: -1 | DR66: -1 | DS66: -1 | DT66: -1 | DU66: -1 | DV66: 1
A67: 1 | B67: -1 | C67: 1 | D67: 1 | E67: 1 | F67: 1 | G67: 1 | H67: 1 | I67: 1 | J67: -1 | K67: -1 | L67: 1 | M67: 1 | N67: -1 | O67: 1 | P67: 1 | Q67: -1 | R67: 1 | S67: 1 | T67: -1 | U67: -1 | V67: 2 | W67: 1 | X67: 1 | Y67: -1 | Z67: 1 | AA67: 1 | AB67: 1 | AC67: -1 | AD67: -1 | AE67: -1 | AF67: -1 | AG67: -1 | AH67: -1 | AI67: -1 | AJ67: -1 | AK67: 1 | AL67: 1 | AM67: 1 | AN67: 1 | AO67: -1 | AP67: -1 | AQ67: 1 | AR67: -1 | AS67: -1 | AT67: 1 | AU67: -1 | AV67: 1 | AW67: 1 | AX67: 1 | AY67: -1 | AZ67: -1 | BA67: -1 | BB67: -1 | BC67: 1 | BD67: -1 | BE67: -1 | BF67: 1 | BG67: -1 | BH67: 1 | BI67: 1 | BJ67: 1 | BK67: 1 | BL67: -1 | BM67: -1 | BN67: -1 | BO67: -1 | BP67: -1 | BQ67: -1 | BR67: -1 | BS67: 1 | BT67: 1 | BU67: -1 | BV67: -1 | BW67: -1 | BX67: 1 | BY67: 1 | BZ67: -1 | CA67: -1 | CB67: -1 | CC67: -1 | CD67: -1 | CE67: 1 | CF67: 1 | CG67: -1 | CH67: 1 | CI67: 1 | CJ67: -1 | CK67: -1 | CL67: 1 | CM67: -1 | CN67: 1 | CO67: -1 | CP67: 1 | CQ67: 1 | CR67: 1 | CS67: -1 | CT67: 1 | CU67: -1 | CV67: -1 | CW67: 1 | CX67: -1 | CY67: -1 | CZ67: 1 | DA67: -1 | DB67: -1 | DC67: -1 | DD67: -1 | DE67: -1 | DF67: -1 | DG67: 1 | DH67: -1 | DI67: 1 | DJ67: 1 | DK67: 1 | DL67: 1 | DM67: 1 | DN67: 1 | DO67: -1 | DP67: 1 | DQ67: 1 | DR67: 1 | DS67: -1 | DT67: -1 | DU67: -1 | DV67: -1
A68: 1 | B68: 1 | C68: 1 | D68: -1 | E68: 1 | F68: 1 | G68: 1 | H68: -1 | I68: -1 | J68: 1 | K68: -1 | L68: 1 | M68: 1 | N68: 1 | O68: -1 | P68: 1 | Q68: 1 | R68: 1 | S68: -1 | T68: -1 | U68: 1 | V68: -2 | W68: -1 | X68: -1 | Y68: -1 | Z68: -1 | AA68: 1 | AB68: 1 | AC68: 1 | AD68: 2 | AE68: -1 | AF68: 1 | AG68: 1 | AH68: 1 | AI68: 1 | AJ68: 1 | AK68: -1 | AL68: -1 | AM68: -1 | AN68: 1 | AO68: 1 | AP68: -1 | AQ68: 1 | AR68: 1 | AS68: -1 | AT68: -1 | AU68: 1 | AV68: -1 | AW68: -1 | AX68: -1 | AY68: 1 | AZ68: 1 | BA68: -1 | BB68: -1 | BC68: -1 | BD68: -1 | BE68: -1 | BF68: 1 | BG68: -1 | BH68: -1 | BI68: -1 | BJ68: -1 | BK68: -1 | BL68: 1 | BM68: -1 | BN68: -1 | BO68: 1 | BP68: 1 | BQ68: -1 | BR68: 1 | BS68: 1 | BT68: 1 | BU68: -1 | BV68: 1 | BW68: -1 | BX68: -1 | BY68: -1 | BZ68: 1 | CA68: 1 | CB68: -1 | CC68: -1 | CD68: 1 | CE68: 1 | CF68: -1 | CG68: 1 | CH68: 1 | CI68: -1 | CJ68: 1 | CK68: 1 | CL68: 1 | CM68: 1 | CN68: -1 | CO68: 1 | CP68: 1 | CQ68: -1 | CR68: -1 | CS68: -1 | CT68: -1 | CU68: -1 | CV68: 1 | CW68: 1 | CX68: -1 | CY68: 1 | CZ68: 1 | DA68: -1 | DB68: -1 | DC68: 1 | DD68: 1 | DE68: -1 | DF68: -1 | DG68: 1 | DH68: -1 | DI68: -1 | DJ68: -1 | DK68: 1 | DL68: 1 | DM68: -1 | DN68: 1 | DO68: -1 | DP68: 1 | DQ68: -1 | DR68: 1 | DS68: -1 | DT68: -1 | DU68: 1 | DV68: -1
A69: 1 | B69: -1 | C69: -1 | D69: 1 | E69: -1 | F69: 1 | G69: -1 | H69: -1 | I69: 1 | J69: -1 | K69: -1 | L69: -1 | M69: 1 | N69: -1 | O69: 1 | P69: 1 | Q69: -1 | R69: -1 | S69: -1 | T69: -1 | U69: -1 | V69: 1 | W69: -1 | X69: -2 | Y69: 1 | Z69: -1 | AA69: 1 | AB69: 1 | AC69: -1 | AD69: -1 | AE69: -1 | AF69: 1 | AG69: -1 | AH69: -1 | AI69: 1 | AJ69: -1 | AK69: -1 | AL69: -1 | AM69: -1 | AN69: -1 | AO69: 1 | AP69: -1 | AQ69: 1 | AR69: -1 | AS69: -1 | AT69: 1 | AU69: -1 | AV69: 1 | AW69: 1 | AX69: -1 | AY69: 1 | AZ69: -1 | BA69: -1 | BB69: -1 | BC69: -1 | BD69: -1 | BE69: -2 | BF69: -1 | BG69: 1 | BH69: 1 | BI69: -1 | BJ69: -1 | BK69: -1 | BL69: 1 | BM69: 1 | BN69: -1 | BO69: -1 | BP69: -1 | BQ69: -1 | BR69: 1 | BS69: 1 | BT69: 1 | BU69: -1 | BV69: 1 | BW69: -1 | BX69: -2 | BY69: -1 | BZ69: -1 | CA69: 1 | CB69: 1 | CC69: 1 | CD69: -1 | CE69: 1 | CF69: -1 | CG69: 1 | CH69: -1 | CI69: 1 | CJ69: -1 | CK69: 1 | CL69: 1 | CM69: -1 | CN69: -1 | CO69: -1 | CP69: 1 | CQ69: -1 | CR69: 1 | CS69: -1 | CT69: -1 | CU69: -1 | CV69: -1 | CW69: 1 | CX69: -1 | CY69: 1 | CZ69: 1 | DA69: -1 | DB69: 2 | DC69: 1 | DD69: 1 | DE69: 1 | DF69: -1 | DG69: -1 | DH69: -1 | DI69: -1 | DJ69: 1 | DK69: 1 | DL69: -1 | DM69: 1 | DN69: 1 | DO69: -2 | DP69: 1 | DQ69: -1 | DR69: 1 | DS69: 1 | DT69: -1 | DU69: 1 | DV69: -1
A70: 1 | B70: -1 | C70: 1 | D70: -1 | E70: 1 | F70: -1 | G70: 1 | H70: 1 | I70: 1 | J70: -1 | K70: 1 | L70: 1 | M70: -1 | N70: -1 | O70: 1 | P70: 1 | Q70: 1 | R70: -1 | S70: -1 | T70: 1 | U70: 1 | V70: 4 | W70: 1 | X70: -1 | Y70: 1 | Z70: -1 | AA70: -1 | AB70: 1 | AC70: 1 | AD70: -1 | AE70: 1 | AF70: -1 | AG70: -1 | AH70: -2 | AI70: 1 | AJ70: -1 | AK70: 1 | AL70: 1 | AM70: -1 | AN70: -1 | AO70: -1 | AP70: -1 | AQ70: -1 | AR70: -1 | AS70: 1 | AT70: 1 | AU70: 1 | AV70: -1 | AW70: 1 | AX70: -1 | AY70: 1 | AZ70: 1 | BA70: 1 | BB70: 1 | BC70: -1 | BD70: 1 | BE70: 1 | BF70: 1 | BG70: 1 | BH70: 1 | BI70: -1 | BJ70: -1 | BK70: -1 | BL70: 1 | BM70: -1 | BN70: 1 | BO70: -1 | BP70: -1 | BQ70: -1 | BR70: -1 | BS70: -1 | BT70: -1 | BU70: -1 | BV70: -1 | BW70: -1 | BX70: -1 | BY70: 1 | BZ70: -1 | CA70: 1 | CB70: -1 | CC70: 1 | CD70: 1 | CE70: -1 | CF70: 1 | CG70: -1 | CH70: -1 | CI70: 1 | CJ70: 1 | CK70: -1 | CL70: 1 | CM70: -1 | CN70: 1 | CO70: 1 | CP70: -1 | CQ70: -1 | CR70: -1 | CS70: -1 | CT70: -1 | CU70: 1 | CV70: 1 | CW70: -1 | CX70: 1 | CY70: 1 | CZ70: 1 | DA70: 1 | DB70: -1 | DC70: 1 | DD70: 1 | DE70: 1 | DF70: 1 | DG70: -1 | DH70: -1 | DI70: 1 | DJ70: -1 | DK70: -1 | DL70: 1 | DM70: -1 | DN70: 1 | DO70: -2 | DP70: 1 | DQ70: 1 | DR70: -1 | DS70: 1 | DT70: -1 | DU70: -1 | DV70: -1
A71: -1 | B71: 1 | C71: 1 | D71: -1 | E71: -1 | F71: 1 | G71: -1 | H71: 1 | I71: 1 | J71: 1 | K71: 1 | L71: -1 | M71: -1 | N71: -1 | O71: -1 | P71: 1 | Q71: -1 | R71: 1 | S71: 1 | T71: 1 | U71: -1 | V71: 4 | W71: 1 | X71: 1 | Y71: -1 | Z71: 1 | AA71: -1 | AB71: 1 | AC71: -1 | AD71: -1 | AE71: -1 | AF71: 1 | AG71: 1 | AH71: -2 | AI71: 1 | AJ71: 1 | AK71: 1 | AL71: 1 | AM71: 1 | AN71: 1 | AO71: 1 | AP71: -1 | AQ71: -1 | AR71: 1 | AS71: 1 | AT71: 1 | AU71: 1 | AV71: 1 | AW71: 1 | AX71: 1 | AY71: -1 | AZ71: -1 | BA71: -1 | BB71: 1 | BC71: -1 | BD71: 1 | BE71: -1 | BF71: 1 | BG71: -1 | BH71: 1 | BI71: 1 | BJ71: -1 | BK71: -1 | BL71: 1 | BM71: 1 | BN71: 1 | BO71: 1 | BP71: 1 | BQ71: -1 | BR71: 1 | BS71: -1 | BT71: 1 | BU71: 1 | BV71: -1 | BW71: 1 | BX71: -1 | BY71: -1 | BZ71: -2 | CA71: -1 | CB71: -1 | CC71: 1 | CD71: 1 | CE71: -1 | CF71: 1 | CG71: 1 | CH71: -1 | CI71: 1 | CJ71: 1 | CK71: -1 | CL71: -1 | CM71: -1 | CN71: 1 | CO71: -1 | CP71: 1 | CQ71: 1 | CR71: 1 | CS71: 1 | CT71: -1 | CU71: -1 | CV71: 1 | CW71: 1 | CX71: -1 | CY71: 1 | CZ71: 1 | DA71: -1 | DB71: -1 | DC71: 1 | DD71: 1 | DE71: 1 | DF71: -1 | DG71: 1 | DH71: 1 | DI71: 1 | DJ71: -1 | DK71: -1 | DL71: -1 | DM71: 1 | DN71: 1 | DO71: -1 | DP71: -1 | DQ71: 1 | DR71: -1 | DS71: -1 | DT71: -1 | DU71: -1 | DV71: -2
A72: -1 | B72: -1 | C72: 1 | D72: -1 | E72: 1 | F72: -1 | G72: 1 | H72: -1 | I72: -1 | J72: -1 | K72: -1 | L72: -1 | M72: -1 | N72: -1 | O72: 1 | P72: 2 | Q72: 1 | R72: 1 | S72: 1 | T72: 1 | U72: -1 | V72: 4 | W72: -1 | X72: -1 | Y72: 1 | Z72: 1 | AA72: -1 | AB72: -1 | AC72: -1 | AD72: -2 | AE72: 1 | AF72: -1 | AG72: 1 | AH72: -1 | AI72: 1 | AJ72: -1 | AK72: -1 | AL72: -1 | AM72: 1 | AN72: -1 | AO72: 1 | AP72: -1 | AQ72: 1 | AR72: -1 | AS72: -1 | AT72: 1 | AU72: 1 | AV72: -1 | AW72: 1 | AX72: 1 | AY72: -1 | AZ72: -1 | BA72: 1 | BB72: 1 | BC72: 1 | BD72: -1 | BE72: 1 | BF72: 1 | BG72: 1 | BH72: 1 | BI72: 1 | BJ72: 1 | BK72: -1 | BL72: 1 | BM72: 1 | BN72: -1 | BO72: -1 | BP72: -1 | BQ72: 1 | BR72: -1 | BS72: -1 | BT72: -1 | BU72: 1 | BV72: -1 | BW72: -1 | BX72: 1 | BY72: -1 | BZ72: -1 | CA72: 1 | CB72: -1 | CC72: 1 | CD72: -1 | CE72: -1 | CF72: -1 | CG72: -1 | CH72: -1 | CI72: 1 | CJ72: 1 | CK72: -1 | CL72: 1 | CM72: 1 | CN72: -1 | CO72: -1 | CP72: -1 | CQ72: 1 | CR72: -1 | CS72: 1 | CT72: -1 | CU72: 1 | CV72: -1 | CW72: -1 | CX72: 1 | CY72: -1 | CZ72: 1 | DA72: -1 | DB72: 2 | DC72: 1 | DD72: -1 | DE72: 1 | DF72: -1 | DG72: 1 | DH72: 1 | DI72: -1 | DJ72: 1 | DK72: 1 | DL72: 1 | DM72: 1 | DN72: -1 | DO72: -1 | DP72: 1 | DQ72: -1 | DR72: -1 | DS72: 1 | DT72: -1 | DU72: 1 | DV72: -1
A73: 2 | B73: -1 | C73: -1 | D73: -1 | E73: -1 | F73: -1 | G73: -1 | H73: 1 | I73: -1 | J73: 1 | K73: -1 | L73: -1 | M73: -1 | N73: 1 | O73: 1 | P73: 1 | Q73: 1 | R73: 1 | S73: -1 | T73: 1 | U73: -2 | V73: 2 | W73: -1 | X73: -1 | Y73: -1 | Z73: -1 | AA73: -1 | AB73: 1 | AC73: 1 | AD73: -2 | AE73: -1 | AF73: 1 | AG73: 1 | AH73: -1 | AI73: 1 | AJ73: -1 | AK73: 1 | AL73: 1 | AM73: -1 | AN73: -1 | AO73: -1 | AP73: -1 | AQ73: 2 | AR73: -1 | AS73: -1 | AT73: -1 | AU73: -1 | AV73: -1 | AW73: -1 | AX73: -1 | AY73: -1 | AZ73: -1 | BA73: -1 | BB73: 1 | BC73: -1 | BD73: 1 | BE73: 1 | BF73: 1 | BG73: 1 | BH73: -1 | BI73: -1 | BJ73: 1 | BK73: -1 | BL73: -1 | BM73: 1 | BN73: -1 | BO73: -1 | BP73: -1 | BQ73: -1 | BR73: -1 | BS73: 1 | BT73: -1 | BU73: 1 | BV73: 1 | BW73: -1 | BX73: -1 | BY73: 1 | BZ73: 1 | CA73: 1 | CB73: 1 | CC73: -1 | CD73: -1 | CE73: -1 | CF73: 1 | CG73: 1 | CH73: -1 | CI73: 1 | CJ73: -1 | CK73: -1 | CL73: 1 | CM73: 1 | CN73: -1 | CO73: -1 | CP73: 1 | CQ73: -1 | CR73: -1 | CS73: 1 | CT73: -1 | CU73: -1 | CV73: 1 | CW73: -1 | CX73: 1 | CY73: -1 | CZ73: -1 | DA73: -1 | DB73: 1 | DC73: -1 | DD73: -1 | DE73: 1 | DF73: -1 | DG73: 1 | DH73: 1 | DI73: 1 | DJ73: 1 | DK73: 1 | DL73: -1 | DM73: -1 | DN73: -2 | DO73: 1 | DP73: 1 | DQ73: 2 | DR73: -1 | DS73: 1 | DT73: -1 | DU73: -1 | DV73: 1
A74: -1 | B74: 1 | C74: -1 | D74: -1 | E74: 1 | F74: -2 | G74: 1 | H74: 1 | I74: 1 | J74: -1 | K74: 1 | L74: 1 | M74: -1 | N74: 1 | O74: 1 | P74: -1 | Q74: 1 | R74: -1 | S74: -1 | T74: 1 | U74: -1 | V74: -2 | W74: -1 | X74: -1 | Y74: -1 | Z74: 1 | AA74: 1 | AB74: -1 | AC74: 1 | AD74: 1 | AE74: -1 | AF74: 1 | AG74: -1 | AH74: -1 | AI74: 1 | AJ74: 1 | AK74: 1 | AL74: 1 | AM74: -1 | AN74: 1 | AO74: 1 | AP74: 1 | AQ74: 4 | AR74: -1 | AS74: 1 | AT74: -1 | AU74: 1 | AV74: 1 | AW74: -1 | AX74: -1 | AY74: -1 | AZ74: 1 | BA74: 1 | BB74: -1 | BC74: -1 | BD74: 1 | BE74: -1 | BF74: -1 | BG74: 1 | BH74: -2 | BI74: 1 | BJ74: 2 | BK74: -1 | BL74: -1 | BM74: -1 | BN74: -1 | BO74: -1 | BP74: 1 | BQ74: 1 | BR74: -1 | BS74: -1 | BT74: -1 | BU74: -1 | BV74: -1 | BW74: 1 | BX74: -1 | BY74: 1 | BZ74: -1 | CA74: -1 | CB74: -1 | CC74: 1 | CD74: 1 | CE74: 1 | CF74: -1 | CG74: 2 | CH74: -1 | CI74: -1 | CJ74: 1 | CK74: -1 | CL74: -1 | CM74: 1 | CN74: 1 | CO74: 1 | CP74: -1 | CQ74: -1 | CR74: -1 | CS74: -1 | CT74: 1 | CU74: -1 | CV74: -1 | CW74: 1 | CX74: -1 | CY74: -1 | CZ74: -1 | DA74: -1 | DB74: 1 | DC74: -1 | DD74: -1 | DE74: -2 | DF74: 1 | DG74: -2 | DH74: -1 | DI74: 1 | DJ74: -1 | DK74: -1 | DL74: -1 | DM74: 1 | DN74: 1 | DO74: -1 | DP74: 1 | DQ74: 2 | DR74: -1 | DS74: -1 | DT74: 1 | DU74: -1 | DV74: -2
A75: 2 | B75: -1 | C75: -1 | D75: 1 | E75: 1 | F75: 1 | G75: 1 | H75: 1 | I75: 1 | J75: 1 | K75: -1 | L75: -1 | M75: -1 | N75: 1 | O75: 1 | P75: 2 | Q75: -1 | R75: 1 | S75: -1 | T75: 2 | U75: -1 | V75: -2 | W75: 1 | X75: -1 | Y75: 1 | Z75: 1 | AA75: 1 | AB75: 1 | AC75: 2 | AD75: 1 | AE75: -2 | AF75: -1 | AG75: -1 | AH75: -1 | AI75: 1 | AJ75: -1 | AK75: -1 | AL75: -1 | AM75: -1 | AN75: 1 | AO75: 1 | AP75: -2 | AQ75: 1 | AR75: -1 | AS75: 1 | AT75: -2 | AU75: 1 | AV75: 1 | AW75: -1 | AX75: -1 | AY75: -1 | AZ75: -1 | BA75: -1 | BB75: -1 | BC75: -1 | BD75: -1 | BE75: 1 | BF75: 2 | BG75: -2 | BH75: 1 | BI75: 1 | BJ75: 1 | BK75: -1 | BL75: -1 | BM75: -1 | BN75: -1 | BO75: 1 | BP75: 1 | BQ75: -1 | BR75: 1 | BS75: -1 | BT75: -1 | BU75: -1 | BV75: -1 | BW75: -1 | BX75: 1 | BY75: -1 | BZ75: -1 | CA75: 2 | CB75: -1 | CC75: 1 | CD75: 1 | CE75: 1 | CF75: -1 | CG75: 2 | CH75: -1 | CI75: -1 | CJ75: -1 | CK75: 1 | CL75: -1 | CM75: -1 | CN75: 1 | CO75: 1 | CP75: 1 | CQ75: 1 | CR75: -1 | CS75: 1 | CT75: 1 | CU75: 1 | CV75: 1 | CW75: 1 | CX75: -1 | CY75: -1 | CZ75: 1 | DA75: -1 | DB75: -1 | DC75: 1 | DD75: -1 | DE75: -1 | DF75: 1 | DG75: -1 | DH75: 1 | DI75: 1 | DJ75: 1 | DK75: -1 | DL75: 1 | DM75: 1 | DN75: -1 | DO75: -1 | DP75: -1 | DQ75: 1 | DR75: -1 | DS75: 1 | DT75: -1 | DU75: 1 | DV75: -2
A76: 2 | B76: 1 | C76: 1 | D76: 1 | E76: 1 | F76: 1 | G76: -1 | H76: -1 | I76: -2 | J76: 1 | K76: 1 | L76: 1 | M76: -1 | N76: -1 | O76: -1 | P76: 2 | Q76: 1 | R76: 1 | S76: 1 | T76: 1 | U76: -1 | V76: 2 | W76: 1 | X76: 1 | Y76: -2 | Z76: 1 | AA76: -1 | AB76: 1 | AC76: 1 | AD76: -1 | AE76: -2 | AF76: 1 | AG76: 1 | AH76: -1 | AI76: -1 | AJ76: 1 | AK76: 1 | AL76: -2 | AM76: -2 | AN76: -1 | AO76: 1 | AP76: -1 | AQ76: -1 | AR76: 1 | AS76: -1 | AT76: -1 | AU76: -1 | AV76: 1 | AW76: 2 | AX76: -1 | AY76: 1 | AZ76: 1 | BA76: 1 | BB76: -1 | BC76: 1 | BD76: 2 | BE76: -1 | BF76: 1 | BG76: -1 | BH76: 1 | BI76: 1 | BJ76: 1 | BK76: -1 | BL76: 1 | BM76: -1 | BN76: 1 | BO76: 1 | BP76: -1 | BQ76: 1 | BR76: -1 | BS76: -1 | BT76: -2 | BU76: -1 | BV76: -1 | BW76: -1 | BX76: -1 | BY76: -1 | BZ76: 1 | CA76: 1 | CB76: -1 | CC76: -1 | CD76: 1 | CE76: 1 | CF76: -1 | CG76: 1 | CH76: -1 | CI76: 1 | CJ76: -1 | CK76: -1 | CL76: -1 | CM76: -1 | CN76: -1 | CO76: -1 | CP76: -1 | CQ76: -1 | CR76: -1 | CS76: -1 | CT76: 1 | CU76: 1 | CV76: -1 | CW76: 1 | CX76: -1 | CY76: -1 | CZ76: -1 | DA76: -2 | DB76: 2 | DC76: -1 | DD76: -1 | DE76: 1 | DF76: 1 | DG76: -1 | DH76: -1 | DI76: 1 | DJ76: 1 | DK76: -1 | DL76: 1 | DM76: -1 | DN76: -1 | DO76: -1 | DP76: 1 | DQ76: 1 | DR76: -1 | DS76: -1 | DT76: -1 | DU76: -1 | DV76: -2
A77: -1 | B77: 1 | C77: 1 | D77: 1 | E77: 1 | F77: -1 | G77: 1 | H77: 2 | I77: 1 | J77: -2 | K77: 1 | L77: 2 | M77: -1 | N77: -1 | O77: -1 | P77: -1 | Q77: -1 | R77: -1 | S77: 1 | T77: 2 | U77: -1 | V77: -1 | W77: 1 | X77: 1 | Y77: -1 | Z77: -1 | AA77: 1 | AB77: 2 | AC77: 1 | AD77: 1 | AE77: -1 | AF77: 1 | AG77: 1 | AH77: -1 | AI77: 1 | AJ77: 1 | AK77: -1 | AL77: -2 | AM77: -1 | AN77: -1 | AO77: 1 | AP77: 1 | AQ77: -2 | AR77: -1 | AS77: 1 | AT77: 1 | AU77: 1 | AV77: 1 | AW77: 2 | AX77: 1 | AY77: -1 | AZ77: -1 | BA77: -1 | BB77: 1 | BC77: -1 | BD77: -1 | BE77: -1 | BF77: 1 | BG77: 1 | BH77: 1 | BI77: 1 | BJ77: 1 | BK77: -1 | BL77: 1 | BM77: 1 | BN77: -1 | BO77: 1 | BP77: -1 | BQ77: -1 | BR77: 1 | BS77: 1 | BT77: -1 | BU77: 1 | BV77: 1 | BW77: -1 | BX77: -1 | BY77: 1 | BZ77: -1 | CA77: 1 | CB77: 1 | CC77: -1 | CD77: -1 | CE77: 2 | CF77: -1 | CG77: -1 | CH77: -1 | CI77: 1 | CJ77: -1 | CK77: -1 | CL77: 1 | CM77: 1 | CN77: 2 | CO77: -2 | CP77: -1 | CQ77: 1 | CR77: -1 | CS77: 1 | CT77: 1 | CU77: -1 | CV77: -1 | CW77: 1 | CX77: 1 | CY77: 1 | CZ77: 1 | DA77: 1 | DB77: -1 | DC77: 1 | DD77: -1 | DE77: -1 | DF77: -1 | DG77: 1 | DH77: 1 | DI77: -1 | DJ77: -1 | DK77: -1 | DL77: -1 | DM77: 1 | DN77: 1 | DO77: -1 | DP77: 2 | DQ77: 1 | DR77: -1 | DS77: -1 | DT77: 1 | DU77: 2 | DV77: -1
A78: -1 | B78: -1 | C78: -1 | D78: -2 | E78: 1 | F78: 1 | G78: 2 | H78: 1 | I78: -1 | J78: -2 | K78: -1 | L78: 1 | M78: 1 | N78: 1 | O78: -1 | P78: 1 | Q78: 1 | R78: -1 | S78: -1 | T78: 1 | U78: -2 | V78: -1 | W78: 1 | X78: -1 | Y78: -1 | Z78: 2 | AA78: 1 | AB78: 2 | AC78: 1 | AD78: 1 | AE78: -1 | AF78: 1 | AG78: 1 | AH78: -1 | AI78: 1 | AJ78: 1 | AK78: -2 | AL78: -2 | AM78: 1 | AN78: -1 | AO78: 2 | AP78: -2 | AQ78: -4 | AR78: 1 | AS78: -1 | AT78: -1 | AU78: 1 | AV78: -1 | AW78: -1 | AX78: 2 | AY78: 1 | AZ78: -2 | BA78: -1 | BB78: 1 | BC78: 1 | BD78: 1 | BE78: 1 | BF78: -1 | BG78: 1 | BH78: 1 | BI78: -1 | BJ78: 1 | BK78: -2 | BL78: 1 | BM78: -1 | BN78: 1 | BO78: -2 | BP78: 1 | BQ78: 1 | BR78: 1 | BS78: 1 | BT78: 1 | BU78: -2 | BV78: 1 | BW78: -1 | BX78: 1 | BY78: 1 | BZ78: -1 | CA78: 1 | CB78: 1 | CC78: -1 | CD78: -1 | CE78: 1 | CF78: -1 | CG78: -2 | CH78: -1 | CI78: -1 | CJ78: -1 | CK78: -1 | CL78: -1 | CM78: -1 | CN78: 2 | CO78: -1 | CP78: -1 | CQ78: -1 | CR78: 1 | CS78: -1 | CT78: -1 | CU78: -1 | CV78: -1 | CW78: -1 | CX78: 1 | CY78: -1 | CZ78: 2 | DA78: -1 | DB78: -1 | DC78: -1 | DD78: -1 | DE78: 1 | DF78: 1 | DG78: 1 | DH78: 1 | DI78: 1 | DJ78: -1 | DK78: 1 | DL78: 1 | DM78: -1 | DN78: 1 | DO78: 1 | DP78: -1 | DQ78: 2 | DR78: -1 | DS78: -1 | DT78: -1 | DU78: -1 | DV78: -1
A79: 2 | B79: 1 | C79: 1 | D79: -2 | E79: 1 | F79: 1 | G79: -1 | H79: 1 | I79: -2 | J79: 1 | K79: -1 | L79: 1 | M79: -1 | N79: -1 | O79: -1 | P79: 1 | Q79: -1 | R79: 1 | S79: 1 | T79: 1 | U79: -1 | V79: 2 | W79: 1 | X79: -1 | Y79: -1 | Z79: 1 | AA79: -1 | AB79: 1 | AC79: -1 | AD79: -1 | AE79: 1 | AF79: 1 | AG79: -1 | AH79: -1 | AI79: 1 | AJ79: 1 | AK79: 2 | AL79: -1 | AM79: -2 | AN79: -1 | AO79: -1 | AP79: -2 | AQ79: 4 | AR79: -1 | AS79: 1 | AT79: 1 | AU79: -1 | AV79: 1 | AW79: 1 | AX79: -1 | AY79: -1 | AZ79: 1 | BA79: 1 | BB79: -1 | BC79: -1 | BD79: 1 | BE79: -1 | BF79: 1 | BG79: -1 | BH79: 1 | BI79: -1 | BJ79: 1 | BK79: 1 | BL79: 1 | BM79: 1 | BN79: -1 | BO79: -1 | BP79: -1 | BQ79: 1 | BR79: -1 | BS79: 1 | BT79: -1 | BU79: 1 | BV79: 1 | BW79: -1 | BX79: 1 | BY79: 1 | BZ79: -1 | CA79: 1 | CB79: 1 | CC79: 1 | CD79: 1 | CE79: 1 | CF79: -2 | CG79: 2 | CH79: -1 | CI79: -1 | CJ79: 1 | CK79: -1 | CL79: -1 | CM79: 1 | CN79: -1 | CO79: -1 | CP79: 1 | CQ79: 1 | CR79: 1 | CS79: -2 | CT79: -1 | CU79: 1 | CV79: 1 | CW79: -1 | CX79: -1 | CY79: -1 | CZ79: -1 | DA79: -1 | DB79: 2 | DC79: -1 | DD79: 1 | DE79: -1 | DF79: -1 | DG79: 1 | DH79: 1 | DI79: -1 | DJ79: -1 | DK79: 1 | DL79: 1 | DM79: -1 | DN79: 1 | DO79: -1 | DP79: -1 | DQ79: 1 | DR79: 1 | DS79: -1 | DT79: -1 | DU79: -1 | DV79: -1
A80: 1 | B80: 1 | C80: -1 | D80: 1 | E80: 1 | F80: 1 | G80: 1 | H80: 1 | I80: -1 | J80: -1 | K80: 1 | L80: -1 | M80: -1 | N80: 1 | O80: -1 | P80: -1 | Q80: 1 | R80: 1 | S80: -1 | T80: 1 | U80: -1 | V80: -1 | W80: -1 | X80: 1 | Y80: -1 | Z80: 1 | AA80: -2 | AB80: 1 | AC80: 1 | AD80: -1 | AE80: -1 | AF80: 2 | AG80: 1 | AH80: -1 | AI80: 1 | AJ80: 2 | AK80: 1 | AL80: -2 | AM80: -1 | AN80: 1 | AO80: 1 | AP80: -1 | AQ80: 1 | AR80: -1 | AS80: 1 | AT80: -1 | AU80: 1 | AV80: -1 | AW80: 2 | AX80: 1 | AY80: 1 | AZ80: 1 | BA80: -1 | BB80: 1 | BC80: -1 | BD80: 1 | BE80: 1 | BF80: 1 | BG80: -2 | BH80: -1 | BI80: 1 | BJ80: 1 | BK80: 1 | BL80: -1 | BM80: 1 | BN80: -1 | BO80: -1 | BP80: 1 | BQ80: -1 | BR80: -1 | BS80: 2 | BT80: 1 | BU80: -1 | BV80: 1 | BW80: -1 | BX80: 1 | BY80: 1 | BZ80: 1 | CA80: 2 | CB80: -1 | CC80: 1 | CD80: 1 | CE80: 2 | CF80: -1 | CG80: 2 | CH80: 1 | CI80: -1 | CJ80: -1 | CK80: 1 | CL80: -1 | CM80: 1 | CN80: 1 | CO80: -1 | CP80: -1 | CQ80: -1 | CR80: 1 | CS80: 1 | CT80: 1 | CU80: 1 | CV80: -1 | CW80: -1 | CX80: -1 | CY80: 1 | CZ80: -1 | DA80: -1 | DB80: 1 | DC80: -1 | DD80: -1 | DE80: -2 | DF80: -1 | DG80: -1 | DH80: -1 | DI80: 2 | DJ80: 1 | DK80: -1 | DL80: 1 | DM80: -1 | DN80: -1 | DO80: 2 | DP80: -1 | DQ80: 2 | DR80: 1 | DS80: 1 | DT80: -1 | DU80: -1 | DV80: -2
A81: 1 | B81: -1 | C81: -1 | D81: -1 | E81: -1 | F81: 1 | G81: 1 | H81: -1 | I81: 1 | J81: -1 | K81: -1 | L81: 1 | M81: -1 | N81: -1 | O81: -1 | P81: 2 | Q81: -1 | R81: 1 | S81: 1 | T81: 1 | U81: -1 | V81: -2 | W81: 1 | X81: 1 | Y81: -1 | Z81: -1 | AA81: -1 | AB81: 2 | AC81: 2 | AD81: -1 | AE81: 1 | AF81: 1 | AG81: 1 | AH81: -1 | AI81: 1 | AJ81: 1 | AK81: 1 | AL81: 1 | AM81: 1 | AN81: 1 | AO81: 2 | AP81: -1 | AQ81: 1 | AR81: -2 | AS81: -1 | AT81: -2 | AU81: 1 | AV81: -1 | AW81: 1 | AX81: -1 | AY81: -1 | AZ81: 1 | BA81: -1 | BB81: 1 | BC81: -2 | BD81: 1 | BE81: -1 | BF81: 1 | BG81: -1 | BH81: -1 | BI81: -1 | BJ81: 2 | BK81: 1 | BL81: -1 | BM81: 1 | BN81: -1 | BO81: -1 | BP81: 1 | BQ81: -1 | BR81: 2 | BS81: 1 | BT81: -1 | BU81: 1 | BV81: -1 | BW81: 1 | BX81: -1 | BY81: -1 | BZ81: 1 | CA81: 2 | CB81: -1 | CC81: -1 | CD81: 1 | CE81: -1 | CF81: -1 | CG81: 1 | CH81: 1 | CI81: -1 | CJ81: -1 | CK81: -1 | CL81: -1 | CM81: -1 | CN81: 1 | CO81: 1 | CP81: 1 | CQ81: -1 | CR81: 2 | CS81: 1 | CT81: 1 | CU81: -1 | CV81: -1 | CW81: -1 | CX81: -1 | CY81: 1 | CZ81: 1 | DA81: -1 | DB81: 1 | DC81: 1 | DD81: -1 | DE81: -2 | DF81: -1 | DG81: -1 | DH81: 1 | DI81: 1 | DJ81: 1 | DK81: -1 | DL81: -1 | DM81: -1 | DN81: -1 | DO81: -1 | DP81: 1 | DQ81: 1 | DR81: 1 | DS81: -1 | DT81: 1 | DU81: 1 | DV81: 1
A82: -2 | B82: 1 | C82: 1 | D82: -1 | E82: 1 | F82: 1 | G82: -1 | H82: -1 | I82: 1 | J82: -1 | K82: 1 | L82: -1 | M82: 1 | N82: 1 | O82: 1 | P82: -1 | Q82: 1 | R82: 1 | S82: 1 | T82: -1 | U82: -1 | V82: -1 | W82: -1 | X82: 2 | Y82: 1 | Z82: 1 | AA82: 1 | AB82: -1 | AC82: 1 | AD82: -1 | AE82: -1 | AF82: -1 | AG82: 2 | AH82: -1 | AI82: 1 | AJ82: -1 | AK82: 1 | AL82: -1 | AM82: -1 | AN82: 1 | AO82: -1 | AP82: -1 | AQ82: -1 | AR82: -1 | AS82: 1 | AT82: -2 | AU82: 1 | AV82: 1 | AW82: 1 | AX82: -1 | AY82: -1 | AZ82: 1 | BA82: -1 | BB82: -1 | BC82: -1 | BD82: 1 | BE82: 1 | BF82: 1 | BG82: 1 | BH82: 1 | BI82: 1 | BJ82: -1 | BK82: -1 | BL82: 1 | BM82: 1 | BN82: 1 | BO82: -1 | BP82: -1 | BQ82: 1 | BR82: -1 | BS82: 1 | BT82: -1 | BU82: 1 | BV82: -1 | BW82: 1 | BX82: 1 | BY82: -1 | BZ82: 1 | CA82: 1 | CB82: 1 | CC82: 1 | CD82: 1 | CE82: 1 | CF82: -2 | CG82: 2 | CH82: -1 | CI82: 1 | CJ82: 1 | CK82: 1 | CL82: -1 | CM82: -1 | CN82: -1 | CO82: -1 | CP82: 1 | CQ82: 1 | CR82: 1 | CS82: -1 | CT82: 1 | CU82: 1 | CV82: 2 | CW82: 2 | CX82: 1 | CY82: 1 | CZ82: 1 | DA82: 1 | DB82: -1 | DC82: -1 | DD82: 1 | DE82: 1 | DF82: 1 | DG82: -1 | DH82: 1 | DI82: 1 | DJ82: -1 | DK82: -1 | DL82: -1 | DM82: -1 | DN82: 1 | DO82: -1 | DP82: -1 | DQ82: -1 | DR82: 1 | DS82: -1 | DT82: 1 | DU82: -1 | DV82: -1
A83: -2 | B83: -1 | C83: -1 | D83: 1 | E83: -1 | F83: -1 | G83: 1 | H83: -1 | I83: 1 | J83: 1 | K83: 1 | L83: 2 | M83: -1 | N83: 1 | O83: -1 | P83: -1 | Q83: -1 | R83: 1 | S83: 1 | T83: 1 | U83: -1 | V83: 1 | W83: -1 | X83: -1 | Y83: -2 | Z83: -1 | AA83: 1 | AB83: 1 | AC83: 1 | AD83: -1 | AE83: 1 | AF83: -1 | AG83: 2 | AH83: 1 | AI83: 1 | AJ83: 1 | AK83: 2 | AL83: 1 | AM83: 1 | AN83: 1 | AO83: 1 | AP83: -1 | AQ83: 1 | AR83: 1 | AS83: -1 | AT83: -1 | AU83: 1 | AV83: 1 | AW83: 1 | AX83: 1 | AY83: 1 | AZ83: 1 | BA83: 1 | BB83: 1 | BC83: 1 | BD83: -1 | BE83: -1 | BF83: 1 | BG83: -1 | BH83: -1 | BI83: 1 | BJ83: 1 | BK83: -1 | BL83: 1 | BM83: 1 | BN83: -1 | BO83: -1 | BP83: 1 | BQ83: 1 | BR83: -1 | BS83: 1 | BT83: 1 | BU83: -1 | BV83: 1 | BW83: 2 | BX83: -1 | BY83: -1 | BZ83: 1 | CA83: 1 | CB83: -1 | CC83: 1 | CD83: 1 | CE83: 1 | CF83: 1 | CG83: 2 | CH83: -1 | CI83: -1 | CJ83: -2 | CK83: -1 | CL83: -1 | CM83: -1 | CN83: 1 | CO83: 1 | CP83: 1 | CQ83: 1 | CR83: -1 | CS83: 1 | CT83: -1 | CU83: -1 | CV83: -1 | CW83: 1 | CX83: -1 | CY83: -1 | CZ83: -1 | DA83: 1 | DB83: 1 | DC83: -2 | DD83: 1 | DE83: -1 | DF83: -1 | DG83: -1 | DH83: 1 | DI83: 1 | DJ83: -1 | DK83: -1 | DL83: -1 | DM83: 1 | DN83: -1 | DO83: -1 | DP83: 1 | DQ83: -2 | DR83: -1 | DS83: -1 | DT83: 1 | DU83: -1 | DV83: -1
A84: -2 | B84: 1 | C84: 1 | D84: -1 | E84: 1 | F84: 1 | G84: -1 | H84: -1 | I84: 1 | J84: -1 | K84: -1 | L84: 1 | M84: -1 | N84: -1 | O84: -1 | P84: 1 | Q84: 1 | R84: -1 | S84: -1 | T84: -1 | U84: -1 | V84: -1 | W84: 1 | X84: 1 | Y84: 1 | Z84: -1 | AA84: -1 | AB84: -1 | AC84: 1 | AD84: -1 | AE84: 1 | AF84: 1 | AG84: 2 | AH84: 1 | AI84: -1 | AJ84: 1 | AK84: -1 | AL84: -1 | AM84: 1 | AN84: 1 | AO84: 1 | AP84: 1 | AQ84: 1 | AR84: -1 | AS84: -1 | AT84: -1 | AU84: -1 | AV84: -1 | AW84: -1 | AX84: -1 | AY84: 1 | AZ84: 1 | BA84: 1 | BB84: 1 | BC84: -1 | BD84: 1 | BE84: 1 | BF84: 1 | BG84: -1 | BH84: -1 | BI84: 1 | BJ84: -1 | BK84: 1 | BL84: 2 | BM84: -1 | BN84: -1 | BO84: -2 | BP84: 1 | BQ84: 1 | BR84: -1 | BS84: 1 | BT84: 1 | BU84: -1 | BV84: 1 | BW84: 1 | BX84: 1 | BY84: -1 | BZ84: -1 | CA84: 1 | CB84: 1 | CC84: -1 | CD84: 1 | CE84: -1 | CF84: 1 | CG84: 1 | CH84: -1 | CI84: 1 | CJ84: 1 | CK84: -1 | CL84: 1 | CM84: -1 | CN84: 1 | CO84: 1 | CP84: -1 | CQ84: 1 | CR84: 1 | CS84: 1 | CT84: 1 | CU84: -1 | CV84: 1 | CW84: 1 | CX84: 1 | CY84: -2 | CZ84: -1 | DA84: 1 | DB84: -1 | DC84: -1 | DD84: -1 | DE84: -1 | DF84: -1 | DG84: -1 | DH84: 1 | DI84: 1 | DJ84: -1 | DK84: 1 | DL84: -1 | DM84: 1 | DN84: 1 | DO84: 1 | DP84: 1 | DQ84: 1 | DR84: 1 | DS84: 1 | DT84: -1 | DU84: 1 | DV84: 1
A85: 1 | B85: -1 | C85: 1 | D85: -1 | E85: -1 | F85: 1 | G85: -1 | H85: -1 | I85: -1 | J85: -1 | K85: -1 | L85: -1 | M85: 1 | N85: 1 | O85: 2 | P85: -1 | Q85: 1 | R85: -1 | S85: 1 | T85: 1 | U85: 1 | V85: 1 | W85: -1 | X85: 1 | Y85: -1 | Z85: 1 | AA85: 1 | AB85: 1 | AC85: 1 | AD85: -1 | AE85: -1 | AF85: 1 | AG85: -1 | AH85: -1 | AI85: -1 | AJ85: -1 | AK85: -1 | AL85: -1 | AM85: 1 | AN85: 1 | AO85: 1 | AP85: -1 | AQ85: 2 | AR85: -1 | AS85: 1 | AT85: -1 | AU85: -1 | AV85: 1 | AW85: 1 | AX85: 1 | AY85: -1 | AZ85: 1 | BA85: 1 | BB85: 1 | BC85: -1 | BD85: 1 | BE85: -1 | BF85: -1 | BG85: 1 | BH85: 1 | BI85: 1 | BJ85: 1 | BK85: -1 | BL85: 1 | BM85: -1 | BN85: -1 | BO85: -1 | BP85: -1 | BQ85: 1 | BR85: -1 | BS85: -1 | BT85: 1 | BU85: -1 | BV85: -1 | BW85: 1 | BX85: -1 | BY85: 1 | BZ85: 1 | CA85: 1 | CB85: 2 | CC85: 1 | CD85: -1 | CE85: 1 | CF85: 1 | CG85: 2 | CH85: -1 | CI85: 1 | CJ85: 1 | CK85: -1 | CL85: 1 | CM85: 1 | CN85: 1 | CO85: 1 | CP85: 1 | CQ85: 1 | CR85: 1 | CS85: 1 | CT85: -1 | CU85: -1 | CV85: 1 | CW85: -1 | CX85: -1 | CY85: -1 | CZ85: -1 | DA85: 1 | DB85: 1 | DC85: -1 | DD85: 1 | DE85: 1 | DF85: 1 | DG85: 1 | DH85: 1 | DI85: 1 | DJ85: 1 | DK85: 1 | DL85: -1 | DM85: -1 | DN85: -1 | DO85: -1 | DP85: -1 | DQ85: 1 | DR85: 1 | DS85: -1 | DT85: -1 | DU85: -1 | DV85: 1
A86: 2 | B86: 1 | C86: 1 | D86: -1 | E86: -1 | F86: 1 | G86: -1 | H86: 1 | I86: 1 | J86: -1 | K86: 1 | L86: 2 | M86: 1 | N86: -1 | O86: 2 | P86: -1 | Q86: -1 | R86: 1 | S86: 1 | T86: 1 | U86: 1 | V86: 2 | W86: -1 | X86: -1 | Y86: 1 | Z86: -1 | AA86: 1 | AB86: 1 | AC86: 1 | AD86: -1 | AE86: -1 | AF86: -1 | AG86: 2 | AH86: 1 | AI86: 1 | AJ86: 1 | AK86: 1 | AL86: -1 | AM86: 1 | AN86: -1 | AO86: 1 | AP86: 1 | AQ86: 2 | AR86: -2 | AS86: -1 | AT86: -2 | AU86: -1 | AV86: 1 | AW86: 1 | AX86: -1 | AY86: -1 | AZ86: 1 | BA86: -1 | BB86: 1 | BC86: 1 | BD86: 1 | BE86: 1 | BF86: -1 | BG86: 1 | BH86: 1 | BI86: 1 | BJ86: -1 | BK86: -1 | BL86: 2 | BM86: 1 | BN86: 1 | BO86: -1 | BP86: -1 | BQ86: -1 | BR86: -1 | BS86: -1 | BT86: 1 | BU86: -2 | BV86: 1 | BW86: 1 | BX86: 1 | BY86: -1 | BZ86: 1 | CA86: -1 | CB86: 1 | CC86: 1 | CD86: 1 | CE86: -1 | CF86: -1 | CG86: 1 | CH86: -1 | CI86: 1 | CJ86: -1 | CK86: -1 | CL86: -1 | CM86: 1 | CN86: 1 | CO86: -1 | CP86: -1 | CQ86: -1 | CR86: -1 | CS86: -1 | CT86: 1 | CU86: -1 | CV86: -1 | CW86: 1 | CX86: -1 | CY86: 1 | CZ86: 1 | DA86: -1 | DB86: 4 | DC86: -1 | DD86: 1 | DE86: -1 | DF86: -1 | DG86: -1 | DH86: -2 | DI86: -1 | DJ86: -1 | DK86: -1 | DL86: 1 | DM86: 2 | DN86: 1 | DO86: 1 | DP86: -1 | DQ86: -1 | DR86: -1 | DS86: 1 | DT86: 1 | DU86: 1 | DV86: -1
A87: -1 | B87: -2 | C87: 1 | D87: 1 | E87: 1 | F87: -1 | G87: 1 | H87: 1 | I87: -1 | J87: -1 | K87: 1 | L87: 1 | M87: 1 | N87: -1 | O87: 1 | P87: -1 | Q87: -1 | R87: -1 | S87: -1 | T87: -1 | U87: -1 | V87: 1 | W87: 1 | X87: -1 | Y87: 1 | Z87: -1 | AA87: -1 | AB87: 1 | AC87: -1 | AD87: 1 | AE87: -1 | AF87: -1 | AG87: 2 | AH87: 1 | AI87: -1 | AJ87: 1 | AK87: 1 | AL87: 1 | AM87: 1 | AN87: 1 | AO87: -1 | AP87: 1 | AQ87: 1 | AR87: -1 | AS87: 1 | AT87: 1 | AU87: 1 | AV87: 1 | AW87: -1 | AX87: -1 | AY87: -1 | AZ87: -1 | BA87: -1 | BB87: 1 | BC87: 1 | BD87: -1 | BE87: 1 | BF87: -1 | BG87: -1 | BH87: 1 | BI87: -1 | BJ87: 1 | BK87: 1 | BL87: -1 | BM87: -2 | BN87: -1 | BO87: 1 | BP87: 1 | BQ87: 1 | BR87: -1 | BS87: 1 | BT87: -1 | BU87: 1 | BV87: 1 | BW87: 1 | BX87: -1 | BY87: 1 | BZ87: -1 | CA87: 1 | CB87: 1 | CC87: -1 | CD87: 1 | CE87: -1 | CF87: -1 | CG87: -1 | CH87: -1 | CI87: -1 | CJ87: -2 | CK87: 1 | CL87: -1 | CM87: -1 | CN87: 1 | CO87: 1 | CP87: -1 | CQ87: 1 | CR87: -1 | CS87: -1 | CT87: -1 | CU87: 2 | CV87: 1 | CW87: 1 | CX87: -1 | CY87: 2 | CZ87: -1 | DA87: 1 | DB87: 1 | DC87: -2 | DD87: 1 | DE87: -1 | DF87: -1 | DG87: -1 | DH87: -1 | DI87: -1 | DJ87: -1 | DK87: -1 | DL87: -1 | DM87: 1 | DN87: 1 | DO87: -1 | DP87: -1 | DQ87: 2 | DR87: 1 | DS87: 1 | DT87: -1 | DU87: 1 | DV87: 1
A88: -1 | B88: 1 | C88: -1 | D88: -1 | E88: 1 | F88: -1 | G88: -1 | H88: 1 | I88: 1 | J88: 1 | K88: 1 | L88: -1 | M88: 1 | N88: 1 | O88: 1 | P88: -1 | Q88: 1 | R88: -1 | S88: 1 | T88: 1 | U88: 1 | V88: 1 | W88: -1 | X88: -1 | Y88: 1 | Z88: 1 | AA88: 1 | AB88: 1 | AC88: 1 | AD88: -1 | AE88: -1 | AF88: -1 | AG88: -1 | AH88: 1 | AI88: -1 | AJ88: 1 | AK88: -1 | AL88: 1 | AM88: -1 | AN88: 1 | AO88: 1 | AP88: 1 | AQ88: -1 | AR88: 1 | AS88: -1 | AT88: 1 | AU88: 1 | AV88: -1 | AW88: 1 | AX88: -1 | AY88: 1 | AZ88: -1 | BA88: -1 | BB88: -1 | BC88: -1 | BD88: 1 | BE88: 1 | BF88: -1 | BG88: 1 | BH88: -1 | BI88: -1 | BJ88: -1 | BK88: 1 | BL88: -1 | BM88: 1 | BN88: 1 | BO88: -1 | BP88: -1 | BQ88: 1 | BR88: -1 | BS88: -1 | BT88: 1 | BU88: 1 | BV88: -1 | BW88: -1 | BX88: -1 | BY88: 1 | BZ88: -1 | CA88: 1 | CB88: 1 | CC88: 1 | CD88: 1 | CE88: 1 | CF88: -1 | CG88: -1 | CH88: -1 | CI88: 1 | CJ88: -1 | CK88: -1 | CL88: -1 | CM88: 1 | CN88: -1 | CO88: 1 | CP88: -1 | CQ88: -1 | CR88: 1 | CS88: -1 | CT88: -1 | CU88: -1 | CV88: 1 | CW88: 1 | CX88: 1 | CY88: -1 | CZ88: 1 | DA88: -1 | DB88: 1 | DC88: 1 | DD88: 1 | DE88: -1 | DF88: -1 | DG88: -1 | DH88: -1 | DI88: -1 | DJ88: -1 | DK88: -1 | DL88: -1 | DM88: -1 | DN88: -1 | DO88: -1 | DP88: -1 | DQ88: -1 | DR88: -1 | DS88: 1 | DT88: 1 | DU88: 1 | DV88: -1
A89: -1 | B89: 1 | C89: 1 | D89: -1 | E89: -1 | F89: 1 | G89: -1 | H89: 2 | I89: 1 | J89: -1 | K89: -1 | L89: 2 | M89: -1 | N89: 1 | O89: 1 | P89: -1 | Q89: 1 | R89: 1 | S89: -1 | T89: -1 | U89: -1 | V89: 2 | W89: -1 | X89: 1 | Y89: 1 | Z89: 1 | AA89: -1 | AB89: -1 | AC89: 1 | AD89: 1 | AE89: 1 | AF89: -1 | AG89: 1 | AH89: -1 | AI89: -1 | AJ89: 1 | AK89: -1 | AL89: 1 | AM89: 1 | AN89: -1 | AO89: -1 | AP89: 1 | AQ89: 1 | AR89: 1 | AS89: -1 | AT89: -1 | AU89: -1 | AV89: 1 | AW89: -1 | AX89: 1 | AY89: 1 | AZ89: -1 | BA89: -1 | BB89: 1 | BC89: -1 | BD89: 1 | BE89: 1 | BF89: 1 | BG89: 1 | BH89: -1 | BI89: 2 | BJ89: -1 | BK89: 1 | BL89: 2 | BM89: -1 | BN89: -2 | BO89: 1 | BP89: 1 | BQ89: 1 | BR89: -1 | BS89: 1 | BT89: -1 | BU89: -2 | BV89: 1 | BW89: 1 | BX89: 1 | BY89: -1 | BZ89: 1 | CA89: 1 | CB89: -1 | CC89: 1 | CD89: -1 | CE89: -1 | CF89: 1 | CG89: 1 | CH89: -2 | CI89: 1 | CJ89: -1 | CK89: 1 | CL89: 1 | CM89: 1 | CN89: 1 | CO89: -1 | CP89: -1 | CQ89: -1 | CR89: 1 | CS89: 1 | CT89: 1 | CU89: -1 | CV89: -1 | CW89: -1 | CX89: -1 | CY89: 1 | CZ89: -1 | DA89: 1 | DB89: 1 | DC89: 1 | DD89: -1 | DE89: -1 | DF89: -1 | DG89: 1 | DH89: -1 | DI89: -1 | DJ89: 1 | DK89: -1 | DL89: 1 | DM89: 1 | DN89: -1 | DO89: -1 | DP89: 1 | DQ89: 2 | DR89: -1 | DS89: -1 | DT89: -1 | DU89: 1 | DV89: -1
A90: -1 | B90: -1 | C90: -1 | D90: 1 | E90: 1 | F90: 1 | G90: 1 | H90: 2 | I90: -1 | J90: -1 | K90: 1 | L90: 1 | M90: -1 | N90: 1 | O90: 1 | P90: 1 | Q90: -1 | R90: -1 | S90: -1 | T90: 1 | U90: -1 | V90: -1 | W90: -1 | X90: 1 | Y90: -1 | Z90: -1 | AA90: 1 | AB90: -1 | AC90: -1 | AD90: -1 | AE90: -1 | AF90: 1 | AG90: -1 | AH90: 1 | AI90: 1 | AJ90: 2 | AK90: -1 | AL90: -1 | AM90: 1 | AN90: 1 | AO90: -1 | AP90: -1 | AQ90: -2 | AR90: -1 | AS90: 1 | AT90: 1 | AU90: 1 | AV90: 1 | AW90: -1 | AX90: 2 | AY90: -1 | AZ90: -1 | BA90: 1 | BB90: 1 | BC90: -1 | BD90: -1 | BE90: 2 | BF90: 1 | BG90: -1 | BH90: -1 | BI90: 1 | BJ90: -1 | BK90: 1 | BL90: -1 | BM90: -1 | BN90: 1 | BO90: -2 | BP90: 1 | BQ90: 1 | BR90: 1 | BS90: 1 | BT90: -1 | BU90: -1 | BV90: 1 | BW90: -1 | BX90: -1 | BY90: 1 | BZ90: 1 | CA90: 1 | CB90: -1 | CC90: 1 | CD90: 1 | CE90: 1 | CF90: 1 | CG90: -1 | CH90: 1 | CI90: 1 | CJ90: -1 | CK90: 1 | CL90: 1 | CM90: 1 | CN90: 1 | CO90: 1 | CP90: -1 | CQ90: -1 | CR90: 1 | CS90: -1 | CT90: 1 | CU90: 1 | CV90: -1 | CW90: 1 | CX90: -1 | CY90: 1 | CZ90: 1 | DA90: -1 | DB90: -1 | DC90: 1 | DD90: -1 | DE90: -1 | DF90: -1 | DG90: -1 | DH90: 1 | DI90: 1 | DJ90: -1 | DK90: 1 | DL90: 1 | DM90: 1 | DN90: 1 | DO90: -1 | DP90: 1 | DQ90: 2 | DR90: -1 | DS90: -1 | DT90: 2 | DU90: 1 | DV90: -1
A91: -1 | B91: 1 | C91: 1 | D91: -1 | E91: 1 | F91: -1 | G91: -1 | H91: 1 | I91: 1 | J91: -1 | K91: -1 | L91: 1 | M91: -1 | N91: 1 | O91: -1 | P91: 1 | Q91: -1 | R91: -1 | S91: -1 | T91: -1 | U91: -1 | V91: -1 | W91: 1 | X91: 1 | Y91: -1 | Z91: 1 | AA91: -1 | AB91: 1 | AC91: 1 | AD91: -1 | AE91: -1 | AF91: -1 | AG91: 1 | AH91: 1 | AI91: 1 | AJ91: -1 | AK91: 1 | AL91: -2 | AM91: 1 | AN91: -1 | AO91: 1 | AP91: -1 | AQ91: 1 | AR91: 1 | AS91: 1 | AT91: -1 | AU91: 1 | AV91: -1 | AW91: -1 | AX91: -1 | AY91: 1 | AZ91: 1 | BA91: -1 | BB91: 1 | BC91: 1 | BD91: 1 | BE91: -2 | BF91: 1 | BG91: -1 | BH91: -1 | BI91: -1 | BJ91: -1 | BK91: -1 | BL91: -1 | BM91: -1 | BN91: 1 | BO91: 1 | BP91: -1 | BQ91: -1 | BR91: -1 | BS91: 1 | BT91: -1 | BU91: 2 | BV91: 1 | BW91: -1 | BX91: 1 | BY91: 1 | BZ91: 1 | CA91: -1 | CB91: -1 | CC91: 1 | CD91: 1 | CE91: -1 | CF91: -1 | CG91: 1 | CH91: 1 | CI91: -1 | CJ91: -1 | CK91: -1 | CL91: -1 | CM91: -2 | CN91: -1 | CO91: -1 | CP91: 1 | CQ91: 1 | CR91: 1 | CS91: 1 | CT91: 1 | CU91: 1 | CV91: -1 | CW91: -1 | CX91: 1 | CY91: -1 | CZ91: -2 | DA91: -1 | DB91: 1 | DC91: 1 | DD91: 1 | DE91: 1 | DF91: -1 | DG91: 1 | DH91: -1 | DI91: 1 | DJ91: 1 | DK91: 2 | DL91: -1 | DM91: 1 | DN91: 1 | DO91: 1 | DP91: 1 | DQ91: -2 | DR91: 1 | DS91: 1 | DT91: 1 | DU91: 1 | DV91: 1
A92: 2 | B92: -1 | C92: 1 | D92: 1 | E92: -1 | F92: 1 | G92: -1 | H92: -1 | I92: -1 | J92: -1 | K92: 1 | L92: 1 | M92: 1 | N92: 1 | O92: -1 | P92: 2 | Q92: -2 | R92: -1 | S92: 1 | T92: -1 | U92: 1 | V92: 1 | W92: 1 | X92: 2 | Y92: -1 | Z92: 1 | AA92: -1 | AB92: -1 | AC92: 1 | AD92: 1 | AE92: -1 | AF92: -1 | AG92: 1 | AH92: 1 | AI92: 1 | AJ92: -1 | AK92: 2 | AL92: -1 | AM92: -2 | AN92: -1 | AO92: -1 | AP92: -1 | AQ92: 1 | AR92: -1 | AS92: 1 | AT92: -1 | AU92: -1 | AV92: 1 | AW92: -1 | AX92: -1 | AY92: 1 | AZ92: -1 | BA92: -1 | BB92: -1 | BC92: 1 | BD92: 1 | BE92: -1 | BF92: 2 | BG92: 1 | BH92: -1 | BI92: -1 | BJ92: -1 | BK92: 1 | BL92: 1 | BM92: -1 | BN92: -1 | BO92: 1 | BP92: -1 | BQ92: 1 | BR92: 1 | BS92: -1 | BT92: 1 | BU92: -1 | BV92: -1 | BW92: -1 | BX92: 2 | BY92: 1 | BZ92: -1 | CA92: -1 | CB92: -2 | CC92: -1 | CD92: -1 | CE92: 1 | CF92: 1 | CG92: -1 | CH92: -1 | CI92: 1 | CJ92: 1 | CK92: -1 | CL92: -1 | CM92: -1 | CN92: 1 | CO92: 1 | CP92: 1 | CQ92: -1 | CR92: 1 | CS92: 1 | CT92: -1 | CU92: 1 | CV92: -1 | CW92: -1 | CX92: -1 | CY92: -1 | CZ92: 1 | DA92: 1 | DB92: 2 | DC92: -1 | DD92: -1 | DE92: -1 | DF92: 1 | DG92: 1 | DH92: -1 | DI92: -1 | DJ92: 1 | DK92: -1 | DL92: 1 | DM92: -1 | DN92: 2 | DO92: -1 | DP92: -1 | DQ92: 1 | DR92: 1 | DS92: -2 | DT92: 1 | DU92: -1 | DV92: -2
A93: 2 | B93: -1 | C93: 1 | D93: 1 | E93: 1 | F93: 1 | G93: -1 | H93: 1 | I93: -1 | J93: 1 | K93: -1 | L93: 1 | M93: 1 | N93: -1 | O93: -1 | P93: -1 | Q93: -1 | R93: -1 | S93: -1 | T93: 1 | U93: -1 | V93: 1 | W93: -1 | X93: 1 | Y93: 1 | Z93: -1 | AA93: -1 | AB93: -1 | AC93: 1 | AD93: -1 | AE93: 1 | AF93: -1 | AG93: 1 | AH93: 1 | AI93: 1 | AJ93: -1 | AK93: 1 | AL93: -2 | AM93: 1 | AN93: -1 | AO93: -1 | AP93: 1 | AQ93: 2 | AR93: -1 | AS93: -1 | AT93: 1 | AU93: 1 | AV93: -1 | AW93: -1 | AX93: -1 | AY93: 1 | AZ93: -1 | BA93: 1 | BB93: 2 | BC93: -1 | BD93: 1 | BE93: -1 | BF93: 1 | BG93: -1 | BH93: -1 | BI93: -1 | BJ93: 1 | BK93: -1 | BL93: 1 | BM93: -1 | BN93: -1 | BO93: -1 | BP93: -1 | BQ93: 1 | BR93: 1 | BS93: -1 | BT93: 1 | BU93: 1 | BV93: -2 | BW93: 1 | BX93: -1 | BY93: 1 | BZ93: -1 | CA93: 1 | CB93: -1 | CC93: 1 | CD93: 1 | CE93: -1 | CF93: 1 | CG93: -1 | CH93: 1 | CI93: 1 | CJ93: 1 | CK93: -1 | CL93: -1 | CM93: -1 | CN93: 1 | CO93: -1 | CP93: 1 | CQ93: 1 | CR93: 1 | CS93: 1 | CT93: 1 | CU93: -1 | CV93: 1 | CW93: 1 | CX93: 1 | CY93: -1 | CZ93: 1 | DA93: 1 | DB93: 2 | DC93: 1 | DD93: 1 | DE93: 1 | DF93: 1 | DG93: 1 | DH93: 1 | DI93: -1 | DJ93: -1 | DK93: -1 | DL93: -1 | DM93: -1 | DN93: 1 | DO93: -1 | DP93: -1 | DQ93: -1 | DR93: -1 | DS93: -1 | DT93: -1 | DU93: -1 | DV93: 1
A94: -2 | B94: -1 | C94: -1 | D94: -1 | E94: -1 | F94: 1 | G94: -1 | H94: 1 | I94: -1 | J94: 1 | K94: 1 | L94: -1 | M94: 2 | N94: -1 | O94: -1 | P94: 1 | Q94: -1 | R94: -1 | S94: 1 | T94: -1 | U94: -1 | V94: -1 | W94: 1 | X94: -1 | Y94: 1 | Z94: -1 | AA94: -1 | AB94: -1 | AC94: -1 | AD94: 1 | AE94: 1 | AF94: -1 | AG94: -1 | AH94: 1 | AI94: -1 | AJ94: 1 | AK94: 1 | AL94: -1 | AM94: -1 | AN94: 2 | AO94: -1 | AP94: -2 | AQ94: -1 | AR94: 2 | AS94: 1 | AT94: 1 | AU94: -2 | AV94: -1 | AW94: -1 | AX94: -1 | AY94: -1 | AZ94: -1 | BA94: 1 | BB94: 1 | BC94: -1 | BD94: -1 | BE94: -1 | BF94: 2 | BG94: -1 | BH94: -1 | BI94: -1 | BJ94: -1 | BK94: 1 | BL94: -1 | BM94: 1 | BN94: -1 | BO94: 1 | BP94: -2 | BQ94: 2 | BR94: -1 | BS94: 1 | BT94: 1 | BU94: 1 | BV94: 1 | BW94: -1 | BX94: 1 | BY94: 1 | BZ94: 1 | CA94: 1 | CB94: -1 | CC94: 1 | CD94: 1 | CE94: 1 | CF94: 1 | CG94: -1 | CH94: -1 | CI94: 1 | CJ94: 1 | CK94: -1 | CL94: -1 | CM94: 1 | CN94: -1 | CO94: -1 | CP94: -1 | CQ94: 1 | CR94: 1 | CS94: 2 | CT94: -1 | CU94: -1 | CV94: 4 | CW94: -2 | CX94: -1 | CY94: 2 | CZ94: -1 | DA94: -1 | DB94: -1 | DC94: 1 | DD94: 1 | DE94: -1 | DF94: 1 | DG94: 1 | DH94: -1 | DI94: 1 | DJ94: -1 | DK94: 1 | DL94: -1 | DM94: -1 | DN94: 1 | DO94: 1 | DP94: -1 | DQ94: -1 | DR94: -1 | DS94: -1 | DT94: -1 | DU94: -1 | DV94: 1
A95: -1 | B95: 1 | C95: 1 | D95: -1 | E95: -1 | F95: -1 | G95: -2 | H95: 1 | I95: 1 | J95: -1 | K95: 1 | L95: -1 | M95: 2 | N95: -1 | O95: -1 | P95: 2 | Q95: -1 | R95: -2 | S95: 2 | T95: 1 | U95: -1 | V95: -1 | W95: 2 | X95: 1 | Y95: -1 | Z95: -1 | AA95: -1 | AB95: 1 | AC95: 1 | AD95: 1 | AE95: -1 | AF95: 1 | AG95: 1 | AH95: 1 | AI95: -1 | AJ95: -1 | AK95: 2 | AL95: -2 | AM95: -1 | AN95: -1 | AO95: 1 | AP95: 1 | AQ95: -2 | AR95: 1 | AS95: 1 | AT95: 2 | AU95: -1 | AV95: 1 | AW95: -1 | AX95: 2 | AY95: 1 | AZ95: -1 | BA95: 1 | BB95: 1 | BC95: 2 | BD95: 1 | BE95: -1 | BF95: 4 | BG95: -1 | BH95: -1 | BI95: 2 | BJ95: -2 | BK95: -1 | BL95: 2 | BM95: 1 | BN95: -2 | BO95: -1 | BP95: 1 | BQ95: 1 | BR95: -1 | BS95: -1 | BT95: -1 | BU95: 1 | BV95: -1 | BW95: 1 | BX95: 2 | BY95: -1 | BZ95: 1 | CA95: 1 | CB95: -1 | CC95: 1 | CD95: 1 | CE95: 1 | CF95: -1 | CG95: -2 | CH95: 1 | CI95: -1 | CJ95: 1 | CK95: 1 | CL95: 1 | CM95: 1 | CN95: 1 | CO95: 1 | CP95: -2 | CQ95: -2 | CR95: 1 | CS95: -1 | CT95: 1 | CU95: -1 | CV95: 2 | CW95: -1 | CX95: -1 | CY95: 2 | CZ95: 1 | DA95: 1 | DB95: 2 | DC95: -1 | DD95: -1 | DE95: -1 | DF95: 1 | DG95: -1 | DH95: -1 | DI95: -1 | DJ95: -1 | DK95: -1 | DL95: -1 | DM95: -1 | DN95: 2 | DO95: 1 | DP95: 1 | DQ95: 1 | DR95: -1 | DS95: -1 | DT95: 1 | DU95: 1 | DV95: 1
A96: 1 | B96: 1 | C96: 1 | D96: -1 | E96: -1 | F96: -1 | G96: -1 | H96: 1 | I96: 1 | J96: -1 | K96: -1 | L96: -1 | M96: 1 | N96: 1 | O96: -2 | P96: 2 | Q96: -1 | R96: -1 | S96: -1 | T96: 1 | U96: -1 | V96: 2 | W96: -1 | X96: -1 | Y96: -1 | Z96: 1 | AA96: -1 | AB96: -2 | AC96: -1 | AD96: 1 | AE96: -1 | AF96: 1 | AG96: 2 | AH96: 1 | AI96: 1 | AJ96: -2 | AK96: -1 | AL96: 1 | AM96: -2 | AN96: 2 | AO96: -2 | AP96: -1 | AQ96: -1 | AR96: -1 | AS96: -1 | AT96: -1 | AU96: 1 | AV96: -1 | AW96: -1 | AX96: 1 | AY96: 1 | AZ96: -1 | BA96: -2 | BB96: 2 | BC96: 1 | BD96: 1 | BE96: 1 | BF96: 2 | BG96: -1 | BH96: -1 | BI96: 1 | BJ96: -1 | BK96: -1 | BL96: 1 | BM96: -1 | BN96: -1 | BO96: 1 | BP96: 1 | BQ96: 1 | BR96: 1 | BS96: -1 | BT96: 1 | BU96: -1 | BV96: -1 | BW96: 1 | BX96: -1 | BY96: -1 | BZ96: 1 | CA96: 1 | CB96: 1 | CC96: -2 | CD96: -1 | CE96: 1 | CF96: 1 | CG96: -2 | CH96: 2 | CI96: 1 | CJ96: 1 | CK96: -1 | CL96: 1 | CM96: -1 | CN96: -1 | CO96: -1 | CP96: 1 | CQ96: 1 | CR96: 2 | CS96: 1 | CT96: -1 | CU96: 1 | CV96: 2 | CW96: -2 | CX96: -2 | CY96: 2 | CZ96: -1 | DA96: -1 | DB96: 2 | DC96: -1 | DD96: -1 | DE96: -1 | DF96: -1 | DG96: 1 | DH96: 1 | DI96: 1 | DJ96: 1 | DK96: 1 | DL96: -1 | DM96: 1 | DN96: 1 | DO96: -1 | DP96: -1 | DQ96: 1 | DR96: -1 | DS96: -1 | DT96: -1 | DU96: -1 | DV96: -1
A97: 1 | B97: 1 | C97: -1 | D97: -1 | E97: -1 | F97: 1 | G97: 1 | H97: 1 | I97: 1 | J97: 1 | K97: 1 | L97: 1 | M97: -1 | N97: 1 | O97: 1 | P97: 1 | Q97: 1 | R97: -2 | S97: -1 | T97: -1 | U97: 1 | V97: 1 | W97: 1 | X97: 1 | Y97: -1 | Z97: -1 | AA97: -1 | AB97: -1 | AC97: 1 | AD97: -1 | AE97: 1 | AF97: -1 | AG97: -1 | AH97: 1 | AI97: -1 | AJ97: 1 | AK97: 2 | AL97: 1 | AM97: -1 | AN97: 2 | AO97: -1 | AP97: 1 | AQ97: 4 | AR97: -1 | AS97: -1 | AT97: 1 | AU97: 1 | AV97: 1 | AW97: -1 | AX97: -1 | AY97: -1 | AZ97: 1 | BA97: -1 | BB97: 1 | BC97: 1 | BD97: -1 | BE97: -1 | BF97: 1 | BG97: -1 | BH97: -2 | BI97: 1 | BJ97: -1 | BK97: 1 | BL97: -1 | BM97: 1 | BN97: 1 | BO97: -1 | BP97: -2 | BQ97: -1 | BR97: -1 | BS97: -1 | BT97: 1 | BU97: -1 | BV97: -1 | BW97: -1 | BX97: 1 | BY97: -1 | BZ97: -1 | CA97: -2 | CB97: -1 | CC97: -1 | CD97: 1 | CE97: -1 | CF97: -1 | CG97: 2 | CH97: -1 | CI97: 1 | CJ97: -1 | CK97: 1 | CL97: -1 | CM97: -1 | CN97: 1 | CO97: -1 | CP97: 1 | CQ97: -1 | CR97: -1 | CS97: -1 | CT97: -1 | CU97: -1 | CV97: 1 | CW97: -2 | CX97: 1 | CY97: 1 | CZ97: 1 | DA97: -2 | DB97: -1 | DC97: -1 | DD97: 1 | DE97: -1 | DF97: -1 | DG97: 1 | DH97: -1 | DI97: 1 | DJ97: -1 | DK97: 2 | DL97: 1 | DM97: -1 | DN97: -1 | DO97: -1 | DP97: -1 | DQ97: -1 | DR97: 1 | DS97: -1 | DT97: 1 | DU97: -1 | DV97: -1
A98: 1 | B98: 1 | C98: -1 | D98: -1 | E98: 1 | F98: -1 | G98: 1 | H98: -1 | I98: 1 | J98: 1 | K98: -1 | L98: 1 | M98: 1 | N98: -1 | O98: -1 | P98: 2 | Q98: -1 | R98: -1 | S98: 2 | T98: -1 | U98: -1 | V98: -1 | W98: -1 | X98: -1 | Y98: -1 | Z98: 1 | AA98: -1 | AB98: 1 | AC98: -1 | AD98: 1 | AE98: 1 | AF98: 1 | AG98: -1 | AH98: 1 | AI98: -1 | AJ98: -1 | AK98: 2 | AL98: -2 | AM98: -1 | AN98: -1 | AO98: -2 | AP98: -1 | AQ98: 2 | AR98: 1 | AS98: 1 | AT98: -2 | AU98: 1 | AV98: 1 | AW98: 1 | AX98: -1 | AY98: -1 | AZ98: 1 | BA98: -2 | BB98: 1 | BC98: -1 | BD98: -1 | BE98: 1 | BF98: -1 | BG98: -1 | BH98: -2 | BI98: 1 | BJ98: -1 | BK98: -1 | BL98: 1 | BM98: -1 | BN98: 1 | BO98: 1 | BP98: -1 | BQ98: -1 | BR98: 1 | BS98: -2 | BT98: 1 | BU98: -1 | BV98: -1 | BW98: -1 | BX98: 2 | BY98: -1 | BZ98: -1 | CA98: 1 | CB98: -1 | CC98: -1 | CD98: -1 | CE98: -1 | CF98: -1 | CG98: 1 | CH98: -1 | CI98: 1 | CJ98: -2 | CK98: 1 | CL98: 1 | CM98: -1 | CN98: 1 | CO98: -1 | CP98: -1 | CQ98: -1 | CR98: -1 | CS98: 1 | CT98: -1 | CU98: 1 | CV98: 1 | CW98: -1 | CX98: -2 | CY98: -1 | CZ98: -1 | DA98: -1 | DB98: -1 | DC98: -1 | DD98: -1 | DE98: -1 | DF98: 1 | DG98: -1 | DH98: -1 | DI98: -2 | DJ98: -1 | DK98: -1 | DL98: -2 | DM98: -1 | DN98: 1 | DO98: -1 | DP98: 1 | DQ98: 2 | DR98: -1 | DS98: -1 | DT98: 1 | DU98: 1 | DV98: -1
A99: 2 | B99: 1 | C99: -2 | D99: -2 | E99: -1 | F99: 1 | G99: -1 | H99: 1 | I99: 1 | J99: -1 | K99: 1 | L99: 2 | M99: -1 | N99: 1 | O99: -1 | P99: 1 | Q99: 1 | R99: 1 | S99: 1 | T99: -2 | U99: 1 | V99: 2 | W99: 1 | X99: -1 | Y99: -1 | Z99: -1 | AA99: -1 | AB99: -1 | AC99: -1 | AD99: -1 | AE99: -1 | AF99: 1 | AG99: 1 | AH99: -1 | AI99: 1 | AJ99: -1 | AK99: -1 | AL99: -1 | AM99: 1 | AN99: 2 | AO99: -2 | AP99: -1 | AQ99: 1 | AR99: -1 | AS99: 1 | AT99: -1 | AU99: -1 | AV99: -1 | AW99: -1 | AX99: -1 | AY99: -1 | AZ99: -1 | BA99: -1 | BB99: -1 | BC99: 1 | BD99: 1 | BE99: -1 | BF99: 1 | BG99: 1 | BH99: -2 | BI99: 1 | BJ99: -2 | BK99: -1 | BL99: -1 | BM99: -1 | BN99: -1 | BO99: -1 | BP99: 1 | BQ99: -1 | BR99: -1 | BS99: -1 | BT99: 1 | BU99: -1 | BV99: 1 | BW99: -1 | BX99: -1 | BY99: -1 | BZ99: -1 | CA99: 1 | CB99: -1 | CC99: 1 | CD99: -1 | CE99: -1 | CF99: 1 | CG99: 2 | CH99: 1 | CI99: 1 | CJ99: 1 | CK99: -1 | CL99: 1 | CM99: -1 | CN99: -1 | CO99: 1 | CP99: -1 | CQ99: -1 | CR99: 1 | CS99: 1 | CT99: 1 | CU99: 1 | CV99: -1 | CW99: -2 | CX99: -2 | CY99: -1 | CZ99: 1 | DA99: 1 | DB99: -1 | DC99: -1 | DD99: -1 | DE99: -1 | DF99: 1 | DG99: 1 | DH99: 1 | DI99: -1 | DJ99: 1 | DK99: 1 | DL99: -1 | DM99: 1 | DN99: -1 | DO99: -1 | DP99: -1 | DQ99: 2 | DR99: 1 | DS99: -1 | DT99: 1 | DU99: 1 | DV99: 1
A100: -1 | B100: -1 | C100: -1 | D100: -1 | E100: -1 | F100: 1 | G100: -1 | H100: -1 | I100: -1 | J100: 1 | K100: 1 | L100: 1 | M100: 1 | N100: -1 | O100: 1 | P100: -1 | Q100: -1 | R100: -1 | S100: 1 | T100: -1 | U100: 1 | V100: 1 | W100: -1 | X100: -1 | Y100: 1 | Z100: 1 | AA100: 1 | AB100: 1 | AC100: -1 | AD100: 1 | AE100: 1 | AF100: -1 | AG100: 1 | AH100: -1 | AI100: 1 | AJ100: 1 | AK100: -1 | AL100: -1 | AM100: 1 | AN100: 1 | AO100: -1 | AP100: -1 | AQ100: 1 | AR100: -1 | AS100: 1 | AT100: -1 | AU100: -1 | AV100: 1 | AW100: 1 | AX100: -1 | AY100: 1 | AZ100: -1 | BA100: 1 | BB100: 1 | BC100: 1 | BD100: 1 | BE100: 1 | BF100: 1 | BG100: 1 | BH100: -1 | BI100: -1 | BJ100: 1 | BK100: 1 | BL100: -1 | BM100: -1 | BN100: -1 | BO100: 1 | BP100: 1 | BQ100: 1 | BR100: -1 | BS100: -1 | BT100: 1 | BU100: 1 | BV100: 1 | BW100: 1 | BX100: 1 | BY100: 1 | BZ100: 1 | CA100: 1 | CB100: -1 | CC100: -1 | CD100: -1 | CE100: 1 | CF100: 1 | CG100: 1 | CH100: -1 | CI100: 1 | CJ100: -1 | CK100: 1 | CL100: -1 | CM100: 1 | CN100: -1 | CO100: -1 | CP100: 1 | CQ100: -1 | CR100: -1 | CS100: -1 | CT100: -1 | CU100: 1 | CV100: 1 | CW100: 1 | CX100: -1 | CY100: 1 | CZ100: 1 | DA100: -1 | DB100: 1 | DC100: -1 | DD100: -1 | DE100: 1 | DF100: 1 | DG100: -1 | DH100: -1 | DI100: 1 | DJ100: -1 | DK100: 1 | DL100: -1 | DM100: 1 | DN100: 1 | DO100: 1 | DP100: 1 | DQ100: -1 | DR100: -1 | DS100: 1 | DT100: 1 | DU100: -1 | DV100: 1
A101: -1 | B101: 1 | C101: -1 | D101: 1 | E101: -1 | F101: 1 | G101: -1 | H101: -1 | I101: -1 | J101: -1 | K101: 1 | L101: 1 | M101: 1 | N101: 1 | O101: 1 | P101: 1 | Q101: -1 | R101: -1 | S101: 1 | T101: -1 | U101: 1 | V101: -1 | W101: -1 | X101: -1 | Y101: -1 | Z101: -1 | AA101: 1 | AB101: 1 | AC101: -1 | AD101: -1 | AE101: -1 | AF101: -1 | AG101: 1 | AH101: 1 | AI101: 1 | AJ101: 1 | AK101: 1 | AL101: -1 | AM101: 1 | AN101: 1 | AO101: 1 | AP101: -1 | AQ101: 1 | AR101: 1 | AS101: 1 | AT101: -1 | AU101: 1 | AV101: 1 | AW101: -1 | AX101: -1 | AY101: -1 | AZ101: 1 | BA101: -1 | BB101: -1 | BC101: -1 | BD101: -1 | BE101: -1 | BF101: 1 | BG101: 1 | BH101: 1 | BI101: 1 | BJ101: -1 | BK101: -1 | BL101: 1 | BM101: 1 | BN101: 1 | BO101: -1 | BP101: 1 | BQ101: -1 | BR101: 1 | BS101: -1 | BT101: 1 | BU101: -1 | BV101: 1 | BW101: 1 | BX101: -1 | BY101: 1 | BZ101: 1 | CA101: -1 | CB101: -1 | CC101: 1 | CD101: -1 | CE101: -1 | CF101: 1 | CG101: 1 | CH101: -1 | CI101: -1 | CJ101: 1 | CK101: 1 | CL101: -1 | CM101: -1 | CN101: -1 | CO101: -1 | CP101: -1 | CQ101: 1 | CR101: -1 | CS101: -1 | CT101: 1 | CU101: 1 | CV101: 1 | CW101: 1 | CX101: -1 | CY101: -1 | CZ101: 1 | DA101: -1 | DB101: -1 | DC101: -1 | DD101: -1 | DE101: 1 | DF101: -1 | DG101: -1 | DH101: 1 | DI101: -1 | DJ101: 1 | DK101: 1 | DL101: 1 | DM101: 1 | DN101: -1 | DO101: 1 | DP101: -1 | DQ101: -1 | DR101: 1 | DS101: 1 | DT101: -1 | DU101: -1 | DV101: 1
A102: 1 | B102: 1 | C102: -1 | D102: -1 | E102: 1 | F102: 1 | G102: 1 | H102: 1 | I102: 1 | J102: -1 | K102: 1 | L102: -1 | M102: 1 | N102: 1 | O102: 1 | P102: 1 | Q102: 1 | R102: 1 | S102: -1 | T102: -1 | U102: 1 | V102: 2 | W102: -1 | X102: -1 | Y102: -1 | Z102: 1 | AA102: 1 | AB102: -1 | AC102: 1 | AD102: -1 | AE102: -1 | AF102: -1 | AG102: 1 | AH102: 1 | AI102: 1 | AJ102: -1 | AK102: -2 | AL102: -1 | AM102: 1 | AN102: -1 | AO102: 1 | AP102: 1 | AQ102: -1 | AR102: 1 | AS102: 1 | AT102: 1 | AU102: 1 | AV102: -1 | AW102: 1 | AX102: -1 | AY102: 1 | AZ102: 1 | BA102: 1 | BB102: 1 | BC102: 1 | BD102: -1 | BE102: 1 | BF102: 1 | BG102: 1 | BH102: -1 | BI102: 1 | BJ102: -1 | BK102: 1 | BL102: 1 | BM102: -1 | BN102: 1 | BO102: 1 | BP102: -1 | BQ102: -1 | BR102: -1 | BS102: -1 | BT102: 1 | BU102: 1 | BV102: 1 | BW102: -1 | BX102: 1 | BY102: -1 | BZ102: -1 | CA102: -1 | CB102: -1 | CC102: 1 | CD102: 1 | CE102: -1 | CF102: 1 | CG102: -1 | CH102: -1 | CI102: 1 | CJ102: -1 | CK102: 1 | CL102: 1 | CM102: -1 | CN102: 1 | CO102: -1 | CP102: 1 | CQ102: -1 | CR102: 1 | CS102: 1 | CT102: -1 | CU102: -1 | CV102: 1 | CW102: 1 | CX102: -1 | CY102: 1 | CZ102: 1 | DA102: -1 | DB102: -1 | DC102: 1 | DD102: 1 | DE102: 1 | DF102: 1 | DG102: -1 | DH102: -1 | DI102: -1 | DJ102: -1 | DK102: 1 | DL102: 1 | DM102: 1 | DN102: -1 | DO102: 1 | DP102: 1 | DQ102: -1 | DR102: -1 | DS102: -1 | DT102: -1 | DU102: -1 | DV102: -1
A103: 1 | B103: -1 | C103: 1 | D103: 1 | E103: -1 | F103: -1 | G103: -1 | H103: -1 | I103: 1 | J103: 1 | K103: -1 | L103: -1 | M103: -1 | N103: 1 | O103: -1 | P103: 1 | Q103: -1 | R103: -1 | S103: -1 | T103: -1 | U103: -1 | V103: 2 | W103: -1 | X103: -1 | Y103: 1 | Z103: -1 | AA103: -1 | AB103: -1 | AC103: -1 | AD103: -1 | AE103: -1 | AF103: 1 | AG103: -1 | AH103: 1 | AI103: -1 | AJ103: 1 | AK103: -1 | AL103: 1 | AM103: 1 | AN103: 1 | AO103: -1 | AP103: -1 | AQ103: 2 | AR103: -1 | AS103: 1 | AT103: -1 | AU103: 1 | AV103: -1 | AW103: 1 | AX103: 1 | AY103: 1 | AZ103: -1 | BA103: -1 | BB103: -1 | BC103: 1 | BD103: 1 | BE103: 1 | BF103: -1 | BG103: -1 | BH103: -1 | BI103: 1 | BJ103: 1 | BK103: 1 | BL103: 1 | BM103: 1 | BN103: 1 | BO103: 1 | BP103: 1 | BQ103: 1 | BR103: 1 | BS103: -1 | BT103: 1 | BU103: -1 | BV103: -1 | BW103: 1 | BX103: -1 | BY103: -1 | BZ103: 1 | CA103: -1 | CB103: -1 | CC103: 1 | CD103: -1 | CE103: 1 | CF103: 1 | CG103: -1 | CH103: -1 | CI103: -1 | CJ103: -1 | CK103: -1 | CL103: 1 | CM103: -1 | CN103: 1 | CO103: -1 | CP103: 1 | CQ103: -1 | CR103: -1 | CS103: -1 | CT103: -1 | CU103: -1 | CV103: 1 | CW103: -1 | CX103: 1 | CY103: 1 | CZ103: 1 | DA103: 1 | DB103: 1 | DC103: -1 | DD103: -1 | DE103: 1 | DF103: 1 | DG103: -1 | DH103: -1 | DI103: -1 | DJ103: 1 | DK103: 1 | DL103: 1 | DM103: -1 | DN103: 1 | DO103: 1 | DP103: 1 | DQ103: -1 | DR103: -1 | DS103: 1 | DT103: 1 | DU103: -1 | DV103: -1
A104: -1 | B104: 1 | C104: 1 | D104: -1 | E104: -1 | F104: -1 | G104: 1 | H104: -1 | I104: -1 | J104: -1 | K104: 1 | L104: -1 | M104: 1 | N104: -1 | O104: -1 | P104: -1 | Q104: -1 | R104: 1 | S104: 1 | T104: 1 | U104: 1 | V104: -1 | W104: -1 | X104: 1 | Y104: 1 | Z104: 1 | AA104: 1 | AB104: -1 | AC104: 1 | AD104: 1 | AE104: -1 | AF104: 2 | AG104: 1 | AH104: -1 | AI104: 1 | AJ104: 1 | AK104: -1 | AL104: 1 | AM104: 1 | AN104: 1 | AO104: 1 | AP104: -1 | AQ104: 1 | AR104: -1 | AS104: -1 | AT104: -1 | AU104: 1 | AV104: 1 | AW104: 1 | AX104: -1 | AY104: -1 | AZ104: 1 | BA104: 1 | BB104: -1 | BC104: -1 | BD104: -1 | BE104: 1 | BF104: 1 | BG104: 1 | BH104: 1 | BI104: -1 | BJ104: -1 | BK104: 1 | BL104: 1 | BM104: 1 | BN104: 1 | BO104: 1 | BP104: -1 | BQ104: 1 | BR104: 1 | BS104: 1 | BT104: -1 | BU104: -1 | BV104: -1 | BW104: 1 | BX104: -1 | BY104: -1 | BZ104: 1 | CA104: 1 | CB104: -1 | CC104: -1 | CD104: -1 | CE104: -1 | CF104: -1 | CG104: -1 | CH104: -1 | CI104: -1 | CJ104: -1 | CK104: -1 | CL104: 1 | CM104: -1 | CN104: 1 | CO104: 1 | CP104: 1 | CQ104: -1 | CR104: -1 | CS104: -1 | CT104: -1 | CU104: 1 | CV104: -1 | CW104: 1 | CX104: 1 | CY104: 1 | CZ104: 1 | DA104: -1 | DB104: 1 | DC104: -1 | DD104: -1 | DE104: 1 | DF104: -1 | DG104: -1 | DH104: 1 | DI104: 1 | DJ104: 1 | DK104: -1 | DL104: 1 | DM104: 1 | DN104: -1 | DO104: -1 | DP104: 1 | DQ104: 1 | DR104: 1 | DS104: 1 | DT104: 1 | DU104: 1 | DV104: 1
A105: 1 | B105: -1 | C105: -1 | D105: -1 | E105: -1 | F105: -1 | G105: 1 | H105: -1 | I105: 1 | J105: -1 | K105: -1 | L105: -1 | M105: -1 | N105: 1 | O105: 1 | P105: 1 | Q105: -1 | R105: 1 | S105: 1 | T105: 1 | U105: -1 | V105: -1 | W105: 1 | X105: -1 | Y105: 1 | Z105: 1 | AA105: -1 | AB105: -1 | AC105: -1 | AD105: 1 | AE105: 1 | AF105: 1 | AG105: -1 | AH105: 1 | AI105: -1 | AJ105: 1 | AK105: -1 | AL105: -1 | AM105: 1 | AN105: -1 | AO105: -1 | AP105: 1 | AQ105: -1 | AR105: -1 | AS105: -1 | AT105: 1 | AU105: 1 | AV105: -1 | AW105: -1 | AX105: -1 | AY105: 1 | AZ105: 1 | BA105: -1 | BB105: -1 | BC105: -1 | BD105: 1 | BE105: -1 | BF105: -1 | BG105: -1 | BH105: 1 | BI105: -1 | BJ105: 2 | BK105: -1 | BL105: -1 | BM105: 1 | BN105: -1 | BO105: 1 | BP105: -1 | BQ105: 1 | BR105: -1 | BS105: -1 | BT105: -1 | BU105: 1 | BV105: -1 | BW105: -1 | BX105: 1 | BY105: -1 | BZ105: 1 | CA105: 1 | CB105: 1 | CC105: -1 | CD105: 1 | CE105: 1 | CF105: 1 | CG105: 1 | CH105: 1 | CI105: -1 | CJ105: -1 | CK105: -1 | CL105: 1 | CM105: -1 | CN105: -1 | CO105: 1 | CP105: -1 | CQ105: 1 | CR105: 1 | CS105: 1 | CT105: -1 | CU105: 1 | CV105: -1 | CW105: 1 | CX105: -1 | CY105: 1 | CZ105: 1 | DA105: -1 | DB105: 1 | DC105: 1 | DD105: -1 | DE105: -1 | DF105: 1 | DG105: 1 | DH105: 1 | DI105: -1 | DJ105: -1 | DK105: 1 | DL105: 1 | DM105: -1 | DN105: 1 | DO105: -1 | DP105: -1 | DQ105: 1 | DR105: 1 | DS105: -1 | DT105: 1 | DU105: 1 | DV105: -1
A106: 1 | B106: 1 | C106: -1 | D106: 1 | E106: -1 | F106: -1 | G106: -1 | H106: -1 | I106: 1 | J106: -1 | K106: -1 | L106: 1 | M106: -1 | N106: 1 | O106: -1 | P106: 1 | Q106: -1 | R106: -1 | S106: -1 | T106: -1 | U106: -1 | V106: 1 | W106: 1 | X106: 1 | Y106: 1 | Z106: 1 | AA106: 1 | AB106: -1 | AC106: 1 | AD106: -1 | AE106: 1 | AF106: -1 | AG106: -1 | AH106: 1 | AI106: -2 | AJ106: 1 | AK106: 1 | AL106: 1 | AM106: 1 | AN106: -1 | AO106: 1 | AP106: -1 | AQ106: 2 | AR106: -1 | AS106: -1 | AT106: -1 | AU106: 1 | AV106: 1 | AW106: -1 | AX106: 1 | AY106: 1 | AZ106: -1 | BA106: -1 | BB106: 1 | BC106: 1 | BD106: 1 | BE106: -1 | BF106: -1 | BG106: -1 | BH106: -1 | BI106: 1 | BJ106: -1 | BK106: -1 | BL106: 1 | BM106: -1 | BN106: 1 | BO106: -1 | BP106: -1 | BQ106: -1 | BR106: -1 | BS106: 1 | BT106: -1 | BU106: 1 | BV106: -1 | BW106: 1 | BX106: -1 | BY106: -1 | BZ106: -1 | CA106: 1 | CB106: 1 | CC106: 1 | CD106: 1 | CE106: 1 | CF106: -1 | CG106: 1 | CH106: 1 | CI106: 1 | CJ106: -1 | CK106: 1 | CL106: 1 | CM106: -1 | CN106: 1 | CO106: -1 | CP106: -1 | CQ106: -1 | CR106: -1 | CS106: 1 | CT106: -1 | CU106: -1 | CV106: -1 | CW106: 1 | CX106: 1 | CY106: 1 | CZ106: -1 | DA106: 1 | DB106: 1 | DC106: -1 | DD106: -1 | DE106: 1 | DF106: -1 | DG106: -1 | DH106: 1 | DI106: 1 | DJ106: -1 | DK106: 1 | DL106: 1 | DM106: 1 | DN106: 1 | DO106: -1 | DP106: 1 | DQ106: 1 | DR106: -1 | DS106: -1 | DT106: 1 | DU106: -1 | DV106: 1
A107: 1 | B107: -1 | C107: 1 | D107: 1 | E107: 1 | F107: -1 | G107: -1 | H107: 1 | I107: 1 | J107: 1 | K107: 1 | L107: -1 | M107: 1 | N107: 1 | O107: 1 | P107: -1 | Q107: -1 | R107: 1 | S107: -1 | T107: -1 | U107: -1 | V107: 1 | W107: -1 | X107: 1 | Y107: 1 | Z107: -1 | AA107: 1 | AB107: 1 | AC107: 1 | AD107: -1 | AE107: -1 | AF107: -1 | AG107: 1 | AH107: 1 | AI107: 1 | AJ107: 1 | AK107: -2 | AL107: -1 | AM107: -1 | AN107: -1 | AO107: -1 | AP107: 1 | AQ107: -2 | AR107: -1 | AS107: 1 | AT107: 1 | AU107: 1 | AV107: 1 | AW107: 1 | AX107: 1 | AY107: 1 | AZ107: -1 | BA107: -1 | BB107: 1 | BC107: -1 | BD107: -1 | BE107: -1 | BF107: 1 | BG107: -1 | BH107: 1 | BI107: 1 | BJ107: 1 | BK107: -1 | BL107: 2 | BM107: -1 | BN107: 1 | BO107: 1 | BP107: -1 | BQ107: -1 | BR107: -1 | BS107: -1 | BT107: 1 | BU107: -1 | BV107: 1 | BW107: -1 | BX107: 1 | BY107: 1 | BZ107: -1 | CA107: -1 | CB107: -1 | CC107: 1 | CD107: 1 | CE107: -1 | CF107: 1 | CG107: -1 | CH107: 1 | CI107: 1 | CJ107: 1 | CK107: 1 | CL107: -1 | CM107: 1 | CN107: 1 | CO107: -1 | CP107: -1 | CQ107: 1 | CR107: -1 | CS107: -1 | CT107: -1 | CU107: -1 | CV107: 1 | CW107: -1 | CX107: -1 | CY107: -1 | CZ107: 1 | DA107: 1 | DB107: 1 | DC107: -1 | DD107: -1 | DE107: 1 | DF107: -1 | DG107: -1 | DH107: -1 | DI107: 1 | DJ107: 1 | DK107: -1 | DL107: 1 | DM107: -1 | DN107: -1 | DO107: -2 | DP107: -1 | DQ107: 1 | DR107: -1 | DS107: -1 | DT107: 1 | DU107: 1 | DV107: 1
A108: 1 | B108: 1 | C108: 1 | D108: -1 | E108: -1 | F108: 1 | G108: 1 | H108: -1 | I108: 1 | J108: -1 | K108: 1 | L108: 1 | M108: -1 | N108: 1 | O108: -1 | P108: 1 | Q108: 1 | R108: 1 | S108: -1 | T108: -1 | U108: -1 | V108: 1 | W108: 1 | X108: 1 | Y108: -1 | Z108: -1 | AA108: -1 | AB108: -1 | AC108: 1 | AD108: -1 | AE108: 1 | AF108: -1 | AG108: 1 | AH108: -1 | AI108: 1 | AJ108: -1 | AK108: 1 | AL108: -1 | AM108: -1 | AN108: -1 | AO108: -1 | AP108: -1 | AQ108: -1 | AR108: 1 | AS108: -1 | AT108: 1 | AU108: 1 | AV108: -1 | AW108: 1 | AX108: -1 | AY108: 1 | AZ108: -1 | BA108: -1 | BB108: -1 | BC108: 1 | BD108: 1 | BE108: 1 | BF108: -1 | BG108: 1 | BH108: 1 | BI108: 1 | BJ108: -1 | BK108: -1 | BL108: 1 | BM108: -1 | BN108: -1 | BO108: 1 | BP108: -1 | BQ108: 1 | BR108: 1 | BS108: -1 | BT108: -1 | BU108: -1 | BV108: 1 | BW108: 1 | BX108: 1 | BY108: -1 | BZ108: 1 | CA108: -1 | CB108: -1 | CC108: 1 | CD108: 1 | CE108: -1 | CF108: 1 | CG108: 1 | CH108: -1 | CI108: -1 | CJ108: 1 | CK108: -1 | CL108: 1 | CM108: 1 | CN108: 1 | CO108: -1 | CP108: -1 | CQ108: 1 | CR108: -1 | CS108: -1 | CT108: -1 | CU108: -1 | CV108: -1 | CW108: -1 | CX108: 1 | CY108: -1 | CZ108: 1 | DA108: -1 | DB108: 1 | DC108: -1 | DD108: -1 | DE108: -1 | DF108: -1 | DG108: -1 | DH108: 1 | DI108: 1 | DJ108: -1 | DK108: 1 | DL108: 1 | DM108: 1 | DN108: -1 | DO108: -1 | DP108: 1 | DQ108: 2 | DR108: -1 | DS108: 1 | DT108: 1 | DU108: -1 | DV108: 1
A109: -1 | B109: -1 | C109: -1 | D109: -1 | E109: -1 | F109: -1 | G109: -1 | H109: -1 | I109: 1 | J109: -1 | K109: 1 | L109: 1 | M109: 1 | N109: 1 | O109: 1 | P109: -1 | Q109: 1 | R109: -1 | S109: -1 | T109: -1 | U109: 1 | V109: 1 | W109: 1 | X109: 1 | Y109: 1 | Z109: 1 | AA109: 1 | AB109: 1 | AC109: -1 | AD109: -1 | AE109: 1 | AF109: -1 | AG109: -1 | AH109: 1 | AI109: -1 | AJ109: 1 | AK109: -1 | AL109: 1 | AM109: -1 | AN109: -1 | AO109: -1 | AP109: -1 | AQ109: -1 | AR109: -1 | AS109: -1 | AT109: -1 | AU109: -1 | AV109: -1 | AW109: -1 | AX109: 1 | AY109: -1 | AZ109: -1 | BA109: 1 | BB109: 1 | BC109: 1 | BD109: -1 | BE109: -1 | BF109: -1 | BG109: 1 | BH109: 1 | BI109: -1 | BJ109: 1 | BK109: 1 | BL109: 1 | BM109: 1 | BN109: 1 | BO109: 1 | BP109: 1 | BQ109: -1 | BR109: -1 | BS109: -1 | BT109: -1 | BU109: 1 | BV109: 1 | BW109: -1 | BX109: -1 | BY109: 1 | BZ109: -1 | CA109: 1 | CB109: 1 | CC109: 1 | CD109: -1 | CE109: -1 | CF109: -1 | CG109: 1 | CH109: 1 | CI109: -1 | CJ109: 1 | CK109: -1 | CL109: -1 | CM109: -1 | CN109: -1 | CO109: -1 | CP109: -1 | CQ109: -1 | CR109: -1 | CS109: -1 | CT109: 1 | CU109: 1 | CV109: 1 | CW109: 1 | CX109: -1 | CY109: -1 | CZ109: 1 | DA109: 1 | DB109: -1 | DC109: 1 | DD109: 1 | DE109: -1 | DF109: 1 | DG109: -1 | DH109: -1 | DI109: 1 | DJ109: 1 | DK109: -1 | DL109: 1 | DM109: -1 | DN109: 1 | DO109: -1 | DP109: -1 | DQ109: 1 | DR109: -1 | DS109: -1 | DT109: 1 | DU109: -1 | DV109: -1
A110: 1 | B110: 1 | C110: -1 | D110: 1 | E110: -1 | F110: 1 | G110: 1 | H110: 1 | I110: 1 | J110: -1 | K110: 1 | L110: 1 | M110: 1 | N110: -1 | O110: 1 | P110: -1 | Q110: 1 | R110: 1 | S110: -1 | T110: -1 | U110: -1 | V110: 2 | W110: -1 | X110: 1 | Y110: -1 | Z110: -1 | AA110: 1 | AB110: -1 | AC110: 1 | AD110: -1 | AE110: 1 | AF110: -1 | AG110: -1 | AH110: -1 | AI110: -1 | AJ110: -1 | AK110: 1 | AL110: -1 | AM110: -1 | AN110: 1 | AO110: -1 | AP110: 2 | AQ110: 2 | AR110: -1 | AS110: -1 | AT110: -1 | AU110: -1 | AV110: 1 | AW110: -1 | AX110: -1 | AY110: -2 | AZ110: 1 | BA110: 1 | BB110: -1 | BC110: 1 | BD110: -1 | BE110: -1 | BF110: -1 | BG110: -1 | BH110: 1 | BI110: -1 | BJ110: -1 | BK110: 1 | BL110: 1 | BM110: 1 | BN110: -1 | BO110: 1 | BP110: 1 | BQ110: -1 | BR110: -1 | BS110: 1 | BT110: 1 | BU110: 1 | BV110: -1 | BW110: -1 | BX110: 1 | BY110: -1 | BZ110: -1 | CA110: -1 | CB110: -1 | CC110: 1 | CD110: -1 | CE110: -1 | CF110: 1 | CG110: 1 | CH110: -1 | CI110: -1 | CJ110: -1 | CK110: -1 | CL110: 1 | CM110: 1 | CN110: 1 | CO110: -1 | CP110: 1 | CQ110: -1 | CR110: -1 | CS110: 1 | CT110: -1 | CU110: -1 | CV110: -1 | CW110: 1 | CX110: 1 | CY110: -1 | CZ110: -1 | DA110: 1 | DB110: 1 | DC110: -1 | DD110: -1 | DE110: -1 | DF110: -1 | DG110: 1 | DH110: -1 | DI110: -1 | DJ110: 1 | DK110: 1 | DL110: 1 | DM110: 1 | DN110: -1 | DO110: 1 | DP110: -1 | DQ110: 1 | DR110: 1 | DS110: 1 | DT110: -1 | DU110: -1 | DV110: -1
A111: 1 | B111: -1 | C111: -1 | D111: 1 | E111: 1 | F111: 1 | G111: -1 | H111: -1 | I111: 1 | J111: 1 | K111: -1 | L111: 1 | M111: 1 | N111: -1 | O111: 1 | P111: -1 | Q111: -1 | R111: 1 | S111: -1 | T111: 1 | U111: 2 | V111: -1 | W111: -1 | X111: 1 | Y111: -1 | Z111: -1 | AA111: 1 | AB111: -1 | AC111: 1 | AD111: 1 | AE111: -1 | AF111: 1 | AG111: -1 | AH111: -1 | AI111: 1 | AJ111: 1 | AK111: 1 | AL111: 1 | AM111: -1 | AN111: 1 | AO111: 1 | AP111: 1 | AQ111: -1 | AR111: -1 | AS111: -1 | AT111: 1 | AU111: -1 | AV111: 1 | AW111: 1 | AX111: -1 | AY111: 1 | AZ111: 1 | BA111: -1 | BB111: -1 | BC111: 1 | BD111: -1 | BE111: -1 | BF111: -1 | BG111: -1 | BH111: -1 | BI111: 1 | BJ111: 1 | BK111: 1 | BL111: -1 | BM111: -1 | BN111: -1 | BO111: 1 | BP111: 1 | BQ111: -1 | BR111: -1 | BS111: -1 | BT111: -1 | BU111: -1 | BV111: 1 | BW111: -1 | BX111: -1 | BY111: 1 | BZ111: -1 | CA111: -2 | CB111: 1 | CC111: -1 | CD111: 1 | CE111: 1 | CF111: 1 | CG111: -1 | CH111: 1 | CI111: -1 | CJ111: 1 | CK111: -1 | CL111: -1 | CM111: 1 | CN111: 1 | CO111: -1 | CP111: -1 | CQ111: -1 | CR111: -1 | CS111: -1 | CT111: 1 | CU111: -1 | CV111: 1 | CW111: -1 | CX111: 1 | CY111: 1 | CZ111: 1 | DA111: 1 | DB111: 1 | DC111: -1 | DD111: -1 | DE111: 1 | DF111: 1 | DG111: 1 | DH111: -1 | DI111: -1 | DJ111: -1 | DK111: 1 | DL111: -1 | DM111: -1 | DN111: 1 | DO111: -1 | DP111: 1 | DQ111: 1 | DR111: 1 | DS111: -1 | DT111: 1 | DU111: -1 | DV111: 1
A112: 1 | B112: 1 | C112: -1 | D112: -1 | E112: -1 | F112: 1 | G112: 1 | H112: -1 | I112: 1 | J112: -1 | K112: 1 | L112: -1 | M112: 1 | N112: -1 | O112: -1 | P112: -1 | Q112: 1 | R112: 1 | S112: 1 | T112: 1 | U112: -1 | V112: 1 | W112: 1 | X112: 1 | Y112: -1 | Z112: -1 | AA112: 1 | AB112: -1 | AC112: 1 | AD112: -1 | AE112: -1 | AF112: 1 | AG112: 1 | AH112: 1 | AI112: -1 | AJ112: 1 | AK112: -1 | AL112: 1 | AM112: -1 | AN112: 1 | AO112: 1 | AP112: 1 | AQ112: 1 | AR112: 1 | AS112: -1 | AT112: 1 | AU112: 1 | AV112: 1 | AW112: 1 | AX112: 1 | AY112: -1 | AZ112: 1 | BA112: 1 | BB112: -1 | BC112: 1 | BD112: 1 | BE112: -1 | BF112: -1 | BG112: 1 | BH112: 1 | BI112: 1 | BJ112: 1 | BK112: -1 | BL112: 1 | BM112: -1 | BN112: -1 | BO112: -1 | BP112: -1 | BQ112: 1 | BR112: 1 | BS112: 1 | BT112: -1 | BU112: 1 | BV112: -1 | BW112: 1 | BX112: -1 | BY112: 1 | BZ112: 1 | CA112: 1 | CB112: -1 | CC112: -1 | CD112: -1 | CE112: -1 | CF112: -1 | CG112: 1 | CH112: -1 | CI112: -1 | CJ112: -1 | CK112: -1 | CL112: -1 | CM112: 1 | CN112: -1 | CO112: -1 | CP112: -1 | CQ112: -1 | CR112: 1 | CS112: 1 | CT112: 1 | CU112: -1 | CV112: -1 | CW112: -1 | CX112: -1 | CY112: 1 | CZ112: -1 | DA112: -1 | DB112: 1 | DC112: -1 | DD112: -1 | DE112: 1 | DF112: -1 | DG112: 1 | DH112: -1 | DI112: -1 | DJ112: 1 | DK112: -1 | DL112: 1 | DM112: 1 | DN112: 1 | DO112: 1 | DP112: 1 | DQ112: 1 | DR112: 1 | DS112: 1 | DT112: 1 | DU112: -1 | DV112: 1
A113: 1 | B113: 1 | C113: -1 | D113: -1 | E113: 1 | F113: -1 | G113: 1 | H113: 1 | I113: 1 | J113: -1 | K113: -1 | L113: -1 | M113: -1 | N113: 1 | O113: -1 | P113: 1 | Q113: 1 | R113: -1 | S113: 1 | T113: -1 | U113: 1 | V113: 1 | W113: 1 | X113: 1 | Y113: 1 | Z113: 1 | AA113: 1 | AB113: -1 | AC113: 1 | AD113: -1 | AE113: -1 | AF113: 1 | AG113: 1 | AH113: -1 | AI113: -1 | AJ113: -1 | AK113: -1 | AL113: 1 | AM113: 1 | AN113: -1 | AO113: 1 | AP113: -1 | AQ113: 2 | AR113: -1 | AS113: 1 | AT113: -1 | AU113: -1 | AV113: 1 | AW113: -1 | AX113: -1 | AY113: -1 | AZ113: -1 | BA113: -1 | BB113: -1 | BC113: 1 | BD113: 1 | BE113: 1 | BF113: -1 | BG113: -1 | BH113: 1 | BI113: 1 | BJ113: -1 | BK113: -1 | BL113: 1 | BM113: -1 | BN113: 1 | BO113: -1 | BP113: 1 | BQ113: -1 | BR113: -1 | BS113: -1 | BT113: 1 | BU113: -1 | BV113: 1 | BW113: -1 | BX113: -1 | BY113: -1 | BZ113: 1 | CA113: -2 | CB113: 1 | CC113: 1 | CD113: 1 | CE113: -1 | CF113: 1 | CG113: 1 | CH113: 1 | CI113: -1 | CJ113: 1 | CK113: -1 | CL113: 1 | CM113: -1 | CN113: -1 | CO113: -1 | CP113: 1 | CQ113: -1 | CR113: 1 | CS113: -1 | CT113: 1 | CU113: -1 | CV113: -1 | CW113: -1 | CX113: -1 | CY113: 1 | CZ113: -1 | DA113: -1 | DB113: 2 | DC113: -1 | DD113: 1 | DE113: -1 | DF113: -1 | DG113: 1 | DH113: 1 | DI113: 1 | DJ113: -1 | DK113: -1 | DL113: -1 | DM113: 1 | DN113: -1 | DO113: 1 | DP113: -1 | DQ113: -1 | DR113: -1 | DS113: 1 | DT113: 1 | DU113: -1 | DV113: -1
A114: 1 | B114: -1 | C114: -1 | D114: -1 | E114: -1 | F114: 1 | G114: -1 | H114: 1 | I114: -1 | J114: 1 | K114: -1 | L114: -1 | M114: 1 | N114: 1 | O114: -1 | P114: -1 | Q114: 1 | R114: 1 | S114: -1 | T114: 1 | U114: 1 | V114: 1 | W114: 1 | X114: 1 | Y114: -1 | Z114: 1 | AA114: 1 | AB114: 1 | AC114: 1 | AD114: 1 | AE114: 1 | AF114: 1 | AG114: 1 | AH114: 1 | AI114: -1 | AJ114: 1 | AK114: -1 | AL114: 1 | AM114: 1 | AN114: 1 | AO114: -1 | AP114: 1 | AQ114: 1 | AR114: -1 | AS114: -1 | AT114: -1 | AU114: -1 | AV114: -1 | AW114: 1 | AX114: -1 | AY114: 1 | AZ114: -1 | BA114: -1 | BB114: 1 | BC114: -1 | BD114: -1 | BE114: 1 | BF114: -1 | BG114: -1 | BH114: -1 | BI114: 1 | BJ114: -1 | BK114: 1 | BL114: 1 | BM114: 1 | BN114: 1 | BO114: -1 | BP114: 1 | BQ114: 1 | BR114: 1 | BS114: 1 | BT114: 1 | BU114: -1 | BV114: 1 | BW114: 1 | BX114: -1 | BY114: -1 | BZ114: -1 | CA114: -2 | CB114: 1 | CC114: -1 | CD114: 1 | CE114: -1 | CF114: 1 | CG114: -1 | CH114: 1 | CI114: 1 | CJ114: -1 | CK114: -1 | CL114: -1 | CM114: -1 | CN114: 1 | CO114: 1 | CP114: 1 | CQ114: -1 | CR114: -1 | CS114: 1 | CT114: -1 | CU114: -1 | CV114: -1 | CW114: -1 | CX114: -1 | CY114: 1 | CZ114: 1 | DA114: 1 | DB114: -1 | DC114: -1 | DD114: 1 | DE114: 1 | DF114: 1 | DG114: 1 | DH114: 1 | DI114: 1 | DJ114: -1 | DK114: 1 | DL114: -1 | DM114: 1 | DN114: -1 | DO114: -1 | DP114: 1 | DQ114: 1 | DR114: -2 | DS114: 1 | DT114: 2 | DU114: 1 | DV114: 1
A115: 1 | B115: 1 | C115: -1 | D115: -1 | E115: -1 | F115: 1 | G115: -1 | H115: -1 | I115: -1 | J115: -1 | K115: -1 | L115: 1 | M115: -1 | N115: -1 | O115: 1 | P115: -1 | Q115: -1 | R115: -1 | S115: -1 | T115: 1 | U115: -1 | V115: -1 | W115: -1 | X115: 1 | Y115: -1 | Z115: 1 | AA115: 1 | AB115: 1 | AC115: 1 | AD115: -1 | AE115: 1 | AF115: -1 | AG115: 1 | AH115: 1 | AI115: -1 | AJ115: -1 | AK115: 1 | AL115: -1 | AM115: -1 | AN115: 1 | AO115: 1 | AP115: 1 | AQ115: 1 | AR115: -1 | AS115: -2 | AT115: -1 | AU115: -1 | AV115: -1 | AW115: -1 | AX115: -1 | AY115: -1 | AZ115: 1 | BA115: -1 | BB115: 2 | BC115: -1 | BD115: 1 | BE115: 1 | BF115: 1 | BG115: -1 | BH115: 1 | BI115: 1 | BJ115: -1 | BK115: 1 | BL115: -1 | BM115: -1 | BN115: 1 | BO115: 1 | BP115: 1 | BQ115: -1 | BR115: -1 | BS115: -1 | BT115: 1 | BU115: 1 | BV115: 1 | BW115: 1 | BX115: 1 | BY115: 1 | BZ115: 1 | CA115: 1 | CB115: 1 | CC115: -1 | CD115: -1 | CE115: -1 | CF115: -1 | CG115: -1 | CH115: 1 | CI115: -1 | CJ115: 1 | CK115: -1 | CL115: 1 | CM115: -1 | CN115: 1 | CO115: -1 | CP115: -1 | CQ115: 1 | CR115: 1 | CS115: 1 | CT115: 1 | CU115: -2 | CV115: 1 | CW115: 1 | CX115: -1 | CY115: 1 | CZ115: 1 | DA115: -1 | DB115: 1 | DC115: -1 | DD115: 1 | DE115: -1 | DF115: -1 | DG115: -1 | DH115: -1 | DI115: 1 | DJ115: -1 | DK115: 1 | DL115: -1 | DM115: -1 | DN115: 1 | DO115: -1 | DP115: -1 | DQ115: -1 | DR115: -1 | DS115: -1 | DT115: 1 | DU115: -1 | DV115: 1
A116: 4 | B116: 1 | C116: -1 | D116: -1 | E116: 1 | F116: 1 | G116: -1 | H116: -1 | I116: -1 | J116: -1 | K116: -1 | L116: 2 | M116: -1 | N116: -1 | O116: 1 | P116: -2 | Q116: -1 | R116: 1 | S116: -1 | T116: 1 | U116: -1 | V116: 1 | W116: -1 | X116: 1 | Y116: -1 | Z116: 1 | AA116: 1 | AB116: -1 | AC116: -1 | AD116: -1 | AE116: 1 | AF116: 1 | AG116: 1 | AH116: 1 | AI116: -1 | AJ116: 1 | AK116: 1 | AL116: 1 | AM116: -1 | AN116: -1 | AO116: -1 | AP116: 1 | AQ116: 1 | AR116: 1 | AS116: -2 | AT116: -1 | AU116: -1 | AV116: 1 | AW116: -1 | AX116: 1 | AY116: -1 | AZ116: 1 | BA116: 1 | BB116: 2 | BC116: -1 | BD116: -1 | BE116: -1 | BF116: -2 | BG116: -2 | BH116: 1 | BI116: 1 | BJ116: 1 | BK116: 1 | BL116: 1 | BM116: -1 | BN116: -1 | BO116: -1 | BP116: -1 | BQ116: -2 | BR116: -1 | BS116: 1 | BT116: -1 | BU116: -1 | BV116: 1 | BW116: 1 | BX116: 1 | BY116: -1 | BZ116: 1 | CA116: 1 | CB116: -1 | CC116: -1 | CD116: 1 | CE116: -1 | CF116: 1 | CG116: -1 | CH116: 1 | CI116: -1 | CJ116: -1 | CK116: 1 | CL116: 1 | CM116: -1 | CN116: -1 | CO116: 1 | CP116: -1 | CQ116: 1 | CR116: -1 | CS116: -1 | CT116: -1 | CU116: -1 | CV116: 1 | CW116: -2 | CX116: -1 | CY116: 1 | CZ116: -1 | DA116: -1 | DB116: 2 | DC116: -1 | DD116: 1 | DE116: -1 | DF116: -1 | DG116: -1 | DH116: 1 | DI116: -1 | DJ116: 1 | DK116: -1 | DL116: 1 | DM116: 1 | DN116: -1 | DO116: -1 | DP116: -1 | DQ116: -1 | DR116: -1 | DS116: -1 | DT116: 1 | DU116: -1 | DV116: -1
A117: 1 | B117: -1 | C117: 1 | D117: -1 | E117: -1 | F117: -1 | G117: -1 | H117: -1 | I117: -1 | J117: -1 | K117: -1 | L117: 1 | M117: 1 | N117: -1 | O117: 1 | P117: 1 | Q117: -1 | R117: 1 | S117: 1 | T117: 1 | U117: 1 | V117: 1 | W117: -1 | X117: 1 | Y117: -1 | Z117: -1 | AA117: 1 | AB117: 1 | AC117: 1 | AD117: 1 | AE117: 1 | AF117: 1 | AG117: 1 | AH117: -1 | AI117: 1 | AJ117: -1 | AK117: -1 | AL117: -1 | AM117: 1 | AN117: -1 | AO117: -1 | AP117: 1 | AQ117: -1 | AR117: -1 | AS117: 1 | AT117: 1 | AU117: -1 | AV117: -1 | AW117: 1 | AX117: 1 | AY117: 1 | AZ117: -1 | BA117: -1 | BB117: 1 | BC117: 1 | BD117: -1 | BE117: -1 | BF117: -1 | BG117: -1 | BH117: 1 | BI117: 1 | BJ117: 1 | BK117: 1 | BL117: -1 | BM117: -1 | BN117: -1 | BO117: 1 | BP117: 1 | BQ117: -1 | BR117: 1 | BS117: -1 | BT117: -1 | BU117: 1 | BV117: -1 | BW117: 1 | BX117: 1 | BY117: 1 | BZ117: 1 | CA117: -2 | CB117: -1 | CC117: 1 | CD117: 1 | CE117: 1 | CF117: -1 | CG117: -2 | CH117: 1 | CI117: -1 | CJ117: -1 | CK117: -1 | CL117: 1 | CM117: 1 | CN117: 2 | CO117: -1 | CP117: 1 | CQ117: -1 | CR117: -1 | CS117: -1 | CT117: 1 | CU117: 1 | CV117: -1 | CW117: -1 | CX117: -1 | CY117: 1 | CZ117: -1 | DA117: 1 | DB117: -1 | DC117: -1 | DD117: -1 | DE117: -1 | DF117: 1 | DG117: -1 | DH117: -1 | DI117: 1 | DJ117: 1 | DK117: -1 | DL117: -1 | DM117: -1 | DN117: 1 | DO117: -1 | DP117: -1 | DQ117: -1 | DR117: 1 | DS117: -1 | DT117: -1 | DU117: -1 | DV117: 1
A118: -1 | B118: 1 | C118: -1 | D118: -1 | E118: -1 | F118: -1 | G118: 1 | H118: 1 | I118: 1 | J118: -1 | K118: 1 | L118: -1 | M118: -1 | N118: 1 | O118: -1 | P118: 1 | Q118: 1 | R118: -1 | S118: 1 | T118: -1 | U118: -1 | V118: 1 | W118: -1 | X118: 1 | Y118: -1 | Z118: 1 | AA118: -1 | AB118: -1 | AC118: 1 | AD118: 1 | AE118: -1 | AF118: -1 | AG118: 1 | AH118: -1 | AI118: 1 | AJ118: 1 | AK118: -1 | AL118: -1 | AM118: 1 | AN118: -1 | AO118: -1 | AP118: 1 | AQ118: -1 | AR118: -1 | AS118: 1 | AT118: -1 | AU118: -1 | AV118: -1 | AW118: 1 | AX118: 1 | AY118: -1 | AZ118: -1 | BA118: 1 | BB118: 1 | BC118: 1 | BD118: -1 | BE118: 1 | BF118: 1 | BG118: -1 | BH118: 1 | BI118: 1 | BJ118: 1 | BK118: -1 | BL118: 1 | BM118: -1 | BN118: -1 | BO118: 1 | BP118: 1 | BQ118: -1 | BR118: -1 | BS118: 1 | BT118: -1 | BU118: -1 | BV118: 1 | BW118: -1 | BX118: 1 | BY118: -1 | BZ118: 1 | CA118: 1 | CB118: 1 | CC118: -1 | CD118: -1 | CE118: -1 | CF118: -1 | CG118: -1 | CH118: -1 | CI118: 1 | CJ118: -2 | CK118: 1 | CL118: -1 | CM118: -1 | CN118: 1 | CO118: -1 | CP118: -1 | CQ118: 1 | CR118: -1 | CS118: 1 | CT118: -1 | CU118: 1 | CV118: 1 | CW118: 1 | CX118: -1 | CY118: 1 | CZ118: 1 | DA118: 1 | DB118: -2 | DC118: 1 | DD118: -1 | DE118: -1 | DF118: -1 | DG118: -2 | DH118: 1 | DI118: 1 | DJ118: 1 | DK118: -1 | DL118: 1 | DM118: 1 | DN118: 1 | DO118: 1 | DP118: -1 | DQ118: 1 | DR118: 1 | DS118: -1 | DT118: -1 | DU118: -1 | DV118: -1
A119: 1 | B119: -2 | C119: -1 | D119: -2 | E119: -1 | F119: -1 | G119: 2 | H119: 1 | I119: -1 | J119: -1 | K119: 1 | L119: -1 | M119: -1 | N119: -2 | O119: -1 | P119: 1 | Q119: -1 | R119: -1 | S119: -1 | T119: 1 | U119: 1 | V119: 2 | W119: -1 | X119: -1 | Y119: 1 | Z119: 1 | AA119: 1 | AB119: 2 | AC119: 2 | AD119: 1 | AE119: -1 | AF119: 1 | AG119: 1 | AH119: 1 | AI119: 1 | AJ119: 1 | AK119: -1 | AL119: -1 | AM119: -1 | AN119: -1 | AO119: -1 | AP119: -1 | AQ119: 1 | AR119: 1 | AS119: -1 | AT119: -1 | AU119: 1 | AV119: 1 | AW119: 1 | AX119: 2 | AY119: 1 | AZ119: -1 | BA119: -1 | BB119: -1 | BC119: -1 | BD119: -1 | BE119: -1 | BF119: -1 | BG119: 1 | BH119: -1 | BI119: -1 | BJ119: 1 | BK119: -1 | BL119: 2 | BM119: -1 | BN119: 1 | BO119: -1 | BP119: 1 | BQ119: -1 | BR119: 1 | BS119: 1 | BT119: -1 | BU119: -1 | BV119: 1 | BW119: -1 | BX119: -1 | BY119: -1 | BZ119: -1 | CA119: 1 | CB119: 1 | CC119: -1 | CD119: -2 | CE119: -1 | CF119: -1 | CG119: -1 | CH119: 1 | CI119: 1 | CJ119: 1 | CK119: 1 | CL119: -1 | CM119: 1 | CN119: 1 | CO119: -1 | CP119: -1 | CQ119: 1 | CR119: 1 | CS119: -1 | CT119: 1 | CU119: -1 | CV119: -1 | CW119: 1 | CX119: -1 | CY119: 1 | CZ119: 1 | DA119: -1 | DB119: 1 | DC119: -1 | DD119: -2 | DE119: -1 | DF119: -1 | DG119: -1 | DH119: 1 | DI119: 2 | DJ119: -1 | DK119: -1 | DL119: -1 | DM119: 1 | DN119: -1 | DO119: -1 | DP119: -1 | DQ119: 1 | DR119: -2 | DS119: -1 | DT119: -1 | DU119: -1 | DV119: 1
A120: 1 | B120: -1 | C120: 1 | D120: -1 | E120: -1 | F120: -1 | G120: 2 | H120: 1 | I120: 1 | J120: 1 | K120: -1 | L120: -1 | M120: -1 | N120: -1 | O120: 1 | P120: -1 | Q120: 1 | R120: 1 | S120: -1 | T120: -1 | U120: 1 | V120: 2 | W120: 1 | X120: -1 | Y120: 1 | Z120: -1 | AA120: -2 | AB120: 1 | AC120: 1 | AD120: -1 | AE120: -2 | AF120: -1 | AG120: 1 | AH120: 1 | AI120: -1 | AJ120: 1 | AK120: 1 | AL120: 1 | AM120: 1 | AN120: 1 | AO120: 1 | AP120: -1 | AQ120: 1 | AR120: -1 | AS120: 1 | AT120: 1 | AU120: 1 | AV120: -1 | AW120: 1 | AX120: 1 | AY120: 1 | AZ120: 1 | BA120: 1 | BB120: 1 | BC120: 1 | BD120: 1 | BE120: 1 | BF120: -1 | BG120: -1 | BH120: -1 | BI120: -1 | BJ120: 1 | BK120: -1 | BL120: 1 | BM120: -2 | BN120: 1 | BO120: 1 | BP120: -1 | BQ120: -1 | BR120: 1 | BS120: -1 | BT120: 1 | BU120: -1 | BV120: 1 | BW120: -1 | BX120: -1 | BY120: -1 | BZ120: 1 | CA120: 2 | CB120: 1 | CC120: -1 | CD120: -1 | CE120: 1 | CF120: -1 | CG120: -1 | CH120: 1 | CI120: -1 | CJ120: -1 | CK120: -1 | CL120: -1 | CM120: 2 | CN120: 2 | CO120: 1 | CP120: -1 | CQ120: 1 | CR120: 1 | CS120: -1 | CT120: 1 | CU120: -1 | CV120: 1 | CW120: -1 | CX120: 1 | CY120: 1 | CZ120: -1 | DA120: -1 | DB120: 1 | DC120: -1 | DD120: 1 | DE120: -1 | DF120: 1 | DG120: 1 | DH120: 1 | DI120: 1 | DJ120: -1 | DK120: -2 | DL120: -1 | DM120: 1 | DN120: -1 | DO120: -1 | DP120: -1 | DQ120: 1 | DR120: -2 | DS120: -1 | DT120: -1 | DU120: -1 | DV120: -1
A121: -1 | B121: 1 | C121: -1 | D121: -1 | E121: 1 | F121: 1 | G121: 1 | H121: 2 | I121: 1 | J121: 1 | K121: 1 | L121: -1 | M121: 1 | N121: -1 | O121: 1 | P121: -1 | Q121: -1 | R121: 1 | S121: -1 | T121: 1 | U121: 1 | V121: 1 | W121: -1 | X121: -1 | Y121: -1 | Z121: 1 | AA121: -1 | AB121: 2 | AC121: 2 | AD121: -1 | AE121: -1 | AF121: 1 | AG121: -1 | AH121: 1 | AI121: -1 | AJ121: 1 | AK121: 1 | AL121: 1 | AM121: -1 | AN121: 1 | AO121: -1 | AP121: 1 | AQ121: -1 | AR121: 1 | AS121: -1 | AT121: 1 | AU121: 1 | AV121: -1 | AW121: 2 | AX121: 2 | AY121: 1 | AZ121: -1 | BA121: 1 | BB121: -1 | BC121: 1 | BD121: 1 | BE121: 1 | BF121: 1 | BG121: 1 | BH121: -1 | BI121: -1 | BJ121: -1 | BK121: -1 | BL121: -1 | BM121: -1 | BN121: -1 | BO121: -1 | BP121: 1 | BQ121: -1 | BR121: -1 | BS121: 1 | BT121: -1 | BU121: 1 | BV121: 1 | BW121: -1 | BX121: -1 | BY121: -1 | BZ121: 1 | CA121: 1 | CB121: -1 | CC121: -1 | CD121: -1 | CE121: -1 | CF121: 1 | CG121: 1 | CH121: 1 | CI121: 1 | CJ121: 1 | CK121: 1 | CL121: -1 | CM121: 1 | CN121: 2 | CO121: -1 | CP121: -1 | CQ121: 1 | CR121: 1 | CS121: -1 | CT121: 1 | CU121: -1 | CV121: 1 | CW121: -1 | CX121: -1 | CY121: 1 | CZ121: -2 | DA121: -1 | DB121: 1 | DC121: -1 | DD121: -1 | DE121: -1 | DF121: 1 | DG121: -1 | DH121: 1 | DI121: 1 | DJ121: -1 | DK121: 1 | DL121: -1 | DM121: -1 | DN121: -1 | DO121: 1 | DP121: -1 | DQ121: 2 | DR121: 1 | DS121: 1 | DT121: -1 | DU121: -1 | DV121: -1
A122: 2 | B122: -1 | C122: -1 | D122: -1 | E122: -1 | F122: 1 | G122: 2 | H122: 2 | I122: -1 | J122: -2 | K122: 1 | L122: -1 | M122: -1 | N122: 1 | O122: -1 | P122: 1 | Q122: -1 | R122: -1 | S122: 1 | T122: 1 | U122: -1 | V122: 1 | W122: -1 | X122: -1 | Y122: -1 | Z122: 1 | AA122: -1 | AB122: 1 | AC122: 2 | AD122: -1 | AE122: -1 | AF122: -1 | AG122: -1 | AH122: -1 | AI122: -1 | AJ122: -1 | AK122: 1 | AL122: 1 | AM122: -1 | AN122: -1 | AO122: -1 | AP122: 1 | AQ122: 2 | AR122: -1 | AS122: -1 | AT122: 1 | AU122: -1 | AV122: -1 | AW122: 1 | AX122: 2 | AY122: 1 | AZ122: -1 | BA122: -1 | BB122: 1 | BC122: 1 | BD122: -1 | BE122: 1 | BF122: -1 | BG122: -1 | BH122: -1 | BI122: -1 | BJ122: -1 | BK122: 1 | BL122: 4 | BM122: -1 | BN122: -1 | BO122: 1 | BP122: 1 | BQ122: -1 | BR122: 1 | BS122: 1 | BT122: -1 | BU122: -2 | BV122: -1 | BW122: -2 | BX122: -1 | BY122: -1 | BZ122: 1 | CA122: 2 | CB122: 1 | CC122: -1 | CD122: 1 | CE122: -1 | CF122: -1 | CG122: 1 | CH122: -1 | CI122: -1 | CJ122: -1 | CK122: -1 | CL122: 1 | CM122: 1 | CN122: 2 | CO122: -1 | CP122: -1 | CQ122: 1 | CR122: -1 | CS122: -2 | CT122: 1 | CU122: 1 | CV122: -1 | CW122: -1 | CX122: 1 | CY122: 1 | CZ122: -1 | DA122: 1 | DB122: 1 | DC122: -1 | DD122: -1 | DE122: 1 | DF122: 2 | DG122: 1 | DH122: 1 | DI122: 2 | DJ122: -1 | DK122: -1 | DL122: 1 | DM122: -1 | DN122: 1 | DO122: -1 | DP122: 1 | DQ122: 2 | DR122: -2 | DS122: -1 | DT122: 1 | DU122: 1 | DV122: -1
A123: -1 | B123: 1 | C123: -1 | D123: 1 | E123: 1 | F123: -1 | G123: 2 | H123: 2 | I123: -1 | J123: 1 | K123: 1 | L123: -1 | M123: -1 | N123: -1 | O123: 1 | P123: 1 | Q123: -1 | R123: -1 | S123: -1 | T123: 1 | U123: -1 | V123: 2 | W123: -1 | X123: -1 | Y123: -1 | Z123: 1 | AA123: 1 | AB123: 2 | AC123: 1 | AD123: -1 | AE123: 1 | AF123: -1 | AG123: -2 | AH123: -1 | AI123: -1 | AJ123: -1 | AK123: 1 | AL123: -2 | AM123: -1 | AN123: 1 | AO123: 1 | AP123: -1 | AQ123: 1 | AR123: 1 | AS123: -1 | AT123: 1 | AU123: 1 | AV123: -1 | AW123: 2 | AX123: 2 | AY123: -1 | AZ123: -1 | BA123: 1 | BB123: 1 | BC123: 1 | BD123: 1 | BE123: -1 | BF123: 1 | BG123: -1 | BH123: 1 | BI123: 1 | BJ123: 1 | BK123: 1 | BL123: 2 | BM123: 1 | BN123: -1 | BO123: -1 | BP123: -1 | BQ123: 1 | BR123: 2 | BS123: 1 | BT123: 1 | BU123: -1 | BV123: -1 | BW123: -1 | BX123: 1 | BY123: -1 | BZ123: -1 | CA123: 1 | CB123: 1 | CC123: -1 | CD123: -1 | CE123: 1 | CF123: 1 | CG123: -1 | CH123: -1 | CI123: -2 | CJ123: -1 | CK123: -1 | CL123: 1 | CM123: 1 | CN123: 2 | CO123: 1 | CP123: -1 | CQ123: -1 | CR123: 1 | CS123: -1 | CT123: -1 | CU123: 1 | CV123: 1 | CW123: 1 | CX123: 1 | CY123: 1 | CZ123: -1 | DA123: 1 | DB123: 1 | DC123: -2 | DD123: 1 | DE123: -1 | DF123: 1 | DG123: -1 | DH123: 2 | DI123: 2 | DJ123: 1 | DK123: 1 | DL123: -1 | DM123: 1 | DN123: 1 | DO123: -1 | DP123: 1 | DQ123: 1 | DR123: -1 | DS123: 1 | DT123: -1 | DU123: -1 | DV123: -1
A124: 2 | B124: -1 | C124: -1 | D124: -1 | E124: 1 | F124: 1 | G124: 2 | H124: -1 | I124: 1 | J124: -2 | K124: -1 | L124: 1 | M124: 1 | N124: 1 | O124: -1 | P124: 1 | Q124: 1 | R124: 1 | S124: 1 | T124: -1 | U124: -1 | V124: -1 | W124: 1 | X124: -2 | Y124: -1 | Z124: -1 | AA124: -1 | AB124: 2 | AC124: 1 | AD124: 1 | AE124: 1 | AF124: -1 | AG124: -1 | AH124: 1 | AI124: 1 | AJ124: 1 | AK124: -1 | AL124: -1 | AM124: -1 | AN124: -1 | AO124: -1 | AP124: 1 | AQ124: 1 | AR124: -1 | AS124: -1 | AT124: -1 | AU124: 1 | AV124: -1 | AW124: 2 | AX124: 2 | AY124: -1 | AZ124: -1 | BA124: 1 | BB124: 1 | BC124: 1 | BD124: -1 | BE124: -1 | BF124: -1 | BG124: -1 | BH124: -1 | BI124: 1 | BJ124: 1 | BK124: -1 | BL124: 1 | BM124: 1 | BN124: -1 | BO124: 1 | BP124: -1 | BQ124: -1 | BR124: 1 | BS124: -1 | BT124: 1 | BU124: 1 | BV124: -1 | BW124: -1 | BX124: -1 | BY124: 1 | BZ124: 1 | CA124: -1 | CB124: 1 | CC124: 1 | CD124: -1 | CE124: -2 | CF124: -1 | CG124: 2 | CH124: -1 | CI124: -1 | CJ124: 1 | CK124: 1 | CL124: 1 | CM124: 2 | CN124: 1 | CO124: -1 | CP124: 1 | CQ124: -1 | CR124: 1 | CS124: 1 | CT124: -1 | CU124: 1 | CV124: 1 | CW124: -1 | CX124: 1 | CY124: 1 | CZ124: 1 | DA124: 1 | DB124: -1 | DC124: 1 | DD124: 1 | DE124: -1 | DF124: -1 | DG124: -1 | DH124: 1 | DI124: 1 | DJ124: -1 | DK124: 1 | DL124: 1 | DM124: 1 | DN124: -1 | DO124: 1 | DP124: -1 | DQ124: 1 | DR124: 1 | DS124: 1 | DT124: 1 | DU124: 1 | DV124: 1
A125: 1 | B125: 1 | C125: -1 | D125: -1 | E125: -1 | F125: -1 | G125: 2 | H125: 1 | I125: 1 | J125: -2 | K125: -1 | L125: -1 | M125: -1 | N125: -1 | O125: 1 | P125: -1 | Q125: 1 | R125: -1 | S125: -1 | T125: -2 | U125: 1 | V125: -1 | W125: -1 | X125: 1 | Y125: 1 | Z125: 1 | AA125: -1 | AB125: 1 | AC125: 1 | AD125: -2 | AE125: -1 | AF125: 1 | AG125: -1 | AH125: -1 | AI125: -1 | AJ125: -1 | AK125: -1 | AL125: 1 | AM125: -1 | AN125: -1 | AO125: -1 | AP125: -1 | AQ125: 2 | AR125: 1 | AS125: 1 | AT125: 1 | AU125: -1 | AV125: -1 | AW125: 2 | AX125: -1 | AY125: -1 | AZ125: -1 | BA125: -1 | BB125: 1 | BC125: -1 | BD125: -1 | BE125: -1 | BF125: 1 | BG125: 1 | BH125: -1 | BI125: -1 | BJ125: 1 | BK125: -1 | BL125: 1 | BM125: -1 | BN125: 1 | BO125: -1 | BP125: -1 | BQ125: -1 | BR125: 2 | BS125: 2 | BT125: 1 | BU125: -1 | BV125: 1 | BW125: 1 | BX125: -1 | BY125: 1 | BZ125: -1 | CA125: 1 | CB125: -1 | CC125: 1 | CD125: 1 | CE125: -1 | CF125: 1 | CG125: 2 | CH125: -1 | CI125: 1 | CJ125: 1 | CK125: 1 | CL125: 1 | CM125: 1 | CN125: 1 | CO125: -1 | CP125: -1 | CQ125: 1 | CR125: 1 | CS125: -1 | CT125: 1 | CU125: -1 | CV125: 1 | CW125: 1 | CX125: 1 | CY125: -1 | CZ125: 1 | DA125: 1 | DB125: 1 | DC125: 1 | DD125: -2 | DE125: -1 | DF125: 1 | DG125: -1 | DH125: 1 | DI125: 1 | DJ125: -1 | DK125: -1 | DL125: 1 | DM125: -1 | DN125: -1 | DO125: 1 | DP125: 1 | DQ125: 1 | DR125: -1 | DS125: 1 | DT125: -1 | DU125: -1 | DV125: 1
A126: 2 | B126: 1 | C126: -1 | D126: -1 | E126: 1 | F126: 1 | G126: 1 | H126: -1 | I126: -1 | J126: -1 | K126: 1 | L126: 1 | M126: -1 | N126: -1 | O126: -1 | P126: 1 | Q126: 1 | R126: -1 | S126: 1 | T126: -1 | U126: 1 | V126: -1 | W126: -1 | X126: -1 | Y126: -1 | Z126: 1 | AA126: 1 | AB126: 1 | AC126: -1 | AD126: -1 | AE126: -1 | AF126: -1 | AG126: 1 | AH126: -1 | AI126: 1 | AJ126: 1 | AK126: -1 | AL126: 1 | AM126: -1 | AN126: 1 | AO126: -1 | AP126: -1 | AQ126: 1 | AR126: -1 | AS126: 1 | AT126: 1 | AU126: -1 | AV126: -1 | AW126: 1 | AX126: 1 | AY126: -1 | AZ126: -1 | BA126: -1 | BB126: -1 | BC126: -1 | BD126: 1 | BE126: -1 | BF126: 1 | BG126: 1 | BH126: 1 | BI126: 1 | BJ126: 1 | BK126: 1 | BL126: 1 | BM126: 1 | BN126: -1 | BO126: 1 | BP126: 1 | BQ126: -1 | BR126: 2 | BS126: 2 | BT126: -1 | BU126: 1 | BV126: -1 | BW126: -1 | BX126: 1 | BY126: 1 | BZ126: -1 | CA126: 1 | CB126: -1 | CC126: 1 | CD126: 1 | CE126: -1 | CF126: 1 | CG126: 1 | CH126: 1 | CI126: 1 | CJ126: 1 | CK126: -1 | CL126: 1 | CM126: 2 | CN126: 1 | CO126: 1 | CP126: -1 | CQ126: -1 | CR126: 1 | CS126: 1 | CT126: 1 | CU126: -1 | CV126: -1 | CW126: -1 | CX126: -1 | CY126: -1 | CZ126: 1 | DA126: 1 | DB126: 1 | DC126: -1 | DD126: -1 | DE126: 1 | DF126: 1 | DG126: -1 | DH126: 2 | DI126: 1 | DJ126: -1 | DK126: -1 | DL126: 1 | DM126: -1 | DN126: -1 | DO126: 1 | DP126: -1 | DQ126: 1 | DR126: -1 | DS126: 1 | DT126: -1 | DU126: -1 | DV126: -1
A127: -1 | B127: -1 | C127: -1 | D127: -1 | E127: 1 | F127: -1 | G127: -1 | H127: -2 | I127: 1 | J127: 2 | K127: -2 | L127: -1 | M127: 1 | N127: -1 | O127: 1 | P127: 1 | Q127: -1 | R127: 2 | S127: 1 | T127: 1 | U127: 1 | V127: 1 | W127: -1 | X127: 1 | Y127: 1 | Z127: 2 | AA127: -1 | AB127: -1 | AC127: 1 | AD127: 1 | AE127: 1 | AF127: -1 | AG127: 1 | AH127: 1 | AI127: -1 | AJ127: 1 | AK127: -1 | AL127: -1 | AM127: -1 | AN127: 1 | AO127: 2 | AP127: -1 | AQ127: 1 | AR127: -1 | AS127: -1 | AT127: 2 | AU127: -1 | AV127: -1 | AW127: -1 | AX127: -2 | AY127: 1 | AZ127: 1 | BA127: 1 | BB127: -1 | BC127: 1 | BD127: 1 | BE127: -1 | BF127: 1 | BG127: 1 | BH127: -1 | BI127: -1 | BJ127: 1 | BK127: 1 | BL127: 1 | BM127: -1 | BN127: -1 | BO127: -1 | BP127: 1 | BQ127: -1 | BR127: -2 | BS127: 1 | BT127: -1 | BU127: 1 | BV127: -1 | BW127: 1 | BX127: -1 | BY127: 1 | BZ127: -1 | CA127: -1 | CB127: 1 | CC127: 2 | CD127: 1 | CE127: 1 | CF127: -1 | CG127: 1 | CH127: 1 | CI127: -1 | CJ127: -1 | CK127: -1 | CL127: -1 | CM127: 1 | CN127: -1 | CO127: 1 | CP127: 1 | CQ127: -1 | CR127: 1 | CS127: -1 | CT127: 1 | CU127: 1 | CV127: 1 | CW127: 1 | CX127: -1 | CY127: 1 | CZ127: 1 | DA127: -1 | DB127: 1 | DC127: -1 | DD127: -1 | DE127: 1 | DF127: 1 | DG127: 1 | DH127: 1 | DI127: -2 | DJ127: 1 | DK127: 1 | DL127: -1 | DM127: 1 | DN127: 1 | DO127: -1 | DP127: -1 | DQ127: -1 | DR127: 1 | DS127: -1 | DT127: 1 | DU127: 1 | DV127: -1
A128: -1 | B128: 1 | C128: 1 | D128: -1 | E128: 2 | F128: 1 | G128: 1 | H128: -2 | I128: 1 | J128: 1 | K128: -1 | L128: 1 | M128: 1 | N128: 1 | O128: 1 | P128: 2 | Q128: 2 | R128: 1 | S128: 1 | T128: 1 | U128: -1 | V128: 1 | W128: -1 | X128: 1 | Y128: 1 | Z128: 1 | AA128: -1 | AB128: -2 | AC128: 1 | AD128: -1 | AE128: 1 | AF128: -1 | AG128: -1 | AH128: 1 | AI128: -1 | AJ128: -1 | AK128: -1 | AL128: 1 | AM128: 2 | AN128: -1 | AO128: 1 | AP128: 1 | AQ128: 1 | AR128: -1 | AS128: 1 | AT128: 1 | AU128: 1 | AV128: -2 | AW128: 1 | AX128: -2 | AY128: 1 | AZ128: -1 | BA128: -1 | BB128: -1 | BC128: -1 | BD128: -1 | BE128: -1 | BF128: -1 | BG128: 1 | BH128: 1 | BI128: 1 | BJ128: -1 | BK128: 1 | BL128: 2 | BM128: -1 | BN128: 1 | BO128: 1 | BP128: 1 | BQ128: -1 | BR128: -1 | BS128: 1 | BT128: -1 | BU128: -1 | BV128: -1 | BW128: 1 | BX128: -1 | BY128: 1 | BZ128: 1 | CA128: -2 | CB128: 2 | CC128: 1 | CD128: 1 | CE128: 1 | CF128: 1 | CG128: 1 | CH128: -1 | CI128: 1 | CJ128: -1 | CK128: 1 | CL128: 1 | CM128: 2 | CN128: -1 | CO128: -1 | CP128: -1 | CQ128: -1 | CR128: -1 | CS128: 1 | CT128: -1 | CU128: -1 | CV128: 1 | CW128: 2 | CX128: 1 | CY128: 1 | CZ128: -1 | DA128: -1 | DB128: 1 | DC128: 1 | DD128: 2 | DE128: -1 | DF128: 2 | DG128: -2 | DH128: -1 | DI128: -1 | DJ128: -1 | DK128: 1 | DL128: 1 | DM128: 2 | DN128: -1 | DO128: -1 | DP128: -1 | DQ128: -2 | DR128: 2 | DS128: 2 | DT128: 1 | DU128: 1 | DV128: -1
A129: -2 | B129: -1 | C129: 1 | D129: 1 | E129: 1 | F129: 1 | G129: -1 | H129: -1 | I129: -1 | J129: -1 | K129: -1 | L129: -1 | M129: -1 | N129: 1 | O129: -1 | P129: 2 | Q129: 2 | R129: -1 | S129: -1 | T129: 1 | U129: -1 | V129: -1 | W129: -1 | X129: 1 | Y129: -1 | Z129: 2 | AA129: -1 | AB129: -1 | AC129: -1 | AD129: 1 | AE129: 1 | AF129: 1 | AG129: 1 | AH129: -1 | AI129: -1 | AJ129: -1 | AK129: -1 | AL129: 2 | AM129: 1 | AN129: -1 | AO129: 1 | AP129: 2 | AQ129: -1 | AR129: -1 | AS129: -1 | AT129: 1 | AU129: 1 | AV129: 1 | AW129: -1 | AX129: -2 | AY129: 1 | AZ129: -1 | BA129: 1 | BB129: -1 | BC129: -1 | BD129: 1 | BE129: -1 | BF129: -1 | BG129: 2 | BH129: 1 | BI129: -1 | BJ129: 1 | BK129: 1 | BL129: 2 | BM129: 1 | BN129: 2 | BO129: 1 | BP129: 2 | BQ129: 1 | BR129: 1 | BS129: -2 | BT129: -1 | BU129: 2 | BV129: 1 | BW129: 1 | BX129: 1 | BY129: -2 | BZ129: -1 | CA129: -1 | CB129: 2 | CC129: 1 | CD129: 1 | CE129: 1 | CF129: 2 | CG129: 1 | CH129: 1 | CI129: 1 | CJ129: 1 | CK129: -1 | CL129: -1 | CM129: -1 | CN129: -1 | CO129: -1 | CP129: 1 | CQ129: 1 | CR129: 1 | CS129: -1 | CT129: 1 | CU129: 1 | CV129: -1 | CW129: 1 | CX129: -1 | CY129: -1 | CZ129: -1 | DA129: -1 | DB129: 1 | DC129: 1 | DD129: 1 | DE129: -1 | DF129: 1 | DG129: -1 | DH129: -1 | DI129: -1 | DJ129: -1 | DK129: -1 | DL129: -1 | DM129: -1 | DN129: -1 | DO129: -1 | DP129: -1 | DQ129: 1 | DR129: -1 | DS129: 1 | DT129: -1 | DU129: 1 | DV129: 1
A130: 1 | B130: 1 | C130: 2 | D130: -1 | E130: 1 | F130: -1 | G130: 1 | H130: -1 | I130: 1 | J130: -1 | K130: -2 | L130: -1 | M130: 1 | N130: 1 | O130: -1 | P130: -1 | Q130: 1 | R130: 1 | S130: 1 | T130: 1 | U130: -1 | V130: 2 | W130: 1 | X130: 2 | Y130: 1 | Z130: 1 | AA130: -1 | AB130: -1 | AC130: -1 | AD130: 1 | AE130: 1 | AF130: -1 | AG130: -1 | AH130: 1 | AI130: 1 | AJ130: -2 | AK130: -1 | AL130: 1 | AM130: -1 | AN130: -1 | AO130: 1 | AP130: 1 | AQ130: 1 | AR130: -1 | AS130: 2 | AT130: 2 | AU130: 1 | AV130: 1 | AW130: -1 | AX130: -1 | AY130: -2 | AZ130: -1 | BA130: -2 | BB130: -1 | BC130: -1 | BD130: -2 | BE130: -1 | BF130: -1 | BG130: 1 | BH130: -1 | BI130: -2 | BJ130: 1 | BK130: 1 | BL130: 2 | BM130: 1 | BN130: 2 | BO130: -1 | BP130: -1 | BQ130: 1 | BR130: -2 | BS130: -1 | BT130: 1 | BU130: 1 | BV130: -2 | BW130: 1 | BX130: -1 | BY130: 1 | BZ130: -1 | CA130: 1 | CB130: 1 | CC130: 1 | CD130: -1 | CE130: 1 | CF130: 1 | CG130: 2 | CH130: -1 | CI130: 1 | CJ130: 1 | CK130: -1 | CL130: -1 | CM130: -1 | CN130: -1 | CO130: -1 | CP130: 1 | CQ130: 1 | CR130: 1 | CS130: -1 | CT130: 1 | CU130: -1 | CV130: -1 | CW130: 1 | CX130: -1 | CY130: -1 | CZ130: 2 | DA130: 2 | DB130: 2 | DC130: -1 | DD130: 2 | DE130: -1 | DF130: -1 | DG130: -1 | DH130: 1 | DI130: -2 | DJ130: -1 | DK130: -1 | DL130: -1 | DM130: 1 | DN130: -1 | DO130: 1 | DP130: -1 | DQ130: -1 | DR130: -1 | DS130: 1 | DT130: 1 | DU130: 1 | DV130: 1
A131: 2 | B131: -1 | C131: 1 | D131: 1 | E131: 1 | F131: -2 | G131: -1 | H131: -1 | I131: -1 | J131: -1 | K131: -2 | L131: 1 | M131: 1 | N131: -1 | O131: -2 | P131: -2 | Q131: 4 | R131: 1 | S131: 1 | T131: 1 | U131: -1 | V131: 2 | W131: 1 | X131: -1 | Y131: 1 | Z131: 1 | AA131: -1 | AB131: -1 | AC131: -2 | AD131: 1 | AE131: -1 | AF131: -1 | AG131: 1 | AH131: -1 | AI131: 1 | AJ131: -1 | AK131: 1 | AL131: 1 | AM131: -1 | AN131: -1 | AO131: -1 | AP131: 1 | AQ131: 1 | AR131: -1 | AS131: 1 | AT131: -1 | AU131: -1 | AV131: -1 | AW131: 1 | AX131: -1 | AY131: 1 | AZ131: -1 | BA131: -1 | BB131: 1 | BC131: -1 | BD131: -1 | BE131: -1 | BF131: 1 | BG131: 2 | BH131: -1 | BI131: 1 | BJ131: 1 | BK131: -1 | BL131: 1 | BM131: -1 | BN131: 1 | BO131: -1 | BP131: 1 | BQ131: -2 | BR131: -1 | BS131: -1 | BT131: 1 | BU131: -1 | BV131: 1 | BW131: 2 | BX131: 1 | BY131: -2 | BZ131: -1 | CA131: -1 | CB131: 2 | CC131: 2 | CD131: 1 | CE131: -1 | CF131: 1 | CG131: 1 | CH131: -1 | CI131: -1 | CJ131: -1 | CK131: -1 | CL131: -1 | CM131: -1 | CN131: -2 | CO131: 1 | CP131: 1 | CQ131: -1 | CR131: 1 | CS131: -1 | CT131: -1 | CU131: -2 | CV131: -1 | CW131: 1 | CX131: -1 | CY131: 1 | CZ131: 1 | DA131: 1 | DB131: 1 | DC131: -1 | DD131: 1 | DE131: 1 | DF131: 2 | DG131: -2 | DH131: -1 | DI131: -2 | DJ131: -1 | DK131: -1 | DL131: -2 | DM131: 1 | DN131: -2 | DO131: 1 | DP131: -1 | DQ131: -1 | DR131: 2 | DS131: -1 | DT131: -2 | DU131: 1 | DV131: -1
A132: 2 | B132: -1 | C132: 2 | D132: 1 | E132: -1 | F132: -1 | G132: -1 | H132: 1 | I132: -1 | J132: -1 | K132: -1 | L132: 2 | M132: -1 | N132: -2 | O132: -1 | P132: -1 | Q132: 2 | R132: 2 | S132: -1 | T132: 1 | U132: 1 | V132: 1 | W132: 1 | X132: 1 | Y132: -1 | Z132: 1 | AA132: -1 | AB132: -1 | AC132: -2 | AD132: -1 | AE132: -1 | AF132: 1 | AG132: 1 | AH132: -1 | AI132: -1 | AJ132: -2 | AK132: 1 | AL132: 2 | AM132: 1 | AN132: 1 | AO132: 2 | AP132: -1 | AQ132: 2 | AR132: 1 | AS132: 1 | AT132: -1 | AU132: 1 | AV132: -2 | AW132: -1 | AX132: 1 | AY132: 1 | AZ132: -1 | BA132: -1 | BB132: 1 | BC132: -1 | BD132: -2 | BE132: -2 | BF132: 1 | BG132: 2 | BH132: 1 | BI132: -1 | BJ132: 1 | BK132: 1 | BL132: 1 | BM132: -1 | BN132: 1 | BO132: -1 | BP132: 1 | BQ132: 1 | BR132: -1 | BS132: -1 | BT132: 1 | BU132: 1 | BV132: -1 | BW132: -1 | BX132: -1 | BY132: 1 | BZ132: -1 | CA132: -1 | CB132: 2 | CC132: -1 | CD132: -1 | CE132: 2 | CF132: 2 | CG132: 1 | CH132: -1 | CI132: 2 | CJ132: -1 | CK132: 1 | CL132: -1 | CM132: 1 | CN132: -2 | CO132: 1 | CP132: -1 | CQ132: -1 | CR132: 1 | CS132: -1 | CT132: -1 | CU132: -1 | CV132: 1 | CW132: 1 | CX132: -1 | CY132: -1 | CZ132: -1 | DA132: 1 | DB132: 2 | DC132: 1 | DD132: 2 | DE132: 1 | DF132: 1 | DG132: -1 | DH132: -1 | DI132: -2 | DJ132: -1 | DK132: 1 | DL132: -2 | DM132: -1 | DN132: 1 | DO132: -2 | DP132: -1 | DQ132: -1 | DR132: 1 | DS132: 1 | DT132: 1 | DU132: 1 | DV132: -1
A133: 1 | B133: 1 | C133: 2 | D133: -1 | E133: -1 | F133: -1 | G133: -1 | H133: 1 | I133: -1 | J133: 1 | K133: -1 | L133: -1 | M133: 1 | N133: 1 | O133: 1 | P133: 2 | Q133: -1 | R133: -1 | S133: -1 | T133: 1 | U133: 1 | V133: 1 | W133: -1 | X133: 2 | Y133: 1 | Z133: -1 | AA133: 1 | AB133: -2 | AC133: 1 | AD133: 1 | AE133: 1 | AF133: 1 | AG133: -1 | AH133: -1 | AI133: 1 | AJ133: -2 | AK133: 1 | AL133: -1 | AM133: -1 | AN133: -2 | AO133: 1 | AP133: 1 | AQ133: 1 | AR133: -2 | AS133: -1 | AT133: 1 | AU133: 2 | AV133: 1 | AW133: -2 | AX133: -1 | AY133: -1 | AZ133: 1 | BA133: -2 | BB133: 1 | BC133: -1 | BD133: -1 | BE133: -2 | BF133: 1 | BG133: 1 | BH133: 2 | BI133: -1 | BJ133: -1 | BK133: 1 | BL133: -1 | BM133: 1 | BN133: 2 | BO133: 1 | BP133: 1 | BQ133: -1 | BR133: -2 | BS133: -1 | BT133: -1 | BU133: 1 | BV133: -1 | BW133: -1 | BX133: 1 | BY133: -1 | BZ133: -1 | CA133: 1 | CB133: 1 | CC133: 1 | CD133: -1 | CE133: 1 | CF133: -1 | CG133: 1 | CH133: -1 | CI133: 1 | CJ133: 1 | CK133: 1 | CL133: -1 | CM133: -2 | CN133: -1 | CO133: 1 | CP133: -1 | CQ133: -1 | CR133: 1 | CS133: -1 | CT133: 1 | CU133: -2 | CV133: 1 | CW133: 1 | CX133: 1 | CY133: 1 | CZ133: 2 | DA133: 1 | DB133: -1 | DC133: -1 | DD133: 1 | DE133: -1 | DF133: 2 | DG133: -1 | DH133: 1 | DI133: -1 | DJ133: -1 | DK133: 1 | DL133: 1 | DM133: -1 | DN133: -1 | DO133: 1 | DP133: 1 | DQ133: 1 | DR133: 1 | DS133: 1 | DT133: 1 | DU133: 1 | DV133: -1
A134: 2 | B134: -1 | C134: 1 | D134: -1 | E134: -1 | F134: -1 | G134: -1 | H134: -1 | I134: -1 | J134: 1 | K134: -1 | L134: 1 | M134: 1 | N134: -1 | O134: -2 | P134: 1 | Q134: -1 | R134: 1 | S134: -1 | T134: -1 | U134: 1 | V134: 2 | W134: 1 | X134: 1 | Y134: 1 | Z134: 2 | AA134: -1 | AB134: -1 | AC134: 1 | AD134: 1 | AE134: 1 | AF134: 1 | AG134: -1 | AH134: 1 | AI134: 1 | AJ134: -1 | AK134: 2 | AL134: -1 | AM134: -1 | AN134: -1 | AO134: -1 | AP134: -1 | AQ134: 2 | AR134: -2 | AS134: 1 | AT134: 1 | AU134: 1 | AV134: 1 | AW134: -1 | AX134: 1 | AY134: 1 | AZ134: -1 | BA134: -1 | BB134: -1 | BC134: -1 | BD134: -1 | BE134: -1 | BF134: -1 | BG134: 1 | BH134: 1 | BI134: -1 | BJ134: 2 | BK134: -1 | BL134: 1 | BM134: 1 | BN134: 2 | BO134: 1 | BP134: 1 | BQ134: -1 | BR134: 1 | BS134: -1 | BT134: -1 | BU134: 1 | BV134: -1 | BW134: 2 | BX134: 1 | BY134: -1 | BZ134: -1 | CA134: -1 | CB134: 2 | CC134: 1 | CD134: -2 | CE134: -1 | CF134: 1 | CG134: 2 | CH134: -1 | CI134: -1 | CJ134: 2 | CK134: 1 | CL134: 1 | CM134: -2 | CN134: -1 | CO134: -1 | CP134: 1 | CQ134: -2 | CR134: -1 | CS134: -1 | CT134: -1 | CU134: 1 | CV134: -1 | CW134: 1 | CX134: 1 | CY134: -1 | CZ134: 1 | DA134: 1 | DB134: 1 | DC134: -1 | DD134: 2 | DE134: 1 | DF134: 1 | DG134: -2 | DH134: -1 | DI134: -1 | DJ134: -1 | DK134: 1 | DL134: -1 | DM134: -1 | DN134: -1 | DO134: -2 | DP134: -2 | DQ134: -1 | DR134: 2 | DS134: 1 | DT134: -2 | DU134: 1 | DV134: 1
A135: 1 | B135: 1 | C135: 1 | D135: 1 | E135: 1 | F135: -1 | G135: -2 | H135: 1 | I135: -1 | J135: 1 | K135: -2 | L135: 1 | M135: 1 | N135: -1 | O135: -2 | P135: -1 | Q135: 1 | R135: 1 | S135: 1 | T135: 1 | U135: 1 | V135: 1 | W135: -1 | X135: 1 | Y135: 1 | Z135: 1 | AA135: 1 | AB135: -1 | AC135: 1 | AD135: 1 | AE135: 1 | AF135: -2 | AG135: 1 | AH135: 1 | AI135: 1 | AJ135: -2 | AK135: 1 | AL135: 1 | AM135: -1 | AN135: -1 | AO135: -1 | AP135: -1 | AQ135: 1 | AR135: 1 | AS135: 1 | AT135: -1 | AU135: 1 | AV135: -1 | AW135: -1 | AX135: 1 | AY135: 1 | AZ135: -1 | BA135: -2 | BB135: -1 | BC135: -1 | BD135: -1 | BE135: -1 | BF135: 1 | BG135: 2 | BH135: 1 | BI135: 1 | BJ135: 1 | BK135: 1 | BL135: 2 | BM135: -1 | BN135: 1 | BO135: 1 | BP135: 2 | BQ135: -2 | BR135: -1 | BS135: -1 | BT135: -1 | BU135: 1 | BV135: -1 | BW135: 1 | BX135: -1 | BY135: -1 | BZ135: -2 | CA135: 1 | CB135: 1 | CC135: 1 | CD135: -1 | CE135: 1 | CF135: 1 | CG135: 1 | CH135: -1 | CI135: 2 | CJ135: 1 | CK135: 2 | CL135: 1 | CM135: -1 | CN135: 1 | CO135: -1 | CP135: -1 | CQ135: 1 | CR135: 1 | CS135: 1 | CT135: -1 | CU135: -1 | CV135: -1 | CW135: 1 | CX135: 1 | CY135: -1 | CZ135: 1 | DA135: 1 | DB135: 1 | DC135: 1 | DD135: 2 | DE135: -1 | DF135: -1 | DG135: 1 | DH135: -1 | DI135: -1 | DJ135: -1 | DK135: -1 | DL135: 1 | DM135: 1 | DN135: -1 | DO135: -2 | DP135: -1 | DQ135: 1 | DR135: 1 | DS135: -1 | DT135: -1 | DU135: 1 | DV135: -1
A136: 2 | B136: -1 | C136: -1 | D136: -1 | E136: 1 | F136: 1 | G136: -1 | H136: 1 | I136: -1 | J136: 1 | K136: -1 | L136: -1 | M136: -1 | N136: 1 | O136: 1 | P136: 1 | Q136: 1 | R136: -1 | S136: 1 | T136: 1 | U136: -1 | V136: 1 | W136: 1 | X136: -1 | Y136: 1 | Z136: 1 | AA136: 1 | AB136: -1 | AC136: 1 | AD136: -1 | AE136: -1 | AF136: -1 | AG136: 1 | AH136: 1 | AI136: 1 | AJ136: -1 | AK136: -1 | AL136: -1 | AM136: -1 | AN136: -1 | AO136: -1 | AP136: 1 | AQ136: -1 | AR136: -1 | AS136: 1 | AT136: 1 | AU136: 1 | AV136: -1 | AW136: 1 | AX136: 1 | AY136: -1 | AZ136: -1 | BA136: -1 | BB136: 1 | BC136: -1 | BD136: 1 | BE136: -1 | BF136: 1 | BG136: -1 | BH136: 1 | BI136: -1 | BJ136: 1 | BK136: 1 | BL136: 1 | BM136: -1 | BN136: 1 | BO136: -1 | BP136: 1 | BQ136: -1 | BR136: -1 | BS136: -1 | BT136: 1 | BU136: 1 | BV136: 1 | BW136: 1 | BX136: 1 | BY136: 1 | BZ136: -1 | CA136: 1 | CB136: -1 | CC136: 1 | CD136: -1 | CE136: -1 | CF136: -1 | CG136: 1 | CH136: 1 | CI136: 1 | CJ136: -1 | CK136: 1 | CL136: -1 | CM136: -1 | CN136: 1 | CO136: 1 | CP136: 1 | CQ136: -1 | CR136: 1 | CS136: -1 | CT136: 1 | CU136: 1 | CV136: -1 | CW136: -1 | CX136: -1 | CY136: -1 | CZ136: 1 | DA136: 1 | DB136: 1 | DC136: 1 | DD136: 1 | DE136: -1 | DF136: 1 | DG136: -1 | DH136: 1 | DI136: 1 | DJ136: -1 | DK136: 1 | DL136: 1 | DM136: 1 | DN136: -1 | DO136: 1 | DP136: -1 | DQ136: 1 | DR136: 1 | DS136: 1 | DT136: -1 | DU136: 1 | DV136: -1
A137: -1 | B137: 1 | C137: -1 | D137: 1 | E137: -1 | F137: -1 | G137: -1 | H137: -1 | I137: 1 | J137: 1 | K137: -1 | L137: -1 | M137: 1 | N137: -1 | O137: 1 | P137: 1 | Q137: 1 | R137: -1 | S137: 1 | T137: -1 | U137: 1 | V137: 1 | W137: 1 | X137: 1 | Y137: -1 | Z137: 1 | AA137: -1 | AB137: -1 | AC137: -1 | AD137: 1 | AE137: -1 | AF137: 1 | AG137: -1 | AH137: 1 | AI137: -1 | AJ137: 1 | AK137: -1 | AL137: 1 | AM137: -1 | AN137: 1 | AO137: -1 | AP137: 1 | AQ137: 1 | AR137: -1 | AS137: 1 | AT137: -1 | AU137: -1 | AV137: -1 | AW137: -1 | AX137: 1 | AY137: 1 | AZ137: -1 | BA137: 1 | BB137: 1 | BC137: -1 | BD137: -1 | BE137: 1 | BF137: -1 | BG137: 1 | BH137: 1 | BI137: -1 | BJ137: 1 | BK137: 1 | BL137: 1 | BM137: -1 | BN137: -1 | BO137: 1 | BP137: 1 | BQ137: 1 | BR137: -1 | BS137: -1 | BT137: 1 | BU137: 1 | BV137: -1 | BW137: 1 | BX137: -1 | BY137: -1 | BZ137: 1 | CA137: 1 | CB137: -1 | CC137: -1 | CD137: -1 | CE137: 1 | CF137: 1 | CG137: 1 | CH137: 1 | CI137: 1 | CJ137: -1 | CK137: 1 | CL137: -1 | CM137: -1 | CN137: -1 | CO137: -1 | CP137: -1 | CQ137: -1 | CR137: 1 | CS137: 1 | CT137: -1 | CU137: -1 | CV137: 1 | CW137: 1 | CX137: 1 | CY137: 1 | CZ137: -1 | DA137: -1 | DB137: 1 | DC137: 1 | DD137: -1 | DE137: -1 | DF137: -1 | DG137: 1 | DH137: 1 | DI137: 1 | DJ137: -1 | DK137: 1 | DL137: 1 | DM137: -1 | DN137: 1 | DO137: 1 | DP137: -1 | DQ137: 1 | DR137: 1 | DS137: 1 | DT137: -1 | DU137: -1 | DV137: 1
A138: 1 | B138: -1 | C138: -1 | D138: -1 | E138: -1 | F138: -1 | G138: -1 | H138: 1 | I138: -1 | J138: 1 | K138: 1 | L138: -1 | M138: -1 | N138: -1 | O138: -1 | P138: -1 | Q138: 1 | R138: -1 | S138: 1 | T138: 1 | U138: -1 | V138: 1 | W138: -1 | X138: -1 | Y138: 1 | Z138: 1 | AA138: -1 | AB138: 1 | AC138: 1 | AD138: 1 | AE138: -1 | AF138: -1 | AG138: -1 | AH138: -1 | AI138: -1 | AJ138: 1 | AK138: 1 | AL138: 1 | AM138: 1 | AN138: 1 | AO138: -1 | AP138: -1 | AQ138: 1 | AR138: -1 | AS138: 1 | AT138: -1 | AU138: 1 | AV138: 1 | AW138: -1 | AX138: 1 | AY138: -1 | AZ138: 1 | BA138: -1 | BB138: 1 | BC138: -1 | BD138: -1 | BE138: 1 | BF138: -1 | BG138: -1 | BH138: 1 | BI138: -1 | BJ138: 1 | BK138: -1 | BL138: 1 | BM138: -1 | BN138: -1 | BO138: 1 | BP138: -1 | BQ138: 1 | BR138: -1 | BS138: -1 | BT138: -1 | BU138: -1 | BV138: 1 | BW138: 1 | BX138: 1 | BY138: 1 | BZ138: 1 | CA138: -1 | CB138: 1 | CC138: -1 | CD138: 1 | CE138: -1 | CF138: 1 | CG138: 1 | CH138: -1 | CI138: -1 | CJ138: 1 | CK138: -1 | CL138: 1 | CM138: -1 | CN138: 1 | CO138: -1 | CP138: -1 | CQ138: -1 | CR138: 1 | CS138: 1 | CT138: -1 | CU138: 1 | CV138: -1 | CW138: 1 | CX138: -1 | CY138: -1 | CZ138: -1 | DA138: 1 | DB138: 1 | DC138: -1 | DD138: 1 | DE138: 1 | DF138: 1 | DG138: -1 | DH138: -1 | DI138: 1 | DJ138: 1 | DK138: 1 | DL138: 1 | DM138: -1 | DN138: -1 | DO138: 1 | DP138: -1 | DQ138: 1 | DR138: 1 | DS138: 1 | DT138: -1 | DU138: -1 | DV138: 1
A139: -1 | B139: 1 | C139: 1 | D139: 1 | E139: -1 | F139: 1 | G139: -1 | H139: -1 | I139: -1 | J139: 1 | K139: -1 | L139: -1 | M139: -1 | N139: -1 | O139: -1 | P139: 1 | Q139: 1 | R139: 1 | S139: 1 | T139: 1 | U139: -1 | V139: 1 | W139: 1 | X139: -1 | Y139: -1 | Z139: -1 | AA139: 1 | AB139: 1 | AC139: 1 | AD139: 1 | AE139: 1 | AF139: 1 | AG139: 1 | AH139: 1 | AI139: -1 | AJ139: 1 | AK139: 1 | AL139: 1 | AM139: -1 | AN139: -1 | AO139: -1 | AP139: -1 | AQ139: 1 | AR139: -1 | AS139: -1 | AT139: 1 | AU139: 1 | AV139: 1 | AW139: -1 | AX139: 1 | AY139: 1 | AZ139: -1 | BA139: 1 | BB139: 1 | BC139: -1 | BD139: 1 | BE139: -1 | BF139: 1 | BG139: -1 | BH139: -1 | BI139: -1 | BJ139: 1 | BK139: -1 | BL139: 1 | BM139: -1 | BN139: 1 | BO139: -1 | BP139: 1 | BQ139: -1 | BR139: 1 | BS139: -1 | BT139: -1 | BU139: 1 | BV139: 1 | BW139: -1 | BX139: -1 | BY139: -1 | BZ139: 1 | CA139: 1 | CB139: 1 | CC139: 1 | CD139: -1 | CE139: -1 | CF139: 1 | CG139: 1 | CH139: 1 | CI139: -1 | CJ139: -1 | CK139: -1 | CL139: -1 | CM139: 1 | CN139: 1 | CO139: 1 | CP139: 1 | CQ139: -1 | CR139: 1 | CS139: 1 | CT139: -1 | CU139: -1 | CV139: -1 | CW139: -1 | CX139: 1 | CY139: -1 | CZ139: 1 | DA139: -1 | DB139: 1 | DC139: -1 | DD139: 1 | DE139: 1 | DF139: -1 | DG139: 1 | DH139: -1 | DI139: 1 | DJ139: 1 | DK139: 1 | DL139: 1 | DM139: 1 | DN139: 1 | DO139: -1 | DP139: 1 | DQ139: -1 | DR139: -1 | DS139: 1 | DT139: -1 | DU139: -1 | DV139: 1
A140: -1 | B140: 1 | C140: 1 | D140: -1 | E140: -1 | F140: -1 | G140: -1 | H140: 1 | I140: 1 | J140: 1 | K140: -1 | L140: 1 | M140: 1 | N140: 1 | O140: 1 | P140: 1 | Q140: 1 | R140: -1 | S140: 1 | T140: -1 | U140: 1 | V140: -1 | W140: -1 | X140: 1 | Y140: 1 | Z140: 1 | AA140: 1 | AB140: -1 | AC140: -1 | AD140: -1 | AE140: -1 | AF140: 1 | AG140: -1 | AH140: 1 | AI140: -1 | AJ140: 1 | AK140: 1 | AL140: -1 | AM140: -1 | AN140: 1 | AO140: 1 | AP140: 1 | AQ140: 1 | AR140: 1 | AS140: 1 | AT140: 1 | AU140: 1 | AV140: -1 | AW140: 1 | AX140: -1 | AY140: 1 | AZ140: 1 | BA140: 1 | BB140: -1 | BC140: -1 | BD140: 1 | BE140: 1 | BF140: 1 | BG140: -1 | BH140: -1 | BI140: -1 | BJ140: -1 | BK140: -1 | BL140: 1 | BM140: -1 | BN140: 1 | BO140: -1 | BP140: 1 | BQ140: -1 | BR140: -1 | BS140: -1 | BT140: 1 | BU140: 1 | BV140: -1 | BW140: 1 | BX140: 1 | BY140: -1 | BZ140: -1 | CA140: -1 | CB140: 1 | CC140: 1 | CD140: -1 | CE140: 1 | CF140: -1 | CG140: -1 | CH140: -1 | CI140: -1 | CJ140: -1 | CK140: 1 | CL140: 1 | CM140: -1 | CN140: 1 | CO140: 1 | CP140: -1 | CQ140: 1 | CR140: -1 | CS140: 1 | CT140: 1 | CU140: -1 | CV140: 1 | CW140: -1 | CX140: -1 | CY140: -1 | CZ140: 1 | DA140: 1 | DB140: -1 | DC140: -1 | DD140: 1 | DE140: 1 | DF140: 1 | DG140: -1 | DH140: -1 | DI140: 1 | DJ140: 1 | DK140: -1 | DL140: -1 | DM140: 1 | DN140: 1 | DO140: 1 | DP140: -1 | DQ140: 1 | DR140: 1 | DS140: 1 | DT140: -1 | DU140: 1 | DV140: 1
A141: -1 | B141: -1 | C141: -1 | D141: -1 | E141: -1 | F141: 1 | G141: -1 | H141: 1 | I141: -1 | J141: 1 | K141: 1 | L141: -1 | M141: 1 | N141: -1 | O141: 1 | P141: -1 | Q141: 1 | R141: -1 | S141: -1 | T141: -1 | U141: 1 | V141: -1 | W141: 1 | X141: 1 | Y141: -1 | Z141: -1 | AA141: 1 | AB141: 1 | AC141: 1 | AD141: 1 | AE141: 1 | AF141: -1 | AG141: -1 | AH141: -1 | AI141: 1 | AJ141: -1 | AK141: 1 | AL141: 1 | AM141: 1 | AN141: 1 | AO141: 1 | AP141: 1 | AQ141: -1 | AR141: -1 | AS141: -1 | AT141: 1 | AU141: 1 | AV141: 1 | AW141: -1 | AX141: -1 | AY141: -1 | AZ141: 1 | BA141: -1 | BB141: 1 | BC141: -1 | BD141: -1 | BE141: 1 | BF141: 1 | BG141: -1 | BH141: 1 | BI141: 1 | BJ141: -1 | BK141: 1 | BL141: 1 | BM141: 1 | BN141: 1 | BO141: -1 | BP141: -1 | BQ141: -1 | BR141: 1 | BS141: 1 | BT141: 1 | BU141: 1 | BV141: 1 | BW141: -1 | BX141: -1 | BY141: 1 | BZ141: -1 | CA141: 1 | CB141: 1 | CC141: 1 | CD141: -1 | CE141: 1 | CF141: 1 | CG141: -1 | CH141: 1 | CI141: -1 | CJ141: -1 | CK141: 1 | CL141: 1 | CM141: -1 | CN141: 1 | CO141: -1 | CP141: 1 | CQ141: -1 | CR141: -1 | CS141: 1 | CT141: -1 | CU141: -1 | CV141: -1 | CW141: 1 | CX141: -1 | CY141: -1 | CZ141: 1 | DA141: -1 | DB141: -1 | DC141: -1 | DD141: -1 | DE141: -1 | DF141: -1 | DG141: -1 | DH141: 1 | DI141: -1 | DJ141: 1 | DK141: 1 | DL141: 1 | DM141: -1 | DN141: -1 | DO141: -1 | DP141: 1 | DQ141: -1 | DR141: 1 | DS141: -1 | DT141: -1 | DU141: 1 | DV141: 1
A142: -1 | B142: -1 | C142: -1 | D142: 1 | E142: -1 | F142: 1 | G142: 1 | H142: 1 | I142: 1 | J142: 1 | K142: -1 | L142: -1 | M142: -1 | N142: 1 | O142: 1 | P142: 1 | Q142: 1 | R142: 1 | S142: 1 | T142: 1 | U142: 1 | V142: -1 | W142: 1 | X142: -1 | Y142: -1 | Z142: -1 | AA142: 1 | AB142: -1 | AC142: -1 | AD142: 1 | AE142: 1 | AF142: -1 | AG142: -1 | AH142: 1 | AI142: 1 | AJ142: -1 | AK142: -1 | AL142: -1 | AM142: 1 | AN142: 1 | AO142: 1 | AP142: 1 | AQ142: -1 | AR142: 1 | AS142: 1 | AT142: 1 | AU142: -1 | AV142: 1 | AW142: 1 | AX142: -1 | AY142: 1 | AZ142: -1 | BA142: -1 | BB142: 1 | BC142: 1 | BD142: -1 | BE142: 1 | BF142: -1 | BG142: 1 | BH142: -1 | BI142: -1 | BJ142: 1 | BK142: -1 | BL142: 1 | BM142: 1 | BN142: -1 | BO142: -1 | BP142: 1 | BQ142: -1 | BR142: 1 | BS142: -1 | BT142: -1 | BU142: -1 | BV142: 1 | BW142: -1 | BX142: -1 | BY142: 1 | BZ142: -1 | CA142: 1 | CB142: 1 | CC142: -1 | CD142: 1 | CE142: -1 | CF142: 1 | CG142: 1 | CH142: 1 | CI142: 1 | CJ142: 1 | CK142: 1 | CL142: 1 | CM142: 1 | CN142: 1 | CO142: -1 | CP142: -1 | CQ142: -1 | CR142: -1 | CS142: -1 | CT142: 1 | CU142: 1 | CV142: 1 | CW142: -1 | CX142: 1 | CY142: 1 | CZ142: -1 | DA142: 1 | DB142: -1 | DC142: -1 | DD142: 1 | DE142: 1 | DF142: 1 | DG142: 1 | DH142: 1 | DI142: 1 | DJ142: -1 | DK142: 1 | DL142: 1 | DM142: -1 | DN142: -1 | DO142: 1 | DP142: 1 | DQ142: 1 | DR142: 1 | DS142: 1 | DT142: -1 | DU142: -1 | DV142: -1
A143: -1 | B143: 1 | C143: 1 | D143: -1 | E143: 1 | F143: 1 | G143: 1 | H143: 1 | I143: -1 | J143: 1 | K143: 1 | L143: 1 | M143: -1 | N143: 1 | O143: 1 | P143: 1 | Q143: 1 | R143: 1 | S143: 1 | T143: 1 | U143: 1 | V143: -1 | W143: 1 | X143: 1 | Y143: -1 | Z143: -1 | AA143: -1 | AB143: 1 | AC143: 1 | AD143: 1 | AE143: -1 | AF143: 1 | AG143: -1 | AH143: 1 | AI143: -1 | AJ143: -1 | AK143: 1 | AL143: 1 | AM143: -1 | AN143: -1 | AO143: -1 | AP143: 1 | AQ143: 1 | AR143: 1 | AS143: -1 | AT143: 1 | AU143: 1 | AV143: 1 | AW143: -1 | AX143: 1 | AY143: 1 | AZ143: 1 | BA143: -1 | BB143: -1 | BC143: -1 | BD143: -1 | BE143: 1 | BF143: -1 | BG143: -1 | BH143: -1 | BI143: -1 | BJ143: 1 | BK143: -1 | BL143: 1 | BM143: -1 | BN143: 1 | BO143: -1 | BP143: -1 | BQ143: 1 | BR143: -1 | BS143: -1 | BT143: 1 | BU143: -1 | BV143: 1 | BW143: 1 | BX143: 1 | BY143: -1 | BZ143: -1 | CA143: -1 | CB143: 1 | CC143: 1 | CD143: 1 | CE143: -1 | CF143: 1 | CG143: -1 | CH143: 1 | CI143: 1 | CJ143: -1 | CK143: 1 | CL143: 1 | CM143: -1 | CN143: 1 | CO143: 1 | CP143: -1 | CQ143: 1 | CR143: -1 | CS143: 1 | CT143: -1 | CU143: -1 | CV143: 1 | CW143: -1 | CX143: -1 | CY143: 1 | CZ143: 1 | DA143: -1 | DB143: -1 | DC143: 1 | DD143: 1 | DE143: 1 | DF143: -1 | DG143: -1 | DH143: -1 | DI143: 1 | DJ143: -1 | DK143: 1 | DL143: 1 | DM143: -1 | DN143: -1 | DO143: -1 | DP143: 1 | DQ143: -1 | DR143: -1 | DS143: -1 | DT143: 1 | DU143: -1 | DV143: -1
A144: 1 | B144: 1 | C144: 1 | D144: -1 | E144: 1 | F144: -1 | G144: -1 | H144: -1 | I144: -1 | J144: -1 | K144: -1 | L144: -1 | M144: -1 | N144: 1 | O144: -1 | P144: -1 | Q144: -1 | R144: 1 | S144: 1 | T144: -1 | U144: 1 | V144: 1 | W144: -1 | X144: -1 | Y144: 1 | Z144: -1 | AA144: 1 | AB144: 1 | AC144: -1 | AD144: 1 | AE144: -1 | AF144: 1 | AG144: 1 | AH144: 1 | AI144: -1 | AJ144: 1 | AK144: 1 | AL144: 1 | AM144: 1 | AN144: 1 | AO144: -1 | AP144: -1 | AQ144: -1 | AR144: -1 | AS144: -1 | AT144: 1 | AU144: -1 | AV144: 1 | AW144: 1 | AX144: -1 | AY144: 1 | AZ144: 1 | BA144: -1 | BB144: -1 | BC144: -1 | BD144: 1 | BE144: 1 | BF144: 1 | BG144: -1 | BH144: 1 | BI144: 1 | BJ144: 1 | BK144: 1 | BL144: 1 | BM144: 1 | BN144: -1 | BO144: 1 | BP144: -1 | BQ144: 1 | BR144: 1 | BS144: -1 | BT144: -1 | BU144: 1 | BV144: 1 | BW144: 1 | BX144: 1 | BY144: -1 | BZ144: -1 | CA144: -1 | CB144: -1 | CC144: 1 | CD144: 1 | CE144: -1 | CF144: -1 | CG144: -1 | CH144: -1 | CI144: 1 | CJ144: 1 | CK144: -1 | CL144: 1 | CM144: 1 | CN144: -1 | CO144: 1 | CP144: 1 | CQ144: 1 | CR144: 1 | CS144: -1 | CT144: -1 | CU144: -1 | CV144: -1 | CW144: 1 | CX144: 1 | CY144: -1 | CZ144: 1 | DA144: 1 | DB144: 1 | DC144: -1 | DD144: 1 | DE144: -1 | DF144: -1 | DG144: 1 | DH144: 1 | DI144: 1 | DJ144: -1 | DK144: -1 | DL144: 1 | DM144: 1 | DN144: -1 | DO144: 1 | DP144: 1 | DQ144: 1 | DR144: -1 | DS144: 1 | DT144: 1 | DU144: -1 | DV144: -1
A145: -1 | B145: -1 | C145: -1 | D145: -1 | E145: -1 | F145: -1 | G145: -1 | H145: 1 | I145: -1 | J145: 1 | K145: -1 | L145: -1 | M145: -1 | N145: -1 | O145: -1 | P145: 1 | Q145: -1 | R145: 1 | S145: -1 | T145: -1 | U145: 1 | V145: -1 | W145: 1 | X145: 1 | Y145: 1 | Z145: -1 | AA145: -1 | AB145: 1 | AC145: 1 | AD145: -1 | AE145: 1 | AF145: 1 | AG145: -1 | AH145: -1 | AI145: 1 | AJ145: 1 | AK145: 1 | AL145: -1 | AM145: -1 | AN145: -1 | AO145: 1 | AP145: -1 | AQ145: -1 | AR145: -1 | AS145: -1 | AT145: 1 | AU145: 1 | AV145: -1 | AW145: 1 | AX145: 1 | AY145: -1 | AZ145: 1 | BA145: -1 | BB145: -1 | BC145: 1 | BD145: -1 | BE145: -1 | BF145: 1 | BG145: 1 | BH145: -1 | BI145: -1 | BJ145: -1 | BK145: -1 | BL145: -1 | BM145: -1 | BN145: 1 | BO145: -1 | BP145: -1 | BQ145: -1 | BR145: 1 | BS145: -1 | BT145: -1 | BU145: 1 | BV145: 1 | BW145: -1 | BX145: -1 | BY145: 1 | BZ145: 1 | CA145: 1 | CB145: 1 | CC145: 1 | CD145: -1 | CE145: 1 | CF145: 1 | CG145: 1 | CH145: -1 | CI145: 1 | CJ145: -1 | CK145: 1 | CL145: 1 | CM145: -1 | CN145: -1 | CO145: 1 | CP145: -1 | CQ145: 1 | CR145: -1 | CS145: 1 | CT145: -1 | CU145: -1 | CV145: -1 | CW145: 1 | CX145: 1 | CY145: 1 | CZ145: 1 | DA145: 1 | DB145: -1 | DC145: -1 | DD145: 1 | DE145: -1 | DF145: -1 | DG145: -1 | DH145: -1 | DI145: 1 | DJ145: -1 | DK145: -1 | DL145: 1 | DM145: -1 | DN145: 1 | DO145: 1 | DP145: 1 | DQ145: 1 | DR145: -1 | DS145: -1 | DT145: 1 | DU145: 1 | DV145: -1
A146: 1 | B146: 1 | C146: -1 | D146: -1 | E146: 1 | F146: 1 | G146: -1 | H146: 1 | I146: -1 | J146: 1 | K146: -1 | L146: -1 | M146: -1 | N146: -1 | O146: -1 | P146: -1 | Q146: 1 | R146: -1 | S146: 1 | T146: 1 | U146: -1 | V146: -1 | W146: 1 | X146: -1 | Y146: 1 | Z146: 1 | AA146: -1 | AB146: 1 | AC146: 1 | AD146: -1 | AE146: -1 | AF146: -1 | AG146: 1 | AH146: 1 | AI146: -1 | AJ146: 1 | AK146: -1 | AL146: 1 | AM146: -1 | AN146: 1 | AO146: 1 | AP146: -1 | AQ146: 1 | AR146: -1 | AS146: 1 | AT146: 1 | AU146: -1 | AV146: 1 | AW146: -1 | AX146: 1 | AY146: 1 | AZ146: -1 | BA146: 1 | BB146: 1 | BC146: 1 | BD146: 1 | BE146: 1 | BF146: 1 | BG146: -1 | BH146: -1 | BI146: 1 | BJ146: -1 | BK146: -1 | BL146: 1 | BM146: -1 | BN146: -1 | BO146: 1 | BP146: 1 | BQ146: -1 | BR146: -1 | BS146: 1 | BT146: 1 | BU146: -1 | BV146: 1 | BW146: 1 | BX146: 1 | BY146: 1 | BZ146: -1 | CA146: 1 | CB146: 1 | CC146: 1 | CD146: -1 | CE146: 1 | CF146: -1 | CG146: -1 | CH146: -1 | CI146: 1 | CJ146: 1 | CK146: -1 | CL146: -1 | CM146: 1 | CN146: 1 | CO146: 1 | CP146: -1 | CQ146: -1 | CR146: 1 | CS146: -1 | CT146: -1 | CU146: 1 | CV146: 1 | CW146: -1 | CX146: 1 | CY146: -1 | CZ146: 1 | DA146: 1 | DB146: -1 | DC146: 1 | DD146: -1 | DE146: 1 | DF146: 1 | DG146: 1 | DH146: 1 | DI146: 1 | DJ146: -1 | DK146: -1 | DL146: 1 | DM146: 1 | DN146: 1 | DO146: -1 | DP146: 1 | DQ146: -1 | DR146: 1 | DS146: -1 | DT146: -1 | DU146: -1 | DV146: 1
A147: -1 | B147: -1 | C147: -1 | D147: 1 | E147: -1 | F147: 1 | G147: -1 | H147: -1 | I147: -1 | J147: -1 | K147: -1 | L147: -1 | M147: -1 | N147: -1 | O147: 1 | P147: -1 | Q147: -1 | R147: -1 | S147: 1 | T147: 1 | U147: 1 | V147: -1 | W147: 1 | X147: -1 | Y147: 1 | Z147: -1 | AA147: -1 | AB147: 1 | AC147: -1 | AD147: 1 | AE147: -1 | AF147: -1 | AG147: -1 | AH147: 1 | AI147: -1 | AJ147: -1 | AK147: -1 | AL147: -1 | AM147: 1 | AN147: -1 | AO147: -1 | AP147: 1 | AQ147: -1 | AR147: -1 | AS147: 1 | AT147: 1 | AU147: -1 | AV147: -1 | AW147: 1 | AX147: -1 | AY147: 1 | AZ147: 1 | BA147: 1 | BB147: 1 | BC147: 1 | BD147: 1 | BE147: 1 | BF147: -1 | BG147: 1 | BH147: -1 | BI147: -1 | BJ147: 1 | BK147: -1 | BL147: 1 | BM147: 1 | BN147: -1 | BO147: 1 | BP147: 1 | BQ147: -1 | BR147: 1 | BS147: -1 | BT147: 1 | BU147: 1 | BV147: -1 | BW147: -1 | BX147: -1 | BY147: 1 | BZ147: 1 | CA147: 1 | CB147: -1 | CC147: 1 | CD147: -1 | CE147: 1 | CF147: -1 | CG147: 1 | CH147: 1 | CI147: -1 | CJ147: -1 | CK147: -1 | CL147: -1 | CM147: 1 | CN147: -1 | CO147: 1 | CP147: -1 | CQ147: -1 | CR147: -1 | CS147: 1 | CT147: -1 | CU147: -1 | CV147: 1 | CW147: -1 | CX147: 1 | CY147: -1 | CZ147: -1 | DA147: -1 | DB147: 1 | DC147: 1 | DD147: -1 | DE147: -1 | DF147: 1 | DG147: 1 | DH147: 1 | DI147: -1 | DJ147: 1 | DK147: 1 | DL147: -1 | DM147: -1 | DN147: 1 | DO147: 1 | DP147: 1 | DQ147: -1 | DR147: 1 | DS147: -1 | DT147: -1 | DU147: -1 | DV147: 1
A148: 1 | B148: 1 | C148: -1 | D148: 1 | E148: -1 | F148: -1 | G148: -1 | H148: -1 | I148: 1 | J148: 1 | K148: -1 | L148: -1 | M148: 1 | N148: -1 | O148: 1 | P148: -1 | Q148: 1 | R148: 1 | S148: -1 | T148: -1 | U148: 1 | V148: -1 | W148: 1 | X148: -1 | Y148: -1 | Z148: -1 | AA148: -1 | AB148: -1 | AC148: -1 | AD148: 1 | AE148: 1 | AF148: 1 | AG148: 1 | AH148: -1 | AI148: -1 | AJ148: -1 | AK148: -1 | AL148: 1 | AM148: -1 | AN148: 1 | AO148: 1 | AP148: 1 | AQ148: -1 | AR148: -1 | AS148: -1 | AT148: 1 | AU148: 1 | AV148: -1 | AW148: -1 | AX148: 1 | AY148: 1 | AZ148: 1 | BA148: -1 | BB148: -1 | BC148: -1 | BD148: 1 | BE148: -1 | BF148: -1 | BG148: -1 | BH148: 1 | BI148: 1 | BJ148: 1 | BK148: -1 | BL148: 1 | BM148: -1 | BN148: -1 | BO148: 1 | BP148: -1 | BQ148: -1 | BR148: 1 | BS148: -1 | BT148: -1 | BU148: -1 | BV148: 1 | BW148: -1 | BX148: 1 | BY148: -1 | BZ148: -1 | CA148: 1 | CB148: -1 | CC148: 1 | CD148: 1 | CE148: -1 | CF148: 1 | CG148: -1 | CH148: -1 | CI148: -1 | CJ148: 1 | CK148: -1 | CL148: -1 | CM148: 1 | CN148: -1 | CO148: -1 | CP148: 1 | CQ148: -1 | CR148: 1 | CS148: 1 | CT148: 1 | CU148: -1 | CV148: -1 | CW148: -1 | CX148: 1 | CY148: -1 | CZ148: 1 | DA148: 1 | DB148: -1 | DC148: -1 | DD148: -1 | DE148: -1 | DF148: -1 | DG148: -1 | DH148: 1 | DI148: -1 | DJ148: 1 | DK148: 1 | DL148: 1 | DM148: 1 | DN148: -1 | DO148: 1 | DP148: 1 | DQ148: 1 | DR148: -1 | DS148: -1 | DT148: 1 | DU148: 1 | DV148: -1
A149: 1 | B149: -1 | C149: 1 | D149: 1 | E149: -1 | F149: 1 | G149: 1 | H149: -1 | I149: 1 | J149: 1 | K149: 1 | L149: -1 | M149: -1 | N149: 1 | O149: -1 | P149: -1 | Q149: 1 | R149: 1 | S149: -1 | T149: -1 | U149: -1 | V149: -1 | W149: 1 | X149: -1 | Y149: 1 | Z149: -1 | AA149: 1 | AB149: 1 | AC149: -1 | AD149: -1 | AE149: 1 | AF149: -1 | AG149: 1 | AH149: 1 | AI149: 1 | AJ149: 1 | AK149: -1 | AL149: -1 | AM149: 1 | AN149: 1 | AO149: -1 | AP149: 1 | AQ149: -1 | AR149: 1 | AS149: 1 | AT149: -1 | AU149: -1 | AV149: -1 | AW149: -1 | AX149: -1 | AY149: -1 | AZ149: -1 | BA149: -1 | BB149: 1 | BC149: 1 | BD149: -1 | BE149: 1 | BF149: 1 | BG149: -1 | BH149: -1 | BI149: -1 | BJ149: -1 | BK149: -1 | BL149: -1 | BM149: -1 | BN149: 1 | BO149: 1 | BP149: 1 | BQ149: -1 | BR149: 1 | BS149: -1 | BT149: -1 | BU149: 1 | BV149: -1 | BW149: -1 | BX149: 1 | BY149: 1 | BZ149: 1 | CA149: -1 | CB149: 1 | CC149: -1 | CD149: 1 | CE149: -1 | CF149: -1 | CG149: 1 | CH149: -1 | CI149: 1 | CJ149: -1 | CK149: 1 | CL149: 1 | CM149: -1 | CN149: -1 | CO149: -1 | CP149: -1 | CQ149: 1 | CR149: -1 | CS149: 1 | CT149: 1 | CU149: -1 | CV149: 1 | CW149: -1 | CX149: -1 | CY149: -1 | CZ149: 1 | DA149: 1 | DB149: 1 | DC149: -1 | DD149: 1 | DE149: 1 | DF149: -1 | DG149: 1 | DH149: -1 | DI149: -1 | DJ149: 1 | DK149: -1 | DL149: -1 | DM149: -1 | DN149: -1 | DO149: -1 | DP149: 1 | DQ149: -1 | DR149: 1 | DS149: 1 | DT149: 1 | DU149: 1 | DV149: -1
A150: 1 | B150: 1 | C150: -1 | D150: 1 | E150: 1 | F150: -1 | G150: -1 | H150: -1 | I150: -1 | J150: 1 | K150: -1 | L150: 1 | M150: 1 | N150: -1 | O150: 1 | P150: 1 | Q150: 1 | R150: 1 | S150: 1 | T150: 1 | U150: -1 | V150: 1 | W150: 1 | X150: 1 | Y150: 1 | Z150: -1 | AA150: -1 | AB150: -1 | AC150: 1 | AD150: -1 | AE150: -1 | AF150: -1 | AG150: -1 | AH150: 1 | AI150: 1 | AJ150: 1 | AK150: -1 | AL150: -1 | AM150: 1 | AN150: -1 | AO150: -1 | AP150: -1 | AQ150: -1 | AR150: 1 | AS150: 1 | AT150: 1 | AU150: 1 | AV150: 1 | AW150: -1 | AX150: 1 | AY150: -1 | AZ150: -1 | BA150: 1 | BB150: -1 | BC150: 1 | BD150: -1 | BE150: -1 | BF150: 1 | BG150: 1 | BH150: 1 | BI150: 1 | BJ150: 1 | BK150: 1 | BL150: -1 | BM150: 1 | BN150: -1 | BO150: 1 | BP150: 1 | BQ150: 1 | BR150: 1 | BS150: 1 | BT150: 1 | BU150: 1 | BV150: -1 | BW150: -1 | BX150: -1 | BY150: -1 | BZ150: 1 | CA150: -1 | CB150: 1 | CC150: -1 | CD150: 1 | CE150: 1 | CF150: 1 | CG150: -1 | CH150: -1 | CI150: 1 | CJ150: -1 | CK150: -1 | CL150: 1 | CM150: 1 | CN150: 1 | CO150: -1 | CP150: 1 | CQ150: 1 | CR150: 1 | CS150: 1 | CT150: 1 | CU150: 1 | CV150: 1 | CW150: -1 | CX150: -1 | CY150: 1 | CZ150: 1 | DA150: 1 | DB150: 1 | DC150: 1 | DD150: 1 | DE150: -1 | DF150: 1 | DG150: -1 | DH150: -1 | DI150: 1 | DJ150: 1 | DK150: 1 | DL150: -1 | DM150: -1 | DN150: 1 | DO150: -1 | DP150: 1 | DQ150: 1 | DR150: -1 | DS150: 1 | DT150: 1 | DU150: 1 | DV150: 1
A151: 1 | B151: -1 | C151: -1 | D151: -1 | E151: -1 | F151: 1 | G151: 1 | H151: -1 | I151: 1 | J151: -1 | K151: -1 | L151: 1 | M151: -1 | N151: 1 | O151: 1 | P151: 1 | Q151: 1 | R151: 1 | S151: 1 | T151: -1 | U151: -1 | V151: 1 | W151: -1 | X151: 1 | Y151: -1 | Z151: -1 | AA151: -1 | AB151: -1 | AC151: -1 | AD151: -1 | AE151: -1 | AF151: -1 | AG151: 1 | AH151: -1 | AI151: -1 | AJ151: -1 | AK151: 1 | AL151: 1 | AM151: 1 | AN151: 1 | AO151: -1 | AP151: -1 | AQ151: -1 | AR151: 1 | AS151: 1 | AT151: 1 | AU151: 1 | AV151: 1 | AW151: -1 | AX151: 1 | AY151: 1 | AZ151: -1 | BA151: 1 | BB151: 1 | BC151: 1 | BD151: 1 | BE151: 1 | BF151: 1 | BG151: -1 | BH151: -1 | BI151: 1 | BJ151: -1 | BK151: -1 | BL151: 1 | BM151: -1 | BN151: -1 | BO151: 1 | BP151: -1 | BQ151: 1 | BR151: -1 | BS151: -1 | BT151: 1 | BU151: -1 | BV151: 1 | BW151: 1 | BX151: 1 | BY151: 1 | BZ151: 1 | CA151: 1 | CB151: -1 | CC151: 1 | CD151: 1 | CE151: 1 | CF151: 1 | CG151: -1 | CH151: -1 | CI151: -1 | CJ151: 1 | CK151: -1 | CL151: 1 | CM151: -1 | CN151: -1 | CO151: -1 | CP151: 1 | CQ151: 1 | CR151: -1 | CS151: 1 | CT151: -1 | CU151: -1 | CV151: -1 | CW151: 1 | CX151: -1 | CY151: 1 | CZ151: -1 | DA151: 1 | DB151: -1 | DC151: 1 | DD151: -1 | DE151: -1 | DF151: 1 | DG151: 1 | DH151: -1 | DI151: 1 | DJ151: -1 | DK151: -1 | DL151: 1 | DM151: 1 | DN151: 1 | DO151: -1 | DP151: -1 | DQ151: -1 | DR151: -1 | DS151: -1 | DT151: -1 | DU151: 1 | DV151: 1
A152: -1 | B152: -1 | C152: -1 | D152: -1 | E152: -1 | F152: 1 | G152: -1 | H152: -1 | I152: -1 | J152: -1 | K152: 1 | L152: -1 | M152: -1 | N152: 1 | O152: -1 | P152: 1 | Q152: -1 | R152: 1 | S152: -1 | T152: 1 | U152: 1 | V152: -1 | W152: 1 | X152: -1 | Y152: -1 | Z152: -1 | AA152: -1 | AB152: -1 | AC152: -1 | AD152: -1 | AE152: -1 | AF152: 1 | AG152: -1 | AH152: -1 | AI152: 1 | AJ152: -1 | AK152: 1 | AL152: -1 | AM152: 1 | AN152: -1 | AO152: 1 | AP152: -1 | AQ152: 1 | AR152: 1 | AS152: -1 | AT152: -1 | AU152: -1 | AV152: 1 | AW152: -1 | AX152: -1 | AY152: 1 | AZ152: 1 | BA152: -1 | BB152: 1 | BC152: 1 | BD152: -1 | BE152: -1 | BF152: 1 | BG152: 1 | BH152: 1 | BI152: -1 | BJ152: 1 | BK152: -1 | BL152: -1 | BM152: -1 | BN152: -1 | BO152: 1 | BP152: -1 | BQ152: 1 | BR152: -1 | BS152: 1 | BT152: -1 | BU152: -1 | BV152: -1 | BW152: -1 | BX152: -1 | BY152: 1 | BZ152: 1 | CA152: 1 | CB152: -1 | CC152: -1 | CD152: 1 | CE152: 1 | CF152: -1 | CG152: 1 | CH152: 1 | CI152: -1 | CJ152: 1 | CK152: -1 | CL152: 1 | CM152: -1 | CN152: 1 | CO152: 1 | CP152: 1 | CQ152: 1 | CR152: -1 | CS152: -1 | CT152: 1 | CU152: -1 | CV152: -1 | CW152: 1 | CX152: -1 | CY152: 1 | CZ152: -1 | DA152: 1 | DB152: -1 | DC152: 1 | DD152: -1 | DE152: 1 | DF152: -1 | DG152: 1 | DH152: -1 | DI152: -1 | DJ152: -1 | DK152: 1 | DL152: 1 | DM152: -1 | DN152: 1 | DO152: -1 | DP152: 1 | DQ152: 1 | DR152: -1 | DS152: -1 | DT152: 1 | DU152: -1 | DV152: -1
A153: -1 | B153: -1 | C153: -1 | D153: 1 | E153: 1 | F153: 1 | G153: -1 | H153: 1 | I153: -1 | J153: 1 | K153: -1 | L153: 1 | M153: 1 | N153: 1 | O153: 1 | P153: 1 | Q153: -1 | R153: 1 | S153: -1 | T153: -1 | U153: -1 | V153: 1 | W153: -1 | X153: 1 | Y153: 1 | Z153: 1 | AA153: 1 | AB153: -1 | AC153: -1 | AD153: -1 | AE153: 1 | AF153: -1 | AG153: -1 | AH153: -1 | AI153: 1 | AJ153: 1 | AK153: 1 | AL153: 1 | AM153: 1 | AN153: -1 | AO153: 1 | AP153: 1 | AQ153: -1 | AR153: -1 | AS153: 1 | AT153: -1 | AU153: -1 | AV153: 1 | AW153: -1 | AX153: 1 | AY153: -1 | AZ153: -1 | BA153: 1 | BB153: 1 | BC153: -1 | BD153: -1 | BE153: 1 | BF153: -1 | BG153: -1 | BH153: -1 | BI153: -1 | BJ153: 1 | BK153: 1 | BL153: 1 | BM153: 1 | BN153: 1 | BO153: -1 | BP153: 1 | BQ153: -1 | BR153: 1 | BS153: 1 | BT153: 1 | BU153: 1 | BV153: -1 | BW153: -1 | BX153: 1 | BY153: -1 | BZ153: -1 | CA153: 1 | CB153: -1 | CC153: 1 | CD153: 1 | CE153: -1 | CF153: 1 | CG153: -1 | CH153: -1 | CI153: -1 | CJ153: -1 | CK153: -1 | CL153: -1 | CM153: -1 | CN153: 1 | CO153: 1 | CP153: -1 | CQ153: -1 | CR153: 1 | CS153: 1 | CT153: 1 | CU153: 1 | CV153: -1 | CW153: 1 | CX153: 1 | CY153: -1 | CZ153: 1 | DA153: -1 | DB153: -1 | DC153: -1 | DD153: -1 | DE153: 1 | DF153: 1 | DG153: 1 | DH153: 1 | DI153: 1 | DJ153: -1 | DK153: 1 | DL153: 1 | DM153: -1 | DN153: -1 | DO153: 1 | DP153: -1 | DQ153: -1 | DR153: 1 | DS153: 1 | DT153: -1 | DU153: 1 | DV153: 1
A154: -2 | B154: -1 | C154: -1 | D154: 1 | E154: -1 | F154: -1 | G154: -1 | H154: 1 | I154: -1 | J154: 1 | K154: 1 | L154: 1 | M154: 1 | N154: 1 | O154: 1 | P154: -1 | Q154: 1 | R154: 1 | S154: -1 | T154: 1 | U154: 1 | V154: -1 | W154: -1 | X154: -1 | Y154: -1 | Z154: 1 | AA154: -1 | AB154: 1 | AC154: 1 | AD154: 1 | AE154: 1 | AF154: -1 | AG154: 1 | AH154: 1 | AI154: -1 | AJ154: -1 | AK154: -1 | AL154: 1 | AM154: 1 | AN154: 1 | AO154: 1 | AP154: 1 | AQ154: -4 | AR154: 1 | AS154: -1 | AT154: -1 | AU154: 1 | AV154: -1 | AW154: 1 | AX154: -1 | AY154: 1 | AZ154: -1 | BA154: -1 | BB154: -1 | BC154: 1 | BD154: 1 | BE154: -1 | BF154: -1 | BG154: -1 | BH154: 1 | BI154: 1 | BJ154: 1 | BK154: -1 | BL154: 1 | BM154: 1 | BN154: -1 | BO154: -1 | BP154: 1 | BQ154: -1 | BR154: 1 | BS154: -1 | BT154: -1 | BU154: -1 | BV154: -1 | BW154: 1 | BX154: -1 | BY154: -1 | BZ154: -1 | CA154: -1 | CB154: -1 | CC154: -1 | CD154: 1 | CE154: 1 | CF154: -1 | CG154: -1 | CH154: -1 | CI154: 1 | CJ154: -1 | CK154: -1 | CL154: 1 | CM154: 2 | CN154: 1 | CO154: -1 | CP154: -1 | CQ154: -1 | CR154: -1 | CS154: 1 | CT154: -1 | CU154: 1 | CV154: 1 | CW154: 1 | CX154: 1 | CY154: -1 | CZ154: -1 | DA154: -1 | DB154: -1 | DC154: 1 | DD154: -1 | DE154: 1 | DF154: 1 | DG154: -1 | DH154: -1 | DI154: 1 | DJ154: -1 | DK154: -1 | DL154: -1 | DM154: -1 | DN154: -1 | DO154: -1 | DP154: 1 | DQ154: -1 | DR154: -1 | DS154: -1 | DT154: -1 | DU154: 1 | DV154: 1
A155: -2 | B155: 1 | C155: 1 | D155: 1 | E155: 1 | F155: -1 | G155: 1 | H155: 1 | I155: 1 | J155: 1 | K155: -1 | L155: 1 | M155: 1 | N155: 1 | O155: -1 | P155: -1 | Q155: 1 | R155: 1 | S155: 1 | T155: 1 | U155: -1 | V155: -1 | W155: -1 | X155: -1 | Y155: -1 | Z155: -1 | AA155: -1 | AB155: 1 | AC155: 1 | AD155: 1 | AE155: -1 | AF155: -1 | AG155: 1 | AH155: -1 | AI155: 1 | AJ155: 1 | AK155: -1 | AL155: -1 | AM155: 1 | AN155: -1 | AO155: -1 | AP155: -1 | AQ155: -2 | AR155: 1 | AS155: 1 | AT155: -1 | AU155: -1 | AV155: 1 | AW155: -1 | AX155: -1 | AY155: 1 | AZ155: 1 | BA155: 1 | BB155: 1 | BC155: 1 | BD155: -1 | BE155: 1 | BF155: -1 | BG155: -1 | BH155: 1 | BI155: 1 | BJ155: -1 | BK155: 1 | BL155: -1 | BM155: -1 | BN155: 1 | BO155: -1 | BP155: -1 | BQ155: 1 | BR155: 1 | BS155: 1 | BT155: -1 | BU155: -1 | BV155: 1 | BW155: 1 | BX155: 1 | BY155: 1 | BZ155: 1 | CA155: 1 | CB155: 1 | CC155: -1 | CD155: 1 | CE155: 1 | CF155: -1 | CG155: -2 | CH155: 1 | CI155: -1 | CJ155: -1 | CK155: -1 | CL155: -1 | CM155: 1 | CN155: 1 | CO155: 1 | CP155: -1 | CQ155: 1 | CR155: 1 | CS155: 1 | CT155: 1 | CU155: 1 | CV155: -1 | CW155: -1 | CX155: 1 | CY155: 1 | CZ155: -1 | DA155: -1 | DB155: -1 | DC155: -1 | DD155: 1 | DE155: -1 | DF155: 1 | DG155: 1 | DH155: 1 | DI155: 1 | DJ155: 1 | DK155: 1 | DL155: -1 | DM155: 1 | DN155: 1 | DO155: -1 | DP155: -1 | DQ155: -1 | DR155: 1 | DS155: 1 | DT155: -1 | DU155: -1 | DV155: -1
A156: 1 | B156: -1 | C156: -1 | D156: -1 | E156: -1 | F156: -1 | G156: -1 | H156: 1 | I156: -1 | J156: -1 | K156: -1 | L156: 1 | M156: 1 | N156: -1 | O156: 1 | P156: -1 | Q156: -1 | R156: -1 | S156: -1 | T156: -1 | U156: -1 | V156: 2 | W156: -1 | X156: 1 | Y156: -1 | Z156: 1 | AA156: -1 | AB156: 1 | AC156: -1 | AD156: -1 | AE156: -1 | AF156: -1 | AG156: -1 | AH156: 1 | AI156: 1 | AJ156: -1 | AK156: 1 | AL156: -1 | AM156: 1 | AN156: 1 | AO156: -1 | AP156: 1 | AQ156: 1 | AR156: 1 | AS156: 1 | AT156: -1 | AU156: -1 | AV156: 1 | AW156: 1 | AX156: 1 | AY156: -1 | AZ156: 1 | BA156: -1 | BB156: -1 | BC156: 1 | BD156: -1 | BE156: -1 | BF156: 1 | BG156: -1 | BH156: -1 | BI156: 1 | BJ156: 1 | BK156: 1 | BL156: 2 | BM156: 1 | BN156: -1 | BO156: -1 | BP156: 1 | BQ156: 1 | BR156: -1 | BS156: 1 | BT156: 1 | BU156: 1 | BV156: -1 | BW156: -1 | BX156: 1 | BY156: 1 | BZ156: -1 | CA156: -1 | CB156: -1 | CC156: -1 | CD156: -1 | CE156: -2 | CF156: 1 | CG156: 1 | CH156: 1 | CI156: 1 | CJ156: 1 | CK156: -1 | CL156: 1 | CM156: 1 | CN156: -1 | CO156: -1 | CP156: -1 | CQ156: 1 | CR156: 1 | CS156: -1 | CT156: 1 | CU156: -1 | CV156: -1 | CW156: -1 | CX156: 1 | CY156: 1 | CZ156: 1 | DA156: -1 | DB156: 1 | DC156: 1 | DD156: -1 | DE156: -1 | DF156: -1 | DG156: -1 | DH156: 1 | DI156: 1 | DJ156: 1 | DK156: -1 | DL156: 1 | DM156: -1 | DN156: -1 | DO156: 1 | DP156: -1 | DQ156: 1 | DR156: 1 | DS156: -1 | DT156: -1 | DU156: 1 | DV156: 1
A157: -2 | B157: 1 | C157: 1 | D157: -1 | E157: 1 | F157: 1 | G157: 1 | H157: 2 | I157: 1 | J157: 1 | K157: 1 | L157: -1 | M157: -1 | N157: -1 | O157: -1 | P157: 1 | Q157: -1 | R157: 1 | S157: 1 | T157: 1 | U157: -1 | V157: -1 | W157: 1 | X157: 1 | Y157: -1 | Z157: -1 | AA157: -1 | AB157: 1 | AC157: 1 | AD157: 1 | AE157: -1 | AF157: 1 | AG157: -1 | AH157: -1 | AI157: 1 | AJ157: -1 | AK157: 1 | AL157: 1 | AM157: -1 | AN157: 1 | AO157: -1 | AP157: 1 | AQ157: -2 | AR157: 1 | AS157: -1 | AT157: 1 | AU157: -1 | AV157: -1 | AW157: 1 | AX157: 1 | AY157: -1 | AZ157: 1 | BA157: 1 | BB157: -1 | BC157: -1 | BD157: 1 | BE157: -1 | BF157: 1 | BG157: 1 | BH157: -1 | BI157: 1 | BJ157: 1 | BK157: 1 | BL157: 1 | BM157: -1 | BN157: -1 | BO157: -1 | BP157: -1 | BQ157: 1 | BR157: 1 | BS157: 1 | BT157: -1 | BU157: 1 | BV157: -1 | BW157: 1 | BX157: 1 | BY157: 1 | BZ157: 1 | CA157: 1 | CB157: -1 | CC157: -1 | CD157: 1 | CE157: -1 | CF157: 1 | CG157: -1 | CH157: 1 | CI157: 1 | CJ157: -1 | CK157: 1 | CL157: -1 | CM157: -1 | CN157: -1 | CO157: 1 | CP157: -1 | CQ157: 1 | CR157: -1 | CS157: -1 | CT157: -1 | CU157: 1 | CV157: 1 | CW157: -1 | CX157: -1 | CY157: -1 | CZ157: -1 | DA157: -1 | DB157: 1 | DC157: 1 | DD157: -1 | DE157: -1 | DF157: -1 | DG157: -1 | DH157: 1 | DI157: 1 | DJ157: 1 | DK157: -1 | DL157: 1 | DM157: 1 | DN157: -1 | DO157: -1 | DP157: 1 | DQ157: -1 | DR157: 1 | DS157: -1 | DT157: -1 | DU157: -1 | DV157: 1
A158: -2 | B158: 1 | C158: 1 | D158: -1 | E158: -1 | F158: -1 | G158: -1 | H158: 1 | I158: 1 | J158: 1 | K158: -1 | L158: -1 | M158: 1 | N158: 1 | O158: -1 | P158: -1 | Q158: 1 | R158: 1 | S158: 1 | T158: 1 | U158: -1 | V158: 2 | W158: -1 | X158: 1 | Y158: 1 | Z158: 1 | AA158: -1 | AB158: 1 | AC158: -1 | AD158: 1 | AE158: 1 | AF158: -1 | AG158: 1 | AH158: 1 | AI158: 1 | AJ158: -1 | AK158: 1 | AL158: -1 | AM158: 1 | AN158: -1 | AO158: -1 | AP158: 1 | AQ158: -1 | AR158: 1 | AS158: 1 | AT158: 1 | AU158: -1 | AV158: 1 | AW158: 1 | AX158: 1 | AY158: -1 | AZ158: -1 | BA158: 1 | BB158: 1 | BC158: -1 | BD158: 1 | BE158: -1 | BF158: -1 | BG158: 1 | BH158: -1 | BI158: -1 | BJ158: 1 | BK158: -1 | BL158: -1 | BM158: -1 | BN158: -1 | BO158: -1 | BP158: 1 | BQ158: -1 | BR158: -1 | BS158: 1 | BT158: -1 | BU158: -1 | BV158: -1 | BW158: -1 | BX158: -1 | BY158: 1 | BZ158: -1 | CA158: 1 | CB158: -1 | CC158: 1 | CD158: -1 | CE158: -1 | CF158: 1 | CG158: -1 | CH158: -1 | CI158: 1 | CJ158: 1 | CK158: -1 | CL158: 1 | CM158: 1 | CN158: 2 | CO158: 1 | CP158: -1 | CQ158: -1 | CR158: 1 | CS158: 1 | CT158: 1 | CU158: -1 | CV158: -1 | CW158: -1 | CX158: 1 | CY158: -1 | CZ158: -1 | DA158: -1 | DB158: 1 | DC158: -1 | DD158: -1 | DE158: -1 | DF158: -1 | DG158: -1 | DH158: -1 | DI158: 1 | DJ158: -1 | DK158: 1 | DL158: 1 | DM158: -1 | DN158: -1 | DO158: -1 | DP158: 1 | DQ158: 1 | DR158: -1 | DS158: -1 | DT158: -1 | DU158: -1 | DV158: 1
A159: 1 | B159: 1 | C159: 1 | D159: 1 | E159: 1 | F159: -1 | G159: -1 | H159: -1 | I159: 1 | J159: -1 | K159: -1 | L159: -1 | M159: -1 | N159: -1 | O159: -1 | P159: 1 | Q159: 1 | R159: -1 | S159: 1 | T159: 1 | U159: -1 | V159: 1 | W159: 1 | X159: 1 | Y159: 1 | Z159: 1 | AA159: 1 | AB159: 1 | AC159: 1 | AD159: 1 | AE159: -1 | AF159: -1 | AG159: -1 | AH159: 1 | AI159: 1 | AJ159: -1 | AK159: 1 | AL159: 1 | AM159: 1 | AN159: -1 | AO159: -1 | AP159: 1 | AQ159: 2 | AR159: 1 | AS159: 1 | AT159: 1 | AU159: 1 | AV159: -1 | AW159: 1 | AX159: -1 | AY159: 1 | AZ159: -1 | BA159: -1 | BB159: -1 | BC159: -1 | BD159: 1 | BE159: -1 | BF159: -1 | BG159: 1 | BH159: 1 | BI159: -1 | BJ159: -1 | BK159: -1 | BL159: 2 | BM159: 1 | BN159: -1 | BO159: 1 | BP159: -1 | BQ159: 1 | BR159: -1 | BS159: 1 | BT159: 1 | BU159: -1 | BV159: 1 | BW159: -1 | BX159: -1 | BY159: -1 | BZ159: -1 | CA159: 1 | CB159: -1 | CC159: 1 | CD159: -1 | CE159: 1 | CF159: -1 | CG159: 2 | CH159: -1 | CI159: 1 | CJ159: 1 | CK159: 1 | CL159: 1 | CM159: -1 | CN159: 1 | CO159: 1 | CP159: -1 | CQ159: -1 | CR159: -1 | CS159: 1 | CT159: -1 | CU159: -1 | CV159: -1 | CW159: 1 | CX159: 1 | CY159: -1 | CZ159: 1 | DA159: 1 | DB159: 1 | DC159: -1 | DD159: -1 | DE159: -1 | DF159: 1 | DG159: 1 | DH159: 1 | DI159: 1 | DJ159: 1 | DK159: 1 | DL159: 1 | DM159: 1 | DN159: -1 | DO159: 1 | DP159: -1 | DQ159: -1 | DR159: 1 | DS159: -1 | DT159: 1 | DU159: 1 | DV159: 1
A160: 1 | B160: -1 | C160: 1 | D160: -1 | E160: 1 | F160: -1 | G160: 1 | H160: -1 | I160: -1 | J160: -1 | K160: 1 | L160: -1 | M160: 1 | N160: -1 | O160: -1 | P160: 1 | Q160: 1 | R160: 1 | S160: -1 | T160: 1 | U160: 1 | V160: 1 | W160: -1 | X160: 1 | Y160: 1 | Z160: -1 | AA160: 1 | AB160: -1 | AC160: -1 | AD160: 1 | AE160: -1 | AF160: 1 | AG160: -1 | AH160: -1 | AI160: 1 | AJ160: -1 | AK160: 1 | AL160: 1 | AM160: 1 | AN160: -1 | AO160: -1 | AP160: -1 | AQ160: 1 | AR160: 1 | AS160: 1 | AT160: -1 | AU160: 1 | AV160: 1 | AW160: 2 | AX160: -1 | AY160: -1 | AZ160: -1 | BA160: -1 | BB160: -1 | BC160: 1 | BD160: -1 | BE160: 1 | BF160: 1 | BG160: 1 | BH160: -1 | BI160: -1 | BJ160: 1 | BK160: -1 | BL160: 2 | BM160: -1 | BN160: -1 | BO160: 1 | BP160: -1 | BQ160: -1 | BR160: 1 | BS160: 1 | BT160: 1 | BU160: -1 | BV160: 1 | BW160: -1 | BX160: -1 | BY160: 1 | BZ160: -1 | CA160: 1 | CB160: -1 | CC160: 1 | CD160: 1 | CE160: -1 | CF160: -1 | CG160: 1 | CH160: -1 | CI160: 1 | CJ160: -1 | CK160: -1 | CL160: -1 | CM160: 1 | CN160: 1 | CO160: 1 | CP160: 1 | CQ160: -1 | CR160: -1 | CS160: -1 | CT160: 1 | CU160: 1 | CV160: 1 | CW160: 1 | CX160: 1 | CY160: 1 | CZ160: 1 | DA160: 1 | DB160: -1 | DC160: 1 | DD160: -1 | DE160: 1 | DF160: -1 | DG160: -1 | DH160: 1 | DI160: 1 | DJ160: -1 | DK160: 1 | DL160: -1 | DM160: 1 | DN160: -1 | DO160: -1 | DP160: -1 | DQ160: 1 | DR160: -1 | DS160: -1 | DT160: 1 | DU160: -1 | DV160: 1
A161: 4 | B161: 1 | C161: -1 | D161: -1 | E161: -1 | F161: -1 | G161: 1 | H161: -1 | I161: -1 | J161: -1 | K161: -1 | L161: 1 | M161: -1 | N161: -1 | O161: 1 | P161: 1 | Q161: -1 | R161: -1 | S161: 1 | T161: -1 | U161: -1 | V161: 4 | W161: 1 | X161: -1 | Y161: -1 | Z161: -1 | AA161: -1 | AB161: -1 | AC161: 1 | AD161: -1 | AE161: 1 | AF161: -1 | AG161: 1 | AH161: -1 | AI161: -1 | AJ161: 1 | AK161: -1 | AL161: -1 | AM161: 1 | AN161: 1 | AO161: -1 | AP161: -1 | AQ161: 2 | AR161: 1 | AS161: 1 | AT161: 1 | AU161: 1 | AV161: -1 | AW161: 1 | AX161: -1 | AY161: 1 | AZ161: -1 | BA161: 1 | BB161: -1 | BC161: -1 | BD161: -1 | BE161: -1 | BF161: 1 | BG161: 1 | BH161: 1 | BI161: 1 | BJ161: 1 | BK161: 1 | BL161: -1 | BM161: 1 | BN161: 1 | BO161: -1 | BP161: 1 | BQ161: 1 | BR161: 1 | BS161: 1 | BT161: 1 | BU161: 1 | BV161: 1 | BW161: 1 | BX161: 1 | BY161: 1 | BZ161: -1 | CA161: -1 | CB161: -1 | CC161: 1 | CD161: 1 | CE161: -1 | CF161: -1 | CG161: 1 | CH161: 1 | CI161: -1 | CJ161: 1 | CK161: 1 | CL161: 1 | CM161: 1 | CN161: -1 | CO161: 1 | CP161: -1 | CQ161: -1 | CR161: -1 | CS161: 1 | CT161: -1 | CU161: 1 | CV161: 1 | CW161: 1 | CX161: 1 | CY161: -1 | CZ161: 1 | DA161: -1 | DB161: -1 | DC161: 1 | DD161: -1 | DE161: 1 | DF161: 1 | DG161: -1 | DH161: 1 | DI161: -1 | DJ161: 1 | DK161: -1 | DL161: 1 | DM161: 1 | DN161: -1 | DO161: -1 | DP161: 1 | DQ161: -1 | DR161: -1 | DS161: -1 | DT161: -1 | DU161: -1 | DV161: -1
A162: 1 | B162: -1 | C162: 1 | D162: -1 | E162: 1 | F162: 1 | G162: -1 | H162: 1 | I162: 1 | J162: 1 | K162: 1 | L162: 1 | M162: -1 | N162: -1 | O162: -1 | P162: 1 | Q162: -1 | R162: 1 | S162: 1 | T162: -1 | U162: -1 | V162: 1 | W162: -1 | X162: 1 | Y162: -1 | Z162: 1 | AA162: -1 | AB162: -1 | AC162: 1 | AD162: 1 | AE162: -1 | AF162: -1 | AG162: 1 | AH162: 1 | AI162: -1 | AJ162: 1 | AK162: 1 | AL162: -1 | AM162: 1 | AN162: 1 | AO162: 1 | AP162: -1 | AQ162: 1 | AR162: -1 | AS162: 1 | AT162: -1 | AU162: -1 | AV162: -1 | AW162: 1 | AX162: 1 | AY162: -1 | AZ162: 1 | BA162: -1 | BB162: -1 | BC162: 1 | BD162: 1 | BE162: -1 | BF162: -1 | BG162: -1 | BH162: 1 | BI162: -1 | BJ162: -1 | BK162: -1 | BL162: 1 | BM162: 1 | BN162: 1 | BO162: -1 | BP162: -1 | BQ162: -1 | BR162: -1 | BS162: -1 | BT162: 1 | BU162: 1 | BV162: 1 | BW162: 1 | BX162: -1 | BY162: -1 | BZ162: 1 | CA162: -1 | CB162: 1 | CC162: -1 | CD162: -1 | CE162: 1 | CF162: 1 | CG162: 1 | CH162: -1 | CI162: -1 | CJ162: 1 | CK162: -1 | CL162: 1 | CM162: 1 | CN162: 1 | CO162: 1 | CP162: 1 | CQ162: 1 | CR162: 1 | CS162: -1 | CT162: -1 | CU162: -1 | CV162: -1 | CW162: -1 | CX162: -1 | CY162: -1 | CZ162: 1 | DA162: -1 | DB162: -1 | DC162: -1 | DD162: -1 | DE162: 1 | DF162: 1 | DG162: -1 | DH162: 1 | DI162: -1 | DJ162: 1 | DK162: 1 | DL162: -1 | DM162: 1 | DN162: -1 | DO162: 1 | DP162: -1 | DQ162: -1 | DR162: 1 | DS162: 1 | DT162: -1 | DU162: -1 | DV162: -1
A163: -2 | B163: -1 | C163: 2 | D163: -1 | E163: 1 | F163: -1 | G163: 1 | H163: -1 | I163: 1 | J163: -1 | K163: -1 | L163: 1 | M163: 1 | N163: -1 | O163: -1 | P163: 1 | Q163: -1 | R163: -1 | S163: -1 | T163: -1 | U163: 1 | V163: -1 | W163: -1 | X163: -1 | Y163: 1 | Z163: 1 | AA163: -1 | AB163: 1 | AC163: 1 | AD163: -1 | AE163: -1 | AF163: -1 | AG163: -1 | AH163: 1 | AI163: 1 | AJ163: -1 | AK163: 1 | AL163: -1 | AM163: -1 | AN163: -1 | AO163: 1 | AP163: 1 | AQ163: -1 | AR163: 1 | AS163: 1 | AT163: 1 | AU163: -1 | AV163: 1 | AW163: -1 | AX163: -1 | AY163: 1 | AZ163: -1 | BA163: -1 | BB163: -1 | BC163: -1 | BD163: 1 | BE163: -1 | BF163: 1 | BG163: -1 | BH163: -1 | BI163: 1 | BJ163: -1 | BK163: 1 | BL163: -2 | BM163: -1 | BN163: 1 | BO163: -1 | BP163: -1 | BQ163: -1 | BR163: -1 | BS163: -1 | BT163: 1 | BU163: 1 | BV163: 1 | BW163: -1 | BX163: -1 | BY163: -1 | BZ163: -1 | CA163: 2 | CB163: -1 | CC163: -1 | CD163: -1 | CE163: 1 | CF163: 1 | CG163: 1 | CH163: -1 | CI163: -1 | CJ163: 1 | CK163: -1 | CL163: -1 | CM163: -1 | CN163: 1 | CO163: 1 | CP163: -1 | CQ163: 1 | CR163: 1 | CS163: 1 | CT163: -1 | CU163: 1 | CV163: 1 | CW163: -1 | CX163: 1 | CY163: -1 | CZ163: 1 | DA163: -1 | DB163: -2 | DC163: -1 | DD163: -1 | DE163: 1 | DF163: -1 | DG163: 1 | DH163: -1 | DI163: -1 | DJ163: 1 | DK163: 1 | DL163: 1 | DM163: -1 | DN163: 1 | DO163: -1 | DP163: 1 | DQ163: 2 | DR163: 1 | DS163: 1 | DT163: 1 | DU163: 1 | DV163: -1
A164: -1 | B164: 1 | C164: 1 | D164: 1 | E164: 1 | F164: 1 | G164: -1 | H164: 1 | I164: -1 | J164: -1 | K164: -1 | L164: 1 | M164: 1 | N164: 1 | O164: -1 | P164: -1 | Q164: 1 | R164: 1 | S164: -1 | T164: 1 | U164: 1 | V164: -4 | W164: -1 | X164: 1 | Y164: -1 | Z164: 1 | AA164: -2 | AB164: 1 | AC164: 1 | AD164: 1 | AE164: -1 | AF164: 1 | AG164: 2 | AH164: 1 | AI164: 1 | AJ164: -1 | AK164: -1 | AL164: -1 | AM164: 1 | AN164: 1 | AO164: -1 | AP164: 1 | AQ164: -2 | AR164: 1 | AS164: -1 | AT164: -1 | AU164: -1 | AV164: -1 | AW164: 1 | AX164: -1 | AY164: 1 | AZ164: 1 | BA164: 1 | BB164: 1 | BC164: -1 | BD164: -1 | BE164: -1 | BF164: -1 | BG164: -1 | BH164: -1 | BI164: -1 | BJ164: 1 | BK164: -1 | BL164: -1 | BM164: 1 | BN164: -1 | BO164: 1 | BP164: -1 | BQ164: 1 | BR164: 1 | BS164: -1 | BT164: 1 | BU164: -1 | BV164: 1 | BW164: 1 | BX164: 1 | BY164: -1 | BZ164: -1 | CA164: -1 | CB164: 1 | CC164: 1 | CD164: 1 | CE164: 1 | CF164: -1 | CG164: 1 | CH164: -1 | CI164: 1 | CJ164: -1 | CK164: -1 | CL164: 1 | CM164: 1 | CN164: 1 | CO164: 1 | CP164: 1 | CQ164: -1 | CR164: 1 | CS164: -1 | CT164: 1 | CU164: -2 | CV164: -1 | CW164: 1 | CX164: 1 | CY164: 1 | CZ164: -1 | DA164: 1 | DB164: 1 | DC164: -1 | DD164: -1 | DE164: -1 | DF164: -1 | DG164: -1 | DH164: -1 | DI164: -1 | DJ164: -1 | DK164: -1 | DL164: -1 | DM164: -1 | DN164: 1 | DO164: 1 | DP164: 1 | DQ164: -1 | DR164: -1 | DS164: 1 | DT164: 1 | DU164: 1 | DV164: 1
A165: 1 | B165: -1 | C165: 1 | D165: 1 | E165: -1 | F165: 1 | G165: -1 | H165: 1 | I165: 1 | J165: 1 | K165: -1 | L165: 1 | M165: 1 | N165: -1 | O165: -1 | P165: -1 | Q165: -1 | R165: -1 | S165: -1 | T165: -1 | U165: -1 | V165: 1 | W165: -1 | X165: 1 | Y165: -1 | Z165: -1 | AA165: 1 | AB165: -1 | AC165: -1 | AD165: -1 | AE165: 1 | AF165: -1 | AG165: -1 | AH165: -1 | AI165: -1 | AJ165: -1 | AK165: -1 | AL165: -1 | AM165: -1 | AN165: -1 | AO165: -1 | AP165: -1 | AQ165: -1 | AR165: -1 | AS165: 1 | AT165: 1 | AU165: -1 | AV165: 1 | AW165: 1 | AX165: -1 | AY165: 1 | AZ165: 2 | BA165: 1 | BB165: -1 | BC165: 1 | BD165: 1 | BE165: 1 | BF165: 1 | BG165: 1 | BH165: 1 | BI165: -1 | BJ165: -1 | BK165: 1 | BL165: -1 | BM165: 1 | BN165: -1 | BO165: -1 | BP165: 1 | BQ165: -2 | BR165: -1 | BS165: -1 | BT165: -1 | BU165: 1 | BV165: 1 | BW165: -1 | BX165: 1 | BY165: 1 | BZ165: -1 | CA165: -1 | CB165: 1 | CC165: -1 | CD165: 1 | CE165: 1 | CF165: -1 | CG165: -2 | CH165: 1 | CI165: 1 | CJ165: 1 | CK165: -1 | CL165: -1 | CM165: -1 | CN165: 1 | CO165: 1 | CP165: 1 | CQ165: -1 | CR165: -1 | CS165: 1 | CT165: -1 | CU165: -1 | CV165: 1 | CW165: 1 | CX165: -1 | CY165: 1 | CZ165: -1 | DA165: -1 | DB165: -1 | DC165: 1 | DD165: 1 | DE165: 1 | DF165: 1 | DG165: -1 | DH165: 1 | DI165: 1 | DJ165: -1 | DK165: -1 | DL165: 1 | DM165: -1 | DN165: 2 | DO165: -1 | DP165: -1 | DQ165: 1 | DR165: 1 | DS165: 1 | DT165: -1 | DU165: 1 | DV165: 1
A166: -4 | B166: -1 | C166: -1 | D166: -1 | E166: -1 | F166: -1 | G166: -1 | H166: 1 | I166: -1 | J166: 1 | K166: 1 | L166: 1 | M166: -1 | N166: 1 | O166: 1 | P166: -1 | Q166: -1 | R166: 1 | S166: 1 | T166: 1 | U166: -1 | V166: -2 | W166: 1 | X166: 1 | Y166: -1 | Z166: -1 | AA166: -1 | AB166: 1 | AC166: -1 | AD166: 1 | AE166: -1 | AF166: 1 | AG166: -1 | AH166: -1 | AI166: 1 | AJ166: 1 | AK166: 2 | AL166: -1 | AM166: 1 | AN166: 1 | AO166: -1 | AP166: 1 | AQ166: 1 | AR166: 1 | AS166: 1 | AT166: 1 | AU166: 1 | AV166: 1 | AW166: -1 | AX166: 1 | AY166: 1 | AZ166: -1 | BA166: 1 | BB166: 1 | BC166: 1 | BD166: 1 | BE166: 1 | BF166: -1 | BG166: -1 | BH166: 1 | BI166: -1 | BJ166: 1 | BK166: -1 | BL166: -4 | BM166: -1 | BN166: -1 | BO166: -1 | BP166: -1 | BQ166: 1 | BR166: -1 | BS166: 1 | BT166: 2 | BU166: 2 | BV166: -1 | BW166: 1 | BX166: 1 | BY166: 1 | BZ166: 1 | CA166: 2 | CB166: -1 | CC166: -1 | CD166: -1 | CE166: 1 | CF166: 1 | CG166: 2 | CH166: -1 | CI166: -1 | CJ166: 1 | CK166: -1 | CL166: 1 | CM166: -1 | CN166: 1 | CO166: -1 | CP166: -2 | CQ166: -1 | CR166: 2 | CS166: -1 | CT166: 1 | CU166: -1 | CV166: 1 | CW166: 1 | CX166: 1 | CY166: 1 | CZ166: 1 | DA166: 1 | DB166: -2 | DC166: 1 | DD166: -1 | DE166: 1 | DF166: -1 | DG166: -1 | DH166: 1 | DI166: -1 | DJ166: 1 | DK166: 1 | DL166: 1 | DM166: 1 | DN166: -1 | DO166: 1 | DP166: -1 | DQ166: 2 | DR166: 1 | DS166: 1 | DT166: -1 | DU166: -2 | DV166: -1
A167: 1 | B167: 1 | C167: 1 | D167: -1 | E167: -1 | F167: 1 | G167: 1 | H167: 1 | I167: -1 | J167: 1 | K167: -1 | L167: -1 | M167: 1 | N167: -1 | O167: -1 | P167: -1 | Q167: -1 | R167: -1 | S167: -1 | T167: -1 | U167: -1 | V167: 1 | W167: -1 | X167: -1 | Y167: -1 | Z167: -1 | AA167: 1 | AB167: -1 | AC167: 1 | AD167: 1 | AE167: -1 | AF167: 1 | AG167: 1 | AH167: 1 | AI167: 1 | AJ167: 1 | AK167: -1 | AL167: -1 | AM167: 1 | AN167: 1 | AO167: -1 | AP167: -1 | AQ167: 1 | AR167: -1 | AS167: -1 | AT167: -1 | AU167: 1 | AV167: -1 | AW167: 1 | AX167: 1 | AY167: 1 | AZ167: -1 | BA167: -1 | BB167: 1 | BC167: 1 | BD167: 1 | BE167: 1 | BF167: 1 | BG167: -1 | BH167: 1 | BI167: -1 | BJ167: 1 | BK167: 1 | BL167: 2 | BM167: -1 | BN167: -1 | BO167: 1 | BP167: 1 | BQ167: -1 | BR167: 1 | BS167: 1 | BT167: 1 | BU167: 1 | BV167: -1 | BW167: 1 | BX167: -1 | BY167: -1 | BZ167: -1 | CA167: -1 | CB167: 1 | CC167: -1 | CD167: -1 | CE167: -1 | CF167: 1 | CG167: 4 | CH167: -1 | CI167: -1 | CJ167: -1 | CK167: 1 | CL167: -1 | CM167: 1 | CN167: -1 | CO167: 1 | CP167: -1 | CQ167: -1 | CR167: 1 | CS167: -1 | CT167: 1 | CU167: 1 | CV167: 1 | CW167: 1 | CX167: -1 | CY167: -1 | CZ167: 1 | DA167: -1 | DB167: 4 | DC167: 1 | DD167: 1 | DE167: 1 | DF167: -1 | DG167: 2 | DH167: 1 | DI167: 1 | DJ167: 1 | DK167: 1 | DL167: 1 | DM167: 1 | DN167: -1 | DO167: -1 | DP167: 1 | DQ167: -1 | DR167: -1 | DS167: -1 | DT167: -1 | DU167: -1 | DV167: 1
A168: -1 | B168: -1 | C168: 1 | D168: 1 | E168: -1 | F168: 1 | G168: 1 | H168: 1 | I168: 1 | J168: 1 | K168: -1 | L168: -1 | M168: 1 | N168: 1 | O168: -1 | P168: 1 | Q168: 1 | R168: -1 | S168: 1 | T168: 1 | U168: 1 | V168: 1 | W168: -1 | X168: 1 | Y168: 1 | Z168: 1 | AA168: 1 | AB168: 1 | AC168: -1 | AD168: -1 | AE168: -1 | AF168: -1 | AG168: 1 | AH168: 1 | AI168: -1 | AJ168: 1 | AK168: 1 | AL168: 1 | AM168: 1 | AN168: 1 | AO168: -1 | AP168: -1 | AQ168: 2 | AR168: 1 | AS168: -1 | AT168: -1 | AU168: -1 | AV168: 1 | AW168: -1 | AX168: -1 | AY168: 1 | AZ168: -1 | BA168: -1 | BB168: 1 | BC168: -1 | BD168: -1 | BE168: -1 | BF168: -1 | BG168: -1 | BH168: -1 | BI168: 1 | BJ168: -1 | BK168: 1 | BL168: -1 | BM168: -1 | BN168: -1 | BO168: 1 | BP168: 1 | BQ168: -1 | BR168: 1 | BS168: -1 | BT168: 1 | BU168: 1 | BV168: 1 | BW168: 1 | BX168: 2 | BY168: 1 | BZ168: 1 | CA168: 1 | CB168: -1 | CC168: -1 | CD168: 1 | CE168: -1 | CF168: -1 | CG168: 2 | CH168: 1 | CI168: 1 | CJ168: 1 | CK168: -1 | CL168: 1 | CM168: -1 | CN168: -1 | CO168: 1 | CP168: 1 | CQ168: -1 | CR168: 1 | CS168: 1 | CT168: -1 | CU168: -1 | CV168: -1 | CW168: -1 | CX168: 1 | CY168: 1 | CZ168: -1 | DA168: 1 | DB168: 2 | DC168: -1 | DD168: -1 | DE168: 1 | DF168: -1 | DG168: 1 | DH168: 1 | DI168: -1 | DJ168: -1 | DK168: 1 | DL168: -1 | DM168: 1 | DN168: 1 | DO168: -1 | DP168: 1 | DQ168: -1 | DR168: 1 | DS168: -1 | DT168: 1 | DU168: 1 | DV168: 1
A169: 1 | B169: -1 | C169: -1 | D169: -1 | E169: -1 | F169: -1 | G169: -1 | H169: -1 | I169: 1 | J169: -1 | K169: 1 | L169: 1 | M169: 1 | N169: -1 | O169: -1 | P169: 1 | Q169: -1 | R169: 1 | S169: -1 | T169: 1 | U169: 1 | V169: -2 | W169: -1 | X169: 1 | Y169: 1 | Z169: -1 | AA169: 1 | AB169: -1 | AC169: 1 | AD169: 1 | AE169: 1 | AF169: 1 | AG169: -1 | AH169: 1 | AI169: 1 | AJ169: -2 | AK169: 1 | AL169: -1 | AM169: -1 | AN169: 1 | AO169: -1 | AP169: -1 | AQ169: 1 | AR169: 1 | AS169: -1 | AT169: -1 | AU169: -1 | AV169: -1 | AW169: -1 | AX169: -1 | AY169: -1 | AZ169: -2 | BA169: 1 | BB169: 1 | BC169: 1 | BD169: -1 | BE169: -1 | BF169: -1 | BG169: 1 | BH169: -1 | BI169: 1 | BJ169: -1 | BK169: -1 | BL169: -2 | BM169: -1 | BN169: 1 | BO169: 1 | BP169: 1 | BQ169: -1 | BR169: -1 | BS169: 1 | BT169: -1 | BU169: 1 | BV169: -1 | BW169: 1 | BX169: -1 | BY169: -1 | BZ169: 1 | CA169: 1 | CB169: -1 | CC169: -1 | CD169: 1 | CE169: -1 | CF169: -1 | CG169: -1 | CH169: -1 | CI169: 1 | CJ169: -1 | CK169: 1 | CL169: -1 | CM169: 1 | CN169: -1 | CO169: 1 | CP169: -1 | CQ169: -1 | CR169: 1 | CS169: 1 | CT169: 1 | CU169: -1 | CV169: 1 | CW169: 1 | CX169: -1 | CY169: -1 | CZ169: 1 | DA169: -1 | DB169: -1 | DC169: 1 | DD169: -1 | DE169: 1 | DF169: 1 | DG169: 1 | DH169: 1 | DI169: 1 | DJ169: -1 | DK169: 1 | DL169: 1 | DM169: -1 | DN169: 1 | DO169: 1 | DP169: -1 | DQ169: 2 | DR169: -1 | DS169: 1 | DT169: 1 | DU169: -1 | DV169: -1
A170: -1 | B170: -1 | C170: 1 | D170: 1 | E170: 1 | F170: 1 | G170: 1 | H170: -1 | I170: 1 | J170: -1 | K170: 1 | L170: 1 | M170: -1 | N170: 1 | O170: -1 | P170: 2 | Q170: 1 | R170: -1 | S170: -1 | T170: 1 | U170: 1 | V170: -2 | W170: -1 | X170: -1 | Y170: 2 | Z170: -1 | AA170: 1 | AB170: -1 | AC170: 1 | AD170: 1 | AE170: 1 | AF170: -1 | AG170: 1 | AH170: 1 | AI170: -1 | AJ170: 1 | AK170: 1 | AL170: -1 | AM170: -1 | AN170: -1 | AO170: 1 | AP170: 1 | AQ170: -1 | AR170: -1 | AS170: 1 | AT170: 1 | AU170: 1 | AV170: 1 | AW170: 1 | AX170: -1 | AY170: -1 | AZ170: -1 | BA170: 1 | BB170: 1 | BC170: 1 | BD170: -1 | BE170: 1 | BF170: -1 | BG170: -1 | BH170: -1 | BI170: -1 | BJ170: 1 | BK170: -1 | BL170: 2 | BM170: -1 | BN170: 1 | BO170: 1 | BP170: -1 | BQ170: -1 | BR170: 1 | BS170: -1 | BT170: -1 | BU170: -1 | BV170: 1 | BW170: 1 | BX170: -1 | BY170: -1 | BZ170: -1 | CA170: 1 | CB170: -1 | CC170: -1 | CD170: -1 | CE170: -1 | CF170: -1 | CG170: 1 | CH170: 1 | CI170: -1 | CJ170: 1 | CK170: -1 | CL170: -1 | CM170: 1 | CN170: -1 | CO170: -1 | CP170: 1 | CQ170: 1 | CR170: 1 | CS170: 1 | CT170: -1 | CU170: -1 | CV170: -1 | CW170: 1 | CX170: -1 | CY170: -1 | CZ170: -1 | DA170: 1 | DB170: 4 | DC170: -1 | DD170: 1 | DE170: -1 | DF170: -1 | DG170: -1 | DH170: -1 | DI170: 1 | DJ170: 1 | DK170: 1 | DL170: 1 | DM170: 1 | DN170: 1 | DO170: -1 | DP170: -2 | DQ170: -1 | DR170: 1 | DS170: 1 | DT170: -1 | DU170: -1 | DV170: -1
A171: 1 | B171: 1 | C171: -1 | D171: 1 | E171: -1 | F171: -1 | G171: -1 | H171: -1 | I171: -1 | J171: -1 | K171: 1 | L171: -1 | M171: -1 | N171: -1 | O171: -1 | P171: 1 | Q171: 1 | R171: 1 | S171: -1 | T171: -1 | U171: 1 | V171: 2 | W171: -1 | X171: -2 | Y171: -1 | Z171: -1 | AA171: -1 | AB171: -1 | AC171: 1 | AD171: 1 | AE171: 1 | AF171: 1 | AG171: 1 | AH171: 1 | AI171: -1 | AJ171: -1 | AK171: 1 | AL171: -1 | AM171: -1 | AN171: -1 | AO171: 1 | AP171: 1 | AQ171: 1 | AR171: -1 | AS171: 1 | AT171: -1 | AU171: 1 | AV171: 1 | AW171: 1 | AX171: 1 | AY171: 2 | AZ171: -1 | BA171: -1 | BB171: 1 | BC171: 1 | BD171: 1 | BE171: -1 | BF171: -1 | BG171: -1 | BH171: -1 | BI171: 1 | BJ171: -1 | BK171: 1 | BL171: -1 | BM171: -1 | BN171: -1 | BO171: 1 | BP171: -1 | BQ171: -1 | BR171: -1 | BS171: -1 | BT171: 1 | BU171: -1 | BV171: 1 | BW171: 1 | BX171: -1 | BY171: -2 | BZ171: -1 | CA171: -1 | CB171: 1 | CC171: -1 | CD171: 1 | CE171: 1 | CF171: -1 | CG171: 1 | CH171: -1 | CI171: 1 | CJ171: 1 | CK171: 1 | CL171: 1 | CM171: 1 | CN171: 1 | CO171: -1 | CP171: -1 | CQ171: -1 | CR171: 2 | CS171: -1 | CT171: 1 | CU171: 1 | CV171: 1 | CW171: 1 | CX171: -1 | CY171: -1 | CZ171: 1 | DA171: -1 | DB171: 1 | DC171: 1 | DD171: -1 | DE171: 1 | DF171: 1 | DG171: -1 | DH171: -1 | DI171: -1 | DJ171: -1 | DK171: 1 | DL171: 1 | DM171: -1 | DN171: 1 | DO171: -1 | DP171: 1 | DQ171: 1 | DR171: -1 | DS171: 1 | DT171: -1 | DU171: -1 | DV171: 1
A172: -1 | B172: -1 | C172: -1 | D172: -1 | E172: -1 | F172: 1 | G172: -1 | H172: 1 | I172: 1 | J172: 1 | K172: 1 | L172: -1 | M172: 1 | N172: 1 | O172: 1 | P172: 1 | Q172: -1 | R172: 1 | S172: 1 | T172: -1 | U172: -2 | V172: -1 | W172: -1 | X172: -1 | Y172: -2 | Z172: 1 | AA172: 1 | AB172: 1 | AC172: 1 | AD172: 1 | AE172: -1 | AF172: 1 | AG172: 1 | AH172: 1 | AI172: -2 | AJ172: -1 | AK172: -2 | AL172: -1 | AM172: -1 | AN172: 1 | AO172: -2 | AP172: -1 | AQ172: -1 | AR172: 1 | AS172: 1 | AT172: -1 | AU172: -1 | AV172: 1 | AW172: -1 | AX172: -1 | AY172: 1 | AZ172: 1 | BA172: -1 | BB172: 1 | BC172: 1 | BD172: -2 | BE172: 1 | BF172: 1 | BG172: -1 | BH172: -1 | BI172: -1 | BJ172: 1 | BK172: -1 | BL172: 2 | BM172: -1 | BN172: 1 | BO172: -1 | BP172: -1 | BQ172: 1 | BR172: -1 | BS172: 1 | BT172: -2 | BU172: 1 | BV172: -1 | BW172: 1 | BX172: 1 | BY172: -1 | BZ172: -1 | CA172: 1 | CB172: 1 | CC172: 1 | CD172: 1 | CE172: -1 | CF172: -2 | CG172: -1 | CH172: 1 | CI172: -1 | CJ172: -1 | CK172: -1 | CL172: 1 | CM172: 1 | CN172: 1 | CO172: 1 | CP172: 1 | CQ172: 1 | CR172: -1 | CS172: -1 | CT172: -1 | CU172: 2 | CV172: 1 | CW172: -1 | CX172: -1 | CY172: -1 | CZ172: -1 | DA172: -1 | DB172: 1 | DC172: -2 | DD172: -1 | DE172: -1 | DF172: -1 | DG172: 1 | DH172: 1 | DI172: 2 | DJ172: -1 | DK172: 1 | DL172: 1 | DM172: -1 | DN172: 1 | DO172: -1 | DP172: -1 | DQ172: 1 | DR172: 1 | DS172: 1 | DT172: 1 | DU172: -1 | DV172: -1
A173: 1 | B173: 1 | C173: -1 | D173: -1 | E173: 1 | F173: 1 | G173: 1 | H173: -1 | I173: -1 | J173: 1 | K173: 1 | L173: 1 | M173: 1 | N173: -2 | O173: -1 | P173: 1 | Q173: -2 | R173: -1 | S173: 1 | T173: -1 | U173: 1 | V173: 1 | W173: 1 | X173: -1 | Y173: -1 | Z173: -2 | AA173: 1 | AB173: -1 | AC173: 1 | AD173: -2 | AE173: 1 | AF173: 1 | AG173: -1 | AH173: 1 | AI173: -2 | AJ173: 1 | AK173: -1 | AL173: -2 | AM173: 1 | AN173: 1 | AO173: -1 | AP173: 1 | AQ173: -1 | AR173: -1 | AS173: -1 | AT173: -1 | AU173: 1 | AV173: -1 | AW173: 1 | AX173: 2 | AY173: 1 | AZ173: 1 | BA173: 1 | BB173: -1 | BC173: 1 | BD173: -1 | BE173: 1 | BF173: -1 | BG173: 1 | BH173: 1 | BI173: 1 | BJ173: -1 | BK173: -1 | BL173: 2 | BM173: -1 | BN173: 1 | BO173: -1 | BP173: -1 | BQ173: 1 | BR173: -1 | BS173: -1 | BT173: 1 | BU173: -1 | BV173: 1 | BW173: 1 | BX173: 1 | BY173: -1 | BZ173: 1 | CA173: 1 | CB173: -2 | CC173: 1 | CD173: 2 | CE173: -1 | CF173: 1 | CG173: -1 | CH173: -1 | CI173: 1 | CJ173: 1 | CK173: 1 | CL173: 1 | CM173: -1 | CN173: 1 | CO173: -1 | CP173: 1 | CQ173: -1 | CR173: 1 | CS173: 1 | CT173: 1 | CU173: 1 | CV173: -1 | CW173: -2 | CX173: 1 | CY173: -2 | CZ173: -1 | DA173: 1 | DB173: 2 | DC173: 1 | DD173: -1 | DE173: -1 | DF173: -1 | DG173: 1 | DH173: 1 | DI173: -1 | DJ173: 1 | DK173: 1 | DL173: 2 | DM173: 1 | DN173: 1 | DO173: -1 | DP173: -1 | DQ173: 2 | DR173: -1 | DS173: 1 | DT173: 1 | DU173: -1 | DV173: 1
A174: -2 | B174: 1 | C174: -1 | D174: -1 | E174: -1 | F174: 1 | G174: -1 | H174: 1 | I174: -1 | J174: 1 | K174: 2 | L174: 1 | M174: 1 | N174: -1 | O174: 2 | P174: 2 | Q174: 1 | R174: 1 | S174: -1 | T174: 1 | U174: -1 | V174: -1 | W174: 1 | X174: 1 | Y174: 1 | Z174: -1 | AA174: -1 | AB174: -1 | AC174: 1 | AD174: -1 | AE174: -1 | AF174: 2 | AG174: 1 | AH174: 1 | AI174: -1 | AJ174: 1 | AK174: -1 | AL174: -1 | AM174: 1 | AN174: -1 | AO174: -1 | AP174: -1 | AQ174: -1 | AR174: -1 | AS174: -1 | AT174: 1 | AU174: -1 | AV174: 1 | AW174: -1 | AX174: -1 | AY174: 1 | AZ174: -1 | BA174: -1 | BB174: 1 | BC174: 1 | BD174: -1 | BE174: 1 | BF174: 1 | BG174: -2 | BH174: -1 | BI174: -1 | BJ174: -2 | BK174: -1 | BL174: 1 | BM174: -1 | BN174: -1 | BO174: -1 | BP174: -1 | BQ174: 1 | BR174: -1 | BS174: 2 | BT174: -1 | BU174: 1 | BV174: -1 | BW174: 1 | BX174: -1 | BY174: -2 | BZ174: 1 | CA174: 1 | CB174: -1 | CC174: 1 | CD174: 1 | CE174: 1 | CF174: -1 | CG174: 1 | CH174: 1 | CI174: 1 | CJ174: -1 | CK174: -1 | CL174: -1 | CM174: -1 | CN174: 1 | CO174: -1 | CP174: -1 | CQ174: -1 | CR174: -1 | CS174: 1 | CT174: 1 | CU174: 1 | CV174: 1 | CW174: -1 | CX174: -1 | CY174: 1 | CZ174: -1 | DA174: 1 | DB174: -1 | DC174: -1 | DD174: 1 | DE174: -1 | DF174: 1 | DG174: 1 | DH174: 1 | DI174: 1 | DJ174: -2 | DK174: 1 | DL174: 2 | DM174: -1 | DN174: -1 | DO174: 1 | DP174: 1 | DQ174: 2 | DR174: -1 | DS174: 1 | DT174: 1 | DU174: 1 | DV174: -2
A175: 1 | B175: -1 | C175: -1 | D175: -1 | E175: -1 | F175: 1 | G175: -1 | H175: 1 | I175: -1 | J175: 1 | K175: -1 | L175: -1 | M175: -1 | N175: -2 | O175: 1 | P175: 1 | Q175: -1 | R175: 1 | S175: 1 | T175: 1 | U175: 1 | V175: -1 | W175: -1 | X175: -1 | Y175: -2 | Z175: -1 | AA175: 1 | AB175: -1 | AC175: 2 | AD175: -1 | AE175: -1 | AF175: 1 | AG175: 1 | AH175: 1 | AI175: 1 | AJ175: 1 | AK175: 2 | AL175: -1 | AM175: -1 | AN175: -1 | AO175: -1 | AP175: 1 | AQ175: 2 | AR175: -1 | AS175: -1 | AT175: -2 | AU175: -1 | AV175: 1 | AW175: 1 | AX175: 1 | AY175: -1 | AZ175: 1 | BA175: 1 | BB175: 1 | BC175: -1 | BD175: -2 | BE175: -1 | BF175: 1 | BG175: 1 | BH175: -1 | BI175: -1 | BJ175: -1 | BK175: -1 | BL175: 1 | BM175: -1 | BN175: -1 | BO175: 1 | BP175: 1 | BQ175: -1 | BR175: 1 | BS175: 1 | BT175: -1 | BU175: 1 | BV175: 1 | BW175: -1 | BX175: 1 | BY175: -2 | BZ175: 1 | CA175: 2 | CB175: -1 | CC175: -1 | CD175: 1 | CE175: -1 | CF175: 1 | CG175: 1 | CH175: -1 | CI175: -1 | CJ175: -1 | CK175: -2 | CL175: -1 | CM175: -1 | CN175: 1 | CO175: -1 | CP175: -1 | CQ175: 1 | CR175: 1 | CS175: 2 | CT175: 1 | CU175: 1 | CV175: -1 | CW175: -1 | CX175: -1 | CY175: 1 | CZ175: -2 | DA175: 1 | DB175: 1 | DC175: 1 | DD175: -1 | DE175: -1 | DF175: -1 | DG175: 1 | DH175: 1 | DI175: -1 | DJ175: -1 | DK175: 1 | DL175: -1 | DM175: -1 | DN175: -1 | DO175: -1 | DP175: 1 | DQ175: 1 | DR175: 1 | DS175: 1 | DT175: 1 | DU175: 1 | DV175: -1
A176: 4 | B176: -2 | C176: 1 | D176: 1 | E176: -1 | F176: -1 | G176: 1 | H176: 1 | I176: -1 | J176: -1 | K176: 1 | L176: -2 | M176: 1 | N176: -2 | O176: -1 | P176: 1 | Q176: -1 | R176: 1 | S176: 1 | T176: 1 | U176: 1 | V176: 1 | W176: -2 | X176: -2 | Y176: -1 | Z176: 1 | AA176: -1 | AB176: 1 | AC176: 2 | AD176: 1 | AE176: -1 | AF176: 1 | AG176: 1 | AH176: 1 | AI176: -1 | AJ176: -1 | AK176: 2 | AL176: -1 | AM176: 1 | AN176: -1 | AO176: 1 | AP176: 1 | AQ176: 2 | AR176: -2 | AS176: -1 | AT176: 1 | AU176: -1 | AV176: 2 | AW176: -1 | AX176: 2 | AY176: -2 | AZ176: -1 | BA176: 1 | BB176: 1 | BC176: -1 | BD176: -2 | BE176: -1 | BF176: 1 | BG176: -1 | BH176: 1 | BI176: -1 | BJ176: -2 | BK176: -1 | BL176: 4 | BM176: -1 | BN176: -1 | BO176: -1 | BP176: -1 | BQ176: 2 | BR176: -1 | BS176: 1 | BT176: 1 | BU176: 1 | BV176: 1 | BW176: -2 | BX176: -1 | BY176: -2 | BZ176: 1 | CA176: 1 | CB176: -1 | CC176: -1 | CD176: 1 | CE176: 1 | CF176: 1 | CG176: 4 | CH176: -2 | CI176: -2 | CJ176: -1 | CK176: -1 | CL176: 1 | CM176: -1 | CN176: 1 | CO176: -1 | CP176: 1 | CQ176: 1 | CR176: 2 | CS176: -1 | CT176: -1 | CU176: 1 | CV176: 1 | CW176: 1 | CX176: 1 | CY176: 1 | CZ176: -1 | DA176: -1 | DB176: 4 | DC176: 1 | DD176: -2 | DE176: -1 | DF176: -1 | DG176: -1 | DH176: 1 | DI176: -1 | DJ176: -1 | DK176: -1 | DL176: -1 | DM176: 1 | DN176: 1 | DO176: -1 | DP176: 1 | DQ176: -1 | DR176: -2 | DS176: 1 | DT176: 1 | DU176: -1 | DV176: -1
A177: 2 | B177: 1 | C177: -1 | D177: -1 | E177: 1 | F177: 2 | G177: -1 | H177: 1 | I177: 1 | J177: -1 | K177: 1 | L177: -1 | M177: 1 | N177: -2 | O177: 1 | P177: 1 | Q177: -1 | R177: 1 | S177: 1 | T177: -2 | U177: 1 | V177: 1 | W177: 1 | X177: -1 | Y177: 1 | Z177: 1 | AA177: -1 | AB177: 1 | AC177: 1 | AD177: -1 | AE177: -1 | AF177: 1 | AG177: 1 | AH177: 1 | AI177: -1 | AJ177: 1 | AK177: 1 | AL177: -2 | AM177: 1 | AN177: 1 | AO177: -1 | AP177: -1 | AQ177: 1 | AR177: 1 | AS177: -2 | AT177: -2 | AU177: 1 | AV177: 1 | AW177: -1 | AX177: 1 | AY177: -1 | AZ177: -1 | BA177: 2 | BB177: -1 | BC177: -1 | BD177: -1 | BE177: -1 | BF177: 1 | BG177: 1 | BH177: -1 | BI177: 1 | BJ177: -2 | BK177: 1 | BL177: -1 | BM177: -1 | BN177: -2 | BO177: -2 | BP177: 1 | BQ177: 1 | BR177: 1 | BS177: 1 | BT177: -1 | BU177: 1 | BV177: 1 | BW177: 1 | BX177: 2 | BY177: 1 | BZ177: 1 | CA177: 2 | CB177: -1 | CC177: 1 | CD177: -1 | CE177: -1 | CF177: 1 | CG177: 1 | CH177: -1 | CI177: -1 | CJ177: -2 | CK177: -1 | CL177: -1 | CM177: -1 | CN177: 1 | CO177: -1 | CP177: -1 | CQ177: 1 | CR177: -1 | CS177: -1 | CT177: -1 | CU177: 1 | CV177: -1 | CW177: -1 | CX177: 1 | CY177: 1 | CZ177: -2 | DA177: 1 | DB177: 1 | DC177: -1 | DD177: -1 | DE177: -1 | DF177: -1 | DG177: -1 | DH177: 1 | DI177: -1 | DJ177: 1 | DK177: 1 | DL177: -1 | DM177: -1 | DN177: 1 | DO177: 1 | DP177: -1 | DQ177: 1 | DR177: -1 | DS177: 1 | DT177: 1 | DU177: 1 | DV177: 1
A178: -1 | B178: -1 | C178: 1 | D178: -1 | E178: -1 | F178: -1 | G178: -1 | H178: 1 | I178: -1 | J178: 1 | K178: -1 | L178: -1 | M178: -1 | N178: -1 | O178: 1 | P178: 2 | Q178: 1 | R178: -1 | S178: -1 | T178: -1 | U178: -1 | V178: 1 | W178: 1 | X178: -2 | Y178: -1 | Z178: -1 | AA178: 1 | AB178: -1 | AC178: -1 | AD178: -1 | AE178: 1 | AF178: 1 | AG178: -1 | AH178: 1 | AI178: 1 | AJ178: 2 | AK178: 2 | AL178: 1 | AM178: 1 | AN178: -1 | AO178: -1 | AP178: -1 | AQ178: 1 | AR178: -1 | AS178: -2 | AT178: 1 | AU178: -1 | AV178: 1 | AW178: -1 | AX178: -1 | AY178: -1 | AZ178: 1 | BA178: 1 | BB178: 1 | BC178: 1 | BD178: -2 | BE178: 1 | BF178: 2 | BG178: -1 | BH178: 1 | BI178: 1 | BJ178: -2 | BK178: 1 | BL178: 1 | BM178: -1 | BN178: -1 | BO178: 1 | BP178: -1 | BQ178: 1 | BR178: -1 | BS178: 1 | BT178: -1 | BU178: -1 | BV178: 2 | BW178: 1 | BX178: 1 | BY178: 1 | BZ178: -1 | CA178: 1 | CB178: 1 | CC178: 1 | CD178: 1 | CE178: -2 | CF178: -1 | CG178: 2 | CH178: -1 | CI178: -1 | CJ178: -1 | CK178: 1 | CL178: 1 | CM178: -1 | CN178: -1 | CO178: 1 | CP178: -1 | CQ178: 1 | CR178: 1 | CS178: -1 | CT178: -1 | CU178: -1 | CV178: 2 | CW178: -1 | CX178: 1 | CY178: -1 | CZ178: -2 | DA178: -1 | DB178: -1 | DC178: 1 | DD178: -1 | DE178: 1 | DF178: 1 | DG178: -1 | DH178: -1 | DI178: 1 | DJ178: 1 | DK178: -1 | DL178: 1 | DM178: -1 | DN178: 1 | DO178: 1 | DP178: -1 | DQ178: 1 | DR178: 1 | DS178: 1 | DT178: -1 | DU178: -2 | DV178: -1
A179: 4 | B179: -2 | C179: -1 | D179: -2 | E179: -1 | F179: 2 | G179: -1 | H179: -1 | I179: 1 | J179: 1 | K179: -1 | L179: -1 | M179: 1 | N179: -1 | O179: -1 | P179: 1 | Q179: -1 | R179: -1 | S179: 1 | T179: -2 | U179: -1 | V179: 1 | W179: -2 | X179: 1 | Y179: 1 | Z179: 1 | AA179: -1 | AB179: -1 | AC179: 2 | AD179: 1 | AE179: 1 | AF179: -1 | AG179: -1 | AH179: 1 | AI179: -1 | AJ179: -1 | AK179: 1 | AL179: -1 | AM179: 1 | AN179: 1 | AO179: -2 | AP179: -1 | AQ179: 4 | AR179: -1 | AS179: -2 | AT179: -1 | AU179: 1 | AV179: -1 | AW179: 1 | AX179: -1 | AY179: -1 | AZ179: -1 | BA179: -1 | BB179: -1 | BC179: 1 | BD179: 1 | BE179: -1 | BF179: 2 | BG179: -1 | BH179: -2 | BI179: -1 | BJ179: -2 | BK179: 1 | BL179: 1 | BM179: 1 | BN179: -2 | BO179: -1 | BP179: -2 | BQ179: 1 | BR179: 1 | BS179: -1 | BT179: -1 | BU179: -1 | BV179: 1 | BW179: 1 | BX179: 1 | BY179: 1 | BZ179: -1 | CA179: 1 | CB179: -1 | CC179: 1 | CD179: 1 | CE179: -1 | CF179: -1 | CG179: 2 | CH179: 1 | CI179: -1 | CJ179: -1 | CK179: -1 | CL179: 1 | CM179: 1 | CN179: -1 | CO179: -1 | CP179: -1 | CQ179: -1 | CR179: 1 | CS179: 1 | CT179: -1 | CU179: 1 | CV179: 2 | CW179: 1 | CX179: -1 | CY179: -1 | CZ179: -1 | DA179: -1 | DB179: 2 | DC179: 1 | DD179: 1 | DE179: -2 | DF179: 1 | DG179: 2 | DH179: 1 | DI179: -1 | DJ179: 1 | DK179: -1 | DL179: -1 | DM179: -1 | DN179: -1 | DO179: -2 | DP179: -1 | DQ179: -1 | DR179: -1 | DS179: 1 | DT179: -1 | DU179: -1 | DV179: 1
A180: 1 | B180: -1 | C180: 1 | D180: -1 | E180: 1 | F180: 1 | G180: 2 | H180: -1 | I180: -1 | J180: -1 | K180: 1 | L180: -1 | M180: 1 | N180: -1 | O180: 1 | P180: 2 | Q180: 1 | R180: 1 | S180: -1 | T180: -1 | U180: -1 | V180: 2 | W180: -2 | X180: -1 | Y180: -1 | Z180: -1 | AA180: -1 | AB180: 1 | AC180: 1 | AD180: 1 | AE180: -1 | AF180: 1 | AG180: -1 | AH180: -1 | AI180: -1 | AJ180: -1 | AK180: 2 | AL180: -1 | AM180: -1 | AN180: 1 | AO180: -2 | AP180: -1 | AQ180: 1 | AR180: -1 | AS180: -1 | AT180: -1 | AU180: -1 | AV180: 1 | AW180: 1 | AX180: 1 | AY180: 1 | AZ180: 1 | BA180: 1 | BB180: -1 | BC180: 1 | BD180: -1 | BE180: -1 | BF180: 1 | BG180: 1 | BH180: -1 | BI180: -1 | BJ180: -2 | BK180: -1 | BL180: -1 | BM180: 1 | BN180: 1 | BO180: -1 | BP180: -1 | BQ180: 1 | BR180: -1 | BS180: 2 | BT180: -1 | BU180: -1 | BV180: 1 | BW180: 1 | BX180: 2 | BY180: -1 | BZ180: 1 | CA180: 2 | CB180: 1 | CC180: -1 | CD180: -1 | CE180: -1 | CF180: 1 | CG180: 2 | CH180: -1 | CI180: -1 | CJ180: 1 | CK180: 1 | CL180: 1 | CM180: -1 | CN180: 1 | CO180: -1 | CP180: -1 | CQ180: 1 | CR180: 1 | CS180: 1 | CT180: -2 | CU180: -1 | CV180: 2 | CW180: 1 | CX180: 1 | CY180: 1 | CZ180: 1 | DA180: 1 | DB180: 1 | DC180: 1 | DD180: -2 | DE180: -1 | DF180: -1 | DG180: -1 | DH180: 1 | DI180: 2 | DJ180: -1 | DK180: -2 | DL180: 1 | DM180: -1 | DN180: 1 | DO180: -1 | DP180: -1 | DQ180: 1 | DR180: -1 | DS180: 1 | DT180: 1 | DU180: -1 | DV180: 1
A181: 1 | B181: 1 | C181: -1 | D181: -1 | E181: -1 | F181: -1 | G181: 1 | H181: 1 | I181: 1 | J181: 1 | K181: 1 | L181: 1 | M181: -1 | N181: -1 | O181: 1 | P181: 1 | Q181: -1 | R181: -1 | S181: 1 | T181: 2 | U181: 1 | V181: 1 | W181: 1 | X181: 1 | Y181: -1 | Z181: 1 | AA181: 1 | AB181: -1 | AC181: 1 | AD181: 1 | AE181: -1 | AF181: -1 | AG181: 1 | AH181: -1 | AI181: -1 | AJ181: -1 | AK181: 1 | AL181: 1 | AM181: -1 | AN181: -1 | AO181: 1 | AP181: -1 | AQ181: 2 | AR181: -1 | AS181: 1 | AT181: 1 | AU181: -1 | AV181: 1 | AW181: -1 | AX181: 1 | AY181: 1 | AZ181: -1 | BA181: 1 | BB181: -1 | BC181: -1 | BD181: 1 | BE181: 1 | BF181: 1 | BG181: -1 | BH181: 1 | BI181: 1 | BJ181: 2 | BK181: 1 | BL181: 1 | BM181: 1 | BN181: -1 | BO181: -1 | BP181: 2 | BQ181: -1 | BR181: -1 | BS181: -1 | BT181: -1 | BU181: 1 | BV181: -1 | BW181: -1 | BX181: -1 | BY181: 1 | BZ181: 1 | CA181: -1 | CB181: -1 | CC181: -1 | CD181: 1 | CE181: 1 | CF181: -1 | CG181: 1 | CH181: 1 | CI181: 1 | CJ181: -1 | CK181: -1 | CL181: 1 | CM181: -1 | CN181: 1 | CO181: -1 | CP181: -1 | CQ181: 1 | CR181: -1 | CS181: -2 | CT181: -1 | CU181: 1 | CV181: 1 | CW181: 1 | CX181: 1 | CY181: 1 | CZ181: 1 | DA181: 1 | DB181: -1 | DC181: 1 | DD181: -1 | DE181: 1 | DF181: 1 | DG181: 1 | DH181: 1 | DI181: 1 | DJ181: -1 | DK181: -1 | DL181: -1 | DM181: 1 | DN181: 1 | DO181: 1 | DP181: 1 | DQ181: -1 | DR181: -1 | DS181: -1 | DT181: -1 | DU181: 2 | DV181: -1
A182: -1 | B182: 2 | C182: -1 | D182: -1 | E182: 1 | F182: -1 | G182: 1 | H182: -1 | I182: 1 | J182: -1 | K182: 1 | L182: -1 | M182: 1 | N182: -1 | O182: 1 | P182: -1 | Q182: -1 | R182: 1 | S182: -1 | T182: 2 | U182: -1 | V182: 1 | W182: 1 | X182: -1 | Y182: 1 | Z182: 1 | AA182: -1 | AB182: 1 | AC182: 1 | AD182: -1 | AE182: -1 | AF182: 1 | AG182: -1 | AH182: -2 | AI182: -1 | AJ182: 1 | AK182: -1 | AL182: -1 | AM182: 1 | AN182: 1 | AO182: 2 | AP182: -1 | AQ182: 1 | AR182: 1 | AS182: 1 | AT182: -1 | AU182: 1 | AV182: -1 | AW182: 1 | AX182: -1 | AY182: -2 | AZ182: -1 | BA182: -1 | BB182: -1 | BC182: 1 | BD182: -1 | BE182: 1 | BF182: -1 | BG182: -1 | BH182: -1 | BI182: 1 | BJ182: 1 | BK182: -1 | BL182: -1 | BM182: 2 | BN182: -1 | BO182: 1 | BP182: 1 | BQ182: 1 | BR182: -1 | BS182: 1 | BT182: 1 | BU182: -1 | BV182: 1 | BW182: -1 | BX182: -2 | BY182: -1 | BZ182: -1 | CA182: -2 | CB182: -1 | CC182: -1 | CD182: 1 | CE182: 2 | CF182: -1 | CG182: 2 | CH182: 1 | CI182: -1 | CJ182: -1 | CK182: -1 | CL182: 1 | CM182: -1 | CN182: 1 | CO182: -1 | CP182: -1 | CQ182: 1 | CR182: 1 | CS182: -2 | CT182: -1 | CU182: -1 | CV182: -1 | CW182: 1 | CX182: 1 | CY182: -1 | CZ182: 1 | DA182: -1 | DB182: -1 | DC182: 1 | DD182: 1 | DE182: 1 | DF182: 2 | DG182: -1 | DH182: 1 | DI182: -1 | DJ182: -1 | DK182: -2 | DL182: 1 | DM182: -1 | DN182: -2 | DO182: 1 | DP182: 1 | DQ182: -2 | DR182: 1 | DS182: 1 | DT182: 1 | DU182: 2 | DV182: -1
A183: 1 | B183: 2 | C183: -1 | D183: 1 | E183: 1 | F183: 1 | G183: 1 | H183: 1 | I183: -1 | J183: 1 | K183: 1 | L183: 1 | M183: -1 | N183: -1 | O183: 1 | P183: -1 | Q183: 1 | R183: 1 | S183: -1 | T183: 1 | U183: -2 | V183: -1 | W183: 2 | X183: -1 | Y183: 1 | Z183: 1 | AA183: 1 | AB183: 1 | AC183: 1 | AD183: 1 | AE183: 1 | AF183: -1 | AG183: -1 | AH183: -1 | AI183: 1 | AJ183: 1 | AK183: -2 | AL183: 1 | AM183: 1 | AN183: 1 | AO183: 1 | AP183: -1 | AQ183: 1 | AR183: 1 | AS183: 1 | AT183: 1 | AU183: -1 | AV183: 1 | AW183: -1 | AX183: 1 | AY183: 1 | AZ183: -1 | BA183: 2 | BB183: -1 | BC183: 1 | BD183: 1 | BE183: 1 | BF183: -2 | BG183: -1 | BH183: 1 | BI183: -2 | BJ183: 2 | BK183: -1 | BL183: 1 | BM183: 2 | BN183: 1 | BO183: -1 | BP183: 1 | BQ183: -1 | BR183: 1 | BS183: 1 | BT183: 1 | BU183: -1 | BV183: -1 | BW183: -1 | BX183: -1 | BY183: -1 | BZ183: 1 | CA183: -1 | CB183: -1 | CC183: -1 | CD183: -1 | CE183: 2 | CF183: -1 | CG183: 1 | CH183: 2 | CI183: -1 | CJ183: 1 | CK183: 1 | CL183: -1 | CM183: -1 | CN183: 1 | CO183: -1 | CP183: -1 | CQ183: 2 | CR183: -2 | CS183: -1 | CT183: 1 | CU183: 1 | CV183: 1 | CW183: -1 | CX183: 1 | CY183: -1 | CZ183: 1 | DA183: -1 | DB183: 1 | DC183: 1 | DD183: -1 | DE183: 1 | DF183: 2 | DG183: 1 | DH183: -1 | DI183: -1 | DJ183: -2 | DK183: -1 | DL183: -1 | DM183: 1 | DN183: -1 | DO183: -1 | DP183: -1 | DQ183: 1 | DR183: 1 | DS183: 1 | DT183: -1 | DU183: 1 | DV183: -1
A184: 2 | B184: 1 | C184: -1 | D184: 1 | E184: 2 | F184: 1 | G184: -1 | H184: -1 | I184: -1 | J184: -1 | K184: 1 | L184: 1 | M184: -2 | N184: -1 | O184: 1 | P184: 1 | Q184: -1 | R184: 1 | S184: 1 | T184: 1 | U184: -1 | V184: 2 | W184: 1 | X184: 1 | Y184: -1 | Z184: 1 | AA184: -1 | AB184: -1 | AC184: 1 | AD184: -1 | AE184: 1 | AF184: 1 | AG184: 1 | AH184: -2 | AI184: -1 | AJ184: -1 | AK184: 1 | AL184: -1 | AM184: -1 | AN184: -1 | AO184: 1 | AP184: 1 | AQ184: 1 | AR184: 1 | AS184: 1 | AT184: 1 | AU184: -1 | AV184: -1 | AW184: -1 | AX184: 1 | AY184: 1 | AZ184: 1 | BA184: -1 | BB184: -2 | BC184: -2 | BD184: -1 | BE184: -1 | BF184: 1 | BG184: -1 | BH184: 1 | BI184: 1 | BJ184: 2 | BK184: -1 | BL184: 1 | BM184: 2 | BN184: 1 | BO184: 1 | BP184: -1 | BQ184: -1 | BR184: 1 | BS184: 1 | BT184: -1 | BU184: -1 | BV184: 1 | BW184: -1 | BX184: -1 | BY184: -1 | BZ184: -1 | CA184: -2 | CB184: -1 | CC184: 1 | CD184: -1 | CE184: 1 | CF184: -1 | CG184: 2 | CH184: 1 | CI184: 1 | CJ184: 1 | CK184: 2 | CL184: -1 | CM184: 1 | CN184: -2 | CO184: 1 | CP184: -1 | CQ184: 1 | CR184: -1 | CS184: -1 | CT184: 1 | CU184: -1 | CV184: -1 | CW184: -1 | CX184: -1 | CY184: -1 | CZ184: 2 | DA184: -1 | DB184: -1 | DC184: 1 | DD184: 1 | DE184: 1 | DF184: 1 | DG184: 1 | DH184: -1 | DI184: -1 | DJ184: -2 | DK184: 1 | DL184: 1 | DM184: -1 | DN184: -1 | DO184: 1 | DP184: 1 | DQ184: -1 | DR184: -2 | DS184: 1 | DT184: -1 | DU184: 1 | DV184: -1
A185: 2 | B185: 1 | C185: 2 | D185: 1 | E185: 1 | F185: 1 | G185: -1 | H185: -1 | I185: -1 | J185: -2 | K185: -1 | L185: 1 | M185: -1 | N185: -1 | O185: 1 | P185: -2 | Q185: -1 | R185: -1 | S185: -1 | T185: 2 | U185: -1 | V185: 4 | W185: 1 | X185: 1 | Y185: 1 | Z185: 1 | AA185: 1 | AB185: 1 | AC185: -1 | AD185: 1 | AE185: -2 | AF185: 1 | AG185: -1 | AH185: -2 | AI185: -1 | AJ185: -1 | AK185: -2 | AL185: -2 | AM185: 1 | AN185: 1 | AO185: -1 | AP185: -1 | AQ185: 1 | AR185: 1 | AS185: 1 | AT185: -1 | AU185: -1 | AV185: 1 | AW185: 1 | AX185: -1 | AY185: -1 | AZ185: 1 | BA185: 1 | BB185: -1 | BC185: -2 | BD185: -1 | BE185: 1 | BF185: -1 | BG185: -1 | BH185: 1 | BI185: -1 | BJ185: 1 | BK185: -1 | BL185: 2 | BM185: 1 | BN185: -1 | BO185: 1 | BP185: 2 | BQ185: -1 | BR185: 1 | BS185: -1 | BT185: -1 | BU185: -1 | BV185: -1 | BW185: -1 | BX185: -2 | BY185: 1 | BZ185: -1 | CA185: -1 | CB185: -1 | CC185: 1 | CD185: -1 | CE185: 2 | CF185: -1 | CG185: 2 | CH185: 2 | CI185: -1 | CJ185: -1 | CK185: 1 | CL185: -1 | CM185: -1 | CN185: 1 | CO185: -1 | CP185: 1 | CQ185: -1 | CR185: -1 | CS185: 1 | CT185: -1 | CU185: -1 | CV185: -2 | CW185: 1 | CX185: 1 | CY185: -1 | CZ185: 2 | DA185: -1 | DB185: 2 | DC185: 1 | DD185: -1 | DE185: 1 | DF185: 1 | DG185: -1 | DH185: -1 | DI185: -1 | DJ185: -2 | DK185: -2 | DL185: 1 | DM185: 1 | DN185: -1 | DO185: 1 | DP185: 1 | DQ185: -1 | DR185: 1 | DS185: 2 | DT185: -1 | DU185: 1 | DV185: 1
A186: 2 | B186: 1 | C186: -1 | D186: 1 | E186: 1 | F186: 1 | G186: -1 | H186: 1 | I186: 1 | J186: -1 | K186: -1 | L186: 1 | M186: -2 | N186: 1 | O186: -1 | P186: -2 | Q186: 1 | R186: 1 | S186: -1 | T186: 1 | U186: -1 | V186: 2 | W186: 1 | X186: 1 | Y186: 2 | Z186: -1 | AA186: 1 | AB186: -1 | AC186: 1 | AD186: -2 | AE186: -1 | AF186: 1 | AG186: -1 | AH186: -1 | AI186: 1 | AJ186: 1 | AK186: -2 | AL186: 1 | AM186: -1 | AN186: -1 | AO186: 2 | AP186: -1 | AQ186: -1 | AR186: 2 | AS186: 1 | AT186: 1 | AU186: 1 | AV186: -1 | AW186: 1 | AX186: 1 | AY186: 1 | AZ186: -2 | BA186: -1 | BB186: 1 | BC186: -2 | BD186: 1 | BE186: -1 | BF186: -2 | BG186: -1 | BH186: 1 | BI186: -2 | BJ186: 1 | BK186: -1 | BL186: -1 | BM186: 1 | BN186: 1 | BO186: 1 | BP186: 1 | BQ186: 1 | BR186: 1 | BS186: 1 | BT186: 1 | BU186: -2 | BV186: -1 | BW186: 1 | BX186: -1 | BY186: -1 | BZ186: 1 | CA186: -1 | CB186: -1 | CC186: -1 | CD186: 1 | CE186: 2 | CF186: 1 | CG186: -1 | CH186: 2 | CI186: -1 | CJ186: -1 | CK186: -1 | CL186: 1 | CM186: 1 | CN186: 1 | CO186: 1 | CP186: 1 | CQ186: 1 | CR186: -1 | CS186: -2 | CT186: 1 | CU186: 1 | CV186: -2 | CW186: -1 | CX186: -1 | CY186: -1 | CZ186: 2 | DA186: -2 | DB186: 1 | DC186: 1 | DD186: -1 | DE186: -1 | DF186: 2 | DG186: 1 | DH186: 1 | DI186: -1 | DJ186: -1 | DK186: -1 | DL186: -1 | DM186: 1 | DN186: 1 | DO186: 1 | DP186: -1 | DQ186: 1 | DR186: -1 | DS186: -1 | DT186: -1 | DU186: 2 | DV186: -1
A187: 1 | B187: 1 | C187: -1 | D187: 1 | E187: -1 | F187: 1 | G187: -1 | H187: -1 | I187: -1 | J187: -1 | K187: -1 | L187: -1 | M187: -1 | N187: 1 | O187: 1 | P187: 1 | Q187: -1 | R187: 1 | S187: 1 | T187: 1 | U187: 1 | V187: 1 | W187: 1 | X187: 1 | Y187: -1 | Z187: 1 | AA187: -1 | AB187: 1 | AC187: -1 | AD187: -2 | AE187: -1 | AF187: -1 | AG187: -1 | AH187: -2 | AI187: -1 | AJ187: 1 | AK187: -1 | AL187: 1 | AM187: -1 | AN187: -1 | AO187: 1 | AP187: 1 | AQ187: 1 | AR187: -1 | AS187: 1 | AT187: 1 | AU187: 1 | AV187: 1 | AW187: -1 | AX187: 1 | AY187: -2 | AZ187: -1 | BA187: 1 | BB187: -1 | BC187: -1 | BD187: -1 | BE187: 1 | BF187: 1 | BG187: -1 | BH187: -1 | BI187: -1 | BJ187: 2 | BK187: -1 | BL187: 1 | BM187: -1 | BN187: 1 | BO187: 1 | BP187: -1 | BQ187: -1 | BR187: -1 | BS187: 1 | BT187: 1 | BU187: -1 | BV187: 1 | BW187: 1 | BX187: -2 | BY187: 1 | BZ187: -1 | CA187: -1 | CB187: -2 | CC187: -1 | CD187: 1 | CE187: 2 | CF187: -1 | CG187: 2 | CH187: -1 | CI187: 2 | CJ187: 1 | CK187: 1 | CL187: -1 | CM187: 1 | CN187: -1 | CO187: -1 | CP187: 1 | CQ187: 1 | CR187: -1 | CS187: -1 | CT187: -1 | CU187: 1 | CV187: -1 | CW187: -1 | CX187: -1 | CY187: -1 | CZ187: 1 | DA187: -1 | DB187: 1 | DC187: 1 | DD187: -1 | DE187: 1 | DF187: 1 | DG187: 1 | DH187: 1 | DI187: 1 | DJ187: -2 | DK187: -2 | DL187: 1 | DM187: 1 | DN187: -1 | DO187: 1 | DP187: -1 | DQ187: -1 | DR187: -1 | DS187: 2 | DT187: -1 | DU187: 2 | DV187: -2
A188: 2 | B188: 1 | C188: 1 | D188: -1 | E188: 2 | F188: -1 | G188: -1 | H188: 1 | I188: -2 | J188: -2 | K188: 1 | L188: 1 | M188: -2 | N188: 1 | O188: 1 | P188: -1 | Q188: -1 | R188: 1 | S188: -1 | T188: 1 | U188: -2 | V188: 1 | W188: 1 | X188: -1 | Y188: 2 | Z188: 1 | AA188: -1 | AB188: 1 | AC188: -1 | AD188: 1 | AE188: 1 | AF188: 1 | AG188: 1 | AH188: -2 | AI188: -1 | AJ188: 1 | AK188: -1 | AL188: -1 | AM188: -1 | AN188: -2 | AO188: -1 | AP188: -1 | AQ188: 2 | AR188: 1 | AS188: 1 | AT188: -1 | AU188: -1 | AV188: 1 | AW188: 1 | AX188: 1 | AY188: -1 | AZ188: -1 | BA188: -1 | BB188: 1 | BC188: -1 | BD188: 1 | BE188: 1 | BF188: -2 | BG188: -1 | BH188: 1 | BI188: -1 | BJ188: 2 | BK188: -1 | BL188: 1 | BM188: 1 | BN188: 2 | BO188: 1 | BP188: 1 | BQ188: -1 | BR188: -1 | BS188: -1 | BT188: -1 | BU188: -1 | BV188: -1 | BW188: -1 | BX188: -2 | BY188: 1 | BZ188: 1 | CA188: -1 | CB188: 1 | CC188: 1 | CD188: -1 | CE188: 2 | CF188: -1 | CG188: 4 | CH188: -1 | CI188: -1 | CJ188: -1 | CK188: 2 | CL188: 1 | CM188: -1 | CN188: 1 | CO188: -1 | CP188: -1 | CQ188: -1 | CR188: -1 | CS188: -2 | CT188: 1 | CU188: 1 | CV188: -1 | CW188: -2 | CX188: 1 | CY188: -2 | CZ188: 1 | DA188: -1 | DB188: 1 | DC188: 1 | DD188: -1 | DE188: 1 | DF188: 1 | DG188: -2 | DH188: -1 | DI188: -1 | DJ188: -1 | DK188: -1 | DL188: -1 | DM188: -1 | DN188: -2 | DO188: -1 | DP188: -1 | DQ188: -2 | DR188: -1 | DS188: -1 | DT188: -1 | DU188: 1 | DV188: -2
A189: 1 | B189: -1 | C189: -1 | D189: -1 | E189: 2 | F189: -1 | G189: 1 | H189: 1 | I189: -1 | J189: -2 | K189: 1 | L189: -1 | M189: -2 | N189: -1 | O189: -1 | P189: -1 | Q189: -1 | R189: -1 | S189: 1 | T189: 2 | U189: -1 | V189: -1 | W189: 1 | X189: 1 | Y189: -1 | Z189: 2 | AA189: 1 | AB189: -1 | AC189: -1 | AD189: -1 | AE189: -2 | AF189: 1 | AG189: 1 | AH189: -2 | AI189: -1 | AJ189: 2 | AK189: -1 | AL189: 1 | AM189: 1 | AN189: -2 | AO189: 1 | AP189: 1 | AQ189: 1 | AR189: -1 | AS189: 2 | AT189: 1 | AU189: 1 | AV189: 1 | AW189: 1 | AX189: -1 | AY189: -1 | AZ189: -1 | BA189: -1 | BB189: 1 | BC189: -1 | BD189: 1 | BE189: -1 | BF189: -2 | BG189: 1 | BH189: -1 | BI189: -1 | BJ189: 1 | BK189: -1 | BL189: 1 | BM189: 1 | BN189: -1 | BO189: -1 | BP189: 1 | BQ189: 1 | BR189: -1 | BS189: -1 | BT189: 1 | BU189: -1 | BV189: 1 | BW189: 1 | BX189: -2 | BY189: 1 | BZ189: -1 | CA189: 1 | CB189: -1 | CC189: -1 | CD189: 1 | CE189: 2 | CF189: -1 | CG189: 1 | CH189: 1 | CI189: 1 | CJ189: 1 | CK189: 2 | CL189: 1 | CM189: 1 | CN189: 1 | CO189: 1 | CP189: 1 | CQ189: 1 | CR189: 1 | CS189: -2 | CT189: 1 | CU189: -1 | CV189: -1 | CW189: 1 | CX189: 1 | CY189: 1 | CZ189: 2 | DA189: -1 | DB189: 1 | DC189: -1 | DD189: -1 | DE189: 1 | DF189: 1 | DG189: -1 | DH189: 1 | DI189: -1 | DJ189: 1 | DK189: 1 | DL189: -1 | DM189: 1 | DN189: -2 | DO189: 1 | DP189: 1 | DQ189: 1 | DR189: -2 | DS189: 1 | DT189: 1 | DU189: 1 | DV189: -1
A190: 1 | B190: -1 | C190: 1 | D190: -1 | E190: 2 | F190: 1 | G190: 1 | H190: 1 | I190: -1 | J190: 1 | K190: -1 | L190: 1 | M190: 1 | N190: -1 | O190: -1 | P190: 1 | Q190: -1 | R190: 1 | S190: 1 | T190: 1 | U190: 1 | V190: 1 | W190: 1 | X190: 1 | Y190: 1 | Z190: 1 | AA190: -1 | AB190: 1 | AC190: 1 | AD190: -1 | AE190: 1 | AF190: -1 | AG190: -1 | AH190: 1 | AI190: -1 | AJ190: -1 | AK190: -1 | AL190: 1 | AM190: -1 | AN190: 1 | AO190: 1 | AP190: 1 | AQ190: 2 | AR190: 1 | AS190: 1 | AT190: -1 | AU190: -1 | AV190: 1 | AW190: 2 | AX190: 1 | AY190: 1 | AZ190: 1 | BA190: -1 | BB190: -1 | BC190: -1 | BD190: 1 | BE190: -1 | BF190: 1 | BG190: -1 | BH190: 1 | BI190: 1 | BJ190: 2 | BK190: -1 | BL190: -1 | BM190: 1 | BN190: -1 | BO190: -2 | BP190: 1 | BQ190: 1 | BR190: -1 | BS190: -1 | BT190: -1 | BU190: 1 | BV190: -1 | BW190: -1 | BX190: 1 | BY190: 1 | BZ190: 1 | CA190: 2 | CB190: 1 | CC190: -1 | CD190: -1 | CE190: 1 | CF190: -2 | CG190: 2 | CH190: 1 | CI190: -1 | CJ190: 1 | CK190: -1 | CL190: -1 | CM190: 1 | CN190: 1 | CO190: -1 | CP190: 1 | CQ190: -1 | CR190: -1 | CS190: 1 | CT190: 1 | CU190: 1 | CV190: 1 | CW190: 1 | CX190: 1 | CY190: -1 | CZ190: 1 | DA190: 1 | DB190: -1 | DC190: 1 | DD190: 1 | DE190: -1 | DF190: 1 | DG190: 1 | DH190: 1 | DI190: -1 | DJ190: 1 | DK190: -1 | DL190: 1 | DM190: -1 | DN190: -1 | DO190: -1 | DP190: 1 | DQ190: -1 | DR190: -1 | DS190: 1 | DT190: -1 | DU190: -1 | DV190: 1
A191: -1 | B191: 1 | C191: -2 | D191: 1 | E191: 1 | F191: -1 | G191: 1 | H191: 1 | I191: -1 | J191: 1 | K191: -1 | L191: -1 | M191: -1 | N191: -1 | O191: 1 | P191: -1 | Q191: -1 | R191: 1 | S191: 1 | T191: -1 | U191: 1 | V191: 1 | W191: 1 | X191: -1 | Y191: 1 | Z191: 2 | AA191: -1 | AB191: 1 | AC191: 1 | AD191: -1 | AE191: 1 | AF191: -2 | AG191: 2 | AH191: -1 | AI191: -1 | AJ191: -1 | AK191: 1 | AL191: 1 | AM191: -1 | AN191: -1 | AO191: 1 | AP191: 1 | AQ191: 1 | AR191: 1 | AS191: -1 | AT191: -1 | AU191: 2 | AV191: -1 | AW191: 1 | AX191: -1 | AY191: 1 | AZ191: -1 | BA191: 1 | BB191: 1 | BC191: -1 | BD191: 1 | BE191: -1 | BF191: -1 | BG191: 1 | BH191: 1 | BI191: -1 | BJ191: 1 | BK191: -1 | BL191: -1 | BM191: 2 | BN191: -1 | BO191: -2 | BP191: 2 | BQ191: -1 | BR191: 1 | BS191: 1 | BT191: -1 | BU191: 1 | BV191: 1 | BW191: 1 | BX191: -1 | BY191: 1 | BZ191: 1 | CA191: -1 | CB191: -1 | CC191: -1 | CD191: -1 | CE191: 1 | CF191: -1 | CG191: 1 | CH191: 1 | CI191: 1 | CJ191: -1 | CK191: 1 | CL191: -1 | CM191: 1 | CN191: 1 | CO191: 1 | CP191: 1 | CQ191: 1 | CR191: 1 | CS191: -1 | CT191: -1 | CU191: -1 | CV191: -1 | CW191: -1 | CX191: -1 | CY191: -1 | CZ191: -1 | DA191: 1 | DB191: -1 | DC191: 1 | DD191: -1 | DE191: -2 | DF191: 1 | DG191: 1 | DH191: 1 | DI191: 1 | DJ191: -1 | DK191: 2 | DL191: 1 | DM191: 1 | DN191: -1 | DO191: 1 | DP191: -1 | DQ191: -1 | DR191: -1 | DS191: -1 | DT191: -2 | DU191: -1 | DV191: 1
A192: -1 | B192: 1 | C192: 1 | D192: -2 | E192: 2 | F192: -1 | G192: -1 | H192: 1 | I192: 1 | J192: 1 | K192: 1 | L192: -2 | M192: -1 | N192: -1 | O192: 1 | P192: -1 | Q192: -1 | R192: -1 | S192: -2 | T192: 1 | U192: 1 | V192: -1 | W192: -1 | X192: -1 | Y192: -1 | Z192: 1 | AA192: -1 | AB192: 1 | AC192: 1 | AD192: -1 | AE192: 1 | AF192: -1 | AG192: -1 | AH192: 1 | AI192: -1 | AJ192: -1 | AK192: -1 | AL192: -1 | AM192: -1 | AN192: 1 | AO192: -1 | AP192: -1 | AQ192: 1 | AR192: 1 | AS192: -1 | AT192: 1 | AU192: -1 | AV192: 1 | AW192: -1 | AX192: 1 | AY192: 1 | AZ192: 1 | BA192: -2 | BB192: 1 | BC192: 1 | BD192: 1 | BE192: -2 | BF192: -1 | BG192: 1 | BH192: 1 | BI192: 1 | BJ192: 2 | BK192: 1 | BL192: -1 | BM192: 1 | BN192: -1 | BO192: 1 | BP192: 2 | BQ192: -1 | BR192: 1 | BS192: -1 | BT192: 1 | BU192: 1 | BV192: -1 | BW192: -1 | BX192: 1 | BY192: 1 | BZ192: -1 | CA192: 1 | CB192: -1 | CC192: -1 | CD192: -1 | CE192: -1 | CF192: -1 | CG192: 2 | CH192: 1 | CI192: -1 | CJ192: 1 | CK192: 1 | CL192: 1 | CM192: -1 | CN192: -1 | CO192: 1 | CP192: 1 | CQ192: -1 | CR192: -1 | CS192: -2 | CT192: -1 | CU192: -1 | CV192: -1 | CW192: -1 | CX192: -1 | CY192: 1 | CZ192: -1 | DA192: -1 | DB192: -1 | DC192: 2 | DD192: -1 | DE192: -1 | DF192: 2 | DG192: -1 | DH192: -1 | DI192: 1 | DJ192: -1 | DK192: 1 | DL192: 1 | DM192: 1 | DN192: 1 | DO192: -1 | DP192: -1 | DQ192: 2 | DR192: 1 | DS192: 1 | DT192: -1 | DU192: 1 | DV192: 1
A193: -1 | B193: -1 | C193: -1 | D193: 1 | E193: 1 | F193: 1 | G193: 1 | H193: -1 | I193: 1 | J193: -1 | K193: -1 | L193: 1 | M193: -1 | N193: -1 | O193: 1 | P193: -1 | Q193: -1 | R193: 1 | S193: 1 | T193: -1 | U193: 1 | V193: -1 | W193: 2 | X193: 1 | Y193: -1 | Z193: 2 | AA193: 1 | AB193: -1 | AC193: 1 | AD193: -1 | AE193: -1 | AF193: -1 | AG193: -1 | AH193: 1 | AI193: 1 | AJ193: -1 | AK193: 1 | AL193: -1 | AM193: -2 | AN193: -1 | AO193: 1 | AP193: -1 | AQ193: -1 | AR193: 1 | AS193: -1 | AT193: 1 | AU193: 2 | AV193: 1 | AW193: 2 | AX193: 1 | AY193: -2 | AZ193: 2 | BA193: -2 | BB193: -1 | BC193: 1 | BD193: -2 | BE193: -1 | BF193: 1 | BG193: -1 | BH193: 1 | BI193: 1 | BJ193: 1 | BK193: 1 | BL193: 2 | BM193: 1 | BN193: 1 | BO193: 1 | BP193: 1 | BQ193: -1 | BR193: -1 | BS193: 1 | BT193: -1 | BU193: 1 | BV193: 1 | BW193: 1 | BX193: -1 | BY193: 1 | BZ193: -1 | CA193: -1 | CB193: 1 | CC193: 1 | CD193: -1 | CE193: -1 | CF193: -1 | CG193: 1 | CH193: -1 | CI193: -1 | CJ193: -1 | CK193: 2 | CL193: 1 | CM193: -1 | CN193: -1 | CO193: -1 | CP193: -1 | CQ193: -2 | CR193: 1 | CS193: -2 | CT193: 1 | CU193: 1 | CV193: 1 | CW193: -1 | CX193: -2 | CY193: 1 | CZ193: 1 | DA193: -1 | DB193: -1 | DC193: 1 | DD193: -1 | DE193: -1 | DF193: -1 | DG193: -1 | DH193: 1 | DI193: 1 | DJ193: -1 | DK193: 1 | DL193: -1 | DM193: 1 | DN193: 1 | DO193: -1 | DP193: -1 | DQ193: 1 | DR193: 1 | DS193: 1 | DT193: 1 | DU193: 1 | DV193: 1
A194: 1 | B194: -1 | C194: -1 | D194: 1 | E194: 1 | F194: 1 | G194: -1 | H194: 1 | I194: -1 | J194: 2 | K194: -1 | L194: 2 | M194: -1 | N194: 1 | O194: 1 | P194: -1 | Q194: -1 | R194: 1 | S194: -1 | T194: -1 | U194: -1 | V194: 1 | W194: -1 | X194: -1 | Y194: 1 | Z194: 2 | AA194: -1 | AB194: -1 | AC194: -1 | AD194: -1 | AE194: 1 | AF194: 1 | AG194: 1 | AH194: -1 | AI194: -1 | AJ194: -1 | AK194: -1 | AL194: 1 | AM194: -2 | AN194: -1 | AO194: -1 | AP194: 2 | AQ194: 1 | AR194: 1 | AS194: 1 | AT194: -1 | AU194: 2 | AV194: -1 | AW194: 2 | AX194: 1 | AY194: 1 | AZ194: 1 | BA194: -1 | BB194: 1 | BC194: -1 | BD194: 1 | BE194: 1 | BF194: -1 | BG194: -2 | BH194: -2 | BI194: -1 | BJ194: -1 | BK194: 1 | BL194: -1 | BM194: 1 | BN194: -1 | BO194: 1 | BP194: 2 | BQ194: -1 | BR194: -1 | BS194: 1 | BT194: -2 | BU194: 1 | BV194: 1 | BW194: 1 | BX194: -1 | BY194: 1 | BZ194: 1 | CA194: 1 | CB194: -1 | CC194: 1 | CD194: -1 | CE194: 1 | CF194: -1 | CG194: 1 | CH194: 2 | CI194: 1 | CJ194: -1 | CK194: 1 | CL194: -1 | CM194: 1 | CN194: -1 | CO194: -1 | CP194: 1 | CQ194: -2 | CR194: -1 | CS194: -1 | CT194: -1 | CU194: 1 | CV194: -1 | CW194: 1 | CX194: -1 | CY194: 1 | CZ194: 2 | DA194: 1 | DB194: -2 | DC194: 2 | DD194: -1 | DE194: -1 | DF194: 2 | DG194: 1 | DH194: -1 | DI194: -1 | DJ194: -1 | DK194: 1 | DL194: 1 | DM194: -1 | DN194: -1 | DO194: -1 | DP194: -1 | DQ194: 2 | DR194: -1 | DS194: -1 | DT194: -1 | DU194: -1 | DV194: -1
A195: -1 | B195: 1 | C195: -1 | D195: -1 | E195: 1 | F195: -1 | G195: 1 | H195: -1 | I195: -1 | J195: 1 | K195: -1 | L195: -1 | M195: -1 | N195: -2 | O195: -1 | P195: -1 | Q195: -1 | R195: -1 | S195: 1 | T195: -1 | U195: 1 | V195: -1 | W195: 2 | X195: -1 | Y195: 1 | Z195: 2 | AA195: 1 | AB195: -1 | AC195: 1 | AD195: -1 | AE195: 2 | AF195: -1 | AG195: -1 | AH195: -1 | AI195: -1 | AJ195: -1 | AK195: 1 | AL195: -1 | AM195: -1 | AN195: -1 | AO195: 1 | AP195: 1 | AQ195: 1 | AR195: 2 | AS195: 1 | AT195: 1 | AU195: 2 | AV195: 1 | AW195: -1 | AX195: 1 | AY195: -2 | AZ195: 1 | BA195: 1 | BB195: -1 | BC195: -2 | BD195: -2 | BE195: -1 | BF195: -1 | BG195: -1 | BH195: -1 | BI195: 1 | BJ195: 1 | BK195: 1 | BL195: -1 | BM195: 2 | BN195: -1 | BO195: 1 | BP195: 1 | BQ195: -1 | BR195: 1 | BS195: -1 | BT195: -1 | BU195: -1 | BV195: -2 | BW195: -1 | BX195: 1 | BY195: -1 | BZ195: -2 | CA195: 1 | CB195: -1 | CC195: 1 | CD195: 1 | CE195: -1 | CF195: -1 | CG195: -1 | CH195: 1 | CI195: -1 | CJ195: -1 | CK195: 2 | CL195: 1 | CM195: 1 | CN195: -1 | CO195: -1 | CP195: 2 | CQ195: -1 | CR195: 2 | CS195: -1 | CT195: -1 | CU195: 1 | CV195: -1 | CW195: -1 | CX195: -1 | CY195: -1 | CZ195: 1 | DA195: -1 | DB195: -1 | DC195: 1 | DD195: 1 | DE195: 1 | DF195: 1 | DG195: -1 | DH195: 1 | DI195: -1 | DJ195: -1 | DK195: 1 | DL195: 1 | DM195: -1 | DN195: -1 | DO195: 1 | DP195: 1 | DQ195: 1 | DR195: -1 | DS195: 1 | DT195: -1 | DU195: 1 | DV195: -1
A196: 1 | B196: 2 | C196: 1 | D196: 1 | E196: 1 | F196: 1 | G196: 1 | H196: -1 | I196: -1 | J196: 1 | K196: 1 | L196: 1 | M196: -1 | N196: -1 | O196: 1 | P196: 1 | Q196: -1 | R196: -1 | S196: -1 | T196: -1 | U196: 1 | V196: -1 | W196: 1 | X196: -1 | Y196: -1 | Z196: 1 | AA196: -1 | AB196: 1 | AC196: 1 | AD196: -1 | AE196: 1 | AF196: 1 | AG196: 2 | AH196: -1 | AI196: -1 | AJ196: 2 | AK196: -1 | AL196: -1 | AM196: -2 | AN196: -1 | AO196: 1 | AP196: 1 | AQ196: -1 | AR196: 1 | AS196: 1 | AT196: -2 | AU196: 2 | AV196: 1 | AW196: 1 | AX196: 1 | AY196: -1 | AZ196: 2 | BA196: -1 | BB196: -1 | BC196: -2 | BD196: 1 | BE196: -1 | BF196: 1 | BG196: -1 | BH196: -1 | BI196: -1 | BJ196: -1 | BK196: 1 | BL196: 1 | BM196: 1 | BN196: -1 | BO196: 1 | BP196: 1 | BQ196: -1 | BR196: -1 | BS196: -2 | BT196: 1 | BU196: -1 | BV196: -1 | BW196: 1 | BX196: 1 | BY196: 1 | BZ196: -1 | CA196: -1 | CB196: -1 | CC196: -1 | CD196: 1 | CE196: -1 | CF196: -1 | CG196: -1 | CH196: 1 | CI196: 1 | CJ196: 1 | CK196: 2 | CL196: 1 | CM196: 1 | CN196: -1 | CO196: -2 | CP196: 1 | CQ196: -1 | CR196: 1 | CS196: -2 | CT196: -2 | CU196: -1 | CV196: 1 | CW196: 1 | CX196: 1 | CY196: 1 | CZ196: -1 | DA196: 1 | DB196: 2 | DC196: 2 | DD196: -1 | DE196: -1 | DF196: -1 | DG196: 1 | DH196: 1 | DI196: -1 | DJ196: 1 | DK196: 1 | DL196: 1 | DM196: 1 | DN196: 1 | DO196: -1 | DP196: 1 | DQ196: -1 | DR196: 1 | DS196: -1 | DT196: -1 | DU196: 1 | DV196: -1
A197: 2 | B197: 2 | C197: -1 | D197: -1 | E197: 2 | F197: -1 | G197: 1 | H197: 1 | I197: 1 | J197: 1 | K197: -1 | L197: 1 | M197: -1 | N197: 1 | O197: 1 | P197: 1 | Q197: 1 | R197: -1 | S197: 1 | T197: -1 | U197: 1 | V197: 1 | W197: -1 | X197: -1 | Y197: -1 | Z197: 2 | AA197: -1 | AB197: -1 | AC197: -1 | AD197: -2 | AE197: 1 | AF197: -1 | AG197: 1 | AH197: -2 | AI197: -1 | AJ197: 1 | AK197: -1 | AL197: -1 | AM197: 1 | AN197: -1 | AO197: -1 | AP197: -1 | AQ197: -2 | AR197: 1 | AS197: 1 | AT197: -1 | AU197: 2 | AV197: 1 | AW197: 1 | AX197: -1 | AY197: -1 | AZ197: -1 | BA197: 1 | BB197: 1 | BC197: 1 | BD197: -1 | BE197: 1 | BF197: 1 | BG197: -1 | BH197: 1 | BI197: 1 | BJ197: 1 | BK197: 1 | BL197: 1 | BM197: 1 | BN197: 1 | BO197: -1 | BP197: 1 | BQ197: -1 | BR197: 1 | BS197: -1 | BT197: -1 | BU197: -1 | BV197: 1 | BW197: 1 | BX197: -1 | BY197: -2 | BZ197: -1 | CA197: -1 | CB197: -1 | CC197: -1 | CD197: -1 | CE197: 1 | CF197: -1 | CG197: -1 | CH197: 1 | CI197: 1 | CJ197: 1 | CK197: 1 | CL197: 1 | CM197: -1 | CN197: -1 | CO197: -1 | CP197: 1 | CQ197: -1 | CR197: -1 | CS197: -2 | CT197: -2 | CU197: 1 | CV197: 1 | CW197: -1 | CX197: -1 | CY197: -1 | CZ197: -1 | DA197: 1 | DB197: -1 | DC197: 2 | DD197: 1 | DE197: -1 | DF197: 1 | DG197: -1 | DH197: -1 | DI197: 1 | DJ197: -1 | DK197: -1 | DL197: -2 | DM197: -1 | DN197: -1 | DO197: 1 | DP197: -1 | DQ197: -1 | DR197: -1 | DS197: -1 | DT197: -1 | DU197: -1 | DV197: 1
A198: 1 | B198: 1 | C198: -1 | D198: -1 | E198: 2 | F198: 1 | G198: 1 | H198: 1 | I198: -2 | J198: 1 | K198: -1 | L198: -1 | M198: -1 | N198: -1 | O198: 1 | P198: -1 | Q198: -1 | R198: 1 | S198: -1 | T198: -1 | U198: 2 | V198: 1 | W198: 1 | X198: -1 | Y198: -1 | Z198: 1 | AA198: 1 | AB198: -1 | AC198: -1 | AD198: -2 | AE198: -1 | AF198: 1 | AG198: 1 | AH198: 1 | AI198: -1 | AJ198: 1 | AK198: -1 | AL198: -1 | AM198: -1 | AN198: -1 | AO198: -1 | AP198: 2 | AQ198: -1 | AR198: -1 | AS198: 1 | AT198: -1 | AU198: 1 | AV198: 1 | AW198: 1 | AX198: -1 | AY198: -1 | AZ198: 1 | BA198: -1 | BB198: 2 | BC198: -1 | BD198: -1 | BE198: 1 | BF198: -1 | BG198: 1 | BH198: 1 | BI198: 1 | BJ198: -1 | BK198: 1 | BL198: -1 | BM198: -1 | BN198: -1 | BO198: -1 | BP198: 2 | BQ198: -1 | BR198: -1 | BS198: 1 | BT198: -1 | BU198: -1 | BV198: -1 | BW198: -1 | BX198: 1 | BY198: 1 | BZ198: 1 | CA198: 1 | CB198: -1 | CC198: -1 | CD198: 1 | CE198: -1 | CF198: 1 | CG198: -1 | CH198: 1 | CI198: 1 | CJ198: -1 | CK198: 2 | CL198: -1 | CM198: -1 | CN198: 1 | CO198: -1 | CP198: -1 | CQ198: -2 | CR198: 1 | CS198: -1 | CT198: -1 | CU198: 1 | CV198: 1 | CW198: -1 | CX198: -2 | CY198: 1 | CZ198: -1 | DA198: 1 | DB198: -1 | DC198: -1 | DD198: -1 | DE198: -1 | DF198: 1 | DG198: -1 | DH198: -1 | DI198: 1 | DJ198: -1 | DK198: 1 | DL198: 1 | DM198: 1 | DN198: -1 | DO198: 1 | DP198: 1 | DQ198: 1 | DR198: 1 | DS198: -1 | DT198: 1 | DU198: 1 | DV198: 1
A199: -1 | B199: 1 | C199: -1 | D199: 1 | E199: -1 | F199: -1 | G199: 2 | H199: 1 | I199: 1 | J199: 1 | K199: -1 | L199: 1 | M199: -1 | N199: 1 | O199: -1 | P199: -1 | Q199: 1 | R199: -1 | S199: -1 | T199: -1 | U199: -1 | V199: 1 | W199: -1 | X199: 1 | Y199: -1 | Z199: 1 | AA199: 1 | AB199: 2 | AC199: -1 | AD199: -1 | AE199: 1 | AF199: -1 | AG199: 1 | AH199: -1 | AI199: -1 | AJ199: -1 | AK199: 1 | AL199: 1 | AM199: 1 | AN199: 1 | AO199: -1 | AP199: -1 | AQ199: -1 | AR199: 1 | AS199: -1 | AT199: 1 | AU199: -1 | AV199: -2 | AW199: 2 | AX199: -1 | AY199: -1 | AZ199: -1 | BA199: 1 | BB199: 1 | BC199: 1 | BD199: 1 | BE199: -1 | BF199: 1 | BG199: 1 | BH199: -1 | BI199: -1 | BJ199: 1 | BK199: -1 | BL199: 1 | BM199: -1 | BN199: 1 | BO199: -1 | BP199: 1 | BQ199: -1 | BR199: 1 | BS199: -1 | BT199: 1 | BU199: 1 | BV199: -1 | BW199: 1 | BX199: -1 | BY199: 1 | BZ199: 1 | CA199: 1 | CB199: 1 | CC199: -1 | CD199: -1 | CE199: -1 | CF199: -2 | CG199: -1 | CH199: -1 | CI199: -1 | CJ199: 1 | CK199: 1 | CL199: -1 | CM199: 1 | CN199: 1 | CO199: 1 | CP199: -1 | CQ199: 1 | CR199: 1 | CS199: -1 | CT199: 1 | CU199: -1 | CV199: -1 | CW199: -1 | CX199: 1 | CY199: -1 | CZ199: 1 | DA199: -1 | DB199: -1 | DC199: 1 | DD199: -1 | DE199: -1 | DF199: -1 | DG199: 1 | DH199: 1 | DI199: -1 | DJ199: 1 | DK199: -1 | DL199: -1 | DM199: 1 | DN199: -1 | DO199: 1 | DP199: -1 | DQ199: -1 | DR199: 1 | DS199: 1 | DT199: 1 | DU199: 1 | DV199: -1
A200: -2 | B200: 1 | C200: -1 | D200: 1 | E200: -1 | F200: -1 | G200: 1 | H200: -1 | I200: -1 | J200: 1 | K200: 1 | L200: 1 | M200: 1 | N200: 1 | O200: -1 | P200: -1 | Q200: -1 | R200: 1 | S200: -1 | T200: 1 | U200: 1 | V200: 2 | W200: -1 | X200: 1 | Y200: -1 | Z200: -1 | AA200: -1 | AB200: 2 | AC200: -1 | AD200: -1 | AE200: -2 | AF200: -1 | AG200: 1 | AH200: -1 | AI200: -1 | AJ200: -1 | AK200: 1 | AL200: -1 | AM200: 1 | AN200: 1 | AO200: -1 | AP200: -1 | AQ200: 1 | AR200: -1 | AS200: -1 | AT200: 1 | AU200: 1 | AV200: -1 | AW200: 1 | AX200: -1 | AY200: -1 | AZ200: 1 | BA200: -1 | BB200: 1 | BC200: -1 | BD200: -1 | BE200: -1 | BF200: -1 | BG200: 1 | BH200: -1 | BI200: -1 | BJ200: 1 | BK200: -1 | BL200: -1 | BM200: 1 | BN200: -1 | BO200: -1 | BP200: 1 | BQ200: 1 | BR200: -1 | BS200: -1 | BT200: 1 | BU200: 1 | BV200: 1 | BW200: -1 | BX200: 1 | BY200: -1 | BZ200: -1 | CA200: 1 | CB200: 1 | CC200: -1 | CD200: 1 | CE200: -1 | CF200: -1 | CG200: 1 | CH200: -1 | CI200: -1 | CJ200: 1 | CK200: -1 | CL200: 1 | CM200: 2 | CN200: 1 | CO200: 1 | CP200: -1 | CQ200: -1 | CR200: 1 | CS200: -1 | CT200: -1 | CU200: 1 | CV200: -1 | CW200: -1 | CX200: 1 | CY200: 1 | CZ200: 1 | DA200: 1 | DB200: -1 | DC200: -1 | DD200: 1 | DE200: 1 | DF200: -1 | DG200: 1 | DH200: 1 | DI200: 1 | DJ200: 1 | DK200: 1 | DL200: -1 | DM200: 1 | DN200: 1 | DO200: 1 | DP200: 1 | DQ200: -1 | DR200: 1 | DS200: -1 | DT200: 1 | DU200: -1 | DV200: 1
... 356 more rows

Sheet im2colAll_confW3
A1: 9215 | B1: -435 | C1: 5 | D1: -260 | E1: 313 | F1: 77 | G1: 472 | H1: 1192 | I1: -2334 | J1: -862 | K1: -766 | L1: -1401 | M1: -1418 | N1: 189 | O1: 760 | P1: 3277 | Q1: 398 | R1: -1723 | S1: -1541 | T1: -569 | U1: -787 | V1: 9626 | W1: -172 | X1: -542 | Y1: -859 | Z1: 347 | AA1: -1067 | AB1: 814 | AC1: 477 | AD1: -2584 | AE1: -1109 | AF1: -697 | AG1: -1074 | AH1: -1926 | AI1: -1010 | AJ1: -48 | AK1: 2668 | AL1: 549 | AM1: -1897 | AN1: -1679 | AO1: -981 | AP1: 24 | AQ1: 9682 | AR1: 313 | AS1: -349 | AT1: -1157 | AU1: 527 | AV1: 110 | AW1: 601 | AX1: 1394 | AY1: -1980 | AZ1: -1009 | BA1: -778 | BB1: -798 | BC1: -3155 | BD1: -298 | BE1: -113 | BF1: 2973 | BG1: 323 | BH1: -1658 | BI1: -1064 | BJ1: -1351 | BK1: -540 | BL1: 8887 | BM1: -794 | BN1: -235 | BO1: -367 | BP1: 26 | BQ1: -408 | BR1: 428 | BS1: 109 | BT1: -1986 | BU1: -1232 | BV1: -857 | BW1: -867 | BX1: -1256 | BY1: -390 | BZ1: 507 | CA1: 3443 | CB1: 550 | CC1: -1163 | CD1: -1842 | CE1: -626 | CF1: -942 | CG1: 9265 | CH1: -226 | CI1: -842 | CJ1: -1066 | CK1: 323 | CL1: -483 | CM1: 488 | CN1: 409 | CO1: -1940 | CP1: -1739 | CQ1: -1728 | CR1: -297 | CS1: -1319 | CT1: -615 | CU1: 189 | CV1: 1275 | CW1: 137 | CX1: -1919 | CY1: -1185 | CZ1: -860 | DA1: -150 | DB1: 9288 | DC1: -188 | DD1: -222 | DE1: -735 | DF1: 410 | DG1: -606 | DH1: 889 | DI1: 31 | DJ1: -2121 | DK1: -340 | DL1: -744 | DM1: -1014 | DN1: -2145 | DO1: -1339 | DP1: -127 | DQ1: 3254 | DR1: 139 | DS1: -1137 | DT1: -2083 | DU1: -988 | DV1: -343
A2: 14413 | B2: -460 | C2: 638 | D2: -1157 | E2: 328 | F2: -1240 | G2: 879 | H2: 1539 | I2: -4859 | J2: -1841 | K2: -1091 | L2: -1432 | M2: -2344 | N2: 633 | O2: 1331 | P2: 6500 | Q2: 795 | R2: -3267 | S2: -2638 | T2: -898 | U2: -1134 | V2: 13522 | W2: -151 | X2: -127 | Y2: -2189 | Z2: 383 | AA2: -2716 | AB2: 1339 | AC2: 998 | AD2: -5054 | AE2: -1485 | AF2: -437 | AG2: -1102 | AH2: -3356 | AI2: -853 | AJ2: 511 | AK2: 5582 | AL2: 93 | AM2: -3622 | AN2: -2655 | AO2: -1030 | AP2: -1076 | AQ2: 14761 | AR2: 60 | AS2: 21 | AT2: -1242 | AU2: 1055 | AV2: -473 | AW2: 1096 | AX2: 2164 | AY2: -3998 | AZ2: -2300 | BA2: -1398 | BB2: -1142 | BC2: -3920 | BD2: 57 | BE2: 182 | BF2: 4700 | BG2: 285 | BH2: -3036 | BI2: -1935 | BJ2: -1962 | BK2: -1716 | BL2: 13837 | BM2: -1222 | BN2: 105 | BO2: -1082 | BP2: -46 | BQ2: -1213 | BR2: 223 | BS2: -230 | BT2: -3733 | BU2: -1994 | BV2: -1059 | BW2: -1371 | BX2: -2267 | BY2: 527 | BZ2: 1206 | CA2: 7397 | CB2: 667 | CC2: -2083 | CD2: -2614 | CE2: -1115 | CF2: -1716 | CG2: 14146 | CH2: -237 | CI2: -396 | CJ2: -1670 | CK2: 486 | CL2: -1341 | CM2: 404 | CN2: 1115 | CO2: -3989 | CP2: -2781 | CQ2: -2798 | CR2: 292 | CS2: -3362 | CT2: 406 | CU2: 838 | CV2: 2585 | CW2: 398 | CX2: -3023 | CY2: -1461 | CZ2: -921 | DA2: -937 | DB2: 13794 | DC2: -612 | DD2: 604 | DE2: -1634 | DF2: 584 | DG2: -1315 | DH2: 603 | DI2: -764 | DJ2: -4264 | DK2: -810 | DL2: -1225 | DM2: -935 | DN2: -2678 | DO2: -553 | DP2: 724 | DQ2: 6892 | DR2: -400 | DS2: -2213 | DT2: -2825 | DU2: -1833 | DV2: -2119
A3: 16270 | B3: -377 | C3: 1112 | D3: -1579 | E3: 322 | F3: -1708 | G3: 1128 | H3: 476 | I3: -5292 | J3: -1856 | K3: -1591 | L3: -1332 | M3: -2859 | N3: 986 | O3: 1059 | P3: 7891 | Q3: 1509 | R3: -3646 | S3: -2447 | T3: -1348 | U3: -2066 | V3: 16052 | W3: 428 | X3: 787 | Y3: -2389 | Z3: 625 | AA3: -3842 | AB3: 1349 | AC3: 732 | AD3: -6075 | AE3: -1381 | AF3: -661 | AG3: -1767 | AH3: -3332 | AI3: -286 | AJ3: 434 | AK3: 6753 | AL3: -21 | AM3: -4061 | AN3: -3624 | AO3: -1247 | AP3: -2178 | AQ3: 17846 | AR3: -361 | AS3: 320 | AT3: -1210 | AU3: 1211 | AV3: -1121 | AW3: 1343 | AX3: 2074 | AY3: -4655 | AZ3: -2693 | BA3: -1654 | BB3: -311 | BC3: -3965 | BD3: -43 | BE3: 1082 | BF3: 4964 | BG3: 698 | BH3: -4045 | BI3: -2277 | BJ3: -2252 | BK3: -2797 | BL3: 15735 | BM3: -1401 | BN3: 533 | BO3: -1353 | BP3: -165 | BQ3: -1777 | BR3: -714 | BS3: -748 | BT3: -4614 | BU3: -1812 | BV3: -1300 | BW3: -2032 | BX3: -2232 | BY3: 1025 | BZ3: 1864 | CA3: 8675 | CB3: 614 | CC3: -1453 | CD3: -2999 | CE3: -1843 | CF3: -2537 | CG3: 16370 | CH3: -622 | CI3: -415 | CJ3: -1812 | CK3: 131 | CL3: -1544 | CM3: -216 | CN3: 1185 | CO3: -4832 | CP3: -2919 | CQ3: -3123 | CR3: 246 | CS3: -2964 | CT3: 743 | CU3: 1483 | CV3: 2795 | CW3: -490 | CX3: -3685 | CY3: -1763 | CZ3: -926 | DA3: -1783 | DB3: 15191 | DC3: -484 | DD3: 1209 | DE3: -1655 | DF3: 965 | DG3: -1392 | DH3: 96 | DI3: -1783 | DJ3: -5167 | DK3: -1138 | DL3: -1401 | DM3: -1622 | DN3: -2811 | DO3: 33 | DP3: 1142 | DQ3: 7151 | DR3: -649 | DS3: -2811 | DT3: -3068 | DU3: -1968 | DV3: -2755
A4: 15656 | B4: -936 | C4: 82 | D4: -1550 | E4: 243 | F4: -1207 | G4: 569 | H4: 864 | I4: -4950 | J4: -1845 | K4: -2041 | L4: -244 | M4: -2127 | N4: -74 | O4: -316 | P4: 7243 | Q4: 2094 | R4: -2857 | S4: -1698 | T4: -2640 | U4: -818 | V4: 16501 | W4: -459 | X4: -822 | Y4: -2272 | Z4: 1248 | AA4: -3697 | AB4: 742 | AC4: 900 | AD4: -5583 | AE4: -804 | AF4: -266 | AG4: -1661 | AH4: -3768 | AI4: -903 | AJ4: -784 | AK4: 6701 | AL4: -155 | AM4: -3837 | AN4: -1406 | AO4: -2283 | AP4: -1257 | AQ4: 16765 | AR4: -862 | AS4: -1591 | AT4: -1238 | AU4: 905 | AV4: -1031 | AW4: 1120 | AX4: 1335 | AY4: -4184 | AZ4: -1665 | BA4: -1615 | BB4: 34 | BC4: -3942 | BD4: 24 | BE4: 205 | BF4: 4733 | BG4: 859 | BH4: -3522 | BI4: -730 | BJ4: -2844 | BK4: -1677 | BL4: 15733 | BM4: -1630 | BN4: -1184 | BO4: -1811 | BP4: 126 | BQ4: -1326 | BR4: -1031 | BS4: -1224 | BT4: -4566 | BU4: -959 | BV4: -1523 | BW4: -1474 | BX4: -2736 | BY4: -156 | BZ4: 594 | CA4: 8503 | CB4: 1163 | CC4: -1012 | CD4: -3153 | CE4: -2372 | CF4: -1064 | CG4: 16126 | CH4: -1848 | CI4: -1443 | CJ4: -1316 | CK4: -208 | CL4: -1502 | CM4: 647 | CN4: 614 | CO4: -4472 | CP4: -1971 | CQ4: -2722 | CR4: 989 | CS4: -3147 | CT4: 339 | CU4: 805 | CV4: 3204 | CW4: -522 | CX4: -3510 | CY4: -498 | CZ4: -1543 | DA4: -696 | DB4: 15848 | DC4: -1032 | DD4: 154 | DE4: -1623 | DF4: 607 | DG4: -1192 | DH4: -13 | DI4: -1670 | DJ4: -4553 | DK4: -265 | DL4: -1000 | DM4: 351 | DN4: -1824 | DO4: 281 | DP4: -540 | DQ4: 7872 | DR4: 329 | DS4: -2612 | DT4: -2555 | DU4: -2523 | DV4: -1898
A5: 16774 | B5: -2594 | C5: -2490 | D5: -1197 | E5: -525 | F5: -328 | G5: 1675 | H5: 2195 | I5: -4442 | J5: -1869 | K5: -1223 | L5: -1316 | M5: -1808 | N5: -1166 | O5: -2398 | P5: 9192 | Q5: 2544 | R5: -2845 | S5: -581 | T5: -3609 | U5: 933 | V5: 18765 | W5: -1905 | X5: -3953 | Y5: -2265 | Z5: 1298 | AA5: -3291 | AB5: 950 | AC5: 1743 | AD5: -5341 | AE5: -335 | AF5: 300 | AG5: -1296 | AH5: -3239 | AI5: -2884 | AJ5: -2958 | AK5: 8378 | AL5: 159 | AM5: -4215 | AN5: -232 | AO5: -2091 | AP5: 661 | AQ5: 17809 | AR5: -1517 | AS5: -4364 | AT5: -531 | AU5: 1197 | AV5: -1275 | AW5: 1088 | AX5: 2426 | AY5: -4134 | AZ5: -1931 | BA5: -502 | BB5: -680 | BC5: -3985 | BD5: -559 | BE5: -2031 | BF5: 6903 | BG5: 1176 | BH5: -2959 | BI5: 267 | BJ5: -3530 | BK5: 686 | BL5: 19738 | BM5: -2692 | BN5: -3704 | BO5: -1739 | BP5: -981 | BQ5: -664 | BR5: -1128 | BS5: -770 | BT5: -4864 | BU5: -682 | BV5: -1443 | BW5: -1767 | BX5: -2921 | BY5: -1709 | BZ5: -3108 | CA5: 10247 | CB5: 1049 | CC5: -1750 | CD5: -2195 | CE5: -3797 | CF5: -201 | CG5: 17451 | CH5: -2815 | CI5: -2934 | CJ5: -2112 | CK5: -211 | CL5: -2164 | CM5: 378 | CN5: 751 | CO5: -4063 | CP5: -2256 | CQ5: -2385 | CR5: 949 | CS5: -2079 | CT5: 311 | CU5: -779 | CV5: 4566 | CW5: 32 | CX5: -3191 | CY5: -111 | CZ5: -2677 | DA5: 678 | DB5: 21212 | DC5: -2719 | DD5: -2335 | DE5: -2870 | DF5: 105 | DG5: -1215 | DH5: 993 | DI5: -601 | DJ5: -4247 | DK5: 382 | DL5: -369 | DM5: 475 | DN5: -1759 | DO5: -1100 | DP5: -2728 | DQ5: 10584 | DR5: 529 | DS5: -2376 | DT5: -1968 | DU5: -3960 | DV5: -518
A6: 19695 | B6: -3610 | C6: -2718 | D6: -2377 | E6: -468 | F6: -232 | G6: 1283 | H6: 2581 | I6: -4463 | J6: -1577 | K6: -659 | L6: -1207 | M6: -2645 | N6: -1320 | O6: -2731 | P6: 9741 | Q6: 1714 | R6: -2654 | S6: -827 | T6: -4055 | U6: 1268 | V6: 21519 | W6: -2721 | X6: -4530 | Y6: -2587 | Z6: 91 | AA6: -3283 | AB6: 1291 | AC6: 1520 | AD6: -5210 | AE6: -624 | AF6: 857 | AG6: -799 | AH6: -3724 | AI6: -3109 | AJ6: -4974 | AK6: 8642 | AL6: 745 | AM6: -4408 | AN6: 195 | AO6: -2744 | AP6: 779 | AQ6: 20116 | AR6: -1950 | AS6: -5840 | AT6: -1022 | AU6: 886 | AV6: -2048 | AW6: 1051 | AX6: 1861 | AY6: -4770 | AZ6: -3199 | BA6: 605 | BB6: -216 | BC6: -3705 | BD6: -1110 | BE6: -3710 | BF6: 8341 | BG6: -320 | BH6: -2543 | BI6: -760 | BJ6: -3624 | BK6: 1562 | BL6: 23596 | BM6: -3755 | BN6: -4350 | BO6: -1286 | BP6: -1259 | BQ6: -1416 | BR6: -438 | BS6: -93 | BT6: -4767 | BU6: 242 | BV6: -291 | BW6: -2337 | BX6: -2957 | BY6: -769 | BZ6: -3865 | CA6: 10259 | CB6: 1001 | CC6: -1652 | CD6: -2272 | CE6: -5068 | CF6: -30 | CG6: 19413 | CH6: -3108 | CI6: -4730 | CJ6: -3427 | CK6: 61 | CL6: -2524 | CM6: -86 | CN6: 933 | CO6: -4308 | CP6: -2337 | CQ6: -2195 | CR6: 1443 | CS6: -2379 | CT6: -379 | CU6: -1120 | CV6: 5863 | CW6: 146 | CX6: -2775 | CY6: -262 | CZ6: -3823 | DA6: 2044 | DB6: 23088 | DC6: -2592 | DD6: -3958 | DE6: -3244 | DF6: 125 | DG6: -1144 | DH6: -623 | DI6: -1150 | DJ6: -3171 | DK6: -40 | DL6: -472 | DM6: -10 | DN6: -2284 | DO6: -1729 | DP6: -2784 | DQ6: 9949 | DR6: -1407 | DS6: -2677 | DT6: -1619 | DU6: -4151 | DV6: -32
A7: 17529 | B7: -2703 | C7: -1945 | D7: -3028 | E7: -626 | F7: -2358 | G7: 452 | H7: 1514 | I7: -4464 | J7: -739 | K7: -225 | L7: -76 | M7: -2403 | N7: -79 | O7: -1505 | P7: 8982 | Q7: 2238 | R7: -1779 | S7: -1804 | T7: -1949 | U7: 652 | V7: 18371 | W7: -787 | X7: -2634 | Y7: -3152 | Z7: -1504 | AA7: -4625 | AB7: 640 | AC7: 1106 | AD7: -5649 | AE7: -324 | AF7: 810 | AG7: -943 | AH7: -3000 | AI7: -1591 | AJ7: -3499 | AK7: 7456 | AL7: 381 | AM7: -3039 | AN7: -147 | AO7: -2698 | AP7: -1563 | AQ7: 18186 | AR7: -1706 | AS7: -4217 | AT7: -782 | AU7: -21 | AV7: -1874 | AW7: 165 | AX7: 2798 | AY7: -4639 | AZ7: -2683 | BA7: 779 | BB7: 957 | BC7: -3162 | BD7: -726 | BE7: -3574 | BF7: 4916 | BG7: 107 | BH7: -2432 | BI7: -411 | BJ7: -3035 | BK7: -251 | BL7: 18108 | BM7: -2832 | BN7: -1965 | BO7: -1962 | BP7: -1288 | BQ7: -2122 | BR7: -219 | BS7: -313 | BT7: -4278 | BU7: -17 | BV7: 155 | BW7: -1014 | BX7: -1765 | BY7: 287 | BZ7: -2115 | CA7: 9375 | CB7: 1260 | CC7: -831 | CD7: -2057 | CE7: -3571 | CF7: -1236 | CG7: 18557 | CH7: -3109 | CI7: -3082 | CJ7: -2528 | CK7: -273 | CL7: -1950 | CM7: -775 | CN7: 1310 | CO7: -4189 | CP7: -2703 | CQ7: -2382 | CR7: 1985 | CS7: -2488 | CT7: 947 | CU7: -1133 | CV7: 4755 | CW7: 423 | CX7: -2330 | CY7: -185 | CZ7: -2522 | DA7: 669 | DB7: 17870 | DC7: -2121 | DD7: -1673 | DE7: -2394 | DF7: -697 | DG7: -1863 | DH7: -332 | DI7: -1551 | DJ7: -4174 | DK7: 704 | DL7: -436 | DM7: -40 | DN7: -1904 | DO7: -1105 | DP7: -1585 | DQ7: 8552 | DR7: -574 | DS7: -2741 | DT7: -1804 | DU7: -2954 | DV7: -1608
A8: 14084 | B8: -1478 | C8: 724 | D8: -2221 | E8: -644 | F8: -2659 | G8: -25 | H8: 600 | I8: -3890 | J8: -1034 | K8: -1024 | L8: -826 | M8: -1674 | N8: 1248 | O8: -782 | P8: 6277 | Q8: 2048 | R8: -1971 | S8: -1740 | T8: -527 | U8: -1392 | V8: 15029 | W8: -162 | X8: -732 | Y8: -2884 | Z8: -1007 | AA8: -4354 | AB8: 74 | AC8: 190 | AD8: -4682 | AE8: 58 | AF8: 378 | AG8: -1065 | AH8: -1779 | AI8: -244 | AJ8: -1584 | AK8: 5617 | AL8: 552 | AM8: -2198 | AN8: -1142 | AO8: -613 | AP8: -2163 | AQ8: 16745 | AR8: -1297 | AS8: -1335 | AT8: -920 | AU8: 336 | AV8: -1862 | AW8: -236 | AX8: 2151 | AY8: -3689 | AZ8: -1526 | BA8: -503 | BB8: 953 | BC8: -3151 | BD8: -366 | BE8: -2224 | BF8: 3540 | BG8: 612 | BH8: -2795 | BI8: -31 | BJ8: -1576 | BK8: -1808 | BL8: 13862 | BM8: -1610 | BN8: 333 | BO8: -1650 | BP8: -977 | BQ8: -2731 | BR8: -1368 | BS8: -739 | BT8: -2965 | BU8: -701 | BV8: -246 | BW8: -1078 | BX8: -1186 | BY8: 1015 | BZ8: -287 | CA8: 6637 | CB8: 1007 | CC8: -1149 | CD8: -2165 | CE8: -1396 | CF8: -2241 | CG8: 17196 | CH8: -2290 | CI8: -1558 | CJ8: -1639 | CK8: -657 | CL8: -2258 | CM8: -911 | CN8: 831 | CO8: -3578 | CP8: -2530 | CQ8: -2958 | CR8: 1228 | CS8: -1831 | CT8: 1081 | CU8: -703 | CV8: 2531 | CW8: 465 | CX8: -2711 | CY8: -725 | CZ8: -995 | DA8: -602 | DB8: 14191 | DC8: -712 | DD8: 571 | DE8: -1395 | DF8: -232 | DG8: -2055 | DH8: 529 | DI8: -1468 | DJ8: -3835 | DK8: 220 | DL8: -1038 | DM8: -1073 | DN8: -983 | DO8: 603 | DP8: -351 | DQ8: 5925 | DR8: -92 | DS8: -1834 | DT8: -2074 | DU8: -1275 | DV8: -2181
A9: 14028 | B9: -832 | C9: 1639 | D9: -1567 | E9: -276 | F9: -2719 | G9: -645 | H9: 156 | I9: -3413 | J9: -1144 | K9: -918 | L9: -1359 | M9: -1139 | N9: 1207 | O9: -701 | P9: 4243 | Q9: 1448 | R9: -1429 | S9: -970 | T9: -301 | U9: -1675 | V9: 13867 | W9: -350 | X9: 351 | Y9: -2410 | Z9: -953 | AA9: -3839 | AB9: 147 | AC9: 608 | AD9: -3698 | AE9: -445 | AF9: 559 | AG9: -1452 | AH9: -1527 | AI9: 700 | AJ9: -1484 | AK9: 3509 | AL9: 11 | AM9: -2057 | AN9: -1912 | AO9: 156 | AP9: -1923 | AQ9: 14803 | AR9: -600 | AS9: -122 | AT9: -1040 | AU9: -259 | AV9: -2271 | AW9: -316 | AX9: 1244 | AY9: -2654 | AZ9: -1785 | BA9: -511 | BB9: 441 | BC9: -2237 | BD9: 408 | BE9: -828 | BF9: 2433 | BG9: 737 | BH9: -2385 | BI9: -651 | BJ9: -727 | BK9: -1936 | BL9: 14254 | BM9: -1491 | BN9: -289 | BO9: -1291 | BP9: -487 | BQ9: -2646 | BR9: -1258 | BS9: -895 | BT9: -2876 | BU9: -415 | BV9: -378 | BW9: -1065 | BX9: -1343 | BY9: 1171 | BZ9: -632 | CA9: 5361 | CB9: 309 | CC9: -611 | CD9: -1493 | CE9: -937 | CF9: -1976 | CG9: 14510 | CH9: -1035 | CI9: -244 | CJ9: -1636 | CK9: -620 | CL9: -2124 | CM9: -879 | CN9: 294 | CO9: -2814 | CP9: -1946 | CQ9: -1933 | CR9: 696 | CS9: -1408 | CT9: 765 | CU9: -231 | CV9: 942 | CW9: 316 | CX9: -2164 | CY9: -202 | CZ9: 298 | DA9: -1287 | DB9: 13981 | DC9: -904 | DD9: 339 | DE9: -1499 | DF9: -96 | DG9: -2180 | DH9: -286 | DI9: -1712 | DJ9: -3085 | DK9: -824 | DL9: -667 | DM9: -720 | DN9: -1484 | DO9: 803 | DP9: 18 | DQ9: 4628 | DR9: -430 | DS9: -1028 | DT9: -1633 | DU9: -733 | DV9: -2453
A10: 10353 | B10: -551 | C10: 583 | D10: -1381 | E10: 277 | F10: -2015 | G10: -646 | H10: 67 | I10: -2162 | J10: -1014 | K10: -970 | L10: -535 | M10: -875 | N10: 601 | O10: -633 | P10: 2522 | Q10: 1021 | R10: -739 | S10: -567 | T10: -617 | U10: -1476 | V10: 10357 | W10: -578 | X10: 457 | Y10: -1304 | Z10: -915 | AA10: -2830 | AB10: -615 | AC10: 672 | AD10: -2015 | AE10: -298 | AF10: 868 | AG10: -1108 | AH10: -707 | AI10: 481 | AJ10: -1214 | AK10: 1988 | AL10: -432 | AM10: -1548 | AN10: -1005 | AO10: 123 | AP10: -1837 | AQ10: 11004 | AR10: -687 | AS10: -895 | AT10: -1102 | AU10: -848 | AV10: -1731 | AW10: -224 | AX10: 117 | AY10: -1659 | AZ10: -1528 | BA10: -358 | BB10: 268 | BC10: -1545 | BD10: -401 | BE10: -770 | BF10: 624 | BG10: 444 | BH10: -1274 | BI10: -268 | BJ10: -721 | BK10: -1862 | BL10: 10687 | BM10: -681 | BN10: -796 | BO10: -1219 | BP10: -275 | BQ10: -1799 | BR10: -1847 | BS10: -657 | BT10: -1687 | BU10: 34 | BV10: 156 | BW10: -817 | BX10: -837 | BY10: 779 | BZ10: -155 | CA10: 3175 | CB10: -55 | CC10: 193 | CD10: -1589 | CE10: -877 | CF10: -1201 | CG10: 10658 | CH10: -941 | CI10: 32 | CJ10: -1702 | CK10: -895 | CL10: -1631 | CM10: -348 | CN10: 254 | CO10: -1945 | CP10: -864 | CQ10: -944 | CR10: 388 | CS10: -1350 | CT10: 647 | CU10: -29 | CV10: 412 | CW10: 89 | CX10: -1540 | CY10: -243 | CZ10: 296 | DA10: -984 | DB10: 10590 | DC10: -657 | DD10: 256 | DE10: -817 | DF10: -484 | DG10: -723 | DH10: -1054 | DI10: -1488 | DJ10: -1915 | DK10: -503 | DL10: -232 | DM10: -223 | DN10: -953 | DO10: 757 | DP10: -451 | DQ10: 3011 | DR10: -940 | DS10: -1275 | DT10: -1235 | DU10: -411 | DV10: -1482
A11: 12444 | B11: -613 | C11: -272 | D11: -750 | E11: 1437 | F11: 448 | G11: 282 | H11: 1870 | I11: -2761 | J11: -184 | K11: -1459 | L11: -766 | M11: -2388 | N11: -11 | O11: 243 | P11: 4488 | Q11: 259 | R11: -2181 | S11: -2018 | T11: -806 | U11: -1118 | V11: 12591 | W11: -639 | X11: -259 | Y11: -1460 | Z11: 785 | AA11: -1698 | AB11: 685 | AC11: 1034 | AD11: -4056 | AE11: -736 | AF11: -1742 | AG11: -1472 | AH11: -2895 | AI11: -1021 | AJ11: -136 | AK11: 4012 | AL11: 349 | AM11: -2995 | AN11: -2370 | AO11: -1020 | AP11: -98 | AQ11: 12046 | AR11: 37 | AS11: -317 | AT11: -1682 | AU11: 1002 | AV11: -548 | AW11: 40 | AX11: 1411 | AY11: -3215 | AZ11: -483 | BA11: -1624 | BB11: -822 | BC11: -3413 | BD11: -404 | BE11: 39 | BF11: 3843 | BG11: 350 | BH11: -2243 | BI11: -1679 | BJ11: -1407 | BK11: -512 | BL11: 11514 | BM11: -1142 | BN11: 274 | BO11: -1222 | BP11: 562 | BQ11: -342 | BR11: 443 | BS11: 823 | BT11: -3559 | BU11: -1065 | BV11: -1322 | BW11: -1288 | BX11: -2390 | BY11: -554 | BZ11: 118 | CA11: 4962 | CB11: 595 | CC11: -1741 | CD11: -2481 | CE11: -635 | CF11: -575 | CG11: 11201 | CH11: -395 | CI11: -976 | CJ11: -742 | CK11: 478 | CL11: -515 | CM11: -818 | CN11: 1541 | CO11: -3205 | CP11: -1192 | CQ11: -2256 | CR11: 139 | CS11: -1771 | CT11: -422 | CU11: 375 | CV11: 1561 | CW11: -267 | CX11: -2282 | CY11: -904 | CZ11: -1151 | DA11: -508 | DB11: 11629 | DC11: -1083 | DD11: -232 | DE11: -1174 | DF11: 164 | DG11: -394 | DH11: 1193 | DI11: -97 | DJ11: -3113 | DK11: -155 | DL11: -840 | DM11: -927 | DN11: -2681 | DO11: -1095 | DP11: 291 | DQ11: 3970 | DR11: -24 | DS11: -1373 | DT11: -2238 | DU11: -1070 | DV11: -694
A12: 18973 | B12: -554 | C12: 622 | D12: -1873 | E12: 1619 | F12: -976 | G12: -150 | H12: 2627 | I12: -5256 | J12: -1243 | K12: -1865 | L12: -1037 | M12: -3502 | N12: 909 | O12: 1709 | P12: 8606 | Q12: 111 | R12: -3717 | S12: -2991 | T12: -1930 | U12: -2186 | V12: 18118 | W12: -762 | X12: 335 | Y12: -2681 | Z12: 1074 | AA12: -3886 | AB12: 475 | AC12: 2173 | AD12: -6944 | AE12: -1879 | AF12: -1638 | AG12: -1656 | AH12: -3957 | AI12: 530 | AJ12: 1412 | AK12: 7031 | AL12: 198 | AM12: -4871 | AN12: -3052 | AO12: -1895 | AP12: -1765 | AQ12: 18094 | AR12: -302 | AS12: 210 | AT12: -2142 | AU12: 2547 | AV12: -1876 | AW12: -240 | AX12: 2263 | AY12: -5476 | AZ12: -1842 | BA12: -2600 | BB12: -943 | BC12: -3524 | BD12: 761 | BE12: 809 | BF12: 6436 | BG12: -174 | BH12: -3158 | BI12: -1634 | BJ12: -2092 | BK12: -2583 | BL12: 17981 | BM12: -1690 | BN12: 435 | BO12: -2042 | BP12: 505 | BQ12: -1725 | BR12: -379 | BS12: -138 | BT12: -6379 | BU12: -1502 | BV12: -1299 | BW12: -1855 | BX12: -3147 | BY12: 1206 | BZ12: 1105 | CA12: 9878 | CB12: 727 | CC12: -2249 | CD12: -3661 | CE12: -1744 | CF12: -2402 | CG12: 15974 | CH12: -625 | CI12: -383 | CJ12: -1627 | CK12: 814 | CL12: -663 | CM12: -992 | CN12: 1754 | CO12: -5270 | CP12: -2241 | CQ12: -3179 | CR12: -168 | CS12: -2998 | CT12: 1509 | CU12: 1033 | CV12: 3458 | CW12: -421 | CX12: -3561 | CY12: -395 | CZ12: -1633 | DA12: -1815 | DB12: 17441 | DC12: -1675 | DD12: 831 | DE12: -1451 | DF12: -367 | DG12: -433 | DH12: 297 | DI12: -823 | DJ12: -5649 | DK12: -702 | DL12: -1465 | DM12: -269 | DN12: -3061 | DO12: 647 | DP12: 1111 | DQ12: 9266 | DR12: -724 | DS12: -2921 | DT12: -3662 | DU12: -2226 | DV12: -3122
A13: 21557 | B13: -717 | C13: 1858 | D13: -1465 | E13: 766 | F13: -2024 | G13: -1267 | H13: 1431 | I13: -5636 | J13: -1817 | K13: -1746 | L13: -1255 | M13: -3102 | N13: 2016 | O13: 1767 | P13: 10443 | Q13: 336 | R13: -4532 | S13: -3087 | T13: -3340 | U13: -4231 | V13: 22161 | W13: -454 | X13: 1536 | Y13: -2719 | Z13: 941 | AA13: -5301 | AB13: -40 | AC13: 1571 | AD13: -7947 | AE13: -1619 | AF13: -2275 | AG13: -2881 | AH13: -3083 | AI13: 1953 | AJ13: 848 | AK13: 9376 | AL13: -185 | AM13: -5831 | AN13: -3252 | AO13: -2360 | AP13: -3659 | AQ13: 21742 | AR13: -900 | AS13: 372 | AT13: -1800 | AU13: 2342 | AV13: -2264 | AW13: -1331 | AX13: 1502 | AY13: -6443 | AZ13: -2501 | BA13: -2558 | BB13: -610 | BC13: -3235 | BD13: 1531 | BE13: 1714 | BF13: 7769 | BG13: -465 | BH13: -4087 | BI13: -2159 | BJ13: -3178 | BK13: -3876 | BL13: 21011 | BM13: -2087 | BN13: 1458 | BO13: -1545 | BP13: -262 | BQ13: -2997 | BR13: -1946 | BS13: -336 | BT13: -7090 | BU13: -1673 | BV13: -1120 | BW13: -2694 | BX13: -2934 | BY13: 2127 | BZ13: 2090 | CA13: 11641 | CB13: 561 | CC13: -2084 | CD13: -4190 | CE13: -2991 | CF13: -3651 | CG13: 18854 | CH13: -1146 | CI13: 536 | CJ13: -1950 | CK13: -10 | CL13: -1744 | CM13: -2235 | CN13: 1233 | CO13: -5927 | CP13: -2981 | CQ13: -3365 | CR13: -723 | CS13: -2541 | CT13: 2466 | CU13: 1411 | CV13: 4302 | CW13: -844 | CX13: -4338 | CY13: -132 | CZ13: -2543 | DA13: -3271 | DB13: 20157 | DC13: -1031 | DD13: 1570 | DE13: -1403 | DF13: -392 | DG13: -1327 | DH13: -1116 | DI13: -1475 | DJ13: -6287 | DK13: -1121 | DL13: -1270 | DM13: -1019 | DN13: -2609 | DO13: 2070 | DP13: 1352 | DQ13: 9968 | DR13: -997 | DS13: -3763 | DT13: -3816 | DU13: -2189 | DV13: -4528
A14: 24068 | B14: -2343 | C14: -728 | D14: -1640 | E14: -803 | F14: -2497 | G14: -1633 | H14: 1947 | I14: -6621 | J14: -1039 | K14: -2214 | L14: 212 | M14: -2310 | N14: 606 | O14: -1032 | P14: 11875 | Q14: 1046 | R14: -4440 | S14: -803 | T14: -5022 | U14: -2938 | V14: 24572 | W14: -1745 | X14: -1795 | Y14: -3310 | Z14: 524 | AA14: -5663 | AB14: -1132 | AC14: 1537 | AD14: -8738 | AE14: -327 | AF14: -1743 | AG14: -2342 | AH14: -3136 | AI14: 1035 | AJ14: -2043 | AK14: 11497 | AL14: -496 | AM14: -6461 | AN14: -225 | AO14: -3773 | AP14: -3483 | AQ14: 24321 | AR14: -2612 | AS14: -1931 | AT14: -2117 | AU14: 1381 | AV14: -2188 | AW14: -1926 | AX14: 1415 | AY14: -7114 | AZ14: -1929 | BA14: -2387 | BB14: 348 | BC14: -3459 | BD14: 968 | BE14: 563 | BF14: 10257 | BG14: -947 | BH14: -4244 | BI14: 208 | BJ14: -4260 | BK14: -2802 | BL14: 23407 | BM14: -3402 | BN14: -1866 | BO14: -2768 | BP14: -318 | BQ14: -1856 | BR14: -2258 | BS14: -587 | BT14: -6795 | BU14: -140 | BV14: -1000 | BW14: -2264 | BX14: -2875 | BY14: 1523 | BZ14: 280 | CA14: 12953 | CB14: 2219 | CC14: -1726 | CD14: -3182 | CE14: -3384 | CF14: -2002 | CG14: 20686 | CH14: -2750 | CI14: -819 | CJ14: -2517 | CK14: -1456 | CL14: -3488 | CM14: -1874 | CN14: 1099 | CO14: -5729 | CP14: -761 | CQ14: -3523 | CR14: 309 | CS14: -2435 | CT14: 2571 | CU14: -144 | CV14: 5184 | CW14: -843 | CX14: -3596 | CY14: 2277 | CZ14: -3338 | DA14: -1620 | DB14: 23072 | DC14: -2595 | DD14: -708 | DE14: -1780 | DF14: -1179 | DG14: -1057 | DH14: -1739 | DI14: -1114 | DJ14: -6465 | DK14: 803 | DL14: -1305 | DM14: 0 | DN14: -661 | DO14: 2213 | DP14: -485 | DQ14: 12351 | DR14: 139 | DS14: -4408 | DT14: -3295 | DU14: -2891 | DV14: -3905
A15: 34023 | B15: -5760 | C15: -5608 | D15: -3980 | E15: -1356 | F15: -1592 | G15: 370 | H15: 5032 | I15: -8142 | J15: -1342 | K15: -389 | L15: -2510 | M15: -1201 | N15: -916 | O15: -4838 | P15: 17644 | Q15: 1540 | R15: -6813 | S15: 2506 | T15: -6132 | U15: 261 | V15: 32266 | W15: -5586 | X15: -6910 | Y15: -5515 | Z15: -960 | AA15: -6382 | AB15: -1212 | AC15: 3022 | AD15: -10536 | AE15: -737 | AF15: -311 | AG15: -1266 | AH15: -2928 | AI15: -2033 | AJ15: -4905 | AK15: 16210 | AL15: -1914 | AM15: -8019 | AN15: 2645 | AO15: -5009 | AP15: -1051 | AQ15: 32048 | AR15: -5140 | AS15: -6614 | AT15: -3726 | AU15: 530 | AV15: -2727 | AW15: -814 | AX15: 2950 | AY15: -8277 | AZ15: -3190 | BA15: -60 | BB15: -443 | BC15: -4899 | BD15: 633 | BE15: -2957 | BF15: 15955 | BG15: -1412 | BH15: -4360 | BI15: 3766 | BJ15: -6868 | BK15: -951 | BL15: 35114 | BM15: -5896 | BN15: -5978 | BO15: -4216 | BP15: -1997 | BQ15: -1865 | BR15: -1453 | BS15: 843 | BT15: -7630 | BU15: 771 | BV15: -108 | BW15: -2931 | BX15: -2333 | BY15: -525 | BZ15: -4977 | CA15: 19944 | CB15: 1581 | CC15: -2354 | CD15: -361 | CE15: -4960 | CF15: -1832 | CG15: 26855 | CH15: -5263 | CI15: -4630 | CJ15: -4356 | CK15: -1650 | CL15: -4677 | CM15: -1802 | CN15: 2626 | CO15: -6921 | CP15: -816 | CQ15: -3663 | CR15: 1322 | CS15: -1374 | CT15: 1764 | CU15: -903 | CV15: 9796 | CW15: -874 | CX15: -5065 | CY15: 3544 | CZ15: -6059 | DA15: 810 | DB15: 35506 | DC15: -6535 | DD15: -4299 | DE15: -3902 | DF15: -3111 | DG15: -2921 | DH15: -375 | DI15: 204 | DJ15: -6852 | DK15: 2179 | DL15: -642 | DM15: -1027 | DN15: -1263 | DO15: -465 | DP15: -3905 | DQ15: 18771 | DR15: -214 | DS15: -4740 | DT15: -1445 | DU15: -6268 | DV15: -2015
A16: 39573 | B16: -7809 | C16: -6959 | D16: -4766 | E16: -1600 | F16: -1703 | G16: 77 | H16: 5681 | I16: -7787 | J16: -1129 | K16: -216 | L16: -2312 | M16: -2748 | N16: -562 | O16: -4182 | P16: 18844 | Q16: 1095 | R16: -7191 | S16: 2901 | T16: -7202 | U16: 402 | V16: 38010 | W16: -6970 | X16: -6818 | Y16: -6184 | Z16: -1841 | AA16: -7614 | AB16: 194 | AC16: 4325 | AD16: -10091 | AE16: 68 | AF16: 430 | AG16: -910 | AH16: -5114 | AI16: -3067 | AJ16: -6453 | AK16: 17004 | AL16: -1244 | AM16: -8434 | AN16: 3207 | AO16: -6188 | AP16: 27 | AQ16: 35570 | AR16: -6951 | AS16: -8973 | AT16: -5862 | AU16: 416 | AV16: -3670 | AW16: -569 | AX16: 3326 | AY16: -8794 | AZ16: -3924 | BA16: 513 | BB16: -125 | BC16: -4414 | BD16: -452 | BE16: -5052 | BF16: 17462 | BG16: -2043 | BH16: -4510 | BI16: 2930 | BJ16: -7740 | BK16: -144 | BL16: 35899 | BM16: -7433 | BN16: -7097 | BO16: -3851 | BP16: -3121 | BQ16: -2487 | BR16: 262 | BS16: 544 | BT16: -7981 | BU16: 1228 | BV16: -138 | BW16: -4919 | BX16: -1886 | BY16: -439 | BZ16: -5158 | CA16: 22944 | CB16: 928 | CC16: -1712 | CD16: -881 | CE16: -6759 | CF16: -1329 | CG16: 28429 | CH16: -6657 | CI16: -6903 | CJ16: -5966 | CK16: -440 | CL16: -4951 | CM16: -2577 | CN16: 3428 | CO16: -9028 | CP16: -327 | CQ16: -1673 | CR16: 3217 | CS16: -2723 | CT16: 437 | CU16: -1685 | CV16: 12359 | CW16: -823 | CX16: -3996 | CY16: 2509 | CZ16: -6999 | DA16: 1846 | DB16: 34077 | DC16: -6127 | DD16: -5581 | DE16: -5450 | DF16: -2634 | DG16: -1990 | DH16: -1128 | DI16: -884 | DJ16: -6265 | DK16: 2462 | DL16: -793 | DM16: -2312 | DN16: -563 | DO16: -1124 | DP16: -3624 | DQ16: 21377 | DR16: -2431 | DS16: -3174 | DT16: 16 | DU16: -6753 | DV16: -2626
A17: 30363 | B17: -6686 | C17: -2892 | D17: -4716 | E17: -1756 | F17: -2850 | G17: 293 | H17: 3629 | I17: -6126 | J17: -894 | K17: 963 | L17: -623 | M17: -2751 | N17: 1897 | O17: -2620 | P17: 15820 | Q17: 1830 | R17: -4453 | S17: -1190 | T17: -4975 | U17: -1966 | V17: 29633 | W17: -3593 | X17: -4182 | Y17: -6727 | Z17: -2733 | AA17: -8303 | AB17: -959 | AC17: 2882 | AD17: -9948 | AE17: -379 | AF17: 457 | AG17: -827 | AH17: -3616 | AI17: 284 | AJ17: -4183 | AK17: 15121 | AL17: -686 | AM17: -6864 | AN17: 1427 | AO17: -5602 | AP17: -3255 | AQ17: 27351 | AR17: -5530 | AS17: -5559 | AT17: -3727 | AU17: 488 | AV17: -3194 | AW17: -2268 | AX17: 2989 | AY17: -7828 | AZ17: -2714 | BA17: 610 | BB17: 639 | BC17: -2599 | BD17: -401 | BE17: -2405 | BF17: 11597 | BG17: -1838 | BH17: -3199 | BI17: 1452 | BJ17: -6036 | BK17: -2242 | BL17: 27945 | BM17: -5590 | BN17: -4709 | BO17: -4508 | BP17: -2585 | BQ17: -3166 | BR17: -1208 | BS17: 1178 | BT17: -8589 | BU17: 1357 | BV17: -1135 | BW17: -1793 | BX17: -1781 | BY17: 928 | BZ17: -2088 | CA17: 16920 | CB17: 2599 | CC17: -634 | CD17: -2310 | CE17: -5161 | CF17: -3651 | CG17: 24788 | CH17: -5758 | CI17: -3702 | CJ17: -4529 | CK17: -845 | CL17: -4418 | CM17: -2821 | CN17: 3095 | CO17: -8257 | CP17: -2546 | CQ17: -505 | CR17: 1765 | CS17: -3651 | CT17: 2732 | CU17: -1742 | CV17: 10144 | CW17: -2102 | CX17: -3453 | CY17: 3036 | CZ17: -5359 | DA17: -874 | DB17: 27402 | DC17: -5043 | DD17: -2780 | DE17: -4347 | DF17: -2580 | DG17: -3071 | DH17: -884 | DI17: -1681 | DJ17: -8047 | DK17: 2991 | DL17: -836 | DM17: -868 | DN17: -1076 | DO17: -372 | DP17: -2463 | DQ17: 17161 | DR17: 35 | DS17: -3603 | DT17: -3833 | DU17: -5316 | DV17: -4263
A18: 17984 | B18: -3413 | C18: 431 | D18: -2665 | E18: -746 | F18: -2740 | G18: -1226 | H18: 1731 | I18: -3949 | J18: -1672 | K18: -916 | L18: -980 | M18: -1202 | N18: 2618 | O18: -216 | P18: 10170 | Q18: 2121 | R18: -2450 | S18: -2336 | T18: -3003 | U18: -3750 | V18: 19502 | W18: -2400 | X18: -535 | Y18: -3896 | Z18: -831 | AA18: -6102 | AB18: -965 | AC18: 713 | AD18: -6693 | AE18: 214 | AF18: -12 | AG18: -1747 | AH18: -1102 | AI18: 1244 | AJ18: -1143 | AK18: 10137 | AL18: 1175 | AM18: -4175 | AN18: -462 | AO18: -2927 | AP18: -3139 | AQ18: 19706 | AR18: -3448 | AS18: -1610 | AT18: -1799 | AU18: 692 | AV18: -3017 | AW18: -2576 | AX18: 1775 | AY18: -5056 | AZ18: -1288 | BA18: -669 | BB18: 217 | BC18: -1520 | BD18: 1294 | BE18: -275 | BF18: 7534 | BG18: -179 | BH18: -3119 | BI18: 608 | BJ18: -3451 | BK18: -2597 | BL18: 17410 | BM18: -3007 | BN18: 315 | BO18: -2668 | BP18: -1511 | BQ18: -2973 | BR18: -3099 | BS18: 435 | BT18: -4488 | BU18: 419 | BV18: -434 | BW18: -2045 | BX18: -1151 | BY18: 1790 | BZ18: 391 | CA18: 10418 | CB18: 1008 | CC18: -1191 | CD18: -2546 | CE18: -3160 | CF18: -3218 | CG18: 18311 | CH18: -3916 | CI18: -1638 | CJ18: -782 | CK18: -1678 | CL18: -3068 | CM18: -2134 | CN18: 1892 | CO18: -5419 | CP18: -2476 | CQ18: -2503 | CR18: -207 | CS18: -1914 | CT18: 2927 | CU18: -1232 | CV18: 6123 | CW18: -362 | CX18: -3248 | CY18: 1752 | CZ18: -3279 | DA18: -1669 | DB18: 17980 | DC18: -1952 | DD18: 512 | DE18: -1911 | DF18: -1049 | DG18: -2848 | DH18: -375 | DI18: -1887 | DJ18: -5364 | DK18: 863 | DL18: -947 | DM18: -426 | DN18: -778 | DO18: 2319 | DP18: 93 | DQ18: 9678 | DR18: 304 | DS18: -2239 | DT18: -2736 | DU18: -2572 | DV18: -3491
